Workbook

Sheet Filtros (hidden)
A1: departamento | B1: ciudad | F1: departamento
A2: AMAZONAS | B2: LETICIA | F2: =+_xlfn.UNIQUE(A2:A1135) -> AMAZONAS | G2: =+_xlfn._xlws.FILTER(B2:B864,A2:A864=Visor!M7,"") -> ABEJORRAL | J2: =+COUNTA(G:G) -> 123
A3: AMAZONAS | B3: PUERTO NARIÑO | F3: ANTIOQUIA | G3: ABRIAQUÍ
A4: ANTIOQUIA | B4: ABEJORRAL | F4: ARAUCA | G4: ALEJANDRÍA
A5: ANTIOQUIA | B5: ABRIAQUÍ | F5: ARCHIPIÉLAGO DE SAN ANDRÉS, PROVIDENCIA Y SANTA CATALINA | G5: AMAGÁ
A6: ANTIOQUIA | B6: ALEJANDRÍA | F6: ATLÁNTICO | G6: AMALFI
A7: ANTIOQUIA | B7: AMAGÁ | F7: BOGOTÁ, D.C. | G7: ANDES
A8: ANTIOQUIA | B8: AMALFI | F8: BOLÍVAR | G8: ANGELÓPOLIS
A9: ANTIOQUIA | B9: ANDES | F9: BOYACÁ | G9: ANGOSTURA
A10: ANTIOQUIA | B10: ANGELÓPOLIS | F10: CALDAS | G10: ANORÍ
A11: ANTIOQUIA | B11: ANGOSTURA | F11: CAQUETÁ | G11: ANZA
A12: ANTIOQUIA | B12: ANORÍ | F12: CASANARE | G12: APARTADÓ
A13: ANTIOQUIA | B13: ANZA | F13: CAUCA | G13: ARBOLETES
A14: ANTIOQUIA | B14: APARTADÓ | F14: CESAR | G14: ARGELIA
A15: ANTIOQUIA | B15: ARBOLETES | F15: CHOCÓ | G15: ARMENIA
A16: ANTIOQUIA | B16: ARGELIA | F16: CÓRDOBA | G16: BARBOSA
A17: ANTIOQUIA | B17: ARMENIA | F17: CUNDINAMARCA | G17: BELLO
A18: ANTIOQUIA | B18: BARBOSA | F18: GUAINÍA | G18: BELMIRA
A19: ANTIOQUIA | B19: BELLO | F19: GUAVIARE | G19: BETANIA
A20: ANTIOQUIA | B20: BELMIRA | F20: HUILA | G20: BETULIA
A21: ANTIOQUIA | B21: BETANIA | F21: LA GUAJIRA | G21: BRICEÑO
A22: ANTIOQUIA | B22: BETULIA | F22: MAGDALENA | G22: BURITICÁ
A23: ANTIOQUIA | B23: BRICEÑO | F23: META | G23: CÁCERES
A24: ANTIOQUIA | B24: BURITICÁ | F24: NARIÑO | G24: CAICEDO
A25: ANTIOQUIA | B25: CÁCERES | F25: NORTE DE SANTANDER | G25: CALDAS
A26: ANTIOQUIA | B26: CAICEDO | F26: PUTUMAYO | G26: CAMPAMENTO
A27: ANTIOQUIA | B27: CALDAS | F27: QUINDÍO | G27: CAÑASGORDAS
A28: ANTIOQUIA | B28: CAMPAMENTO | F28: RISARALDA | G28: CARACOLÍ
A29: ANTIOQUIA | B29: CAÑASGORDAS | F29: SANTANDER | G29: CARAMANTA
A30: ANTIOQUIA | B30: CARACOLÍ | F30: SUCRE | G30: CAREPA
A31: ANTIOQUIA | B31: CARAMANTA | F31: TOLIMA | G31: CAROLINA
A32: ANTIOQUIA | B32: CAREPA | F32: VALLE DEL CAUCA | G32: CAUCASIA
A33: ANTIOQUIA | B33: CAROLINA | F33: VAUPÉS | G33: CHIGORODÓ
A34: ANTIOQUIA | B34: CAUCASIA | F34: VICHADA | G34: CISNEROS
A35: ANTIOQUIA | B35: CHIGORODÓ | F35: 0 | G35: CIUDAD BOLÍVAR
A36: ANTIOQUIA | B36: CISNEROS | G36: COCORNÁ
A37: ANTIOQUIA | B37: CIUDAD BOLÍVAR | G37: CONCEPCIÓN
A38: ANTIOQUIA | B38: COCORNÁ | G38: CONCORDIA
A39: ANTIOQUIA | B39: CONCEPCIÓN | G39: COPACABANA
A40: ANTIOQUIA | B40: CONCORDIA | G40: DABEIBA
A41: ANTIOQUIA | B41: COPACABANA | G41: DON MATÍAS
A42: ANTIOQUIA | B42: DABEIBA | G42: EBÉJICO
A43: ANTIOQUIA | B43: DON MATÍAS | G43: EL BAGRE
A44: ANTIOQUIA | B44: EBÉJICO | G44: EL CARMEN DE VIBORAL
A45: ANTIOQUIA | B45: EL BAGRE | G45: EL SANTUARIO
A46: ANTIOQUIA | B46: EL CARMEN DE VIBORAL | G46: ENTRERRIOS
A47: ANTIOQUIA | B47: EL SANTUARIO | G47: ENVIGADO
A48: ANTIOQUIA | B48: ENTRERRIOS | G48: FREDONIA
A49: ANTIOQUIA | B49: ENVIGADO | G49: FRONTINO
A50: ANTIOQUIA | B50: FREDONIA | G50: GIRALDO
A51: ANTIOQUIA | B51: FRONTINO | G51: GIRARDOTA
A52: ANTIOQUIA | B52: GIRALDO | G52: GÓMEZ PLATA
A53: ANTIOQUIA | B53: GIRARDOTA | G53: GRANADA
A54: ANTIOQUIA | B54: GÓMEZ PLATA | G54: GUADALUPE
A55: ANTIOQUIA | B55: GRANADA | G55: GUARNE
A56: ANTIOQUIA | B56: GUADALUPE | G56: GUATAPE
A57: ANTIOQUIA | B57: GUARNE | G57: HELICONIA
A58: ANTIOQUIA | B58: GUATAPE | G58: HISPANIA
A59: ANTIOQUIA | B59: HELICONIA | G59: ITAGUI
A60: ANTIOQUIA | B60: HISPANIA | G60: ITUANGO
A61: ANTIOQUIA | B61: ITAGUI | G61: JARDÍN
A62: ANTIOQUIA | B62: ITUANGO | G62: JERICÓ
A63: ANTIOQUIA | B63: JARDÍN | G63: LA CEJA
A64: ANTIOQUIA | B64: JERICÓ | G64: LA ESTRELLA
A65: ANTIOQUIA | B65: LA CEJA | G65: LA PINTADA
A66: ANTIOQUIA | B66: LA ESTRELLA | G66: LA UNIÓN
A67: ANTIOQUIA | B67: LA PINTADA | G67: LIBORINA
A68: ANTIOQUIA | B68: LA UNIÓN | G68: MACEO
A69: ANTIOQUIA | B69: LIBORINA | G69: MARINILLA
A70: ANTIOQUIA | B70: MACEO | G70: MEDELLÍN
A71: ANTIOQUIA | B71: MARINILLA | G71: MONTEBELLO
A72: ANTIOQUIA | B72: MEDELLÍN | G72: MURINDÓ
A73: ANTIOQUIA | B73: MONTEBELLO | G73: MUTATÁ
A74: ANTIOQUIA | B74: MURINDÓ | G74: NARIÑO
A75: ANTIOQUIA | B75: MUTATÁ | G75: NECOCLÍ
A76: ANTIOQUIA | B76: NARIÑO | G76: OLAYA
A77: ANTIOQUIA | B77: NECOCLÍ | G77: PEÑOL
A78: ANTIOQUIA | B78: OLAYA | G78: PUEBLORRICO
A79: ANTIOQUIA | B79: PEÑOL | G79: PUERTO BERRÍO
A80: ANTIOQUIA | B80: PUEBLORRICO | G80: PUERTO NARE
A81: ANTIOQUIA | B81: PUERTO BERRÍO | G81: PUERTO TRIUNFO
A82: ANTIOQUIA | B82: PUERTO NARE | G82: REMEDIOS
A83: ANTIOQUIA | B83: PUERTO TRIUNFO | G83: RETIRO
A84: ANTIOQUIA | B84: REMEDIOS | G84: RIONEGRO
A85: ANTIOQUIA | B85: RETIRO | G85: SABANALARGA
A86: ANTIOQUIA | B86: RIONEGRO | G86: SABANETA
A87: ANTIOQUIA | B87: SABANALARGA | G87: SALGAR
A88: ANTIOQUIA | B88: SABANETA | G88: SAN ANDRÉS DE CUERQUÍA
A89: ANTIOQUIA | B89: SALGAR | G89: SAN CARLOS
A90: ANTIOQUIA | B90: SAN ANDRÉS DE CUERQUÍA | G90: SAN FRANCISCO
A91: ANTIOQUIA | B91: SAN CARLOS | G91: SAN JERÓNIMO
A92: ANTIOQUIA | B92: SAN FRANCISCO | G92: SAN JOSÉ DE LA MONTAÑA
A93: ANTIOQUIA | B93: SAN JERÓNIMO | G93: SAN JUAN DE URABÁ
A94: ANTIOQUIA | B94: SAN JOSÉ DE LA MONTAÑA | G94: SAN LUIS
A95: ANTIOQUIA | B95: SAN JUAN DE URABÁ | G95: SAN PEDRO DE LOS MILAGROS
A96: ANTIOQUIA | B96: SAN LUIS | G96: SAN PEDRO DE URABA
A97: ANTIOQUIA | B97: SAN PEDRO DE LOS MILAGROS | G97: SAN RAFAEL
A98: ANTIOQUIA | B98: SAN PEDRO DE URABA | G98: SAN ROQUE
A99: ANTIOQUIA | B99: SAN RAFAEL | G99: SAN VICENTE
A100: ANTIOQUIA | B100: SAN ROQUE | G100: SANTA BÁRBARA
A101: ANTIOQUIA | B101: SAN VICENTE | G101: SANTA ROSA DE OSOS
A102: ANTIOQUIA | B102: SANTA BÁRBARA | G102: SANTAFÉ DE ANTIOQUIA
A103: ANTIOQUIA | B103: SANTA ROSA DE OSOS | G103: SANTO DOMINGO
A104: ANTIOQUIA | B104: SANTAFÉ DE ANTIOQUIA | G104: SEGOVIA
A105: ANTIOQUIA | B105: SANTO DOMINGO | G105: SONSON
A106: ANTIOQUIA | B106: SEGOVIA | G106: SOPETRÁN
A107: ANTIOQUIA | B107: SONSON | G107: TÁMESIS
A108: ANTIOQUIA | B108: SOPETRÁN | G108: TARAZÁ
A109: ANTIOQUIA | B109: TÁMESIS | G109: TARSO
A110: ANTIOQUIA | B110: TARAZÁ | G110: TITIRIBÍ
A111: ANTIOQUIA | B111: TARSO | G111: TOLEDO
A112: ANTIOQUIA | B112: TITIRIBÍ | G112: TURBO
A113: ANTIOQUIA | B113: TOLEDO | G113: URAMITA
A114: ANTIOQUIA | B114: TURBO | G114: URRAO
A115: ANTIOQUIA | B115: URAMITA | G115: VALDIVIA
A116: ANTIOQUIA | B116: URRAO | G116: VALPARAÍSO
A117: ANTIOQUIA | B117: VALDIVIA | G117: VEGACHÍ
A118: ANTIOQUIA | B118: VALPARAÍSO | G118: VENECIA
A119: ANTIOQUIA | B119: VEGACHÍ | G119: VIGÍA DEL FUERTE
A120: ANTIOQUIA | B120: VENECIA | G120: YALÍ
A121: ANTIOQUIA | B121: VIGÍA DEL FUERTE | G121: YARUMAL
A122: ANTIOQUIA | B122: YALÍ | G122: YOLOMBÓ
A123: ANTIOQUIA | B123: YARUMAL | G123: YONDÓ
A124: ANTIOQUIA | B124: YOLOMBÓ | G124: ZARAGOZA
A125: ANTIOQUIA | B125: YONDÓ
A126: ANTIOQUIA | B126: ZARAGOZA
A127: ARAUCA | B127: ARAUCA
A128: ARAUCA | B128: ARAUQUITA
A129: ARAUCA | B129: FORTUL
A130: ARAUCA | B130: SARAVENA
A131: ARAUCA | B131: TAME
A132: ARCHIPIÉLAGO DE SAN ANDRÉS, PROVIDENCIA Y SANTA CATALINA | B132: PROVIDENCIA
A133: ARCHIPIÉLAGO DE SAN ANDRÉS, PROVIDENCIA Y SANTA CATALINA | B133: SAN ANDRÉS
A134: ATLÁNTICO | B134: BARANOA
A135: ATLÁNTICO | B135: BARRANQUILLA
A136: ATLÁNTICO | B136: CAMPO DE LA CRUZ
A137: ATLÁNTICO | B137: GALAPA
A138: ATLÁNTICO | B138: JUAN DE ACOSTA
A139: ATLÁNTICO | B139: LURUACO
A140: ATLÁNTICO | B140: MALAMBO
A141: ATLÁNTICO | B141: PALMAR DE VARELA
A142: ATLÁNTICO | B142: POLONUEVO
A143: ATLÁNTICO | B143: PONEDERA
A144: ATLÁNTICO | B144: PUERTO COLOMBIA
A145: ATLÁNTICO | B145: SABANAGRANDE
A146: ATLÁNTICO | B146: SABANALARGA
A147: ATLÁNTICO | B147: SANTA LUCÍA
A148: ATLÁNTICO | B148: SANTO TOMÁS
A149: ATLÁNTICO | B149: SOLEDAD
A150: ATLÁNTICO | B150: SUAN
A151: ATLÁNTICO | B151: TUBARÁ
A152: BOGOTÁ, D.C. | B152: BOGOTÁ, D.C.
A153: BOLÍVAR | B153: ALTOS DEL ROSARIO
A154: BOLÍVAR | B154: ARENAL
A155: BOLÍVAR | B155: ARJONA
A156: BOLÍVAR | B156: BARRANCO DE LOBA
A157: BOLÍVAR | B157: CALAMAR
A158: BOLÍVAR | B158: CANTAGALLO
A159: BOLÍVAR | B159: CARTAGENA
A160: BOLÍVAR | B160: CICUCO
A161: BOLÍVAR | B161: CLEMENCIA
A162: BOLÍVAR | B162: CÓRDOBA
A163: BOLÍVAR | B163: EL CARMEN DE BOLÍVAR
A164: BOLÍVAR | B164: EL PEÑÓN
A165: BOLÍVAR | B165: HATILLO DE LOBA
A166: BOLÍVAR | B166: MAGANGUÉ
A167: BOLÍVAR | B167: MAHATES
A168: BOLÍVAR | B168: MARÍA LA BAJA
A169: BOLÍVAR | B169: MOMPÓS
A170: BOLÍVAR | B170: MORALES
A171: BOLÍVAR | B171: RÍO VIEJO
A172: BOLÍVAR | B172: SAN JACINTO
A173: BOLÍVAR | B173: SAN JACINTO DEL CAUCA
A174: BOLÍVAR | B174: SAN JUAN NEPOMUCENO
A175: BOLÍVAR | B175: SAN MARTÍN DE LOBA
A176: BOLÍVAR | B176: SAN PABLO
A177: BOLÍVAR | B177: SANTA CATALINA
A178: BOLÍVAR | B178: SANTA ROSA
A179: BOLÍVAR | B179: SANTA ROSA DEL SUR
A180: BOLÍVAR | B180: TALAIGUA NUEVO
A181: BOLÍVAR | B181: TURBACO
A182: BOLÍVAR | B182: TURBANÁ
A183: BOLÍVAR | B183: VILLANUEVA
A184: BOLÍVAR | B184: ZAMBRANO
A185: BOYACÁ | B185: AQUITANIA
A186: BOYACÁ | B186: ARCABUCO
A187: BOYACÁ | B187: BELÉN
A188: BOYACÁ | B188: BOAVITA
A189: BOYACÁ | B189: BOYACÁ
A190: BOYACÁ | B190: BUSBANZÁ
A191: BOYACÁ | B191: CALDAS
A192: BOYACÁ | B192: CHIQUINQUIRÁ
A193: BOYACÁ | B193: CHITARAQUE
A194: BOYACÁ | B194: CHIVATÁ
A195: BOYACÁ | B195: CIÉNEGA
A196: BOYACÁ | B196: CÓMBITA
A197: BOYACÁ | B197: CUCAITA
A198: BOYACÁ | B198: CUÍTIVA
A199: BOYACÁ | B199: DUITAMA
A200: BOYACÁ | B200: EL COCUY
... 665 more rows

Sheet $Base (hidden)
A1: Ciclo de postulación - Nomina | B1: ID-secuencia | C1: Tipo de Persona | D1: Código Departamento - Divipola | E1: Departamento del empleador | F1: Código Ciudad Divipola | G1: Ciudad del empleador | H1: Código CIIU por rama | I1: Sector según ramas de actividad CIIU 4 A.C | J1: Sector según división CIIU 4 A.C. | K1: Estado empleador | L1: Causal de rechazo a nivel aportante | M1: Número de empleados con concepto de conformidad 40 % | N1: Número de empleados con concepto de conformidad 50 % | O1: Número de empleados beneficiados con concepto de no conformidad | P1: Recursos Asociados | Q1: Cantidad de empleados | R1: Tamaño empleador | V1: Ciclo de postulación - Nomina | W1: ID-secuencia | X1: Tipo de Persona | Y1: Código Departamento - Divipola | Z1: Departamento del empleador | AA1: Código Ciudad Divipola | AB1: Ciudad del empleador | AC1: Código CIIU por rama | AD1: Sector según ramas de actividad CIIU 4 A.C | AE1: Sector según división CIIU 4 A.C. | AF1: Estado empleador | AG1: Causal de rechazo a nivel aportante | AH1: Número de empleados con concepto de conformidad 40 % | AI1: Número de empleados con concepto de conformidad 50 % | AJ1: Número de empleados beneficiados con concepto de no conformidad | AK1: Recursos Asociados | AL1: Cantidad de empleados | AM1: Tamaño empleador | AQ1: Orden | AR1: Sector económico | AT1: RecursosDpto | AU1: RecursosMpio | AY1: RecursosDpto | AZ1: RecursosMpio
C2: Natural | D2: 11 | E2: BOGOTÁ, D.C. | F2: 11001 | G2: BOGOTÁ, D.C. | H2: 8621 | I2: ACTIVIDADES DE ATENCIÓN DE LA SALUD HUMANA Y DE ASISTENCIA SOCIAL | K2: Rechazado a nivel aportante | P2: 0 | Q2: 4 | R2: MICRO | V2: =+_xlfn._xlws.FILTER($A$2:$R$400000,$E$2:$E$400000=Visor!M7,"") -> 0 | W2: 0 | X2: Natural | Y2: 5 | Z2: ANTIOQUIA | AA2: 5360 | AB2: ITAGUI | AC2: 1020 | AD2: INDUSTRIAS MANUFACTURERAS | AE2: 0 | AF2: Aprobado con subsidio | AG2: 0 | AH2: 0 | AI2: 0 | AJ2: 0 | AK2: 21276000 | AL2: 6 | AM2: MICRO | AQ2: =+_xlfn.RANK.EQ(AT2,$AT$2:$AT$23,1) -> 11 | AR2: =+_xlfn.UNIQUE(Montos!$U$2:$U$396864) -> ACTIVIDADES ARTÍSTICAS, DE ENTRETENIMIENTO Y RECREACIÓN | AS2: =+VLOOKUP(AR2,$BB$2:$BC$23,2,FALSE) -> Act artísticas y de entretenimiento | AT2: =+SUMIF(Montos!$U$2:$U$396864,'$Base'!AR2,Montos!$Y$2:$Y$396864)/1000000 -> 22738.018 | AU2: =+SUMIFS(Montos!$Y$2:$Y$396864,Montos!$U$2:$U$396864,'$Base'!AR2,Montos!$R$2:$R$396864,Visor!$M$8)/1000000 -> 20508.391 | AW2: 1 | AX2: =+IF(AY2<>0,IFERROR(VLOOKUP(AW2,$AQ$2:$AU$23,3,0),""),"") -> Otras | AY2: =+IFERROR(VLOOKUP(AW2,$AQ$2:$AU$23,4,0),"") -> 54.172 | AZ2: =+IFERROR(VLOOKUP(AW2,$AQ$2:$AU$23,5,0),"") -> 38.563 | BB2: ACTIVIDADES ARTÍSTICAS, DE ENTRETENIMIENTO Y RECREACIÓN | BC2: Act artísticas y de entretenimiento | BH2: =Visor!M8 -> MEDELLÍN | BI2: =Visor!M7 -> ANTIOQUIA
C3: Natural | D3: 50 | E3: META | F3: 50006 | G3: ACACÍAS | H3: 8530 | I3: EDUCACIÓN | K3: Aprobado con subsidio | P3: 47026000 | Q3: 15 | R3: PEQUEÑA | V3: 0 | W3: 0 | X3: Natural | Y3: 5 | Z3: ANTIOQUIA | AA3: 5001 | AB3: MEDELLÍN | AC3: 7990 | AD3: ACTIVIDADES DE SERVICIOS ADMINISTRATIVOS Y DE APOYO | AE3: 0 | AF3: Aprobado con subsidio | AG3: 0 | AH3: 0 | AI3: 0 | AJ3: 0 | AK3: 702000 | AL3: 3 | AM3: MICRO | AQ3: =+_xlfn.RANK.EQ(AT3,$AT$2:$AT$23,1) -> 16 | AR3: ACTIVIDADES DE ATENCIÓN DE LA SALUD HUMANA Y DE ASISTENCIA SOCIAL | AS3: Act. de atención de la salud humana | AT3: =+SUMIF(Montos!$U$2:$U$396864,'$Base'!AR3,Montos!$Y$2:$Y$396864)/1000000 -> 53926.219 | AU3: =+SUMIFS(Montos!$Y$2:$Y$396864,Montos!$U$2:$U$396864,'$Base'!AR3,Montos!$R$2:$R$396864,Visor!$M$8)/1000000 -> 40891.251 | AW3: 2 | AX3: =+IF(AY3<>0,IFERROR(VLOOKUP(AW3,$AQ$2:$AU$23,3,0),""),"") -> Act de organizaciones y entidades extraterritoriales | AY3: 71.26 | AZ3: 70.909 | BB3: ACTIVIDADES DE ORGANIZACIONES Y ENTIDADES EXTRATERRITORIALES | BC3: Act de organizaciones y entidades extraterritoriales | BH3: =Visor!H129/Visor!H128 -> 0.9324158396 | BI3: =Visor!F129/Visor!F128 -> 0.9300674245
C4: Natural | D4: 5 | E4: ANTIOQUIA | F4: 5360 | G4: ITAGUI | H4: 1020 | I4: INDUSTRIAS MANUFACTURERAS | K4: Aprobado con subsidio | P4: 21276000 | Q4: 6 | R4: MICRO | V4: 0 | W4: 0 | X4: Natural | Y4: 5 | Z4: ANTIOQUIA | AA4: 5001 | AB4: MEDELLÍN | AC4: 4775 | AD4: COMERCIO AL POR MAYOR Y AL POR MENOR; REPARACIÓN DE VEHÍCULOS AUTOMOTORES Y MOTOCICLETAS | AE4: 0 | AF4: Aprobado con subsidio | AG4: 0 | AH4: 0 | AI4: 0 | AJ4: 0 | AK4: 34398000 | AL4: 27 | AM4: PEQUEÑA | AQ4: 3 | AR4: ACTIVIDADES DE LOS HOGARES INDIVIDUALES EN CALIDAD DE EMPLEADORES; ACTIVIDADES NO DIFERENCIADAS DE LOS HOGARES INDIVIDUALES COMO PRODUCTORES DE BIENES Y SERVICIOS PARA USO PROPIO | AS4: Actividades de los hogares individuales | AT4: =+SUMIF(Montos!$U$2:$U$396864,'$Base'!AR4,Montos!$Y$2:$Y$396864)/1000000 -> 129.893 | AU4: =+SUMIFS(Montos!$Y$2:$Y$396864,Montos!$U$2:$U$396864,'$Base'!AR4,Montos!$R$2:$R$396864,Visor!$M$8)/1000000 -> 98.358 | AW4: 3 | AX4: Actividades de los hogares individuales | AY4: 129.893 | AZ4: 98.358 | BB4: ACTIVIDADES DE ATENCIÓN DE LA SALUD HUMANA Y DE ASISTENCIA SOCIAL | BC4: Act. de atención de la salud humana | BH4: =Visor!H130/Visor!H128 -> 0.06758416044 | BI4: =Visor!F130/Visor!F128 -> 0.06993257549
C5: Natural | D5: 8 | E5: ATLÁNTICO | F5: 8001 | G5: BARRANQUILLA | H5: 4719 | I5: COMERCIO AL POR MAYOR Y AL POR MENOR; REPARACIÓN DE VEHÍCULOS AUTOMOTORES Y MOTOCICLETAS | K5: Aprobado con subsidio | P5: 50724000 | Q5: 19 | R5: PEQUEÑA | V5: 0 | W5: 0 | X5: Natural | Y5: 5 | Z5: ANTIOQUIA | AA5: 5631 | AB5: SABANETA | AC5: 5612 | AD5: ALOJAMIENTO Y SERVICIOS DE COMIDA | AE5: 0 | AF5: Aprobado con subsidio | AG5: 0 | AH5: 0 | AI5: 0 | AJ5: 0 | AK5: 11956000 | AL5: 5 | AM5: MICRO | AQ5: 2 | AR5: ACTIVIDADES DE ORGANIZACIONES Y ENTIDADES EXTRATERRITORIALES | AS5: Act de organizaciones y entidades extraterritoriales | AT5: =+SUMIF(Montos!$U$2:$U$396864,'$Base'!AR5,Montos!$Y$2:$Y$396864)/1000000 -> 71.26 | AU5: =+SUMIFS(Montos!$Y$2:$Y$396864,Montos!$U$2:$U$396864,'$Base'!AR5,Montos!$R$2:$R$396864,Visor!$M$8)/1000000 -> 70.909 | AW5: 4 | AX5: Suministro de electricidad, gas y vapor | AY5: 322.382 | AZ5: 193.615 | BB5: ACTIVIDADES PROFESIONALES, CIENTÍFICAS Y TÉCNICAS | BC5: Act. profecionales cientificas y tecnicas | BH5: =SUM(BH3:BH4) -> 1 | BI5: =SUM(BI3:BI4) -> 1
C6: Natural | D6: 88 | E6: ARCHIPIÉLAGO DE SAN ANDRÉS, PROVIDENCIA Y SANTA CATALINA | F6: 88001 | G6: SAN ANDRÉS | H6: 5511 | I6: ALOJAMIENTO Y SERVICIOS DE COMIDA | K6: Aprobado con subsidio | P6: 20879000 | Q6: 40 | R6: PEQUEÑA | V6: 0 | W6: 0 | X6: Natural | Y6: 5 | Z6: ANTIOQUIA | AA6: 5001 | AB6: MEDELLÍN | AC6: 5619 | AD6: ALOJAMIENTO Y SERVICIOS DE COMIDA | AE6: 0 | AF6: Aprobado con subsidio | AG6: 0 | AH6: 0 | AI6: 0 | AJ6: 0 | AK6: 2808000 | AL6: 7 | AM6: MICRO | AQ6: 19 | AR6: ACTIVIDADES DE SERVICIOS ADMINISTRATIVOS Y DE APOYO | AS6: Actividades de servicios administrativos | AT6: =+SUMIF(Montos!$U$2:$U$396864,'$Base'!AR6,Montos!$Y$2:$Y$396864)/1000000 -> 152432.605 | AU6: =+SUMIFS(Montos!$Y$2:$Y$396864,Montos!$U$2:$U$396864,'$Base'!AR6,Montos!$R$2:$R$396864,Visor!$M$8)/1000000 -> 96696.767 | AW6: 5 | AX6: Admin. pública y defensa; planes seg. social | AY6: 921.186 | AZ6: 565.927 | BB6: ACTIVIDADES DE LOS HOGARES INDIVIDUALES EN CALIDAD DE EMPLEADORES; ACTIVIDADES NO DIFERENCIADAS DE LOS HOGARES INDIVIDUALES COMO PRODUCTORES DE BIENES Y SERVICIOS PARA USO PROPIO | BC6: Actividades de los hogares individuales
C7: Natural | D7: 11 | E7: BOGOTÁ, D.C. | F7: 11001 | G7: BOGOTÁ, D.C. | H7: 5611 | I7: ALOJAMIENTO Y SERVICIOS DE COMIDA | K7: Aprobado con subsidio | P7: 10842000 | Q7: 4 | R7: MICRO | V7: 0 | W7: 0 | X7: Natural | Y7: 5 | Z7: ANTIOQUIA | AA7: 5031 | AB7: AMALFI | AC7: 6621 | AD7: ACTIVIDADES FINANCIERAS Y DE SEGUROS | AE7: 0 | AF7: Aprobado con subsidio | AG7: 0 | AH7: 0 | AI7: 0 | AJ7: 0 | AK7: 56783000 | AL7: 69 | AM7: MEDIANA | AQ7: 6 | AR7: ACTIVIDADES FINANCIERAS Y DE SEGUROS | AS7: Actividades financieras y de seguros | AT7: =+SUMIF(Montos!$U$2:$U$396864,'$Base'!AR7,Montos!$Y$2:$Y$396864)/1000000 -> 6609.546 | AU7: =+SUMIFS(Montos!$Y$2:$Y$396864,Montos!$U$2:$U$396864,'$Base'!AR7,Montos!$R$2:$R$396864,Visor!$M$8)/1000000 -> 5192.793 | AW7: 6 | AX7: Actividades financieras y de seguros | AY7: 6609.546 | AZ7: 5192.793 | BB7: ACTIVIDADES DE SERVICIOS ADMINISTRATIVOS Y DE APOYO | BC7: Actividades de servicios administrativos
C8: Natural | D8: 15 | E8: BOYACÁ | F8: 15759 | G8: SOGAMOSO | H8: 1811 | I8: INDUSTRIAS MANUFACTURERAS | K8: Rechazado a nivel aportante | P8: 0 | Q8: 3 | R8: MICRO | V8: 0 | W8: 0 | X8: Natural | Y8: 5 | Z8: ANTIOQUIA | AA8: 5001 | AB8: MEDELLÍN | AC8: 4761 | AD8: COMERCIO AL POR MAYOR Y AL POR MENOR; REPARACIÓN DE VEHÍCULOS AUTOMOTORES Y MOTOCICLETAS | AE8: 0 | AF8: Aprobado con subsidio | AG8: 0 | AH8: 0 | AI8: 0 | AJ8: 0 | AK8: 48794000 | AL8: 17 | AM8: PEQUEÑA | AQ8: 9 | AR8: ACTIVIDADES INMOBILIARIAS | AS8: Actividades inmobiliarias | AT8: =+SUMIF(Montos!$U$2:$U$396864,'$Base'!AR8,Montos!$Y$2:$Y$396864)/1000000 -> 18558.208 | AU8: =+SUMIFS(Montos!$Y$2:$Y$396864,Montos!$U$2:$U$396864,'$Base'!AR8,Montos!$R$2:$R$396864,Visor!$M$8)/1000000 -> 15131.12 | AW8: 7 | AX8: Explotación de minas y canteras | AY8: 7892.06 | AZ8: 3803.519 | BB8: ACTIVIDADES FINANCIERAS Y DE SEGUROS | BC8: Actividades financieras y de seguros
C9: Natural | D9: 63 | E9: QUINDÍO | F9: 63401 | G9: LA TEBAIDA | H9: 4731 | I9: COMERCIO AL POR MAYOR Y AL POR MENOR; REPARACIÓN DE VEHÍCULOS AUTOMOTORES Y MOTOCICLETAS | K9: Aprobado con subsidio | P9: 28996000 | Q9: 8 | R9: MICRO | V9: 0 | W9: 0 | X9: Natural | Y9: 5 | Z9: ANTIOQUIA | AA9: 5001 | AB9: MEDELLÍN | AC9: 3250 | AD9: INDUSTRIAS MANUFACTURERAS | AE9: 0 | AF9: Aprobado con subsidio | AG9: 0 | AH9: 0 | AI9: 0 | AJ9: 0 | AK9: 2106000 | AL9: 3 | AM9: MICRO | AQ9: 17 | AR9: ACTIVIDADES PROFESIONALES, CIENTÍFICAS Y TÉCNICAS | AS9: Act. profecionales cientificas y tecnicas | AT9: =+SUMIF(Montos!$U$2:$U$396864,'$Base'!AR9,Montos!$Y$2:$Y$396864)/1000000 -> 61433.819 | AU9: =+SUMIFS(Montos!$Y$2:$Y$396864,Montos!$U$2:$U$396864,'$Base'!AR9,Montos!$R$2:$R$396864,Visor!$M$8)/1000000 -> 50486.204 | AW9: 8 | AX9: Distribución de agua; gestión de desechos | AY9: 7906.924 | AZ9: 6641.14 | BB9: ACTIVIDADES INMOBILIARIAS | BC9: Actividades inmobiliarias
C10: Natural | D10: 68 | E10: SANTANDER | F10: 68081 | G10: BARRANCABERMEJA | H10: 5613 | I10: ALOJAMIENTO Y SERVICIOS DE COMIDA | K10: Aprobado con subsidio | P10: 22610000 | Q10: 5 | R10: MICRO | V10: 0 | W10: 0 | X10: Natural | Y10: 5 | Z10: ANTIOQUIA | AA10: 5045 | AB10: APARTADÓ | AC10: 3290 | AD10: INDUSTRIAS MANUFACTURERAS | AE10: 0 | AF10: Aprobado con subsidio | AG10: 0 | AH10: 0 | AI10: 0 | AJ10: 0 | AK10: 9128000 | AL10: 4 | AM10: MICRO | AQ10: 5 | AR10: ADMINISTRACIÓN PÚBLICA Y DEFENSA; PLANES DE SEGURIDAD SOCIAL DE AFILIACIÓN OBLIGATORIA | AS10: Admin. pública y defensa; planes seg. social | AT10: =+SUMIF(Montos!$U$2:$U$396864,'$Base'!AR10,Montos!$Y$2:$Y$396864)/1000000 -> 921.186 | AU10: =+SUMIFS(Montos!$Y$2:$Y$396864,Montos!$U$2:$U$396864,'$Base'!AR10,Montos!$R$2:$R$396864,Visor!$M$8)/1000000 -> 565.927 | AW10: 9 | AX10: Actividades inmobiliarias | AY10: 18558.208 | AZ10: 15131.12 | BB10: ADMINISTRACIÓN PÚBLICA Y DEFENSA; PLANES DE SEGURIDAD SOCIAL DE AFILIACIÓN OBLIGATORIA | BC10: Admin. pública y defensa; planes seg. social
C11: Natural | D11: 5 | E11: ANTIOQUIA | F11: 5001 | G11: MEDELLÍN | H11: 7990 | I11: ACTIVIDADES DE SERVICIOS ADMINISTRATIVOS Y DE APOYO | K11: Aprobado con subsidio | P11: 702000 | Q11: 3 | R11: MICRO | V11: 0 | W11: 0 | X11: Natural | Y11: 5 | Z11: ANTIOQUIA | AA11: 5034 | AB11: ANDES | AC11: 5511 | AD11: ALOJAMIENTO Y SERVICIOS DE COMIDA | AE11: 0 | AF11: Aprobado con subsidio | AG11: 0 | AH11: 0 | AI11: 0 | AJ11: 0 | AK11: 11058000 | AL11: 7 | AM11: MICRO | AQ11: 14 | AR11: AGRICULTURA, GANADERÍA, CAZA, SILVICULTURA Y PESCA | AS11: Agricultura, ganadería, caza | AT11: =+SUMIF(Montos!$U$2:$U$396864,'$Base'!AR11,Montos!$Y$2:$Y$396864)/1000000 -> 43428.95 | AU11: =+SUMIFS(Montos!$Y$2:$Y$396864,Montos!$U$2:$U$396864,'$Base'!AR11,Montos!$R$2:$R$396864,Visor!$M$8)/1000000 -> 21690.79 | AW11: 10 | AX11: Información y comunicaciones | AY11: 18584.255 | AZ11: 12558.86 | BB11: AGRICULTURA, GANADERÍA, CAZA, SILVICULTURA Y PESCA | BC11: Agricultura, ganadería, caza
C12: Natural | D12: 17 | E12: CALDAS | F12: 17873 | G12: VILLAMARÍA | H12: 4732 | I12: COMERCIO AL POR MAYOR Y AL POR MENOR; REPARACIÓN DE VEHÍCULOS AUTOMOTORES Y MOTOCICLETAS | K12: Aprobado con subsidio | P12: 15588000 | Q12: 4 | R12: MICRO | V12: 0 | W12: 0 | X12: Natural | Y12: 5 | Z12: ANTIOQUIA | AA12: 5001 | AB12: MEDELLÍN | AC12: 5511 | AD12: ALOJAMIENTO Y SERVICIOS DE COMIDA | AE12: 0 | AF12: Aprobado con subsidio | AG12: 0 | AH12: 0 | AI12: 0 | AJ12: 0 | AK12: 18344000 | AL12: 15 | AM12: PEQUEÑA | AQ12: 15 | AR12: ALOJAMIENTO Y SERVICIOS DE COMIDA | AS12: Alojamiento y servicios de comida | AT12: =+SUMIF(Montos!$U$2:$U$396864,'$Base'!AR12,Montos!$Y$2:$Y$396864)/1000000 -> 52225.156 | AU12: =+SUMIFS(Montos!$Y$2:$Y$396864,Montos!$U$2:$U$396864,'$Base'!AR12,Montos!$R$2:$R$396864,Visor!$M$8)/1000000 -> 38527.161 | AW12: 11 | AX12: Act artísticas y de entretenimiento | AY12: 22738.018 | AZ12: 20508.391 | BB12: ALOJAMIENTO Y SERVICIOS DE COMIDA | BC12: Alojamiento y servicios de comida
C13: Natural | D13: 52 | E13: NARIÑO | F13: 52001 | G13: PASTO | H13: 5511 | I13: ALOJAMIENTO Y SERVICIOS DE COMIDA | K13: Aprobado con subsidio | P13: 8911000 | Q13: 4 | R13: MICRO | V13: 0 | W13: 0 | X13: Natural | Y13: 5 | Z13: ANTIOQUIA | AA13: 5001 | AB13: MEDELLÍN | AC13: 4773 | AD13: COMERCIO AL POR MAYOR Y AL POR MENOR; REPARACIÓN DE VEHÍCULOS AUTOMOTORES Y MOTOCICLETAS | AE13: 0 | AF13: Aprobado con subsidio | AG13: 0 | AH13: 0 | AI13: 0 | AJ13: 0 | AK13: 15630000 | AL13: 6 | AM13: MICRO | AQ13: 21 | AR13: COMERCIO AL POR MAYOR Y AL POR MENOR; REPARACIÓN DE VEHÍCULOS AUTOMOTORES Y MOTOCICLETAS | AS13: Comercio y reparacion de vehiculos | AT13: =+SUMIF(Montos!$U$2:$U$396864,'$Base'!AR13,Montos!$Y$2:$Y$396864)/1000000 -> 178421.797 | AU13: =+SUMIFS(Montos!$Y$2:$Y$396864,Montos!$U$2:$U$396864,'$Base'!AR13,Montos!$R$2:$R$396864,Visor!$M$8)/1000000 -> 118299.664 | AW13: 12 | AX13: Otras actividades de servicios | AY13: 24458.057 | AZ13: 17667.587 | BB13: COMERCIO AL POR MAYOR Y AL POR MENOR; REPARACIÓN DE VEHÍCULOS AUTOMOTORES Y MOTOCICLETAS | BC13: Comercio y reparacion de vehiculos
C14: Natural | D14: 11 | E14: BOGOTÁ, D.C. | F14: 11001 | G14: BOGOTÁ, D.C. | H14: 2599 | I14: INDUSTRIAS MANUFACTURERAS | K14: Aprobado con subsidio | P14: 3159000 | Q14: 3 | R14: MICRO | V14: 0 | W14: 0 | X14: Natural | Y14: 5 | Z14: ANTIOQUIA | AA14: 5001 | AB14: MEDELLÍN | AC14: 5611 | AD14: ALOJAMIENTO Y SERVICIOS DE COMIDA | AE14: 0 | AF14: Aprobado con subsidio | AG14: 0 | AH14: 0 | AI14: 0 | AJ14: 0 | AK14: 53020000 | AL14: 12 | AM14: PEQUEÑA | AQ14: 20 | AR14: CONSTRUCCIÓN | AS14: Construcción | AT14: =+SUMIF(Montos!$U$2:$U$396864,'$Base'!AR14,Montos!$Y$2:$Y$396864)/1000000 -> 155667.169 | AU14: =+SUMIFS(Montos!$Y$2:$Y$396864,Montos!$U$2:$U$396864,'$Base'!AR14,Montos!$R$2:$R$396864,Visor!$M$8)/1000000 -> 111838.472 | AW14: 13 | AX14: Educación | AY14: 34319.385 | AZ14: 24188.178 | BB14: CONSTRUCCIÓN | BC14: Construcción
C15: Natural | D15: 47 | E15: MAGDALENA | F15: 47001 | G15: SANTA MARTA | H15: 1610 | I15: INDUSTRIAS MANUFACTURERAS | K15: Rechazado a nivel aportante | P15: 0 | Q15: 8 | R15: MICRO | V15: 0 | W15: 0 | X15: Natural | Y15: 5 | Z15: ANTIOQUIA | AA15: 5001 | AB15: MEDELLÍN | AC15: 4520 | AD15: COMERCIO AL POR MAYOR Y AL POR MENOR; REPARACIÓN DE VEHÍCULOS AUTOMOTORES Y MOTOCICLETAS | AE15: 0 | AF15: Aprobado con subsidio | AG15: 0 | AH15: 0 | AI15: 0 | AJ15: 0 | AK15: 17151000 | AL15: 4 | AM15: MICRO | AQ15: 8 | AR15: DISTRIBUCIÓN DE AGUA; EVACUACIÓN Y TRATAMIENTO DE AGUAS RESIDUALES, GESTIÓN DE DESECHOS Y ACTIVIDADES DE SANEAMIENTO AMBIENTAL | AS15: Distribución de agua; gestión de desechos | AT15: =+SUMIF(Montos!$U$2:$U$396864,'$Base'!AR15,Montos!$Y$2:$Y$396864)/1000000 -> 7906.924 | AU15: =+SUMIFS(Montos!$Y$2:$Y$396864,Montos!$U$2:$U$396864,'$Base'!AR15,Montos!$R$2:$R$396864,Visor!$M$8)/1000000 -> 6641.14 | AW15: 14 | AX15: Agricultura, ganadería, caza | AY15: 43428.95 | AZ15: 21690.79 | BB15: DISTRIBUCIÓN DE AGUA; EVACUACIÓN Y TRATAMIENTO DE AGUAS RESIDUALES, GESTIÓN DE DESECHOS Y ACTIVIDADES DE SANEAMIENTO AMBIENTAL | BC15: Distribución de agua; gestión de desechos
C16: Natural | D16: 11 | E16: BOGOTÁ, D.C. | F16: 11001 | G16: BOGOTÁ, D.C. | H16: 4752 | I16: COMERCIO AL POR MAYOR Y AL POR MENOR; REPARACIÓN DE VEHÍCULOS AUTOMOTORES Y MOTOCICLETAS | K16: Aprobado con subsidio | P16: 7722000 | Q16: 4 | R16: MICRO | V16: 0 | W16: 0 | X16: Natural | Y16: 5 | Z16: ANTIOQUIA | AA16: 5360 | AB16: ITAGUI | AC16: 5619 | AD16: ALOJAMIENTO Y SERVICIOS DE COMIDA | AE16: 0 | AF16: Rechazado a nivel aportante | AG16: 0 | AH16: 0 | AI16: 0 | AJ16: 0 | AK16: 0 | AL16: 0 | AM16: $null$ | AQ16: 13 | AR16: EDUCACIÓN | AS16: Educación | AT16: =+SUMIF(Montos!$U$2:$U$396864,'$Base'!AR16,Montos!$Y$2:$Y$396864)/1000000 -> 34319.385 | AU16: =+SUMIFS(Montos!$Y$2:$Y$396864,Montos!$U$2:$U$396864,'$Base'!AR16,Montos!$R$2:$R$396864,Visor!$M$8)/1000000 -> 24188.178 | AW16: 15 | AX16: Alojamiento y servicios de comida | AY16: 52225.156 | AZ16: 38527.161 | BB16: EDUCACIÓN | BC16: Educación
C17: Natural | D17: 76 | E17: VALLE DEL CAUCA | F17: 76001 | G17: CALI | H17: 4775 | I17: COMERCIO AL POR MAYOR Y AL POR MENOR; REPARACIÓN DE VEHÍCULOS AUTOMOTORES Y MOTOCICLETAS | K17: Aprobado con subsidio | P17: 28065000 | Q17: 7 | R17: MICRO | V17: 0 | W17: 0 | X17: Natural | Y17: 5 | Z17: ANTIOQUIA | AA17: 5001 | AB17: MEDELLÍN | AC17: 5611 | AD17: ALOJAMIENTO Y SERVICIOS DE COMIDA | AE17: 0 | AF17: Aprobado con subsidio | AG17: 0 | AH17: 0 | AI17: 0 | AJ17: 0 | AK17: 24557000 | AL17: 8 | AM17: MICRO | AQ17: 7 | AR17: EXPLOTACIÓN DE MINAS Y CANTERAS | AS17: Explotación de minas y canteras | AT17: =+SUMIF(Montos!$U$2:$U$396864,'$Base'!AR17,Montos!$Y$2:$Y$396864)/1000000 -> 7892.06 | AU17: =+SUMIFS(Montos!$Y$2:$Y$396864,Montos!$U$2:$U$396864,'$Base'!AR17,Montos!$R$2:$R$396864,Visor!$M$8)/1000000 -> 3803.519 | AW17: 16 | AX17: Act. de atención de la salud humana | AY17: 53926.219 | AZ17: 40891.251 | BB17: EXPLOTACIÓN DE MINAS Y CANTERAS | BC17: Explotación de minas y canteras
C18: Natural | D18: 17 | E18: CALDAS | F18: 17001 | G18: MANIZALES | H18: 1081 | I18: INDUSTRIAS MANUFACTURERAS | K18: Aprobado con subsidio | P18: 19001000 | Q18: 6 | R18: MICRO | V18: 0 | W18: 0 | X18: Natural | Y18: 5 | Z18: ANTIOQUIA | AA18: 5001 | AB18: MEDELLÍN | AC18: 5619 | AD18: ALOJAMIENTO Y SERVICIOS DE COMIDA | AE18: 0 | AF18: Aprobado con subsidio | AG18: 0 | AH18: 0 | AI18: 0 | AJ18: 0 | AK18: 13436000 | AL18: 5 | AM18: MICRO | AQ18: 22 | AR18: INDUSTRIAS MANUFACTURERAS | AS18: Industrias manufactureras | AT18: =+SUMIF(Montos!$U$2:$U$396864,'$Base'!AR18,Montos!$Y$2:$Y$396864)/1000000 -> 290058.189 | AU18: =+SUMIFS(Montos!$Y$2:$Y$396864,Montos!$U$2:$U$396864,'$Base'!AR18,Montos!$R$2:$R$396864,Visor!$M$8)/1000000 -> 153451.798 | AW18: 17 | AX18: Act. profecionales cientificas y tecnicas | AY18: 61433.819 | AZ18: 50486.204 | BB18: INDUSTRIAS MANUFACTURERAS | BC18: Industrias manufactureras
C19: Natural | D19: 66 | E19: RISARALDA | F19: 66001 | G19: PEREIRA | H19: 8622 | I19: ACTIVIDADES DE ATENCIÓN DE LA SALUD HUMANA Y DE ASISTENCIA SOCIAL | K19: Rechazado a nivel aportante | P19: 0 | Q19: 4 | R19: MICRO | V19: 0 | W19: 0 | X19: Natural | Y19: 5 | Z19: ANTIOQUIA | AA19: 5001 | AB19: MEDELLÍN | AC19: 8523 | AD19: EDUCACIÓN | AE19: 0 | AF19: Aprobado con subsidio | AG19: 0 | AH19: 0 | AI19: 0 | AJ19: 0 | AK19: 15359000 | AL19: 8 | AM19: MICRO | AQ19: 10 | AR19: INFORMACIÓN Y COMUNICACIONES | AS19: Información y comunicaciones | AT19: =+SUMIF(Montos!$U$2:$U$396864,'$Base'!AR19,Montos!$Y$2:$Y$396864)/1000000 -> 18584.255 | AU19: =+SUMIFS(Montos!$Y$2:$Y$396864,Montos!$U$2:$U$396864,'$Base'!AR19,Montos!$R$2:$R$396864,Visor!$M$8)/1000000 -> 12558.86 | AW19: 18 | AX19: Transporte y almacenamiento | AY19: 131501.807 | AZ19: 84576.021 | BB19: INFORMACIÓN Y COMUNICACIONES | BC19: Información y comunicaciones
C20: Natural | D20: 17 | E20: CALDAS | F20: 17380 | G20: LA DORADA | H20: 6621 | I20: ACTIVIDADES FINANCIERAS Y DE SEGUROS | K20: Aprobado con subsidio | P20: 13926000 | Q20: 4 | R20: MICRO | V20: 0 | W20: 0 | X20: Natural | Y20: 5 | Z20: ANTIOQUIA | AA20: 5376 | AB20: LA CEJA | AC20: 161 | AD20: AGRICULTURA, GANADERÍA, CAZA, SILVICULTURA Y PESCA | AE20: 0 | AF20: Rechazado a nivel aportante | AG20: 0 | AH20: 0 | AI20: 0 | AJ20: 0 | AK20: 0 | AL20: 0 | AM20: $null$ | AQ20: 1 | AR20: OTRAS | AS20: Otras | AT20: =+SUMIF(Montos!$U$2:$U$396864,'$Base'!AR20,Montos!$Y$2:$Y$396864)/1000000 -> 54.172 | AU20: =+SUMIFS(Montos!$Y$2:$Y$396864,Montos!$U$2:$U$396864,'$Base'!AR20,Montos!$R$2:$R$396864,Visor!$M$8)/1000000 -> 38.563 | AW20: 19 | AX20: Actividades de servicios administrativos | AY20: 152432.605 | AZ20: 96696.767 | BB20: OTRAS | BC20: Otras
C21: Natural | D21: 18 | E21: CAQUETÁ | F21: 18001 | G21: FLORENCIA | H21: 4775 | I21: COMERCIO AL POR MAYOR Y AL POR MENOR; REPARACIÓN DE VEHÍCULOS AUTOMOTORES Y MOTOCICLETAS | K21: Aprobado con subsidio | P21: 5846000 | Q21: 4 | R21: MICRO | V21: 0 | W21: 0 | X21: Natural | Y21: 5 | Z21: ANTIOQUIA | AA21: 5615 | AB21: RIONEGRO | AC21: 1820 | AD21: INDUSTRIAS MANUFACTURERAS | AE21: 0 | AF21: Aprobado con subsidio | AG21: 0 | AH21: 0 | AI21: 0 | AJ21: 0 | AK21: 9513000 | AL21: 3 | AM21: MICRO | AQ21: 12 | AR21: OTRAS ACTIVIDADES DE SERVICIOS | AS21: Otras actividades de servicios | AT21: =+SUMIF(Montos!$U$2:$U$396864,'$Base'!AR21,Montos!$Y$2:$Y$396864)/1000000 -> 24458.057 | AU21: =+SUMIFS(Montos!$Y$2:$Y$396864,Montos!$U$2:$U$396864,'$Base'!AR21,Montos!$R$2:$R$396864,Visor!$M$8)/1000000 -> 17667.587 | AW21: 20 | AX21: Construcción | AY21: 155667.169 | AZ21: 111838.472 | BB21: OTRAS ACTIVIDADES DE SERVICIOS | BC21: Otras actividades de servicios
C22: Jurídica | D22: 76 | E22: VALLE DEL CAUCA | F22: 76520 | G22: PALMIRA | H22: 5530 | I22: ALOJAMIENTO Y SERVICIOS DE COMIDA | K22: Aprobado con subsidio | P22: 83542000 | Q22: 29 | R22: PEQUEÑA | V22: 0 | W22: 0 | X22: Natural | Y22: 5 | Z22: ANTIOQUIA | AA22: 5001 | AB22: MEDELLÍN | AC22: 4771 | AD22: COMERCIO AL POR MAYOR Y AL POR MENOR; REPARACIÓN DE VEHÍCULOS AUTOMOTORES Y MOTOCICLETAS | AE22: 0 | AF22: Aprobado con subsidio | AG22: 0 | AH22: 0 | AI22: 0 | AJ22: 0 | AK22: 4212000 | AL22: 3 | AM22: MICRO | AQ22: 4 | AR22: SUMINISTRO DE ELECTRICIDAD, GAS, VAPOR Y AIRE ACONDICIONADO | AS22: Suministro de electricidad, gas y vapor | AT22: =+SUMIF(Montos!$U$2:$U$396864,'$Base'!AR22,Montos!$Y$2:$Y$396864)/1000000 -> 322.382 | AU22: =+SUMIFS(Montos!$Y$2:$Y$396864,Montos!$U$2:$U$396864,'$Base'!AR22,Montos!$R$2:$R$396864,Visor!$M$8)/1000000 -> 193.615 | AW22: 21 | AX22: Comercio y reparacion de vehiculos | AY22: 178421.797 | AZ22: 118299.664 | BB22: SUMINISTRO DE ELECTRICIDAD, GAS, VAPOR Y AIRE ACONDICIONADO | BC22: Suministro de electricidad, gas y vapor
C23: Natural | D23: 76 | E23: VALLE DEL CAUCA | F23: 76520 | G23: PALMIRA | H23: 5511 | I23: ALOJAMIENTO Y SERVICIOS DE COMIDA | K23: Rechazado a nivel aportante | P23: 0 | Q23: 2 | R23: MICRO | V23: 0 | W23: 0 | X23: Natural | Y23: 5 | Z23: ANTIOQUIA | AA23: 5001 | AB23: MEDELLÍN | AC23: 4771 | AD23: COMERCIO AL POR MAYOR Y AL POR MENOR; REPARACIÓN DE VEHÍCULOS AUTOMOTORES Y MOTOCICLETAS | AE23: 0 | AF23: Aprobado con subsidio | AG23: 0 | AH23: 0 | AI23: 0 | AJ23: 0 | AK23: 11635000 | AL23: 4 | AM23: MICRO | AQ23: 18 | AR23: TRANSPORTE Y ALMACENAMIENTO | AS23: Transporte y almacenamiento | AT23: =+SUMIF(Montos!$U$2:$U$396864,'$Base'!AR23,Montos!$Y$2:$Y$396864)/1000000 -> 131501.807 | AU23: =+SUMIFS(Montos!$Y$2:$Y$396864,Montos!$U$2:$U$396864,'$Base'!AR23,Montos!$R$2:$R$396864,Visor!$M$8)/1000000 -> 84576.021 | AW23: 22 | AX23: Industrias manufactureras | AY23: 290058.189 | AZ23: =+IFERROR(VLOOKUP(AW23,$AQ$2:$AU$23,5,0),"") -> 153451.798 | BB23: TRANSPORTE Y ALMACENAMIENTO | BC23: Transporte y almacenamiento
C24: Natural | D24: 76 | E24: VALLE DEL CAUCA | F24: 76001 | G24: CALI | H24: 1410 | I24: INDUSTRIAS MANUFACTURERAS | K24: Aprobado con subsidio | P24: 702000 | Q24: 3 | R24: MICRO | V24: 0 | W24: 0 | X24: Natural | Y24: 5 | Z24: ANTIOQUIA | AA24: 5001 | AB24: MEDELLÍN | AC24: 4771 | AD24: COMERCIO AL POR MAYOR Y AL POR MENOR; REPARACIÓN DE VEHÍCULOS AUTOMOTORES Y MOTOCICLETAS | AE24: 0 | AF24: Aprobado con subsidio | AG24: 0 | AH24: 0 | AI24: 0 | AJ24: 0 | AK24: 12941000 | AL24: 3 | AM24: MICRO | AR24: COMERCIO AL POR MAYOR Y AL POR MENOR; REPARACIÓN DE VEHÍCULOS AUTOMOTORES Y MOTOCICLETAS.
C25: Natural | D25: 76 | E25: VALLE DEL CAUCA | F25: 76001 | G25: CALI | H25: 4541 | I25: COMERCIO AL POR MAYOR Y AL POR MENOR; REPARACIÓN DE VEHÍCULOS AUTOMOTORES Y MOTOCICLETAS | K25: Aprobado con subsidio | P25: 22464000 | Q25: 17 | R25: PEQUEÑA | V25: 0 | W25: 0 | X25: Natural | Y25: 5 | Z25: ANTIOQUIA | AA25: 5001 | AB25: MEDELLÍN | AC25: 4771 | AD25: COMERCIO AL POR MAYOR Y AL POR MENOR; REPARACIÓN DE VEHÍCULOS AUTOMOTORES Y MOTOCICLETAS | AE25: 0 | AF25: Aprobado con subsidio | AG25: 0 | AH25: 0 | AI25: 0 | AJ25: 0 | AK25: 17463000 | AL25: 4 | AM25: MICRO | AR25: 0
C26: Natural | D26: 76 | E26: VALLE DEL CAUCA | F26: 76001 | G26: CALI | H26: 4762 | I26: COMERCIO AL POR MAYOR Y AL POR MENOR; REPARACIÓN DE VEHÍCULOS AUTOMOTORES Y MOTOCICLETAS | K26: Aprobado con subsidio | P26: 35329000 | Q26: 9 | R26: MICRO | V26: 0 | W26: 0 | X26: Natural | Y26: 5 | Z26: ANTIOQUIA | AA26: 5001 | AB26: MEDELLÍN | AC26: 4771 | AD26: COMERCIO AL POR MAYOR Y AL POR MENOR; REPARACIÓN DE VEHÍCULOS AUTOMOTORES Y MOTOCICLETAS | AE26: 0 | AF26: Aprobado con subsidio | AG26: 0 | AH26: 0 | AI26: 0 | AJ26: 0 | AK26: 18254000 | AL26: 6 | AM26: MICRO
C27: Natural | D27: 11 | E27: BOGOTÁ, D.C. | F27: 11001 | G27: BOGOTÁ, D.C. | H27: 1410 | I27: INDUSTRIAS MANUFACTURERAS | K27: Aprobado con subsidio | P27: 15776000 | Q27: 9 | R27: MICRO | V27: 0 | W27: 0 | X27: Jurídica | Y27: 5 | Z27: ANTIOQUIA | AA27: 5001 | AB27: MEDELLÍN | AC27: 5611 | AD27: ALOJAMIENTO Y SERVICIOS DE COMIDA | AE27: 0 | AF27: Aprobado con subsidio | AG27: 0 | AH27: 0 | AI27: 0 | AJ27: 0 | AK27: 18142000 | AL27: 10 | AM27: MICRO
C28: Natural | D28: 5 | E28: ANTIOQUIA | F28: 5001 | G28: MEDELLÍN | H28: 4775 | I28: COMERCIO AL POR MAYOR Y AL POR MENOR; REPARACIÓN DE VEHÍCULOS AUTOMOTORES Y MOTOCICLETAS | K28: Aprobado con subsidio | P28: 34398000 | Q28: 27 | R28: PEQUEÑA | V28: 0 | W28: 0 | X28: Jurídica | Y28: 5 | Z28: ANTIOQUIA | AA28: 5266 | AB28: ENVIGADO | AC28: 4773 | AD28: COMERCIO AL POR MAYOR Y AL POR MENOR; REPARACIÓN DE VEHÍCULOS AUTOMOTORES Y MOTOCICLETAS | AE28: 0 | AF28: Aprobado con subsidio | AG28: 0 | AH28: 0 | AI28: 0 | AJ28: 0 | AK28: 30615000 | AL28: 12 | AM28: PEQUEÑA
C29: Natural | D29: 5 | E29: ANTIOQUIA | F29: 5631 | G29: SABANETA | H29: 5612 | I29: ALOJAMIENTO Y SERVICIOS DE COMIDA | K29: Aprobado con subsidio | P29: 11956000 | Q29: 5 | R29: MICRO | V29: 0 | W29: 0 | X29: Jurídica | Y29: 5 | Z29: ANTIOQUIA | AA29: 5380 | AB29: LA ESTRELLA | AC29: 5210 | AD29: TRANSPORTE Y ALMACENAMIENTO | AE29: 0 | AF29: Aprobado con subsidio | AG29: 0 | AH29: 0 | AI29: 0 | AJ29: 0 | AK29: 29719000 | AL29: 8 | AM29: MICRO
C30: Natural | D30: 11 | E30: BOGOTÁ, D.C. | F30: 11001 | G30: BOGOTÁ, D.C. | H30: 5611 | I30: ALOJAMIENTO Y SERVICIOS DE COMIDA | K30: Aprobado con subsidio | P30: 13680000 | Q30: 5 | R30: MICRO | V30: 0 | W30: 0 | X30: Jurídica | Y30: 5 | Z30: ANTIOQUIA | AA30: 5001 | AB30: MEDELLÍN | AC30: 9200 | AD30: ACTIVIDADES ARTÍSTICAS, DE ENTRETENIMIENTO Y RECREACIÓN | AE30: 0 | AF30: Aprobado con subsidio | AG30: 0 | AH30: 0 | AI30: 0 | AJ30: 0 | AK30: 43882000 | AL30: 18 | AM30: PEQUEÑA
C31: Natural | D31: 8 | E31: ATLÁNTICO | F31: 8001 | G31: BARRANQUILLA | H31: 4732 | I31: COMERCIO AL POR MAYOR Y AL POR MENOR; REPARACIÓN DE VEHÍCULOS AUTOMOTORES Y MOTOCICLETAS | K31: Aprobado con subsidio | P31: 22455000 | Q31: 6 | R31: MICRO | V31: 0 | W31: 0 | X31: Natural | Y31: 5 | Z31: ANTIOQUIA | AA31: 5001 | AB31: MEDELLÍN | AC31: 3314 | AD31: INDUSTRIAS MANUFACTURERAS | AE31: 0 | AF31: Aprobado con subsidio | AG31: 0 | AH31: 0 | AI31: 0 | AJ31: 0 | AK31: 18687000 | AL31: 10 | AM31: MICRO
C32: Natural | D32: 5 | E32: ANTIOQUIA | F32: 5001 | G32: MEDELLÍN | H32: 5619 | I32: ALOJAMIENTO Y SERVICIOS DE COMIDA | K32: Aprobado con subsidio | P32: 2808000 | Q32: 7 | R32: MICRO | V32: 0 | W32: 0 | X32: Jurídica | Y32: 5 | Z32: ANTIOQUIA | AA32: 5579 | AB32: PUERTO BERRÍO | AC32: 4620 | AD32: COMERCIO AL POR MAYOR Y AL POR MENOR; REPARACIÓN DE VEHÍCULOS AUTOMOTORES Y MOTOCICLETAS | AE32: 0 | AF32: Aprobado con subsidio | AG32: 0 | AH32: 0 | AI32: 0 | AJ32: 0 | AK32: 2457000 | AL32: 9 | AM32: MICRO
C33: Natural | D33: 76 | E33: VALLE DEL CAUCA | F33: 76001 | G33: CALI | H33: 1410 | I33: INDUSTRIAS MANUFACTURERAS | K33: Aprobado con subsidio | P33: 2106000 | Q33: 3 | R33: MICRO | V33: 0 | W33: 0 | X33: Jurídica | Y33: 5 | Z33: ANTIOQUIA | AA33: 5042 | AB33: SANTAFÉ DE ANTIOQUIA | AC33: 5611 | AD33: ALOJAMIENTO Y SERVICIOS DE COMIDA | AE33: 0 | AF33: Aprobado con subsidio | AG33: 0 | AH33: 0 | AI33: 0 | AJ33: 0 | AK33: 44860000 | AL33: 16 | AM33: PEQUEÑA
C34: Natural | D34: 19 | E34: CAUCA | F34: 19698 | G34: SANTANDER DE QUILICHAO | H34: 4773 | I34: COMERCIO AL POR MAYOR Y AL POR MENOR; REPARACIÓN DE VEHÍCULOS AUTOMOTORES Y MOTOCICLETAS | K34: Aprobado con subsidio | P34: 6669000 | Q34: 7 | R34: MICRO | V34: 0 | W34: 0 | X34: Jurídica | Y34: 5 | Z34: ANTIOQUIA | AA34: 5001 | AB34: MEDELLÍN | AC34: 4530 | AD34: COMERCIO AL POR MAYOR Y AL POR MENOR; REPARACIÓN DE VEHÍCULOS AUTOMOTORES Y MOTOCICLETAS | AE34: 0 | AF34: Aprobado con subsidio | AG34: 0 | AH34: 0 | AI34: 0 | AJ34: 0 | AK34: 6785000 | AL34: 3 | AM34: MICRO
C35: Natural | D35: 41 | E35: HUILA | F35: 41001 | G35: NEIVA | H35: 8530 | I35: EDUCACIÓN | K35: Aprobado con subsidio | P35: 40598000 | Q35: 20 | R35: PEQUEÑA | V35: 0 | W35: 0 | X35: Jurídica | Y35: 5 | Z35: ANTIOQUIA | AA35: 5001 | AB35: MEDELLÍN | AC35: 4530 | AD35: COMERCIO AL POR MAYOR Y AL POR MENOR; REPARACIÓN DE VEHÍCULOS AUTOMOTORES Y MOTOCICLETAS | AE35: 0 | AF35: Aprobado con subsidio | AG35: 0 | AH35: 0 | AI35: 0 | AJ35: 0 | AK35: 14876000 | AL35: 6 | AM35: MICRO
C36: Natural | D36: 41 | E36: HUILA | F36: 41551 | G36: PITALITO | H36: 4752 | I36: COMERCIO AL POR MAYOR Y AL POR MENOR; REPARACIÓN DE VEHÍCULOS AUTOMOTORES Y MOTOCICLETAS | K36: Aprobado con subsidio | P36: 2106000 | Q36: 5 | R36: MICRO | V36: 0 | W36: 0 | X36: Jurídica | Y36: 5 | Z36: ANTIOQUIA | AA36: 5001 | AB36: MEDELLÍN | AC36: 4390 | AD36: CONSTRUCCIÓN | AE36: 0 | AF36: Aprobado con subsidio | AG36: 0 | AH36: 0 | AI36: 0 | AJ36: 0 | AK36: 100339000 | AL36: 44 | AM36: PEQUEÑA
C37: Natural | D37: 76 | E37: VALLE DEL CAUCA | F37: 76001 | G37: CALI | H37: 4752 | I37: COMERCIO AL POR MAYOR Y AL POR MENOR; REPARACIÓN DE VEHÍCULOS AUTOMOTORES Y MOTOCICLETAS | K37: Aprobado con subsidio | P37: 1053000 | Q37: 3 | R37: MICRO | V37: 0 | W37: 0 | X37: Jurídica | Y37: 5 | Z37: ANTIOQUIA | AA37: 5004 | AB37: ABRIAQUÍ | AC37: 5511 | AD37: ALOJAMIENTO Y SERVICIOS DE COMIDA | AE37: 0 | AF37: Aprobado con subsidio | AG37: 0 | AH37: 0 | AI37: 0 | AJ37: 0 | AK37: 198265000 | AL37: 132 | AM37: MEDIANA
C38: Natural | D38: 20 | E38: CESAR | F38: 20001 | G38: VALLEDUPAR | H38: 141 | I38: AGRICULTURA, GANADERÍA, CAZA, SILVICULTURA Y PESCA | K38: Rechazado a nivel aportante | P38: 0 | Q38: 5 | R38: MICRO | V38: 0 | W38: 0 | X38: Jurídica | Y38: 5 | Z38: ANTIOQUIA | AA38: 5001 | AB38: MEDELLÍN | AC38: 9200 | AD38: ACTIVIDADES ARTÍSTICAS, DE ENTRETENIMIENTO Y RECREACIÓN | AE38: 0 | AF38: Aprobado con subsidio | AG38: 0 | AH38: 0 | AI38: 0 | AJ38: 0 | AK38: 67189000 | AL38: 24 | AM38: PEQUEÑA
C39: Natural | D39: 8 | E39: ATLÁNTICO | F39: 8001 | G39: BARRANQUILLA | H39: 8512 | I39: EDUCACIÓN | K39: Aprobado con subsidio | P39: 26642000 | Q39: 9 | R39: MICRO | V39: 0 | W39: 0 | X39: Natural | Y39: 5 | Z39: ANTIOQUIA | AA39: 5001 | AB39: MEDELLÍN | AC39: 8551 | AD39: EDUCACIÓN | AE39: 0 | AF39: Aprobado con subsidio | AG39: 0 | AH39: 0 | AI39: 0 | AJ39: 0 | AK39: 106138000 | AL39: 26 | AM39: PEQUEÑA
C40: Natural | D40: 52 | E40: NARIÑO | F40: 52001 | G40: PASTO | H40: 1081 | I40: INDUSTRIAS MANUFACTURERAS | K40: Aprobado con subsidio | P40: 33500000 | Q40: 10 | R40: MICRO | V40: 0 | W40: 0 | X40: Jurídica | Y40: 5 | Z40: ANTIOQUIA | AA40: 5001 | AB40: MEDELLÍN | AC40: 2100 | AD40: INDUSTRIAS MANUFACTURERAS | AE40: 0 | AF40: Aprobado con subsidio | AG40: 0 | AH40: 0 | AI40: 0 | AJ40: 0 | AK40: 33339000 | AL40: 8 | AM40: MICRO
C41: Natural | D41: 68 | E41: SANTANDER | F41: 68307 | G41: GIRÓN | H41: 8512 | I41: EDUCACIÓN | K41: Aprobado con subsidio | P41: 24138000 | Q41: 10 | R41: MICRO | V41: 0 | W41: 0 | X41: Jurídica | Y41: 5 | Z41: ANTIOQUIA | AA41: 5088 | AB41: BELLO | AC41: 4775 | AD41: COMERCIO AL POR MAYOR Y AL POR MENOR; REPARACIÓN DE VEHÍCULOS AUTOMOTORES Y MOTOCICLETAS | AE41: 0 | AF41: Aprobado con subsidio | AG41: 0 | AH41: 0 | AI41: 0 | AJ41: 0 | AK41: 46808000 | AL41: 20 | AM41: PEQUEÑA
C42: Natural | D42: 11 | E42: BOGOTÁ, D.C. | F42: 11001 | G42: BOGOTÁ, D.C. | H42: 8512 | I42: EDUCACIÓN | K42: Aprobado con subsidio | P42: 48772000 | Q42: 18 | R42: PEQUEÑA | V42: 0 | W42: 0 | X42: Jurídica | Y42: 5 | Z42: ANTIOQUIA | AA42: 5001 | AB42: MEDELLÍN | AC42: 4530 | AD42: COMERCIO AL POR MAYOR Y AL POR MENOR; REPARACIÓN DE VEHÍCULOS AUTOMOTORES Y MOTOCICLETAS | AE42: 0 | AF42: Aprobado con subsidio | AG42: 0 | AH42: 0 | AI42: 0 | AJ42: 0 | AK42: 29579000 | AL42: 16 | AM42: PEQUEÑA
C43: Natural | D43: 19 | E43: CAUCA | F43: 19001 | G43: POPAYÁN | H43: 4530 | I43: COMERCIO AL POR MAYOR Y AL POR MENOR; REPARACIÓN DE VEHÍCULOS AUTOMOTORES Y MOTOCICLETAS | K43: Aprobado con subsidio | P43: 15883000 | Q43: 9 | R43: MICRO | V43: 0 | W43: 0 | X43: Jurídica | Y43: 5 | Z43: ANTIOQUIA | AA43: 5001 | AB43: MEDELLÍN | AC43: 2512 | AD43: INDUSTRIAS MANUFACTURERAS | AE43: 0 | AF43: Aprobado con subsidio | AG43: 0 | AH43: 0 | AI43: 0 | AJ43: 0 | AK43: 12111000 | AL43: 10 | AM43: MICRO
C44: Natural | D44: 25 | E44: CUNDINAMARCA | F44: 25473 | G44: MOSQUERA | H44: 8413 | I44: ADMINISTRACIÓN PÚBLICA Y DEFENSA; PLANES DE SEGURIDAD SOCIAL DE AFILIACIÓN OBLIGATORIA | K44: Aprobado con subsidio | P44: 7020000 | Q44: 5 | R44: MICRO | V44: 0 | W44: 0 | X44: Jurídica | Y44: 5 | Z44: ANTIOQUIA | AA44: 5088 | AB44: BELLO | AC44: 3290 | AD44: INDUSTRIAS MANUFACTURERAS | AE44: 0 | AF44: Aprobado con subsidio | AG44: 0 | AH44: 0 | AI44: 0 | AJ44: 0 | AK44: 82495000 | AL44: 33 | AM44: PEQUEÑA
C45: Natural | D45: 11 | E45: BOGOTÁ, D.C. | F45: 11001 | G45: BOGOTÁ, D.C. | H45: 4755 | I45: COMERCIO AL POR MAYOR Y AL POR MENOR; REPARACIÓN DE VEHÍCULOS AUTOMOTORES Y MOTOCICLETAS | K45: Rechazado a nivel aportante | P45: 0 | Q45: 10 | R45: MICRO | V45: 0 | W45: 0 | X45: Jurídica | Y45: 5 | Z45: ANTIOQUIA | AA45: 5001 | AB45: MEDELLÍN | AC45: 2599 | AD45: INDUSTRIAS MANUFACTURERAS | AE45: 0 | AF45: Aprobado con subsidio | AG45: 0 | AH45: 0 | AI45: 0 | AJ45: 0 | AK45: 87618000 | AL45: 27 | AM45: PEQUEÑA
C46: Natural | D46: 15 | E46: BOYACÁ | F46: 15001 | G46: TUNJA | H46: 4719 | I46: COMERCIO AL POR MAYOR Y AL POR MENOR; REPARACIÓN DE VEHÍCULOS AUTOMOTORES Y MOTOCICLETAS | K46: Rechazado a nivel aportante | P46: 0 | Q46: 3 | R46: MICRO | V46: 0 | W46: 0 | X46: Jurídica | Y46: 5 | Z46: ANTIOQUIA | AA46: 5266 | AB46: ENVIGADO | AC46: 4731 | AD46: COMERCIO AL POR MAYOR Y AL POR MENOR; REPARACIÓN DE VEHÍCULOS AUTOMOTORES Y MOTOCICLETAS | AE46: 0 | AF46: Aprobado con subsidio | AG46: 0 | AH46: 0 | AI46: 0 | AJ46: 0 | AK46: 42563000 | AL46: 25 | AM46: PEQUEÑA
C47: Natural | D47: 11 | E47: BOGOTÁ, D.C. | F47: 11001 | G47: BOGOTÁ, D.C. | H47: 5619 | I47: ALOJAMIENTO Y SERVICIOS DE COMIDA | K47: Aprobado con subsidio | P47: 5616000 | Q47: 9 | R47: MICRO | V47: 0 | W47: 0 | X47: Jurídica | Y47: 5 | Z47: ANTIOQUIA | AA47: 5001 | AB47: MEDELLÍN | AC47: 8542 | AD47: EDUCACIÓN | AE47: 0 | AF47: Aprobado con subsidio | AG47: 0 | AH47: 0 | AI47: 0 | AJ47: 0 | AK47: 101325000 | AL47: 44 | AM47: PEQUEÑA
C48: Natural | D48: 95 | E48: GUAVIARE | F48: 95001 | G48: SAN JOSÉ DEL GUAVIARE | H48: 4541 | I48: COMERCIO AL POR MAYOR Y AL POR MENOR; REPARACIÓN DE VEHÍCULOS AUTOMOTORES Y MOTOCICLETAS | K48: Aprobado con subsidio | P48: 55458000 | Q48: 61 | R48: MEDIANA | V48: 0 | W48: 0 | X48: Jurídica | Y48: 5 | Z48: ANTIOQUIA | AA48: 5266 | AB48: ENVIGADO | AC48: 2511 | AD48: INDUSTRIAS MANUFACTURERAS | AE48: 0 | AF48: Aprobado con subsidio | AG48: 0 | AH48: 0 | AI48: 0 | AJ48: 0 | AK48: 16629000 | AL48: 10 | AM48: MICRO
C49: Natural | D49: 25 | E49: CUNDINAMARCA | F49: 25269 | G49: FACATATIVÁ | H49: 7020 | I49: ACTIVIDADES PROFESIONALES, CIENTÍFICAS Y TÉCNICAS | K49: Aprobado con subsidio | P49: 16859000 | Q49: 5 | R49: MICRO | V49: 0 | W49: 0 | X49: Jurídica | Y49: 5 | Z49: ANTIOQUIA | AA49: 5001 | AB49: MEDELLÍN | AC49: 4771 | AD49: COMERCIO AL POR MAYOR Y AL POR MENOR; REPARACIÓN DE VEHÍCULOS AUTOMOTORES Y MOTOCICLETAS | AE49: 0 | AF49: Aprobado con subsidio | AG49: 0 | AH49: 0 | AI49: 0 | AJ49: 0 | AK49: 667602000 | AL49: 1014 | AM49: MUY GRANDE
C50: Natural | D50: 50 | E50: META | F50: 50001 | G50: VILLAVICENCIO | H50: 8511 | I50: EDUCACIÓN | K50: Aprobado con subsidio | P50: 22610000 | Q50: 6 | R50: MICRO | V50: 0 | W50: 0 | X50: Jurídica | Y50: 5 | Z50: ANTIOQUIA | AA50: 5001 | AB50: MEDELLÍN | AC50: 9200 | AD50: ACTIVIDADES ARTÍSTICAS, DE ENTRETENIMIENTO Y RECREACIÓN | AE50: 0 | AF50: Aprobado con subsidio | AG50: 0 | AH50: 0 | AI50: 0 | AJ50: 0 | AK50: 76874000 | AL50: 65 | AM50: MEDIANA
C51: Natural | D51: 11 | E51: BOGOTÁ, D.C. | F51: 11001 | G51: BOGOTÁ, D.C. | H51: 8621 | I51: ACTIVIDADES DE ATENCIÓN DE LA SALUD HUMANA Y DE ASISTENCIA SOCIAL | K51: Aprobado con subsidio | P51: 6773000 | Q51: 7 | R51: MICRO | V51: 0 | W51: 0 | X51: Jurídica | Y51: 5 | Z51: ANTIOQUIA | AA51: 5001 | AB51: MEDELLÍN | AC51: 7820 | AD51: ACTIVIDADES DE SERVICIOS ADMINISTRATIVOS Y DE APOYO | AE51: 0 | AF51: Aprobado con subsidio | AG51: 0 | AH51: 0 | AI51: 0 | AJ51: 0 | AK51: 178628000 | AL51: 518 | AM51: MUY GRANDE
C52: Natural | D52: 13 | E52: BOLÍVAR | F52: 13001 | G52: CARTAGENA | H52: 4762 | I52: COMERCIO AL POR MAYOR Y AL POR MENOR; REPARACIÓN DE VEHÍCULOS AUTOMOTORES Y MOTOCICLETAS | K52: Aprobado con subsidio | P52: 1755000 | Q52: 6 | R52: MICRO | V52: 0 | W52: 0 | X52: Jurídica | Y52: 5 | Z52: ANTIOQUIA | AA52: 5001 | AB52: MEDELLÍN | AC52: 4530 | AD52: COMERCIO AL POR MAYOR Y AL POR MENOR; REPARACIÓN DE VEHÍCULOS AUTOMOTORES Y MOTOCICLETAS | AE52: 0 | AF52: Aprobado con subsidio | AG52: 0 | AH52: 0 | AI52: 0 | AJ52: 0 | AK52: 11934000 | AL52: 12 | AM52: PEQUEÑA
C53: Natural | D53: 11 | E53: BOGOTÁ, D.C. | F53: 11001 | G53: BOGOTÁ, D.C. | H53: 4754 | I53: COMERCIO AL POR MAYOR Y AL POR MENOR; REPARACIÓN DE VEHÍCULOS AUTOMOTORES Y MOTOCICLETAS | K53: Aprobado con subsidio | P53: 6621000 | Q53: 3 | R53: MICRO | V53: 0 | W53: 0 | X53: Jurídica | Y53: 5 | Z53: ANTIOQUIA | AA53: 5001 | AB53: MEDELLÍN | AC53: 8621 | AD53: ACTIVIDADES DE ATENCIÓN DE LA SALUD HUMANA Y DE ASISTENCIA SOCIAL | AE53: 0 | AF53: Aprobado con subsidio | AG53: 0 | AH53: 0 | AI53: 0 | AJ53: 0 | AK53: 1492000 | AL53: 1 | AM53: MICRO
C54: Natural | D54: 15 | E54: BOYACÁ | F54: 15407 | G54: VILLA DE LEYVA | H54: 5511 | I54: ALOJAMIENTO Y SERVICIOS DE COMIDA | K54: Aprobado con subsidio | P54: 33461000 | Q54: 13 | R54: PEQUEÑA | V54: 0 | W54: 0 | X54: Jurídica | Y54: 5 | Z54: ANTIOQUIA | AA54: 5001 | AB54: MEDELLÍN | AC54: 9200 | AD54: ACTIVIDADES ARTÍSTICAS, DE ENTRETENIMIENTO Y RECREACIÓN | AE54: 0 | AF54: Aprobado con subsidio | AG54: 0 | AH54: 0 | AI54: 0 | AJ54: 0 | AK54: 4171000 | AL54: 1 | AM54: MICRO
C55: Natural | D55: 11 | E55: BOGOTÁ, D.C. | F55: 11001 | G55: BOGOTÁ, D.C. | H55: 8513 | I55: EDUCACIÓN | K55: Aprobado con subsidio | P55: 25281000 | Q55: 9 | R55: MICRO | V55: 0 | W55: 0 | X55: Jurídica | Y55: 5 | Z55: ANTIOQUIA | AA55: 5631 | AB55: SABANETA | AC55: 2511 | AD55: INDUSTRIAS MANUFACTURERAS | AE55: 0 | AF55: Aprobado con subsidio | AG55: 0 | AH55: 0 | AI55: 0 | AJ55: 0 | AK55: 28695000 | AL55: 16 | AM55: PEQUEÑA
C56: Jurídica | D56: 11 | E56: BOGOTÁ, D.C. | F56: 11001 | G56: BOGOTÁ, D.C. | H56: 5611 | I56: ALOJAMIENTO Y SERVICIOS DE COMIDA | K56: Rechazado a nivel aportante | P56: 0 | Q56: 0 | R56: $null$ | V56: 0 | W56: 0 | X56: Jurídica | Y56: 5 | Z56: ANTIOQUIA | AA56: 5001 | AB56: MEDELLÍN | AC56: 6201 | AD56: INFORMACIÓN Y COMUNICACIONES | AE56: 0 | AF56: Aprobado con subsidio | AG56: 0 | AH56: 0 | AI56: 0 | AJ56: 0 | AK56: 64610000 | AL56: 41 | AM56: PEQUEÑA
C57: Natural | D57: 25 | E57: CUNDINAMARCA | F57: 25286 | G57: FUNZA | H57: 8513 | I57: EDUCACIÓN | K57: Aprobado con subsidio | P57: 39178000 | Q57: 15 | R57: PEQUEÑA | V57: 0 | W57: 0 | X57: Jurídica | Y57: 5 | Z57: ANTIOQUIA | AA57: 5001 | AB57: MEDELLÍN | AC57: 7110 | AD57: ACTIVIDADES PROFESIONALES, CIENTÍFICAS Y TÉCNICAS | AE57: 0 | AF57: Aprobado con subsidio | AG57: 0 | AH57: 0 | AI57: 0 | AJ57: 0 | AK57: 307254000 | AL57: 129 | AM57: MEDIANA
C58: Natural | D58: 50 | E58: META | F58: 50001 | G58: VILLAVICENCIO | H58: 4731 | I58: COMERCIO AL POR MAYOR Y AL POR MENOR; REPARACIÓN DE VEHÍCULOS AUTOMOTORES Y MOTOCICLETAS | K58: Aprobado con subsidio | P58: 12285000 | Q58: 15 | R58: PEQUEÑA | V58: 0 | W58: 0 | X58: Jurídica | Y58: 5 | Z58: ANTIOQUIA | AA58: 5360 | AB58: ITAGUI | AC58: 4923 | AD58: TRANSPORTE Y ALMACENAMIENTO | AE58: 0 | AF58: Aprobado con subsidio | AG58: 0 | AH58: 0 | AI58: 0 | AJ58: 0 | AK58: 78200000 | AL58: 36 | AM58: PEQUEÑA
C59: Natural | D59: 63 | E59: QUINDÍO | F59: 63001 | G59: ARMENIA | H59: 5611 | I59: ALOJAMIENTO Y SERVICIOS DE COMIDA | K59: Aprobado con subsidio | P59: 19141000 | Q59: 5 | R59: MICRO | V59: 0 | W59: 0 | X59: Jurídica | Y59: 5 | Z59: ANTIOQUIA | AA59: 5001 | AB59: MEDELLÍN | AC59: 9200 | AD59: ACTIVIDADES ARTÍSTICAS, DE ENTRETENIMIENTO Y RECREACIÓN | AE59: 0 | AF59: Aprobado con subsidio | AG59: 0 | AH59: 0 | AI59: 0 | AJ59: 0 | AK59: 76258000 | AL59: 37 | AM59: PEQUEÑA
C60: Natural | D60: 15 | E60: BOYACÁ | F60: 15759 | G60: SOGAMOSO | H60: 2395 | I60: INDUSTRIAS MANUFACTURERAS | K60: Aprobado con subsidio | P60: 39826000 | Q60: 13 | R60: PEQUEÑA | V60: 0 | W60: 0 | X60: Jurídica | Y60: 5 | Z60: ANTIOQUIA | AA60: 5001 | AB60: MEDELLÍN | AC60: 4659 | AD60: COMERCIO AL POR MAYOR Y AL POR MENOR; REPARACIÓN DE VEHÍCULOS AUTOMOTORES Y MOTOCICLETAS | AE60: 0 | AF60: Aprobado con subsidio | AG60: 0 | AH60: 0 | AI60: 0 | AJ60: 0 | AK60: 14742000 | AL60: 23 | AM60: PEQUEÑA
C61: Natural | D61: 66 | E61: RISARALDA | F61: 66001 | G61: PEREIRA | H61: 8530 | I61: EDUCACIÓN | K61: Aprobado con subsidio | P61: 3510000 | Q61: 7 | R61: MICRO | V61: 0 | W61: 0 | X61: Jurídica | Y61: 5 | Z61: ANTIOQUIA | AA61: 5001 | AB61: MEDELLÍN | AC61: 9200 | AD61: ACTIVIDADES ARTÍSTICAS, DE ENTRETENIMIENTO Y RECREACIÓN | AE61: 0 | AF61: Aprobado con subsidio | AG61: 0 | AH61: 0 | AI61: 0 | AJ61: 0 | AK61: 107419000 | AL61: 67 | AM61: MEDIANA
C62: Natural | D62: 11 | E62: BOGOTÁ, D.C. | F62: 11001 | G62: BOGOTÁ, D.C. | H62: 4290 | I62: CONSTRUCCIÓN | K62: Aprobado con subsidio | P62: 10542000 | Q62: 10 | R62: MICRO | V62: 0 | W62: 0 | X62: Jurídica | Y62: 5 | Z62: ANTIOQUIA | AA62: 5001 | AB62: MEDELLÍN | AC62: 2610 | AD62: INDUSTRIAS MANUFACTURERAS | AE62: 0 | AF62: Aprobado con subsidio | AG62: 0 | AH62: 0 | AI62: 0 | AJ62: 0 | AK62: 14742000 | AL62: 45 | AM62: PEQUEÑA
C63: Natural | D63: 5 | E63: ANTIOQUIA | F63: 5031 | G63: AMALFI | H63: 6621 | I63: ACTIVIDADES FINANCIERAS Y DE SEGUROS | K63: Aprobado con subsidio | P63: 56783000 | Q63: 69 | R63: MEDIANA | V63: 0 | W63: 0 | X63: Jurídica | Y63: 5 | Z63: ANTIOQUIA | AA63: 5001 | AB63: MEDELLÍN | AC63: 4631 | AD63: COMERCIO AL POR MAYOR Y AL POR MENOR; REPARACIÓN DE VEHÍCULOS AUTOMOTORES Y MOTOCICLETAS | AE63: 0 | AF63: Aprobado con subsidio | AG63: 0 | AH63: 0 | AI63: 0 | AJ63: 0 | AK63: 13580000 | AL63: 11 | AM63: PEQUEÑA
C64: Natural | D64: 5 | E64: ANTIOQUIA | F64: 5001 | G64: MEDELLÍN | H64: 4761 | I64: COMERCIO AL POR MAYOR Y AL POR MENOR; REPARACIÓN DE VEHÍCULOS AUTOMOTORES Y MOTOCICLETAS | K64: Aprobado con subsidio | P64: 48794000 | Q64: 17 | R64: PEQUEÑA | V64: 0 | W64: 0 | X64: Jurídica | Y64: 5 | Z64: ANTIOQUIA | AA64: 5001 | AB64: MEDELLÍN | AC64: 6202 | AD64: INFORMACIÓN Y COMUNICACIONES | AE64: 0 | AF64: Aprobado con subsidio | AG64: 0 | AH64: 0 | AI64: 0 | AJ64: 0 | AK64: 17727000 | AL64: 21 | AM64: PEQUEÑA
C65: Natural | D65: 17 | E65: CALDAS | F65: 17042 | G65: ANSERMA | H65: 5511 | I65: ALOJAMIENTO Y SERVICIOS DE COMIDA | K65: Rechazado a nivel aportante | P65: 0 | Q65: 3 | R65: MICRO | V65: 0 | W65: 0 | X65: Jurídica | Y65: 5 | Z65: ANTIOQUIA | AA65: 5697 | AB65: EL SANTUARIO | AC65: 4661 | AD65: COMERCIO AL POR MAYOR Y AL POR MENOR; REPARACIÓN DE VEHÍCULOS AUTOMOTORES Y MOTOCICLETAS | AE65: 0 | AF65: Aprobado con subsidio | AG65: 0 | AH65: 0 | AI65: 0 | AJ65: 0 | AK65: 27430000 | AL65: 11 | AM65: PEQUEÑA
C66: Natural | D66: 5 | E66: ANTIOQUIA | F66: 5001 | G66: MEDELLÍN | H66: 3250 | I66: INDUSTRIAS MANUFACTURERAS | K66: Aprobado con subsidio | P66: 2106000 | Q66: 3 | R66: MICRO | V66: 0 | W66: 0 | X66: Jurídica | Y66: 5 | Z66: ANTIOQUIA | AA66: 5380 | AB66: LA ESTRELLA | AC66: 4921 | AD66: TRANSPORTE Y ALMACENAMIENTO | AE66: 0 | AF66: Aprobado con subsidio | AG66: 0 | AH66: 0 | AI66: 0 | AJ66: 0 | AK66: 2808000 | AL66: 2 | AM66: MICRO
C67: Natural | D67: 5 | E67: ANTIOQUIA | F67: 5045 | G67: APARTADÓ | H67: 3290 | I67: INDUSTRIAS MANUFACTURERAS | K67: Aprobado con subsidio | P67: 9128000 | Q67: 4 | R67: MICRO | V67: 0 | W67: 0 | X67: Jurídica | Y67: 5 | Z67: ANTIOQUIA | AA67: 5360 | AB67: ITAGUI | AC67: 5224 | AD67: TRANSPORTE Y ALMACENAMIENTO | AE67: 0 | AF67: Aprobado con subsidio | AG67: 0 | AH67: 0 | AI67: 0 | AJ67: 0 | AK67: 124199000 | AL67: 82 | AM67: MEDIANA
C68: Natural | D68: 25 | E68: CUNDINAMARCA | F68: 25758 | G68: SOPÓ | H68: 8512 | I68: EDUCACIÓN | K68: Aprobado con subsidio | P68: 19749000 | Q68: 11 | R68: PEQUEÑA | V68: 0 | W68: 0 | X68: Jurídica | Y68: 5 | Z68: ANTIOQUIA | AA68: 5001 | AB68: MEDELLÍN | AC68: 4541 | AD68: COMERCIO AL POR MAYOR Y AL POR MENOR; REPARACIÓN DE VEHÍCULOS AUTOMOTORES Y MOTOCICLETAS | AE68: 0 | AF68: Aprobado con subsidio | AG68: 0 | AH68: 0 | AI68: 0 | AJ68: 0 | AK68: 17199000 | AL68: 17 | AM68: PEQUEÑA
C69: Natural | D69: 5 | E69: ANTIOQUIA | F69: 5034 | G69: ANDES | H69: 5511 | I69: ALOJAMIENTO Y SERVICIOS DE COMIDA | K69: Aprobado con subsidio | P69: 11058000 | Q69: 7 | R69: MICRO | V69: 0 | W69: 0 | X69: Jurídica | Y69: 5 | Z69: ANTIOQUIA | AA69: 5001 | AB69: MEDELLÍN | AC69: 7010 | AD69: ACTIVIDADES PROFESIONALES, CIENTÍFICAS Y TÉCNICAS | AE69: 0 | AF69: Aprobado con subsidio | AG69: 0 | AH69: 0 | AI69: 0 | AJ69: 0 | AK69: 3546000 | AL69: 1 | AM69: MICRO
C70: Natural | D70: 66 | E70: RISARALDA | F70: 66088 | G70: BELÉN DE UMBRÍA | H70: 4731 | I70: COMERCIO AL POR MAYOR Y AL POR MENOR; REPARACIÓN DE VEHÍCULOS AUTOMOTORES Y MOTOCICLETAS | K70: Aprobado con subsidio | P70: 1755000 | Q70: 5 | R70: MICRO | V70: 0 | W70: 0 | X70: Jurídica | Y70: 5 | Z70: ANTIOQUIA | AA70: 5001 | AB70: MEDELLÍN | AC70: 5530 | AD70: ALOJAMIENTO Y SERVICIOS DE COMIDA | AE70: 0 | AF70: Aprobado con subsidio | AG70: 0 | AH70: 0 | AI70: 0 | AJ70: 0 | AK70: 17063000 | AL70: 11 | AM70: PEQUEÑA
C71: Natural | D71: 17 | E71: CALDAS | F71: 17001 | G71: MANIZALES | H71: 4530 | I71: COMERCIO AL POR MAYOR Y AL POR MENOR; REPARACIÓN DE VEHÍCULOS AUTOMOTORES Y MOTOCICLETAS | K71: Aprobado con subsidio | P71: 27089000 | Q71: 7 | R71: MICRO | V71: 0 | W71: 0 | X71: Jurídica | Y71: 5 | Z71: ANTIOQUIA | AA71: 5001 | AB71: MEDELLÍN | AC71: 4390 | AD71: CONSTRUCCIÓN | AE71: 0 | AF71: Aprobado con subsidio | AG71: 0 | AH71: 0 | AI71: 0 | AJ71: 0 | AK71: 41320000 | AL71: 13 | AM71: PEQUEÑA
C72: Natural | D72: 13 | E72: BOLÍVAR | F72: 13001 | G72: CARTAGENA | H72: 4775 | I72: COMERCIO AL POR MAYOR Y AL POR MENOR; REPARACIÓN DE VEHÍCULOS AUTOMOTORES Y MOTOCICLETAS | K72: Aprobado con subsidio | P72: 17670000 | Q72: 5 | R72: MICRO | V72: 0 | W72: 0 | X72: Jurídica | Y72: 5 | Z72: ANTIOQUIA | AA72: 5001 | AB72: MEDELLÍN | AC72: 4921 | AD72: TRANSPORTE Y ALMACENAMIENTO | AE72: 0 | AF72: Aprobado con subsidio | AG72: 0 | AH72: 0 | AI72: 0 | AJ72: 0 | AK72: 57354000 | AL72: 47 | AM72: PEQUEÑA
C73: Natural | D73: 20 | E73: CESAR | F73: 20001 | G73: VALLEDUPAR | H73: 8521 | I73: EDUCACIÓN | K73: Rechazado a nivel aportante | P73: 0 | Q73: 3 | R73: MICRO | V73: 0 | W73: 0 | X73: Jurídica | Y73: 5 | Z73: ANTIOQUIA | AA73: 5440 | AB73: MARINILLA | AC73: 1081 | AD73: INDUSTRIAS MANUFACTURERAS | AE73: 0 | AF73: Aprobado con subsidio | AG73: 0 | AH73: 0 | AI73: 0 | AJ73: 0 | AK73: 11583000 | AL73: 18 | AM73: PEQUEÑA
C74: Natural | D74: 11 | E74: BOGOTÁ, D.C. | F74: 11001 | G74: BOGOTÁ, D.C. | H74: 8512 | I74: EDUCACIÓN | K74: Aprobado con subsidio | P74: 50043000 | Q74: 16 | R74: PEQUEÑA | V74: 0 | W74: 0 | X74: Jurídica | Y74: 5 | Z74: ANTIOQUIA | AA74: 5360 | AB74: ITAGUI | AC74: 4330 | AD74: CONSTRUCCIÓN | AE74: 0 | AF74: Aprobado con subsidio | AG74: 0 | AH74: 0 | AI74: 0 | AJ74: 0 | AK74: 3159000 | AL74: 3 | AM74: MICRO
C75: Natural | D75: 11 | E75: BOGOTÁ, D.C. | F75: 11001 | G75: BOGOTÁ, D.C. | H75: 9609 | I75: OTRAS ACTIVIDADES DE SERVICIOS | K75: Aprobado con subsidio | P75: 1404000 | Q75: 4 | R75: MICRO | V75: 0 | W75: 0 | X75: Jurídica | Y75: 5 | Z75: ANTIOQUIA | AA75: 5001 | AB75: MEDELLÍN | AC75: 6202 | AD75: INFORMACIÓN Y COMUNICACIONES | AE75: 0 | AF75: Aprobado con subsidio | AG75: 0 | AH75: 0 | AI75: 0 | AJ75: 0 | AK75: 21164000 | AL75: 8 | AM75: MICRO
C76: Natural | D76: 11 | E76: BOGOTÁ, D.C. | F76: 11001 | G76: BOGOTÁ, D.C. | H76: 4751 | I76: COMERCIO AL POR MAYOR Y AL POR MENOR; REPARACIÓN DE VEHÍCULOS AUTOMOTORES Y MOTOCICLETAS | K76: Aprobado con subsidio | P76: 5520000 | Q76: 4 | R76: MICRO | V76: 0 | W76: 0 | X76: Jurídica | Y76: 5 | Z76: ANTIOQUIA | AA76: 5615 | AB76: RIONEGRO | AC76: 1610 | AD76: INDUSTRIAS MANUFACTURERAS | AE76: 0 | AF76: Aprobado con subsidio | AG76: 0 | AH76: 0 | AI76: 0 | AJ76: 0 | AK76: 115749000 | AL76: 71 | AM76: MEDIANA
C77: Natural | D77: 41 | E77: HUILA | F77: 41396 | G77: LA PLATA | H77: 4530 | I77: COMERCIO AL POR MAYOR Y AL POR MENOR; REPARACIÓN DE VEHÍCULOS AUTOMOTORES Y MOTOCICLETAS | K77: Aprobado con subsidio | P77: 1404000 | Q77: 4 | R77: MICRO | V77: 0 | W77: 0 | X77: Natural | Y77: 5 | Z77: ANTIOQUIA | AA77: 5001 | AB77: MEDELLÍN | AC77: 6614 | AD77: ACTIVIDADES FINANCIERAS Y DE SEGUROS | AE77: 0 | AF77: Aprobado con subsidio | AG77: 0 | AH77: 0 | AI77: 0 | AJ77: 0 | AK77: 30692000 | AL77: 11 | AM77: PEQUEÑA
C78: Natural | D78: 11 | E78: BOGOTÁ, D.C. | F78: 11001 | G78: BOGOTÁ, D.C. | H78: 5612 | I78: ALOJAMIENTO Y SERVICIOS DE COMIDA | K78: Aprobado con subsidio | P78: 2808000 | Q78: 6 | R78: MICRO | V78: 0 | W78: 0 | X78: Jurídica | Y78: 5 | Z78: ANTIOQUIA | AA78: 5001 | AB78: MEDELLÍN | AC78: 4921 | AD78: TRANSPORTE Y ALMACENAMIENTO | AE78: 0 | AF78: Aprobado con subsidio | AG78: 0 | AH78: 0 | AI78: 0 | AJ78: 0 | AK78: 1716059000 | AL78: 609 | AM78: MUY GRANDE
C79: Natural | D79: 11 | E79: BOGOTÁ, D.C. | F79: 11001 | G79: BOGOTÁ, D.C. | H79: 1811 | I79: INDUSTRIAS MANUFACTURERAS | K79: Aprobado con subsidio | P79: 12987000 | Q79: 7 | R79: MICRO | V79: 0 | W79: 0 | X79: Jurídica | Y79: 5 | Z79: ANTIOQUIA | AA79: 5360 | AB79: ITAGUI | AC79: 4663 | AD79: COMERCIO AL POR MAYOR Y AL POR MENOR; REPARACIÓN DE VEHÍCULOS AUTOMOTORES Y MOTOCICLETAS | AE79: 0 | AF79: Aprobado con subsidio | AG79: 0 | AH79: 0 | AI79: 0 | AJ79: 0 | AK79: 33948000 | AL79: 19 | AM79: PEQUEÑA
C80: Natural | D80: 11 | E80: BOGOTÁ, D.C. | F80: 11001 | G80: BOGOTÁ, D.C. | H80: 5611 | I80: ALOJAMIENTO Y SERVICIOS DE COMIDA | K80: Rechazado a nivel aportante | P80: 0 | Q80: 6 | R80: MICRO | V80: 0 | W80: 0 | X80: Natural | Y80: 5 | Z80: ANTIOQUIA | AA80: 5360 | AB80: ITAGUI | AC80: 5221 | AD80: TRANSPORTE Y ALMACENAMIENTO | AE80: 0 | AF80: Aprobado con subsidio | AG80: 0 | AH80: 0 | AI80: 0 | AJ80: 0 | AK80: 11990000 | AL80: 4 | AM80: MICRO
C81: Natural | D81: 68 | E81: SANTANDER | F81: 68077 | G81: BARBOSA | H81: 4520 | I81: COMERCIO AL POR MAYOR Y AL POR MENOR; REPARACIÓN DE VEHÍCULOS AUTOMOTORES Y MOTOCICLETAS | K81: Aprobado con subsidio | P81: 5265000 | Q81: 5 | R81: MICRO | V81: 0 | W81: 0 | X81: Natural | Y81: 5 | Z81: ANTIOQUIA | AA81: 5360 | AB81: ITAGUI | AC81: 4631 | AD81: COMERCIO AL POR MAYOR Y AL POR MENOR; REPARACIÓN DE VEHÍCULOS AUTOMOTORES Y MOTOCICLETAS | AE81: 0 | AF81: Aprobado con subsidio | AG81: 0 | AH81: 0 | AI81: 0 | AJ81: 0 | AK81: 19131000 | AL81: 9 | AM81: MICRO
C82: Natural | D82: 11 | E82: BOGOTÁ, D.C. | F82: 11001 | G82: BOGOTÁ, D.C. | H82: 1420 | I82: INDUSTRIAS MANUFACTURERAS | K82: Rechazado a nivel aportante | P82: 0 | Q82: 3 | R82: MICRO | V82: 0 | W82: 0 | X82: Jurídica | Y82: 5 | Z82: ANTIOQUIA | AA82: 5440 | AB82: MARINILLA | AC82: 4921 | AD82: TRANSPORTE Y ALMACENAMIENTO | AE82: 0 | AF82: Aprobado con subsidio | AG82: 0 | AH82: 0 | AI82: 0 | AJ82: 0 | AK82: 909044000 | AL82: 254 | AM82: GRANDE
C83: Natural | D83: 52 | E83: NARIÑO | F83: 52001 | G83: PASTO | H83: 5611 | I83: ALOJAMIENTO Y SERVICIOS DE COMIDA | K83: Aprobado con subsidio | P83: 4564000 | Q83: 5 | R83: MICRO | V83: 0 | W83: 0 | X83: Jurídica | Y83: 5 | Z83: ANTIOQUIA | AA83: 5001 | AB83: MEDELLÍN | AC83: 1410 | AD83: INDUSTRIAS MANUFACTURERAS | AE83: 0 | AF83: Aprobado con subsidio | AG83: 0 | AH83: 0 | AI83: 0 | AJ83: 0 | AK83: 49727000 | AL83: 18 | AM83: PEQUEÑA
C84: Natural | D84: 11 | E84: BOGOTÁ, D.C. | F84: 11001 | G84: BOGOTÁ, D.C. | H84: 4390 | I84: CONSTRUCCIÓN | K84: Aprobado con subsidio | P84: 8109000 | Q84: 4 | R84: MICRO | V84: 0 | W84: 0 | X84: Jurídica | Y84: 5 | Z84: ANTIOQUIA | AA84: 5615 | AB84: RIONEGRO | AC84: 5619 | AD84: ALOJAMIENTO Y SERVICIOS DE COMIDA | AE84: 0 | AF84: Aprobado con subsidio | AG84: 0 | AH84: 0 | AI84: 0 | AJ84: 0 | AK84: 31659000 | AL84: 18 | AM84: PEQUEÑA
C85: Natural | D85: 11 | E85: BOGOTÁ, D.C. | F85: 11001 | G85: BOGOTÁ, D.C. | H85: 7110 | I85: ACTIVIDADES PROFESIONALES, CIENTÍFICAS Y TÉCNICAS | K85: Rechazado a nivel aportante | P85: 0 | Q85: 2 | R85: MICRO | V85: 0 | W85: 0 | X85: Natural | Y85: 5 | Z85: ANTIOQUIA | AA85: 5001 | AB85: MEDELLÍN | AC85: 4690 | AD85: COMERCIO AL POR MAYOR Y AL POR MENOR; REPARACIÓN DE VEHÍCULOS AUTOMOTORES Y MOTOCICLETAS | AE85: 0 | AF85: Aprobado con subsidio | AG85: 0 | AH85: 0 | AI85: 0 | AJ85: 0 | AK85: 16146000 | AL85: 13 | AM85: PEQUEÑA
C86: Natural | D86: 76 | E86: VALLE DEL CAUCA | F86: 76001 | G86: CALI | H86: 3312 | I86: INDUSTRIAS MANUFACTURERAS | K86: Aprobado con subsidio | P86: 5144000 | Q86: 4 | R86: MICRO | V86: 0 | W86: 0 | X86: Jurídica | Y86: 5 | Z86: ANTIOQUIA | AA86: 5001 | AB86: MEDELLÍN | AC86: 1104 | AD86: INDUSTRIAS MANUFACTURERAS | AE86: 0 | AF86: Aprobado con subsidio | AG86: 0 | AH86: 0 | AI86: 0 | AJ86: 0 | AK86: 3717137000 | AL86: 1930 | AM86: MUY GRANDE
C87: Natural | D87: 73 | E87: TOLIMA | F87: 73001 | G87: IBAGUÉ | H87: 5611 | I87: ALOJAMIENTO Y SERVICIOS DE COMIDA | K87: Aprobado con subsidio | P87: 42148000 | Q87: 10 | R87: MICRO | V87: 0 | W87: 0 | X87: Jurídica | Y87: 5 | Z87: ANTIOQUIA | AA87: 5001 | AB87: MEDELLÍN | AC87: 1521 | AD87: INDUSTRIAS MANUFACTURERAS | AE87: 0 | AF87: Aprobado con subsidio | AG87: 0 | AH87: 0 | AI87: 0 | AJ87: 0 | AK87: 353823000 | AL87: 107 | AM87: MEDIANA
C88: Natural | D88: 76 | E88: VALLE DEL CAUCA | F88: 76109 | G88: BUENAVENTURA | H88: 4789 | I88: COMERCIO AL POR MAYOR Y AL POR MENOR; REPARACIÓN DE VEHÍCULOS AUTOMOTORES Y MOTOCICLETAS | K88: Rechazado a nivel aportante | P88: 0 | Q88: 3 | R88: MICRO | V88: 0 | W88: 0 | X88: Jurídica | Y88: 5 | Z88: ANTIOQUIA | AA88: 5380 | AB88: LA ESTRELLA | AC88: 4659 | AD88: COMERCIO AL POR MAYOR Y AL POR MENOR; REPARACIÓN DE VEHÍCULOS AUTOMOTORES Y MOTOCICLETAS | AE88: 0 | AF88: Aprobado con subsidio | AG88: 0 | AH88: 0 | AI88: 0 | AJ88: 0 | AK88: 87198000 | AL88: 62 | AM88: MEDIANA
C89: Natural | D89: 76 | E89: VALLE DEL CAUCA | F89: 76001 | G89: CALI | H89: 4719 | I89: COMERCIO AL POR MAYOR Y AL POR MENOR; REPARACIÓN DE VEHÍCULOS AUTOMOTORES Y MOTOCICLETAS | K89: Aprobado con subsidio | P89: 2808000 | Q89: 7 | R89: MICRO | V89: 0 | W89: 0 | X89: Natural | Y89: 5 | Z89: ANTIOQUIA | AA89: 5148 | AB89: EL CARMEN DE VIBORAL | AC89: 4759 | AD89: COMERCIO AL POR MAYOR Y AL POR MENOR; REPARACIÓN DE VEHÍCULOS AUTOMOTORES Y MOTOCICLETAS | AE89: 0 | AF89: Aprobado con subsidio | AG89: 0 | AH89: 0 | AI89: 0 | AJ89: 0 | AK89: 16146000 | AL89: 24 | AM89: PEQUEÑA
C90: Natural | D90: 76 | E90: VALLE DEL CAUCA | F90: 76834 | G90: TULUÁ | H90: 5320 | I90: TRANSPORTE Y ALMACENAMIENTO | K90: Aprobado con subsidio | P90: 15963000 | Q90: 5 | R90: MICRO | V90: 0 | W90: 0 | X90: Jurídica | Y90: 5 | Z90: ANTIOQUIA | AA90: 5001 | AB90: MEDELLÍN | AC90: 4664 | AD90: COMERCIO AL POR MAYOR Y AL POR MENOR; REPARACIÓN DE VEHÍCULOS AUTOMOTORES Y MOTOCICLETAS | AE90: 0 | AF90: Aprobado con subsidio | AG90: 0 | AH90: 0 | AI90: 0 | AJ90: 0 | AK90: 3861000 | AL90: 12 | AM90: PEQUEÑA
C91: Natural | D91: 76 | E91: VALLE DEL CAUCA | F91: 76834 | G91: TULUÁ | H91: 5611 | I91: ALOJAMIENTO Y SERVICIOS DE COMIDA | K91: Aprobado con subsidio | P91: 10842000 | Q91: 4 | R91: MICRO | V91: 0 | W91: 0 | X91: Jurídica | Y91: 5 | Z91: ANTIOQUIA | AA91: 5615 | AB91: RIONEGRO | AC91: 4111 | AD91: CONSTRUCCIÓN | AE91: 0 | AF91: Aprobado con subsidio | AG91: 0 | AH91: 0 | AI91: 0 | AJ91: 0 | AK91: 132327000 | AL91: 193 | AM91: MEDIANA
C92: Natural | D92: 76 | E92: VALLE DEL CAUCA | F92: 76834 | G92: TULUÁ | H92: 4773 | I92: COMERCIO AL POR MAYOR Y AL POR MENOR; REPARACIÓN DE VEHÍCULOS AUTOMOTORES Y MOTOCICLETAS | K92: Aprobado con subsidio | P92: 10881000 | Q92: 12 | R92: PEQUEÑA | V92: 0 | W92: 0 | X92: Jurídica | Y92: 5 | Z92: ANTIOQUIA | AA92: 5001 | AB92: MEDELLÍN | AC92: 4111 | AD92: CONSTRUCCIÓN | AE92: 0 | AF92: Aprobado con subsidio | AG92: 0 | AH92: 0 | AI92: 0 | AJ92: 0 | AK92: 15795000 | AL92: 20 | AM92: PEQUEÑA
C93: Natural | D93: 88 | E93: ARCHIPIÉLAGO DE SAN ANDRÉS, PROVIDENCIA Y SANTA CATALINA | F93: 88564 | G93: PROVIDENCIA | H93: 5511 | I93: ALOJAMIENTO Y SERVICIOS DE COMIDA | K93: Aprobado con subsidio | P93: 21130000 | Q93: 12 | R93: PEQUEÑA | V93: 0 | W93: 0 | X93: Jurídica | Y93: 5 | Z93: ANTIOQUIA | AA93: 5001 | AB93: MEDELLÍN | AC93: 4662 | AD93: COMERCIO AL POR MAYOR Y AL POR MENOR; REPARACIÓN DE VEHÍCULOS AUTOMOTORES Y MOTOCICLETAS | AE93: 0 | AF93: Aprobado con subsidio | AG93: 0 | AH93: 0 | AI93: 0 | AJ93: 0 | AK93: 30537000 | AL93: 33 | AM93: PEQUEÑA
C94: Natural | D94: 76 | E94: VALLE DEL CAUCA | F94: 76001 | G94: CALI | H94: 8230 | I94: ACTIVIDADES DE SERVICIOS ADMINISTRATIVOS Y DE APOYO | K94: Rechazado a nivel aportante | P94: 0 | Q94: 0 | R94: $null$ | V94: 0 | W94: 0 | X94: Jurídica | Y94: 5 | Z94: ANTIOQUIA | AA94: 5360 | AB94: ITAGUI | AC94: 4530 | AD94: COMERCIO AL POR MAYOR Y AL POR MENOR; REPARACIÓN DE VEHÍCULOS AUTOMOTORES Y MOTOCICLETAS | AE94: 0 | AF94: Aprobado con subsidio | AG94: 0 | AH94: 0 | AI94: 0 | AJ94: 0 | AK94: 24928000 | AL94: 9 | AM94: MICRO
C95: Natural | D95: 76 | E95: VALLE DEL CAUCA | F95: 76001 | G95: CALI | H95: 4649 | I95: COMERCIO AL POR MAYOR Y AL POR MENOR; REPARACIÓN DE VEHÍCULOS AUTOMOTORES Y MOTOCICLETAS | K95: Aprobado con subsidio | P95: 4212000 | Q95: 5 | R95: MICRO | V95: 0 | W95: 0 | X95: Jurídica | Y95: 5 | Z95: ANTIOQUIA | AA95: 5001 | AB95: MEDELLÍN | AC95: 8559 | AD95: EDUCACIÓN | AE95: 0 | AF95: Aprobado con subsidio | AG95: 0 | AH95: 0 | AI95: 0 | AJ95: 0 | AK95: 33015000 | AL95: 9 | AM95: MICRO
C96: Natural | D96: 41 | E96: HUILA | F96: 41298 | G96: GARZÓN | H96: 4541 | I96: COMERCIO AL POR MAYOR Y AL POR MENOR; REPARACIÓN DE VEHÍCULOS AUTOMOTORES Y MOTOCICLETAS | K96: Aprobado con subsidio | P96: 4563000 | Q96: 5 | R96: MICRO | V96: 0 | W96: 0 | X96: Jurídica | Y96: 5 | Z96: ANTIOQUIA | AA96: 5001 | AB96: MEDELLÍN | AC96: 4741 | AD96: COMERCIO AL POR MAYOR Y AL POR MENOR; REPARACIÓN DE VEHÍCULOS AUTOMOTORES Y MOTOCICLETAS | AE96: 0 | AF96: Rechazado a nivel aportante | AG96: 0 | AH96: 0 | AI96: 0 | AJ96: 0 | AK96: 0 | AL96: 2 | AM96: MICRO
C97: Natural | D97: 76 | E97: VALLE DEL CAUCA | F97: 76520 | G97: PALMIRA | H97: 5210 | I97: TRANSPORTE Y ALMACENAMIENTO | K97: Aprobado con subsidio | P97: 2808000 | Q97: 3 | R97: MICRO | V97: 0 | W97: 0 | X97: Jurídica | Y97: 5 | Z97: ANTIOQUIA | AA97: 5001 | AB97: MEDELLÍN | AC97: 1410 | AD97: INDUSTRIAS MANUFACTURERAS | AE97: 0 | AF97: Aprobado con subsidio | AG97: 0 | AH97: 0 | AI97: 0 | AJ97: 0 | AK97: 64959000 | AL97: 40 | AM97: PEQUEÑA
C98: Natural | D98: 68 | E98: SANTANDER | F98: 68081 | G98: BARRANCABERMEJA | H98: 3312 | I98: INDUSTRIAS MANUFACTURERAS | K98: Aprobado con subsidio | P98: 8424000 | Q98: 8 | R98: MICRO | V98: 0 | W98: 0 | X98: Jurídica | Y98: 5 | Z98: ANTIOQUIA | AA98: 5001 | AB98: MEDELLÍN | AC98: 8621 | AD98: ACTIVIDADES DE ATENCIÓN DE LA SALUD HUMANA Y DE ASISTENCIA SOCIAL | AE98: 0 | AF98: Aprobado con subsidio | AG98: 0 | AH98: 0 | AI98: 0 | AJ98: 0 | AK98: 31590000 | AL98: 35 | AM98: PEQUEÑA
C99: Natural | D99: 15 | E99: BOYACÁ | F99: 15537 | G99: PAZ DE RÍO | H99: 510 | I99: EXPLOTACIÓN DE MINAS Y CANTERAS | K99: Aprobado con subsidio | P99: 20194000 | Q99: 15 | R99: PEQUEÑA | V99: 0 | W99: 0 | X99: Jurídica | Y99: 5 | Z99: ANTIOQUIA | AA99: 5360 | AB99: ITAGUI | AC99: 4631 | AD99: COMERCIO AL POR MAYOR Y AL POR MENOR; REPARACIÓN DE VEHÍCULOS AUTOMOTORES Y MOTOCICLETAS | AE99: 0 | AF99: Aprobado con subsidio | AG99: 0 | AH99: 0 | AI99: 0 | AJ99: 0 | AK99: 10794000 | AL99: 5 | AM99: MICRO
C100: Natural | D100: 68 | E100: SANTANDER | F100: 68547 | G100: PIEDECUESTA | H100: 4762 | I100: COMERCIO AL POR MAYOR Y AL POR MENOR; REPARACIÓN DE VEHÍCULOS AUTOMOTORES Y MOTOCICLETAS | K100: Aprobado con subsidio | P100: 11670000 | Q100: 3 | R100: MICRO | V100: 0 | W100: 0 | X100: Natural | Y100: 5 | Z100: ANTIOQUIA | AA100: 5001 | AB100: MEDELLÍN | AC100: 1811 | AD100: INDUSTRIAS MANUFACTURERAS | AE100: 0 | AF100: Aprobado con subsidio | AG100: 0 | AH100: 0 | AI100: 0 | AJ100: 0 | AK100: 8297000 | AL100: 5 | AM100: MICRO
C101: Natural | D101: 68 | E101: SANTANDER | F101: 68547 | G101: PIEDECUESTA | H101: 7500 | I101: ACTIVIDADES PROFESIONALES, CIENTÍFICAS Y TÉCNICAS | K101: Aprobado con subsidio | P101: 3510000 | Q101: 6 | R101: MICRO | V101: 0 | W101: 0 | X101: Jurídica | Y101: 5 | Z101: ANTIOQUIA | AA101: 5631 | AB101: SABANETA | AC101: 3312 | AD101: INDUSTRIAS MANUFACTURERAS | AE101: 0 | AF101: Aprobado con subsidio | AG101: 0 | AH101: 0 | AI101: 0 | AJ101: 0 | AK101: 30538000 | AL101: 25 | AM101: PEQUEÑA
C102: Natural | D102: 76 | E102: VALLE DEL CAUCA | F102: 76001 | G102: CALI | H102: 4771 | I102: COMERCIO AL POR MAYOR Y AL POR MENOR; REPARACIÓN DE VEHÍCULOS AUTOMOTORES Y MOTOCICLETAS | K102: Aprobado con subsidio | P102: 3159000 | Q102: 9 | R102: MICRO | V102: 0 | W102: 0 | X102: Natural | Y102: 5 | Z102: ANTIOQUIA | AA102: 5001 | AB102: MEDELLÍN | AC102: 123 | AD102: AGRICULTURA, GANADERÍA, CAZA, SILVICULTURA Y PESCA | AE102: 0 | AF102: Rechazado a nivel aportante | AG102: 0 | AH102: 0 | AI102: 0 | AJ102: 0 | AK102: 0 | AL102: 5 | AM102: MICRO
C103: Natural | D103: 11 | E103: BOGOTÁ, D.C. | F103: 11001 | G103: BOGOTÁ, D.C. | H103: 4773 | I103: COMERCIO AL POR MAYOR Y AL POR MENOR; REPARACIÓN DE VEHÍCULOS AUTOMOTORES Y MOTOCICLETAS | K103: Rechazado a nivel aportante | P103: 0 | Q103: 4 | R103: MICRO | V103: 0 | W103: 0 | X103: Jurídica | Y103: 5 | Z103: ANTIOQUIA | AA103: 5001 | AB103: MEDELLÍN | AC103: 7112 | AD103: ACTIVIDADES PROFESIONALES, CIENTÍFICAS Y TÉCNICAS | AE103: 0 | AF103: Aprobado con subsidio | AG103: 0 | AH103: 0 | AI103: 0 | AJ103: 0 | AK103: 37642000 | AL103: 50 | AM103: PEQUEÑA
C104: Natural | D104: 54 | E104: NORTE DE SANTANDER | F104: 54001 | G104: CÚCUTA | H104: 4732 | I104: COMERCIO AL POR MAYOR Y AL POR MENOR; REPARACIÓN DE VEHÍCULOS AUTOMOTORES Y MOTOCICLETAS | K104: Aprobado con subsidio | P104: 1053000 | Q104: 3 | R104: MICRO | V104: 0 | W104: 0 | X104: Natural | Y104: 5 | Z104: ANTIOQUIA | AA104: 5001 | AB104: MEDELLÍN | AC104: 9001 | AD104: ACTIVIDADES ARTÍSTICAS, DE ENTRETENIMIENTO Y RECREACIÓN | AE104: 0 | AF104: Rechazado a nivel aportante | AG104: 0 | AH104: 0 | AI104: 0 | AJ104: 0 | AK104: 0 | AL104: 5 | AM104: MICRO
C105: Jurídica | D105: 41 | E105: HUILA | F105: 41298 | G105: GARZÓN | H105: 4620 | I105: COMERCIO AL POR MAYOR Y AL POR MENOR; REPARACIÓN DE VEHÍCULOS AUTOMOTORES Y MOTOCICLETAS | K105: Aprobado con subsidio | P105: 49842000 | Q105: 163 | R105: MEDIANA | V105: 0 | W105: 0 | X105: Natural | Y105: 5 | Z105: ANTIOQUIA | AA105: 5001 | AB105: MEDELLÍN | AC105: 6910 | AD105: ACTIVIDADES PROFESIONALES, CIENTÍFICAS Y TÉCNICAS | AE105: 0 | AF105: Rechazado a nivel aportante | AG105: 0 | AH105: 0 | AI105: 0 | AJ105: 0 | AK105: 0 | AL105: 10 | AM105: MICRO
C106: Natural | D106: 5 | E106: ANTIOQUIA | F106: 5001 | G106: MEDELLÍN | H106: 5511 | I106: ALOJAMIENTO Y SERVICIOS DE COMIDA | K106: Aprobado con subsidio | P106: 18344000 | Q106: 15 | R106: PEQUEÑA | V106: 0 | W106: 0 | X106: Jurídica | Y106: 5 | Z106: ANTIOQUIA | AA106: 5001 | AB106: MEDELLÍN | AC106: 9602 | AD106: OTRAS ACTIVIDADES DE SERVICIOS | AE106: 0 | AF106: Aprobado con subsidio | AG106: 0 | AH106: 0 | AI106: 0 | AJ106: 0 | AK106: 6380000 | AL106: 2 | AM106: MICRO
C107: Natural | D107: 52 | E107: NARIÑO | F107: 52001 | G107: PASTO | H107: 5611 | I107: ALOJAMIENTO Y SERVICIOS DE COMIDA | K107: Aprobado con subsidio | P107: 30582000 | Q107: 12 | R107: PEQUEÑA | V107: 0 | W107: 0 | X107: Jurídica | Y107: 5 | Z107: ANTIOQUIA | AA107: 5001 | AB107: MEDELLÍN | AC107: 9312 | AD107: ACTIVIDADES ARTÍSTICAS, DE ENTRETENIMIENTO Y RECREACIÓN | AE107: 0 | AF107: Aprobado con subsidio | AG107: 0 | AH107: 0 | AI107: 0 | AJ107: 0 | AK107: 195447000 | AL107: 69 | AM107: MEDIANA
C108: Natural | D108: 11 | E108: BOGOTÁ, D.C. | F108: 11001 | G108: BOGOTÁ, D.C. | H108: 4330 | I108: CONSTRUCCIÓN | K108: Aprobado con subsidio | P108: 32379000 | Q108: 13 | R108: PEQUEÑA | V108: 0 | W108: 0 | X108: Jurídica | Y108: 5 | Z108: ANTIOQUIA | AA108: 5001 | AB108: MEDELLÍN | AC108: 2431 | AD108: INDUSTRIAS MANUFACTURERAS | AE108: 0 | AF108: Aprobado con subsidio | AG108: 0 | AH108: 0 | AI108: 0 | AJ108: 0 | AK108: 68094000 | AL108: 82 | AM108: MEDIANA
C109: Natural | D109: 52 | E109: NARIÑO | F109: 52001 | G109: PASTO | H109: 4530 | I109: COMERCIO AL POR MAYOR Y AL POR MENOR; REPARACIÓN DE VEHÍCULOS AUTOMOTORES Y MOTOCICLETAS | K109: Aprobado con subsidio | P109: 24110000 | Q109: 8 | R109: MICRO | V109: 0 | W109: 0 | X109: Jurídica | Y109: 5 | Z109: ANTIOQUIA | AA109: 5001 | AB109: MEDELLÍN | AC109: 7820 | AD109: ACTIVIDADES DE SERVICIOS ADMINISTRATIVOS Y DE APOYO | AE109: 0 | AF109: Aprobado con subsidio | AG109: 0 | AH109: 0 | AI109: 0 | AJ109: 0 | AK109: 710260000 | AL109: 440 | AM109: GRANDE
C110: Natural | D110: 20 | E110: CESAR | F110: 20001 | G110: VALLEDUPAR | H110: 5611 | I110: ALOJAMIENTO Y SERVICIOS DE COMIDA | K110: Rechazado a nivel aportante | P110: 0 | Q110: 0 | R110: $null$ | V110: 0 | W110: 0 | X110: Jurídica | Y110: 5 | Z110: ANTIOQUIA | AA110: 5001 | AB110: MEDELLÍN | AC110: 4921 | AD110: TRANSPORTE Y ALMACENAMIENTO | AE110: 0 | AF110: Aprobado con subsidio | AG110: 0 | AH110: 0 | AI110: 0 | AJ110: 0 | AK110: 50490000 | AL110: 32 | AM110: PEQUEÑA
C111: Natural | D111: 41 | E111: HUILA | F111: 41001 | G111: NEIVA | H111: 4762 | I111: COMERCIO AL POR MAYOR Y AL POR MENOR; REPARACIÓN DE VEHÍCULOS AUTOMOTORES Y MOTOCICLETAS | K111: Aprobado con subsidio | P111: 4914000 | Q111: 7 | R111: MICRO | V111: 0 | W111: 0 | X111: Jurídica | Y111: 5 | Z111: ANTIOQUIA | AA111: 5001 | AB111: MEDELLÍN | AC111: 4669 | AD111: COMERCIO AL POR MAYOR Y AL POR MENOR; REPARACIÓN DE VEHÍCULOS AUTOMOTORES Y MOTOCICLETAS | AE111: 0 | AF111: Aprobado con subsidio | AG111: 0 | AH111: 0 | AI111: 0 | AJ111: 0 | AK111: 50895000 | AL111: 77 | AM111: MEDIANA
C112: Natural | D112: 95 | E112: GUAVIARE | F112: 95001 | G112: SAN JOSÉ DEL GUAVIARE | H112: 4923 | I112: TRANSPORTE Y ALMACENAMIENTO | K112: Aprobado con subsidio | P112: 1404000 | Q112: 7 | R112: MICRO | V112: 0 | W112: 0 | X112: Jurídica | Y112: 5 | Z112: ANTIOQUIA | AA112: 5101 | AB112: CIUDAD BOLÍVAR | AC112: 9499 | AD112: OTRAS ACTIVIDADES DE SERVICIOS | AE112: 0 | AF112: Aprobado con subsidio | AG112: 0 | AH112: 0 | AI112: 0 | AJ112: 0 | AK112: 10381000 | AL112: 3 | AM112: MICRO
C113: Natural | D113: 41 | E113: HUILA | F113: 41001 | G113: NEIVA | H113: 5530 | I113: ALOJAMIENTO Y SERVICIOS DE COMIDA | K113: Aprobado con subsidio | P113: 20802000 | Q113: 17 | R113: PEQUEÑA | V113: 0 | W113: 0 | X113: Natural | Y113: 5 | Z113: ANTIOQUIA | AA113: 5237 | AB113: DON MATÍAS | AC113: 1410 | AD113: INDUSTRIAS MANUFACTURERAS | AE113: 0 | AF113: Aprobado con subsidio | AG113: 0 | AH113: 0 | AI113: 0 | AJ113: 0 | AK113: 68200000 | AL113: 27 | AM113: PEQUEÑA
C114: Natural | D114: 76 | E114: VALLE DEL CAUCA | F114: 76111 | G114: GUADALAJARA DE BUGA | H114: 4771 | I114: COMERCIO AL POR MAYOR Y AL POR MENOR; REPARACIÓN DE VEHÍCULOS AUTOMOTORES Y MOTOCICLETAS | K114: Aprobado con subsidio | P114: 4212000 | Q114: 3 | R114: MICRO | V114: 0 | W114: 0 | X114: Jurídica | Y114: 5 | Z114: ANTIOQUIA | AA114: 5001 | AB114: MEDELLÍN | AC114: 2511 | AD114: INDUSTRIAS MANUFACTURERAS | AE114: 0 | AF114: Rechazado a nivel aportante | AG114: 0 | AH114: 0 | AI114: 0 | AJ114: 0 | AK114: 0 | AL114: 0 | AM114: $null$
C115: Natural | D115: 76 | E115: VALLE DEL CAUCA | F115: 76001 | G115: CALI | H115: 1089 | I115: INDUSTRIAS MANUFACTURERAS | K115: Aprobado con subsidio | P115: 13133000 | Q115: 4 | R115: MICRO | V115: 0 | W115: 0 | X115: Jurídica | Y115: 5 | Z115: ANTIOQUIA | AA115: 5001 | AB115: MEDELLÍN | AC115: 8291 | AD115: ACTIVIDADES DE SERVICIOS ADMINISTRATIVOS Y DE APOYO | AE115: 0 | AF115: Aprobado con subsidio | AG115: 0 | AH115: 0 | AI115: 0 | AJ115: 0 | AK115: 9688000 | AL115: 6 | AM115: MICRO
C116: Natural | D116: 76 | E116: VALLE DEL CAUCA | F116: 76001 | G116: CALI | H116: 5621 | I116: ALOJAMIENTO Y SERVICIOS DE COMIDA | K116: Rechazado a nivel aportante | P116: 0 | Q116: 2 | R116: MICRO | V116: 0 | W116: 0 | X116: Jurídica | Y116: 5 | Z116: ANTIOQUIA | AA116: 5001 | AB116: MEDELLÍN | AC116: 4530 | AD116: COMERCIO AL POR MAYOR Y AL POR MENOR; REPARACIÓN DE VEHÍCULOS AUTOMOTORES Y MOTOCICLETAS | AE116: 0 | AF116: Aprobado con subsidio | AG116: 0 | AH116: 0 | AI116: 0 | AJ116: 0 | AK116: 649708000 | AL116: 322 | AM116: GRANDE
C117: Natural | D117: 5 | E117: ANTIOQUIA | F117: 5001 | G117: MEDELLÍN | H117: 4773 | I117: COMERCIO AL POR MAYOR Y AL POR MENOR; REPARACIÓN DE VEHÍCULOS AUTOMOTORES Y MOTOCICLETAS | K117: Aprobado con subsidio | P117: 15630000 | Q117: 6 | R117: MICRO | V117: 0 | W117: 0 | X117: Jurídica | Y117: 5 | Z117: ANTIOQUIA | AA117: 5001 | AB117: MEDELLÍN | AC117: 1811 | AD117: INDUSTRIAS MANUFACTURERAS | AE117: 0 | AF117: Aprobado con subsidio | AG117: 0 | AH117: 0 | AI117: 0 | AJ117: 0 | AK117: 17443000 | AL117: 7 | AM117: MICRO
C118: Natural | D118: 50 | E118: META | F118: 50001 | G118: VILLAVICENCIO | H118: 2021 | I118: INDUSTRIAS MANUFACTURERAS | K118: Aprobado con subsidio | P118: 72913000 | Q118: 26 | R118: PEQUEÑA | V118: 0 | W118: 0 | X118: Jurídica | Y118: 5 | Z118: ANTIOQUIA | AA118: 5631 | AB118: SABANETA | AC118: 1089 | AD118: INDUSTRIAS MANUFACTURERAS | AE118: 0 | AF118: Aprobado con subsidio | AG118: 0 | AH118: 0 | AI118: 0 | AJ118: 0 | AK118: 18220000 | AL118: 11 | AM118: PEQUEÑA
C119: Natural | D119: 76 | E119: VALLE DEL CAUCA | F119: 76001 | G119: CALI | H119: 4512 | I119: COMERCIO AL POR MAYOR Y AL POR MENOR; REPARACIÓN DE VEHÍCULOS AUTOMOTORES Y MOTOCICLETAS | K119: Aprobado con subsidio | P119: 11691000 | Q119: 3 | R119: MICRO | V119: 0 | W119: 0 | X119: Jurídica | Y119: 5 | Z119: ANTIOQUIA | AA119: 5001 | AB119: MEDELLÍN | AC119: 4663 | AD119: COMERCIO AL POR MAYOR Y AL POR MENOR; REPARACIÓN DE VEHÍCULOS AUTOMOTORES Y MOTOCICLETAS | AE119: 0 | AF119: Aprobado con subsidio | AG119: 0 | AH119: 0 | AI119: 0 | AJ119: 0 | AK119: 33646000 | AL119: 10 | AM119: MICRO
C120: Natural | D120: 18 | E120: CAQUETÁ | F120: 18001 | G120: FLORENCIA | H120: 4210 | I120: CONSTRUCCIÓN | K120: Rechazado a nivel aportante | P120: 0 | Q120: 25 | R120: PEQUEÑA | V120: 0 | W120: 0 | X120: Jurídica | Y120: 5 | Z120: ANTIOQUIA | AA120: 5001 | AB120: MEDELLÍN | AC120: 2592 | AD120: INDUSTRIAS MANUFACTURERAS | AE120: 0 | AF120: Aprobado con subsidio | AG120: 0 | AH120: 0 | AI120: 0 | AJ120: 0 | AK120: 21061000 | AL120: 10 | AM120: MICRO
C121: Natural | D121: 54 | E121: NORTE DE SANTANDER | F121: 54001 | G121: CÚCUTA | H121: 4663 | I121: COMERCIO AL POR MAYOR Y AL POR MENOR; REPARACIÓN DE VEHÍCULOS AUTOMOTORES Y MOTOCICLETAS | K121: Aprobado con subsidio | P121: 21060000 | Q121: 16 | R121: PEQUEÑA | V121: 0 | W121: 0 | X121: Jurídica | Y121: 5 | Z121: ANTIOQUIA | AA121: 5360 | AB121: ITAGUI | AC121: 3230 | AD121: INDUSTRIAS MANUFACTURERAS | AE121: 0 | AF121: Aprobado con subsidio | AG121: 0 | AH121: 0 | AI121: 0 | AJ121: 0 | AK121: 104822000 | AL121: 57 | AM121: MEDIANA
C122: Natural | D122: 76 | E122: VALLE DEL CAUCA | F122: 76520 | G122: PALMIRA | H122: 5619 | I122: ALOJAMIENTO Y SERVICIOS DE COMIDA | K122: Aprobado con subsidio | P122: 4914000 | Q122: 10 | R122: MICRO | V122: 0 | W122: 0 | X122: Jurídica | Y122: 5 | Z122: ANTIOQUIA | AA122: 5266 | AB122: ENVIGADO | AC122: 7020 | AD122: ACTIVIDADES PROFESIONALES, CIENTÍFICAS Y TÉCNICAS | AE122: 0 | AF122: Aprobado con subsidio | AG122: 0 | AH122: 0 | AI122: 0 | AJ122: 0 | AK122: 4212000 | AL122: 6 | AM122: MICRO
C123: Natural | D123: 76 | E123: VALLE DEL CAUCA | F123: 76001 | G123: CALI | H123: 4711 | I123: COMERCIO AL POR MAYOR Y AL POR MENOR; REPARACIÓN DE VEHÍCULOS AUTOMOTORES Y MOTOCICLETAS | K123: Aprobado con subsidio | P123: 28809000 | Q123: 11 | R123: PEQUEÑA | V123: 0 | W123: 0 | X123: Jurídica | Y123: 5 | Z123: ANTIOQUIA | AA123: 5266 | AB123: ENVIGADO | AC123: 1040 | AD123: INDUSTRIAS MANUFACTURERAS | AE123: 0 | AF123: Aprobado con subsidio | AG123: 0 | AH123: 0 | AI123: 0 | AJ123: 0 | AK123: 47795000 | AL123: 30 | AM123: PEQUEÑA
C124: Jurídica | D124: 11 | E124: BOGOTÁ, D.C. | F124: 11001 | G124: BOGOTÁ, D.C. | H124: 2392 | I124: INDUSTRIAS MANUFACTURERAS | K124: Aprobado con subsidio | P124: 2343641000 | Q124: 1249 | R124: MUY GRANDE | V124: 0 | W124: 0 | X124: Jurídica | Y124: 5 | Z124: ANTIOQUIA | AA124: 5001 | AB124: MEDELLÍN | AC124: 4530 | AD124: COMERCIO AL POR MAYOR Y AL POR MENOR; REPARACIÓN DE VEHÍCULOS AUTOMOTORES Y MOTOCICLETAS | AE124: 0 | AF124: Aprobado con subsidio | AG124: 0 | AH124: 0 | AI124: 0 | AJ124: 0 | AK124: 3159000 | AL124: 10 | AM124: MICRO
C125: Natural | D125: 47 | E125: MAGDALENA | F125: 47189 | G125: CIÉNAGA | H125: 1081 | I125: INDUSTRIAS MANUFACTURERAS | K125: Aprobado con subsidio | P125: 10122000 | Q125: 3 | R125: MICRO | V125: 0 | W125: 0 | X125: Jurídica | Y125: 5 | Z125: ANTIOQUIA | AA125: 5001 | AB125: MEDELLÍN | AC125: 4921 | AD125: TRANSPORTE Y ALMACENAMIENTO | AE125: 0 | AF125: Aprobado con subsidio | AG125: 0 | AH125: 0 | AI125: 0 | AJ125: 0 | AK125: 44091000 | AL125: 33 | AM125: PEQUEÑA
C126: Natural | D126: 68 | E126: SANTANDER | F126: 68077 | G126: BARBOSA | H126: 8513 | I126: EDUCACIÓN | K126: Rechazado a nivel aportante | P126: 0 | Q126: 6 | R126: MICRO | V126: 0 | W126: 0 | X126: Jurídica | Y126: 5 | Z126: ANTIOQUIA | AA126: 5088 | AB126: BELLO | AC126: 9491 | AD126: OTRAS ACTIVIDADES DE SERVICIOS | AE126: 0 | AF126: Aprobado con subsidio | AG126: 0 | AH126: 0 | AI126: 0 | AJ126: 0 | AK126: 14658000 | AL126: 6 | AM126: MICRO
C127: Natural | D127: 68 | E127: SANTANDER | F127: 68001 | G127: BUCARAMANGA | H127: 4663 | I127: COMERCIO AL POR MAYOR Y AL POR MENOR; REPARACIÓN DE VEHÍCULOS AUTOMOTORES Y MOTOCICLETAS | K127: Aprobado con subsidio | P127: 11232000 | Q127: 47 | R127: PEQUEÑA | V127: 0 | W127: 0 | X127: Natural | Y127: 5 | Z127: ANTIOQUIA | AA127: 5001 | AB127: MEDELLÍN | AC127: 1051 | AD127: INDUSTRIAS MANUFACTURERAS | AE127: 0 | AF127: Aprobado con subsidio | AG127: 0 | AH127: 0 | AI127: 0 | AJ127: 0 | AK127: 54822000 | AL127: 20 | AM127: PEQUEÑA
C128: Natural | D128: 68 | E128: SANTANDER | F128: 68276 | G128: FLORIDABLANCA | H128: 4663 | I128: COMERCIO AL POR MAYOR Y AL POR MENOR; REPARACIÓN DE VEHÍCULOS AUTOMOTORES Y MOTOCICLETAS | K128: Aprobado con subsidio | P128: 10530000 | Q128: 8 | R128: MICRO | V128: 0 | W128: 0 | X128: Jurídica | Y128: 5 | Z128: ANTIOQUIA | AA128: 5001 | AB128: MEDELLÍN | AC128: 1410 | AD128: INDUSTRIAS MANUFACTURERAS | AE128: 0 | AF128: Aprobado con subsidio | AG128: 0 | AH128: 0 | AI128: 0 | AJ128: 0 | AK128: 52199000 | AL128: 20 | AM128: PEQUEÑA
C129: Natural | D129: 68 | E129: SANTANDER | F129: 68276 | G129: FLORIDABLANCA | H129: 4752 | I129: COMERCIO AL POR MAYOR Y AL POR MENOR; REPARACIÓN DE VEHÍCULOS AUTOMOTORES Y MOTOCICLETAS | K129: Aprobado con subsidio | P129: 7723000 | Q129: 6 | R129: MICRO | V129: 0 | W129: 0 | X129: Natural | Y129: 5 | Z129: ANTIOQUIA | AA129: 5045 | AB129: APARTADÓ | AC129: 4542 | AD129: COMERCIO AL POR MAYOR Y AL POR MENOR; REPARACIÓN DE VEHÍCULOS AUTOMOTORES Y MOTOCICLETAS | AE129: 0 | AF129: Aprobado con subsidio | AG129: 0 | AH129: 0 | AI129: 0 | AJ129: 0 | AK129: 54618000 | AL129: 13 | AM129: PEQUEÑA
C130: Natural | D130: 54 | E130: NORTE DE SANTANDER | F130: 54261 | G130: EL ZULIA | H130: 5611 | I130: ALOJAMIENTO Y SERVICIOS DE COMIDA | K130: Aprobado con subsidio | P130: 16239000 | Q130: 7 | R130: MICRO | V130: 0 | W130: 0 | X130: Jurídica | Y130: 5 | Z130: ANTIOQUIA | AA130: 5001 | AB130: MEDELLÍN | AC130: 4690 | AD130: COMERCIO AL POR MAYOR Y AL POR MENOR; REPARACIÓN DE VEHÍCULOS AUTOMOTORES Y MOTOCICLETAS | AE130: 0 | AF130: Aprobado con subsidio | AG130: 0 | AH130: 0 | AI130: 0 | AJ130: 0 | AK130: 37206000 | AL130: 122 | AM130: MEDIANA
C131: Natural | D131: 66 | E131: RISARALDA | F131: 66001 | G131: PEREIRA | H131: 4759 | I131: COMERCIO AL POR MAYOR Y AL POR MENOR; REPARACIÓN DE VEHÍCULOS AUTOMOTORES Y MOTOCICLETAS | K131: Aprobado con subsidio | P131: 31135000 | Q131: 9 | R131: MICRO | V131: 0 | W131: 0 | X131: Jurídica | Y131: 5 | Z131: ANTIOQUIA | AA131: 5001 | AB131: MEDELLÍN | AC131: 8010 | AD131: ACTIVIDADES DE SERVICIOS ADMINISTRATIVOS Y DE APOYO | AE131: 0 | AF131: Aprobado con subsidio | AG131: 0 | AH131: 0 | AI131: 0 | AJ131: 0 | AK131: 25538000 | AL131: 25 | AM131: PEQUEÑA
C132: Natural | D132: 76 | E132: VALLE DEL CAUCA | F132: 76001 | G132: CALI | H132: 4789 | I132: COMERCIO AL POR MAYOR Y AL POR MENOR; REPARACIÓN DE VEHÍCULOS AUTOMOTORES Y MOTOCICLETAS | K132: Aprobado con subsidio | P132: 2106000 | Q132: 4 | R132: MICRO | V132: 0 | W132: 0 | X132: Jurídica | Y132: 5 | Z132: ANTIOQUIA | AA132: 5001 | AB132: MEDELLÍN | AC132: 4690 | AD132: COMERCIO AL POR MAYOR Y AL POR MENOR; REPARACIÓN DE VEHÍCULOS AUTOMOTORES Y MOTOCICLETAS | AE132: 0 | AF132: Aprobado con subsidio | AG132: 0 | AH132: 0 | AI132: 0 | AJ132: 0 | AK132: 51565000 | AL132: 26 | AM132: PEQUEÑA
C133: Natural | D133: 19 | E133: CAUCA | F133: 19573 | G133: PUERTO TEJADA | H133: 4711 | I133: COMERCIO AL POR MAYOR Y AL POR MENOR; REPARACIÓN DE VEHÍCULOS AUTOMOTORES Y MOTOCICLETAS | K133: Aprobado con subsidio | P133: 5616000 | Q133: 4 | R133: MICRO | V133: 0 | W133: 0 | X133: Jurídica | Y133: 5 | Z133: ANTIOQUIA | AA133: 5001 | AB133: MEDELLÍN | AC133: 4731 | AD133: COMERCIO AL POR MAYOR Y AL POR MENOR; REPARACIÓN DE VEHÍCULOS AUTOMOTORES Y MOTOCICLETAS | AE133: 0 | AF133: Aprobado con subsidio | AG133: 0 | AH133: 0 | AI133: 0 | AJ133: 0 | AK133: 24395000 | AL133: 16 | AM133: PEQUEÑA
C134: Natural | D134: 15 | E134: BOYACÁ | F134: 15001 | G134: TUNJA | H134: 1081 | I134: INDUSTRIAS MANUFACTURERAS | K134: Aprobado con subsidio | P134: 94972000 | Q134: 39 | R134: PEQUEÑA | V134: 0 | W134: 0 | X134: Jurídica | Y134: 5 | Z134: ANTIOQUIA | AA134: 5001 | AB134: MEDELLÍN | AC134: 10 | AD134: OTRAS | AE134: 0 | AF134: Aprobado con subsidio | AG134: 0 | AH134: 0 | AI134: 0 | AJ134: 0 | AK134: 12636000 | AL134: 26 | AM134: PEQUEÑA
C135: Natural | D135: 15 | E135: BOYACÁ | F135: 15001 | G135: TUNJA | H135: 4711 | I135: COMERCIO AL POR MAYOR Y AL POR MENOR; REPARACIÓN DE VEHÍCULOS AUTOMOTORES Y MOTOCICLETAS | K135: Aprobado con subsidio | P135: 5301000 | Q135: 3 | R135: MICRO | V135: 0 | W135: 0 | X135: Jurídica | Y135: 5 | Z135: ANTIOQUIA | AA135: 5001 | AB135: MEDELLÍN | AC135: 7310 | AD135: ACTIVIDADES PROFESIONALES, CIENTÍFICAS Y TÉCNICAS | AE135: 0 | AF135: Aprobado con subsidio | AG135: 0 | AH135: 0 | AI135: 0 | AJ135: 0 | AK135: 1053000 | AL135: 3 | AM135: MICRO
C136: Natural | D136: 66 | E136: RISARALDA | F136: 66001 | G136: PEREIRA | H136: 5611 | I136: ALOJAMIENTO Y SERVICIOS DE COMIDA | K136: Aprobado con subsidio | P136: 95834000 | Q136: 38 | R136: PEQUEÑA | V136: 0 | W136: 0 | X136: Jurídica | Y136: 5 | Z136: ANTIOQUIA | AA136: 5001 | AB136: MEDELLÍN | AC136: 4290 | AD136: CONSTRUCCIÓN | AE136: 0 | AF136: Aprobado con subsidio | AG136: 0 | AH136: 0 | AI136: 0 | AJ136: 0 | AK136: 98035000 | AL136: 31 | AM136: PEQUEÑA
C137: Natural | D137: 5 | E137: ANTIOQUIA | F137: 5001 | G137: MEDELLÍN | H137: 5611 | I137: ALOJAMIENTO Y SERVICIOS DE COMIDA | K137: Aprobado con subsidio | P137: 53020000 | Q137: 12 | R137: PEQUEÑA | V137: 0 | W137: 0 | X137: Jurídica | Y137: 5 | Z137: ANTIOQUIA | AA137: 5001 | AB137: MEDELLÍN | AC137: 4290 | AD137: CONSTRUCCIÓN | AE137: 0 | AF137: Aprobado con subsidio | AG137: 0 | AH137: 0 | AI137: 0 | AJ137: 0 | AK137: 3510000 | AL137: 6 | AM137: MICRO
C138: Natural | D138: 76 | E138: VALLE DEL CAUCA | F138: 76001 | G138: CALI | H138: 1399 | I138: INDUSTRIAS MANUFACTURERAS | K138: Aprobado con subsidio | P138: 8424000 | Q138: 6 | R138: MICRO | V138: 0 | W138: 0 | X138: Jurídica | Y138: 5 | Z138: ANTIOQUIA | AA138: 5001 | AB138: MEDELLÍN | AC138: 4774 | AD138: COMERCIO AL POR MAYOR Y AL POR MENOR; REPARACIÓN DE VEHÍCULOS AUTOMOTORES Y MOTOCICLETAS | AE138: 0 | AF138: Aprobado con subsidio | AG138: 0 | AH138: 0 | AI138: 0 | AJ138: 0 | AK138: 3686000 | AL138: 2 | AM138: MICRO
C139: Natural | D139: 15 | E139: BOYACÁ | F139: 15759 | G139: SOGAMOSO | H139: 1081 | I139: INDUSTRIAS MANUFACTURERAS | K139: Aprobado con subsidio | P139: 32025000 | Q139: 9 | R139: MICRO | V139: 0 | W139: 0 | X139: Jurídica | Y139: 5 | Z139: ANTIOQUIA | AA139: 5001 | AB139: MEDELLÍN | AC139: 6621 | AD139: ACTIVIDADES FINANCIERAS Y DE SEGUROS | AE139: 0 | AF139: Aprobado con subsidio | AG139: 0 | AH139: 0 | AI139: 0 | AJ139: 0 | AK139: 18895000 | AL139: 7 | AM139: MICRO
C140: Natural | D140: 73 | E140: TOLIMA | F140: 73001 | G140: IBAGUÉ | H140: 5611 | I140: ALOJAMIENTO Y SERVICIOS DE COMIDA | K140: Rechazado a nivel aportante | P140: 0 | Q140: 0 | R140: $null$ | V140: 0 | W140: 0 | X140: Jurídica | Y140: 5 | Z140: ANTIOQUIA | AA140: 5001 | AB140: MEDELLÍN | AC140: 4520 | AD140: COMERCIO AL POR MAYOR Y AL POR MENOR; REPARACIÓN DE VEHÍCULOS AUTOMOTORES Y MOTOCICLETAS | AE140: 0 | AF140: Aprobado con subsidio | AG140: 0 | AH140: 0 | AI140: 0 | AJ140: 0 | AK140: 5616000 | AL140: 4 | AM140: MICRO
C141: Natural | D141: 66 | E141: RISARALDA | F141: 66001 | G141: PEREIRA | H141: 144 | I141: AGRICULTURA, GANADERÍA, CAZA, SILVICULTURA Y PESCA | K141: Rechazado a nivel aportante | P141: 0 | Q141: 12 | R141: PEQUEÑA | V141: 0 | W141: 0 | X141: Jurídica | Y141: 5 | Z141: ANTIOQUIA | AA141: 5360 | AB141: ITAGUI | AC141: 4641 | AD141: COMERCIO AL POR MAYOR Y AL POR MENOR; REPARACIÓN DE VEHÍCULOS AUTOMOTORES Y MOTOCICLETAS | AE141: 0 | AF141: Aprobado con subsidio | AG141: 0 | AH141: 0 | AI141: 0 | AJ141: 0 | AK141: 18070000 | AL141: 5 | AM141: MICRO
C142: Jurídica | D142: 25 | E142: CUNDINAMARCA | F142: 25473 | G142: MOSQUERA | H142: 4530 | I142: COMERCIO AL POR MAYOR Y AL POR MENOR; REPARACIÓN DE VEHÍCULOS AUTOMOTORES Y MOTOCICLETAS | K142: Aprobado con subsidio | P142: 29133000 | Q142: 33 | R142: PEQUEÑA | V142: 0 | W142: 0 | X142: Jurídica | Y142: 5 | Z142: ANTIOQUIA | AA142: 5088 | AB142: BELLO | AC142: 2229 | AD142: INDUSTRIAS MANUFACTURERAS | AE142: 0 | AF142: Aprobado con subsidio | AG142: 0 | AH142: 0 | AI142: 0 | AJ142: 0 | AK142: 5271000 | AL142: 7 | AM142: MICRO
C143: Natural | D143: 41 | E143: HUILA | F143: 41551 | G143: PITALITO | H143: 8692 | I143: ACTIVIDADES DE ATENCIÓN DE LA SALUD HUMANA Y DE ASISTENCIA SOCIAL | K143: Rechazado a nivel aportante | P143: 0 | Q143: 3 | R143: MICRO | V143: 0 | W143: 0 | X143: Jurídica | Y143: 5 | Z143: ANTIOQUIA | AA143: 5001 | AB143: MEDELLÍN | AC143: 8230 | AD143: ACTIVIDADES DE SERVICIOS ADMINISTRATIVOS Y DE APOYO | AE143: 0 | AF143: Aprobado con subsidio | AG143: 0 | AH143: 0 | AI143: 0 | AJ143: 0 | AK143: 19660000 | AL143: 7 | AM143: MICRO
C144: Natural | D144: 52 | E144: NARIÑO | F144: 52001 | G144: PASTO | H144: 5611 | I144: ALOJAMIENTO Y SERVICIOS DE COMIDA | K144: Aprobado con subsidio | P144: 54200000 | Q144: 30 | R144: PEQUEÑA | V144: 0 | W144: 0 | X144: Jurídica | Y144: 5 | Z144: ANTIOQUIA | AA144: 5001 | AB144: MEDELLÍN | AC144: 7020 | AD144: ACTIVIDADES PROFESIONALES, CIENTÍFICAS Y TÉCNICAS | AE144: 0 | AF144: Aprobado con subsidio | AG144: 0 | AH144: 0 | AI144: 0 | AJ144: 0 | AK144: 13428000 | AL144: 12 | AM144: PEQUEÑA
C145: Natural | D145: 76 | E145: VALLE DEL CAUCA | F145: 76147 | G145: CARTAGO | H145: 4731 | I145: COMERCIO AL POR MAYOR Y AL POR MENOR; REPARACIÓN DE VEHÍCULOS AUTOMOTORES Y MOTOCICLETAS | K145: Aprobado con subsidio | P145: 17901000 | Q145: 19 | R145: PEQUEÑA | V145: 0 | W145: 0 | X145: Jurídica | Y145: 5 | Z145: ANTIOQUIA | AA145: 5001 | AB145: MEDELLÍN | AC145: 7110 | AD145: ACTIVIDADES PROFESIONALES, CIENTÍFICAS Y TÉCNICAS | AE145: 0 | AF145: Aprobado con subsidio | AG145: 0 | AH145: 0 | AI145: 0 | AJ145: 0 | AK145: 4212000 | AL145: 13 | AM145: PEQUEÑA
C146: Natural | D146: 66 | E146: RISARALDA | F146: 66170 | G146: DOSQUEBRADAS | H146: 1709 | I146: INDUSTRIAS MANUFACTURERAS | K146: Aprobado con subsidio | P146: 12461000 | Q146: 8 | R146: MICRO | V146: 0 | W146: 0 | X146: Jurídica | Y146: 5 | Z146: ANTIOQUIA | AA146: 5001 | AB146: MEDELLÍN | AC146: 7010 | AD146: ACTIVIDADES PROFESIONALES, CIENTÍFICAS Y TÉCNICAS | AE146: 0 | AF146: Aprobado con subsidio | AG146: 0 | AH146: 0 | AI146: 0 | AJ146: 0 | AK146: 21764000 | AL146: 12 | AM146: PEQUEÑA
C147: Natural | D147: 11 | E147: BOGOTÁ, D.C. | F147: 11001 | G147: BOGOTÁ, D.C. | H147: 5611 | I147: ALOJAMIENTO Y SERVICIOS DE COMIDA | K147: Aprobado con subsidio | P147: 68371000 | Q147: 20 | R147: PEQUEÑA | V147: 0 | W147: 0 | X147: Jurídica | Y147: 5 | Z147: ANTIOQUIA | AA147: 5360 | AB147: ITAGUI | AC147: 8621 | AD147: ACTIVIDADES DE ATENCIÓN DE LA SALUD HUMANA Y DE ASISTENCIA SOCIAL | AE147: 0 | AF147: Aprobado con subsidio | AG147: 0 | AH147: 0 | AI147: 0 | AJ147: 0 | AK147: 28437000 | AL147: 20 | AM147: PEQUEÑA
C148: Natural | D148: 63 | E148: QUINDÍO | F148: 63001 | G148: ARMENIA | H148: 4330 | I148: CONSTRUCCIÓN | K148: Rechazado a nivel aportante | P148: 0 | Q148: 27 | R148: PEQUEÑA | V148: 0 | W148: 0 | X148: Jurídica | Y148: 5 | Z148: ANTIOQUIA | AA148: 5001 | AB148: MEDELLÍN | AC148: 5611 | AD148: ALOJAMIENTO Y SERVICIOS DE COMIDA | AE148: 0 | AF148: Aprobado con subsidio | AG148: 0 | AH148: 0 | AI148: 0 | AJ148: 0 | AK148: 11006000 | AL148: 3 | AM148: MICRO
C149: Natural | D149: 66 | E149: RISARALDA | F149: 66001 | G149: PEREIRA | H149: 1081 | I149: INDUSTRIAS MANUFACTURERAS | K149: Aprobado con subsidio | P149: 140830000 | Q149: 45 | R149: PEQUEÑA | V149: 0 | W149: 0 | X149: Jurídica | Y149: 5 | Z149: ANTIOQUIA | AA149: 5631 | AB149: SABANETA | AC149: 7730 | AD149: ACTIVIDADES DE SERVICIOS ADMINISTRATIVOS Y DE APOYO | AE149: 0 | AF149: Aprobado con subsidio | AG149: 0 | AH149: 0 | AI149: 0 | AJ149: 0 | AK149: 14231000 | AL149: 4 | AM149: MICRO
C150: Natural | D150: 66 | E150: RISARALDA | F150: 66170 | G150: DOSQUEBRADAS | H150: 5530 | I150: ALOJAMIENTO Y SERVICIOS DE COMIDA | K150: Aprobado con subsidio | P150: 33978000 | Q150: 9 | R150: MICRO | V150: 0 | W150: 0 | X150: Natural | Y150: 5 | Z150: ANTIOQUIA | AA150: 5088 | AB150: BELLO | AC150: 1410 | AD150: INDUSTRIAS MANUFACTURERAS | AE150: 0 | AF150: Aprobado con subsidio | AG150: 0 | AH150: 0 | AI150: 0 | AJ150: 0 | AK150: 4212000 | AL150: 4 | AM150: MICRO
C151: Natural | D151: 76 | E151: VALLE DEL CAUCA | F151: 76001 | G151: CALI | H151: 4754 | I151: COMERCIO AL POR MAYOR Y AL POR MENOR; REPARACIÓN DE VEHÍCULOS AUTOMOTORES Y MOTOCICLETAS | K151: Aprobado con subsidio | P151: 2106000 | Q151: 3 | R151: MICRO | V151: 0 | W151: 0 | X151: Jurídica | Y151: 5 | Z151: ANTIOQUIA | AA151: 5001 | AB151: MEDELLÍN | AC151: 4290 | AD151: CONSTRUCCIÓN | AE151: 0 | AF151: Aprobado con subsidio | AG151: 0 | AH151: 0 | AI151: 0 | AJ151: 0 | AK151: 73494000 | AL151: 24 | AM151: PEQUEÑA
C152: Natural | D152: 66 | E152: RISARALDA | F152: 66001 | G152: PEREIRA | H152: 4530 | I152: COMERCIO AL POR MAYOR Y AL POR MENOR; REPARACIÓN DE VEHÍCULOS AUTOMOTORES Y MOTOCICLETAS | K152: Aprobado con subsidio | P152: 11910000 | Q152: 5 | R152: MICRO | V152: 0 | W152: 0 | X152: Jurídica | Y152: 5 | Z152: ANTIOQUIA | AA152: 5001 | AB152: MEDELLÍN | AC152: 6910 | AD152: ACTIVIDADES PROFESIONALES, CIENTÍFICAS Y TÉCNICAS | AE152: 0 | AF152: Aprobado con subsidio | AG152: 0 | AH152: 0 | AI152: 0 | AJ152: 0 | AK152: 14040000 | AL152: 11 | AM152: PEQUEÑA
C153: Natural | D153: 66 | E153: RISARALDA | F153: 66001 | G153: PEREIRA | H153: 7730 | I153: ACTIVIDADES DE SERVICIOS ADMINISTRATIVOS Y DE APOYO | K153: Aprobado con subsidio | P153: 6318000 | Q153: 3 | R153: MICRO | V153: 0 | W153: 0 | X153: Jurídica | Y153: 5 | Z153: ANTIOQUIA | AA153: 5001 | AB153: MEDELLÍN | AC153: 4520 | AD153: COMERCIO AL POR MAYOR Y AL POR MENOR; REPARACIÓN DE VEHÍCULOS AUTOMOTORES Y MOTOCICLETAS | AE153: 0 | AF153: Aprobado con subsidio | AG153: 0 | AH153: 0 | AI153: 0 | AJ153: 0 | AK153: 17269000 | AL153: 6 | AM153: MICRO
C154: Natural | D154: 76 | E154: VALLE DEL CAUCA | F154: 76834 | G154: TULUÁ | H154: 5611 | I154: ALOJAMIENTO Y SERVICIOS DE COMIDA | K154: Aprobado con subsidio | P154: 3510000 | Q154: 5 | R154: MICRO | V154: 0 | W154: 0 | X154: Jurídica | Y154: 5 | Z154: ANTIOQUIA | AA154: 5001 | AB154: MEDELLÍN | AC154: 4771 | AD154: COMERCIO AL POR MAYOR Y AL POR MENOR; REPARACIÓN DE VEHÍCULOS AUTOMOTORES Y MOTOCICLETAS | AE154: 0 | AF154: Aprobado con subsidio | AG154: 0 | AH154: 0 | AI154: 0 | AJ154: 0 | AK154: 10180000 | AL154: 4 | AM154: MICRO
C155: Natural | D155: 5 | E155: ANTIOQUIA | F155: 5001 | G155: MEDELLÍN | H155: 4520 | I155: COMERCIO AL POR MAYOR Y AL POR MENOR; REPARACIÓN DE VEHÍCULOS AUTOMOTORES Y MOTOCICLETAS | K155: Aprobado con subsidio | P155: 17151000 | Q155: 4 | R155: MICRO | V155: 0 | W155: 0 | X155: Jurídica | Y155: 5 | Z155: ANTIOQUIA | AA155: 5360 | AB155: ITAGUI | AC155: 1523 | AD155: INDUSTRIAS MANUFACTURERAS | AE155: 0 | AF155: Aprobado con subsidio | AG155: 0 | AH155: 0 | AI155: 0 | AJ155: 0 | AK155: 5616000 | AL155: 16 | AM155: PEQUEÑA
C156: Natural | D156: 11 | E156: BOGOTÁ, D.C. | F156: 11001 | G156: BOGOTÁ, D.C. | H156: 1081 | I156: INDUSTRIAS MANUFACTURERAS | K156: Aprobado con subsidio | P156: 4648000 | Q156: 4 | R156: MICRO | V156: 0 | W156: 0 | X156: Jurídica | Y156: 5 | Z156: ANTIOQUIA | AA156: 5045 | AB156: APARTADÓ | AC156: 4741 | AD156: COMERCIO AL POR MAYOR Y AL POR MENOR; REPARACIÓN DE VEHÍCULOS AUTOMOTORES Y MOTOCICLETAS | AE156: 0 | AF156: Aprobado con subsidio | AG156: 0 | AH156: 0 | AI156: 0 | AJ156: 0 | AK156: 69217000 | AL156: 32 | AM156: PEQUEÑA
C157: Natural | D157: 11 | E157: BOGOTÁ, D.C. | F157: 11001 | G157: BOGOTÁ, D.C. | H157: 4772 | I157: COMERCIO AL POR MAYOR Y AL POR MENOR; REPARACIÓN DE VEHÍCULOS AUTOMOTORES Y MOTOCICLETAS | K157: Aprobado con subsidio | P157: 5616000 | Q157: 4 | R157: MICRO | V157: 0 | W157: 0 | X157: Natural | Y157: 5 | Z157: ANTIOQUIA | AA157: 5147 | AB157: CAREPA | AC157: 4724 | AD157: COMERCIO AL POR MAYOR Y AL POR MENOR; REPARACIÓN DE VEHÍCULOS AUTOMOTORES Y MOTOCICLETAS | AE157: 0 | AF157: Aprobado con subsidio | AG157: 0 | AH157: 0 | AI157: 0 | AJ157: 0 | AK157: 16684000 | AL157: 4 | AM157: MICRO
C158: Natural | D158: 66 | E158: RISARALDA | F158: 66400 | G158: LA VIRGINIA | H158: 6910 | I158: ACTIVIDADES PROFESIONALES, CIENTÍFICAS Y TÉCNICAS | K158: Rechazado a nivel aportante | P158: 0 | Q158: 5 | R158: MICRO | V158: 0 | W158: 0 | X158: Jurídica | Y158: 5 | Z158: ANTIOQUIA | AA158: 5129 | AB158: CALDAS | AC158: 4659 | AD158: COMERCIO AL POR MAYOR Y AL POR MENOR; REPARACIÓN DE VEHÍCULOS AUTOMOTORES Y MOTOCICLETAS | AE158: 0 | AF158: Aprobado con subsidio | AG158: 0 | AH158: 0 | AI158: 0 | AJ158: 0 | AK158: 17647000 | AL158: 11 | AM158: PEQUEÑA
C159: Natural | D159: 17 | E159: CALDAS | F159: 17001 | G159: MANIZALES | H159: 4112 | I159: CONSTRUCCIÓN | K159: Rechazado a nivel aportante | P159: 0 | Q159: 26 | R159: PEQUEÑA | V159: 0 | W159: 0 | X159: Jurídica | Y159: 5 | Z159: ANTIOQUIA | AA159: 5615 | AB159: RIONEGRO | AC159: 125 | AD159: AGRICULTURA, GANADERÍA, CAZA, SILVICULTURA Y PESCA | AE159: 0 | AF159: Aprobado con subsidio | AG159: 0 | AH159: 0 | AI159: 0 | AJ159: 0 | AK159: 64584000 | AL159: 258 | AM159: GRANDE
C160: Natural | D160: 76 | E160: VALLE DEL CAUCA | F160: 76001 | G160: CALI | H160: 4773 | I160: COMERCIO AL POR MAYOR Y AL POR MENOR; REPARACIÓN DE VEHÍCULOS AUTOMOTORES Y MOTOCICLETAS | K160: Aprobado con subsidio | P160: 53096000 | Q160: 28 | R160: PEQUEÑA | V160: 0 | W160: 0 | X160: Jurídica | Y160: 5 | Z160: ANTIOQUIA | AA160: 5266 | AB160: ENVIGADO | AC160: 4330 | AD160: CONSTRUCCIÓN | AE160: 0 | AF160: Aprobado con subsidio | AG160: 0 | AH160: 0 | AI160: 0 | AJ160: 0 | AK160: 30537000 | AL160: 23 | AM160: PEQUEÑA
C161: Natural | D161: 11 | E161: BOGOTÁ, D.C. | F161: 11001 | G161: BOGOTÁ, D.C. | H161: 4530 | I161: COMERCIO AL POR MAYOR Y AL POR MENOR; REPARACIÓN DE VEHÍCULOS AUTOMOTORES Y MOTOCICLETAS | K161: Aprobado con subsidio | P161: 3861000 | Q161: 5 | R161: MICRO | V161: 0 | W161: 0 | X161: Natural | Y161: 5 | Z161: ANTIOQUIA | AA161: 5034 | AB161: ANDES | AC161: 7420 | AD161: ACTIVIDADES PROFESIONALES, CIENTÍFICAS Y TÉCNICAS | AE161: 0 | AF161: Aprobado con subsidio | AG161: 0 | AH161: 0 | AI161: 0 | AJ161: 0 | AK161: 12941000 | AL161: 3 | AM161: MICRO
C162: Natural | D162: 5 | E162: ANTIOQUIA | F162: 5360 | G162: ITAGUI | H162: 5619 | I162: ALOJAMIENTO Y SERVICIOS DE COMIDA | K162: Rechazado a nivel aportante | P162: 0 | Q162: 0 | R162: $null$ | V162: 0 | W162: 0 | X162: Natural | Y162: 5 | Z162: ANTIOQUIA | AA162: 5001 | AB162: MEDELLÍN | AC162: 5611 | AD162: ALOJAMIENTO Y SERVICIOS DE COMIDA | AE162: 0 | AF162: Aprobado con subsidio | AG162: 0 | AH162: 0 | AI162: 0 | AJ162: 0 | AK162: 18088000 | AL162: 4 | AM162: MICRO
C163: Natural | D163: 41 | E163: HUILA | F163: 41001 | G163: NEIVA | H163: 1081 | I163: INDUSTRIAS MANUFACTURERAS | K163: Aprobado con subsidio | P163: 8552000 | Q163: 3 | R163: MICRO | V163: 0 | W163: 0 | X163: Jurídica | Y163: 5 | Z163: ANTIOQUIA | AA163: 5001 | AB163: MEDELLÍN | AC163: 2392 | AD163: INDUSTRIAS MANUFACTURERAS | AE163: 0 | AF163: Aprobado con subsidio | AG163: 0 | AH163: 0 | AI163: 0 | AJ163: 0 | AK163: 77922000 | AL163: 120 | AM163: MEDIANA
C164: Natural | D164: 5 | E164: ANTIOQUIA | F164: 5001 | G164: MEDELLÍN | H164: 5611 | I164: ALOJAMIENTO Y SERVICIOS DE COMIDA | K164: Aprobado con subsidio | P164: 24557000 | Q164: 8 | R164: MICRO | V164: 0 | W164: 0 | X164: Jurídica | Y164: 5 | Z164: ANTIOQUIA | AA164: 5045 | AB164: APARTADÓ | AC164: 2030 | AD164: INDUSTRIAS MANUFACTURERAS | AE164: 0 | AF164: Aprobado con subsidio | AG164: 0 | AH164: 0 | AI164: 0 | AJ164: 0 | AK164: 45578000 | AL164: 22 | AM164: PEQUEÑA
C165: Natural | D165: 5 | E165: ANTIOQUIA | F165: 5001 | G165: MEDELLÍN | H165: 5619 | I165: ALOJAMIENTO Y SERVICIOS DE COMIDA | K165: Aprobado con subsidio | P165: 13436000 | Q165: 5 | R165: MICRO | V165: 0 | W165: 0 | X165: Jurídica | Y165: 5 | Z165: ANTIOQUIA | AA165: 5001 | AB165: MEDELLÍN | AC165: 4652 | AD165: COMERCIO AL POR MAYOR Y AL POR MENOR; REPARACIÓN DE VEHÍCULOS AUTOMOTORES Y MOTOCICLETAS | AE165: 0 | AF165: Aprobado con subsidio | AG165: 0 | AH165: 0 | AI165: 0 | AJ165: 0 | AK165: 20007000 | AL165: 19 | AM165: PEQUEÑA
C166: Natural | D166: 15 | E166: BOYACÁ | F166: 15001 | G166: TUNJA | H166: 5611 | I166: ALOJAMIENTO Y SERVICIOS DE COMIDA | K166: Aprobado con subsidio | P166: 12552000 | Q166: 8 | R166: MICRO | V166: 0 | W166: 0 | X166: Jurídica | Y166: 5 | Z166: ANTIOQUIA | AA166: 5001 | AB166: MEDELLÍN | AC166: 4312 | AD166: CONSTRUCCIÓN | AE166: 0 | AF166: Aprobado con subsidio | AG166: 0 | AH166: 0 | AI166: 0 | AJ166: 0 | AK166: 32994000 | AL166: 44 | AM166: PEQUEÑA
C167: Natural | D167: 19 | E167: CAUCA | F167: 19001 | G167: POPAYÁN | H167: 4754 | I167: COMERCIO AL POR MAYOR Y AL POR MENOR; REPARACIÓN DE VEHÍCULOS AUTOMOTORES Y MOTOCICLETAS | K167: Aprobado con subsidio | P167: 5616000 | Q167: 4 | R167: MICRO | V167: 0 | W167: 0 | X167: Jurídica | Y167: 5 | Z167: ANTIOQUIA | AA167: 5631 | AB167: SABANETA | AC167: 144 | AD167: AGRICULTURA, GANADERÍA, CAZA, SILVICULTURA Y PESCA | AE167: 0 | AF167: Aprobado con subsidio | AG167: 0 | AH167: 0 | AI167: 0 | AJ167: 0 | AK167: 37908000 | AL167: 118 | AM167: MEDIANA
C168: Natural | D168: 19 | E168: CAUCA | F168: 19001 | G168: POPAYÁN | H168: 5611 | I168: ALOJAMIENTO Y SERVICIOS DE COMIDA | K168: Aprobado con subsidio | P168: 1404000 | Q168: 4 | R168: MICRO | V168: 0 | W168: 0 | X168: Jurídica | Y168: 5 | Z168: ANTIOQUIA | AA168: 5001 | AB168: MEDELLÍN | AC168: 1410 | AD168: INDUSTRIAS MANUFACTURERAS | AE168: 0 | AF168: Aprobado con subsidio | AG168: 0 | AH168: 0 | AI168: 0 | AJ168: 0 | AK168: 61776000 | AL168: 61 | AM168: MEDIANA
C169: Natural | D169: 11 | E169: BOGOTÁ, D.C. | F169: 11001 | G169: BOGOTÁ, D.C. | H169: 8552 | I169: EDUCACIÓN | K169: Rechazado a nivel aportante | P169: 0 | Q169: 0 | R169: $null$ | V169: 0 | W169: 0 | X169: Jurídica | Y169: 5 | Z169: ANTIOQUIA | AA169: 5361 | AB169: ITUANGO | AC169: 6810 | AD169: ACTIVIDADES INMOBILIARIAS | AE169: 0 | AF169: Aprobado con subsidio | AG169: 0 | AH169: 0 | AI169: 0 | AJ169: 0 | AK169: 107238000 | AL169: 29 | AM169: PEQUEÑA
C170: Natural | D170: 47 | E170: MAGDALENA | F170: 47001 | G170: SANTA MARTA | H170: 4773 | I170: COMERCIO AL POR MAYOR Y AL POR MENOR; REPARACIÓN DE VEHÍCULOS AUTOMOTORES Y MOTOCICLETAS | K170: Aprobado con subsidio | P170: 10842000 | Q170: 3 | R170: MICRO | V170: 0 | W170: 0 | X170: Jurídica | Y170: 5 | Z170: ANTIOQUIA | AA170: 5059 | AB170: ARMENIA | AC170: 144 | AD170: AGRICULTURA, GANADERÍA, CAZA, SILVICULTURA Y PESCA | AE170: 0 | AF170: Aprobado con subsidio | AG170: 0 | AH170: 0 | AI170: 0 | AJ170: 0 | AK170: 5441000 | AL170: 4 | AM170: MICRO
C171: Natural | D171: 47 | E171: MAGDALENA | F171: 47001 | G171: SANTA MARTA | H171: 5611 | I171: ALOJAMIENTO Y SERVICIOS DE COMIDA | K171: Aprobado con subsidio | P171: 24844000 | Q171: 7 | R171: MICRO | V171: 0 | W171: 0 | X171: Jurídica | Y171: 5 | Z171: ANTIOQUIA | AA171: 5001 | AB171: MEDELLÍN | AC171: 9499 | AD171: OTRAS ACTIVIDADES DE SERVICIOS | AE171: 0 | AF171: Aprobado con subsidio | AG171: 0 | AH171: 0 | AI171: 0 | AJ171: 0 | AK171: 53043000 | AL171: 16 | AM171: PEQUEÑA
C172: Natural | D172: 66 | E172: RISARALDA | F172: 66001 | G172: PEREIRA | H172: 5612 | I172: ALOJAMIENTO Y SERVICIOS DE COMIDA | K172: Rechazado a nivel aportante | P172: 0 | Q172: 0 | R172: $null$ | V172: 0 | W172: 0 | X172: Jurídica | Y172: 5 | Z172: ANTIOQUIA | AA172: 5001 | AB172: MEDELLÍN | AC172: 6201 | AD172: INFORMACIÓN Y COMUNICACIONES | AE172: 0 | AF172: Aprobado con subsidio | AG172: 0 | AH172: 0 | AI172: 0 | AJ172: 0 | AK172: 50887000 | AL172: 50 | AM172: PEQUEÑA
C173: Natural | D173: 66 | E173: RISARALDA | F173: 66170 | G173: DOSQUEBRADAS | H173: 5611 | I173: ALOJAMIENTO Y SERVICIOS DE COMIDA | K173: Rechazado a nivel aportante | P173: 0 | Q173: 7 | R173: MICRO | V173: 0 | W173: 0 | X173: Natural | Y173: 5 | Z173: ANTIOQUIA | AA173: 5001 | AB173: MEDELLÍN | AC173: 8730 | AD173: ACTIVIDADES DE ATENCIÓN DE LA SALUD HUMANA Y DE ASISTENCIA SOCIAL | AE173: 0 | AF173: Aprobado con subsidio | AG173: 0 | AH173: 0 | AI173: 0 | AJ173: 0 | AK173: 13136000 | AL173: 12 | AM173: PEQUEÑA
C174: Natural | D174: 66 | E174: RISARALDA | F174: 66001 | G174: PEREIRA | H174: 5611 | I174: ALOJAMIENTO Y SERVICIOS DE COMIDA | K174: Rechazado a nivel aportante | P174: 0 | Q174: 4 | R174: MICRO | V174: 0 | W174: 0 | X174: Natural | Y174: 5 | Z174: ANTIOQUIA | AA174: 5001 | AB174: MEDELLÍN | AC174: 4520 | AD174: COMERCIO AL POR MAYOR Y AL POR MENOR; REPARACIÓN DE VEHÍCULOS AUTOMOTORES Y MOTOCICLETAS | AE174: 0 | AF174: Aprobado con subsidio | AG174: 0 | AH174: 0 | AI174: 0 | AJ174: 0 | AK174: 1053000 | AL174: 4 | AM174: MICRO
C175: Natural | D175: 54 | E175: NORTE DE SANTANDER | F175: 54001 | G175: CÚCUTA | H175: 4719 | I175: COMERCIO AL POR MAYOR Y AL POR MENOR; REPARACIÓN DE VEHÍCULOS AUTOMOTORES Y MOTOCICLETAS | K175: Aprobado con subsidio | P175: 16161000 | Q175: 5 | R175: MICRO | V175: 0 | W175: 0 | X175: Jurídica | Y175: 5 | Z175: ANTIOQUIA | AA175: 5360 | AB175: ITAGUI | AC175: 8129 | AD175: ACTIVIDADES DE SERVICIOS ADMINISTRATIVOS Y DE APOYO | AE175: 0 | AF175: Aprobado con subsidio | AG175: 0 | AH175: 0 | AI175: 0 | AJ175: 0 | AK175: 40197000 | AL175: 68 | AM175: MEDIANA
C176: Natural | D176: 54 | E176: NORTE DE SANTANDER | F176: 54001 | G176: CÚCUTA | H176: 1081 | I176: INDUSTRIAS MANUFACTURERAS | K176: Aprobado con subsidio | P176: 29133000 | Q176: 41 | R176: PEQUEÑA | V176: 0 | W176: 0 | X176: Jurídica | Y176: 5 | Z176: ANTIOQUIA | AA176: 5360 | AB176: ITAGUI | AC176: 4610 | AD176: COMERCIO AL POR MAYOR Y AL POR MENOR; REPARACIÓN DE VEHÍCULOS AUTOMOTORES Y MOTOCICLETAS | AE176: 0 | AF176: Aprobado con subsidio | AG176: 0 | AH176: 0 | AI176: 0 | AJ176: 0 | AK176: 702000 | AL176: 1 | AM176: MICRO
C177: Natural | D177: 66 | E177: RISARALDA | F177: 66682 | G177: SANTA ROSA DE CABAL | H177: 5613 | I177: ALOJAMIENTO Y SERVICIOS DE COMIDA | K177: Aprobado con subsidio | P177: 14837000 | Q177: 9 | R177: MICRO | V177: 0 | W177: 0 | X177: Jurídica | Y177: 5 | Z177: ANTIOQUIA | AA177: 5001 | AB177: MEDELLÍN | AC177: 4111 | AD177: CONSTRUCCIÓN | AE177: 0 | AF177: Aprobado con subsidio | AG177: 0 | AH177: 0 | AI177: 0 | AJ177: 0 | AK177: 79958000 | AL177: 24 | AM177: PEQUEÑA
C178: Natural | D178: 63 | E178: QUINDÍO | F178: 63001 | G178: ARMENIA | H178: 4771 | I178: COMERCIO AL POR MAYOR Y AL POR MENOR; REPARACIÓN DE VEHÍCULOS AUTOMOTORES Y MOTOCICLETAS | K178: Aprobado con subsidio | P178: 5616000 | Q178: 0 | R178: MICRO | V178: 0 | W178: 0 | X178: Jurídica | Y178: 5 | Z178: ANTIOQUIA | AA178: 5129 | AB178: CALDAS | AC178: 1311 | AD178: INDUSTRIAS MANUFACTURERAS | AE178: 0 | AF178: Aprobado con subsidio | AG178: 0 | AH178: 0 | AI178: 0 | AJ178: 0 | AK178: 7020000 | AL178: 12 | AM178: PEQUEÑA
C179: Natural | D179: 68 | E179: SANTANDER | F179: 68001 | G179: BUCARAMANGA | H179: 4643 | I179: COMERCIO AL POR MAYOR Y AL POR MENOR; REPARACIÓN DE VEHÍCULOS AUTOMOTORES Y MOTOCICLETAS | K179: Rechazado a nivel aportante | P179: 0 | Q179: 0 | R179: $null$ | V179: 0 | W179: 0 | X179: Jurídica | Y179: 5 | Z179: ANTIOQUIA | AA179: 5631 | AB179: SABANETA | AC179: 1089 | AD179: INDUSTRIAS MANUFACTURERAS | AE179: 0 | AF179: Aprobado con subsidio | AG179: 0 | AH179: 0 | AI179: 0 | AJ179: 0 | AK179: 56166000 | AL179: 42 | AM179: PEQUEÑA
C180: Natural | D180: 68 | E180: SANTANDER | F180: 68549 | G180: PINCHOTE | H180: 5511 | I180: ALOJAMIENTO Y SERVICIOS DE COMIDA | K180: Rechazado a nivel aportante | P180: 0 | Q180: 6 | R180: MICRO | V180: 0 | W180: 0 | X180: Natural | Y180: 5 | Z180: ANTIOQUIA | AA180: 5667 | AB180: SAN RAFAEL | AC180: 4923 | AD180: TRANSPORTE Y ALMACENAMIENTO | AE180: 0 | AF180: Aprobado con subsidio | AG180: 0 | AH180: 0 | AI180: 0 | AJ180: 0 | AK180: 37266000 | AL180: 12 | AM180: PEQUEÑA
C181: Natural | D181: 63 | E181: QUINDÍO | F181: 63001 | G181: ARMENIA | H181: 1081 | I181: INDUSTRIAS MANUFACTURERAS | K181: Aprobado con subsidio | P181: 16146000 | Q181: 15 | R181: PEQUEÑA | V181: 0 | W181: 0 | X181: Jurídica | Y181: 5 | Z181: ANTIOQUIA | AA181: 5360 | AB181: ITAGUI | AC181: 4752 | AD181: COMERCIO AL POR MAYOR Y AL POR MENOR; REPARACIÓN DE VEHÍCULOS AUTOMOTORES Y MOTOCICLETAS | AE181: 0 | AF181: Aprobado con subsidio | AG181: 0 | AH181: 0 | AI181: 0 | AJ181: 0 | AK181: 20008000 | AL181: 16 | AM181: PEQUEÑA
C182: Natural | D182: 73 | E182: TOLIMA | F182: 73001 | G182: IBAGUÉ | H182: 4723 | I182: COMERCIO AL POR MAYOR Y AL POR MENOR; REPARACIÓN DE VEHÍCULOS AUTOMOTORES Y MOTOCICLETAS | K182: Aprobado con subsidio | P182: 168153000 | Q182: 53 | R182: MEDIANA | V182: 0 | W182: 0 | X182: Jurídica | Y182: 5 | Z182: ANTIOQUIA | AA182: 5001 | AB182: MEDELLÍN | AC182: 4290 | AD182: CONSTRUCCIÓN | AE182: 0 | AF182: Aprobado con subsidio | AG182: 0 | AH182: 0 | AI182: 0 | AJ182: 0 | AK182: 33481000 | AL182: 14 | AM182: PEQUEÑA
C183: Natural | D183: 76 | E183: VALLE DEL CAUCA | F183: 76364 | G183: JAMUNDÍ | H183: 4771 | I183: COMERCIO AL POR MAYOR Y AL POR MENOR; REPARACIÓN DE VEHÍCULOS AUTOMOTORES Y MOTOCICLETAS | K183: Aprobado con subsidio | P183: 10503000 | Q183: 6 | R183: MICRO | V183: 0 | W183: 0 | X183: Jurídica | Y183: 5 | Z183: ANTIOQUIA | AA183: 5001 | AB183: MEDELLÍN | AC183: 8691 | AD183: ACTIVIDADES DE ATENCIÓN DE LA SALUD HUMANA Y DE ASISTENCIA SOCIAL | AE183: 0 | AF183: Aprobado con subsidio | AG183: 0 | AH183: 0 | AI183: 0 | AJ183: 0 | AK183: 19746000 | AL183: 11 | AM183: PEQUEÑA
C184: Natural | D184: 50 | E184: META | F184: 50001 | G184: VILLAVICENCIO | H184: 5611 | I184: ALOJAMIENTO Y SERVICIOS DE COMIDA | K184: Aprobado con subsidio | P184: 12632000 | Q184: 5 | R184: MICRO | V184: 0 | W184: 0 | X184: Natural | Y184: 5 | Z184: ANTIOQUIA | AA184: 5001 | AB184: MEDELLÍN | AC184: 4719 | AD184: COMERCIO AL POR MAYOR Y AL POR MENOR; REPARACIÓN DE VEHÍCULOS AUTOMOTORES Y MOTOCICLETAS | AE184: 0 | AF184: Aprobado con subsidio | AG184: 0 | AH184: 0 | AI184: 0 | AJ184: 0 | AK184: 20508000 | AL184: 6 | AM184: MICRO
C185: Natural | D185: 76 | E185: VALLE DEL CAUCA | F185: 76001 | G185: CALI | H185: 113 | I185: AGRICULTURA, GANADERÍA, CAZA, SILVICULTURA Y PESCA | K185: Aprobado con subsidio | P185: 702000 | Q185: 3 | R185: MICRO | V185: 0 | W185: 0 | X185: Jurídica | Y185: 5 | Z185: ANTIOQUIA | AA185: 5001 | AB185: MEDELLÍN | AC185: 6920 | AD185: ACTIVIDADES PROFESIONALES, CIENTÍFICAS Y TÉCNICAS | AE185: 0 | AF185: Aprobado con subsidio | AG185: 0 | AH185: 0 | AI185: 0 | AJ185: 0 | AK185: 13566000 | AL185: 4 | AM185: MICRO
C186: Natural | D186: 76 | E186: VALLE DEL CAUCA | F186: 76001 | G186: CALI | H186: 5611 | I186: ALOJAMIENTO Y SERVICIOS DE COMIDA | K186: Aprobado con subsidio | P186: 8865000 | Q186: 5 | R186: MICRO | V186: 0 | W186: 0 | X186: Jurídica | Y186: 5 | Z186: ANTIOQUIA | AA186: 5001 | AB186: MEDELLÍN | AC186: 4761 | AD186: COMERCIO AL POR MAYOR Y AL POR MENOR; REPARACIÓN DE VEHÍCULOS AUTOMOTORES Y MOTOCICLETAS | AE186: 0 | AF186: Aprobado con subsidio | AG186: 0 | AH186: 0 | AI186: 0 | AJ186: 0 | AK186: 28529000 | AL186: 7 | AM186: MICRO
C187: Natural | D187: 66 | E187: RISARALDA | F187: 66001 | G187: PEREIRA | H187: 5221 | I187: TRANSPORTE Y ALMACENAMIENTO | K187: Aprobado con subsidio | P187: 3159000 | Q187: 3 | R187: MICRO | V187: 0 | W187: 0 | X187: Jurídica | Y187: 5 | Z187: ANTIOQUIA | AA187: 5001 | AB187: MEDELLÍN | AC187: 5611 | AD187: ALOJAMIENTO Y SERVICIOS DE COMIDA | AE187: 0 | AF187: Aprobado con subsidio | AG187: 0 | AH187: 0 | AI187: 0 | AJ187: 0 | AK187: 131143000 | AL187: 33 | AM187: PEQUEÑA
C188: Natural | D188: 63 | E188: QUINDÍO | F188: 63001 | G188: ARMENIA | H188: 1084 | I188: INDUSTRIAS MANUFACTURERAS | K188: Aprobado con subsidio | P188: 18253000 | Q188: 5 | R188: MICRO | V188: 0 | W188: 0 | X188: Jurídica | Y188: 5 | Z188: ANTIOQUIA | AA188: 5001 | AB188: MEDELLÍN | AC188: 5911 | AD188: INFORMACIÓN Y COMUNICACIONES | AE188: 0 | AF188: Aprobado con subsidio | AG188: 0 | AH188: 0 | AI188: 0 | AJ188: 0 | AK188: 2457000 | AL188: 4 | AM188: MICRO
C189: Natural | D189: 41 | E189: HUILA | F189: 41001 | G189: NEIVA | H189: 4754 | I189: COMERCIO AL POR MAYOR Y AL POR MENOR; REPARACIÓN DE VEHÍCULOS AUTOMOTORES Y MOTOCICLETAS | K189: Aprobado con subsidio | P189: 3861000 | Q189: 6 | R189: MICRO | V189: 0 | W189: 0 | X189: Jurídica | Y189: 5 | Z189: ANTIOQUIA | AA189: 5615 | AB189: RIONEGRO | AC189: 4761 | AD189: COMERCIO AL POR MAYOR Y AL POR MENOR; REPARACIÓN DE VEHÍCULOS AUTOMOTORES Y MOTOCICLETAS | AE189: 0 | AF189: Aprobado con subsidio | AG189: 0 | AH189: 0 | AI189: 0 | AJ189: 0 | AK189: 109907000 | AL189: 29 | AM189: PEQUEÑA
C190: Natural | D190: 41 | E190: HUILA | F190: 41001 | G190: NEIVA | H190: 4752 | I190: COMERCIO AL POR MAYOR Y AL POR MENOR; REPARACIÓN DE VEHÍCULOS AUTOMOTORES Y MOTOCICLETAS | K190: Aprobado con subsidio | P190: 6318000 | Q190: 12 | R190: PEQUEÑA | V190: 0 | W190: 0 | X190: Natural | Y190: 5 | Z190: ANTIOQUIA | AA190: 5001 | AB190: MEDELLÍN | AC190: 4690 | AD190: COMERCIO AL POR MAYOR Y AL POR MENOR; REPARACIÓN DE VEHÍCULOS AUTOMOTORES Y MOTOCICLETAS | AE190: 0 | AF190: Aprobado con subsidio | AG190: 0 | AH190: 0 | AI190: 0 | AJ190: 0 | AK190: 92908000 | AL190: 45 | AM190: PEQUEÑA
C191: Natural | D191: 41 | E191: HUILA | F191: 41396 | G191: LA PLATA | H191: 4759 | I191: COMERCIO AL POR MAYOR Y AL POR MENOR; REPARACIÓN DE VEHÍCULOS AUTOMOTORES Y MOTOCICLETAS | K191: Aprobado con subsidio | P191: 1053000 | Q191: 3 | R191: MICRO | V191: 0 | W191: 0 | X191: Jurídica | Y191: 5 | Z191: ANTIOQUIA | AA191: 5001 | AB191: MEDELLÍN | AC191: 4641 | AD191: COMERCIO AL POR MAYOR Y AL POR MENOR; REPARACIÓN DE VEHÍCULOS AUTOMOTORES Y MOTOCICLETAS | AE191: 0 | AF191: Aprobado con subsidio | AG191: 0 | AH191: 0 | AI191: 0 | AJ191: 0 | AK191: 43947000 | AL191: 24 | AM191: PEQUEÑA
C192: Natural | D192: 11 | E192: BOGOTÁ, D.C. | F192: 11001 | G192: BOGOTÁ, D.C. | H192: 8621 | I192: ACTIVIDADES DE ATENCIÓN DE LA SALUD HUMANA Y DE ASISTENCIA SOCIAL | K192: Aprobado con subsidio | P192: 3510000 | Q192: 6 | R192: MICRO | V192: 0 | W192: 0 | X192: Jurídica | Y192: 5 | Z192: ANTIOQUIA | AA192: 5318 | AB192: GUARNE | AC192: 1410 | AD192: INDUSTRIAS MANUFACTURERAS | AE192: 0 | AF192: Aprobado con subsidio | AG192: 0 | AH192: 0 | AI192: 0 | AJ192: 0 | AK192: 18447000 | AL192: 14 | AM192: PEQUEÑA
C193: Natural | D193: 52 | E193: NARIÑO | F193: 52001 | G193: PASTO | H193: 1610 | I193: INDUSTRIAS MANUFACTURERAS | K193: Aprobado con subsidio | P193: 15930000 | Q193: 4 | R193: MICRO | V193: 0 | W193: 0 | X193: Jurídica | Y193: 5 | Z193: ANTIOQUIA | AA193: 5001 | AB193: MEDELLÍN | AC193: 1410 | AD193: INDUSTRIAS MANUFACTURERAS | AE193: 0 | AF193: Aprobado con subsidio | AG193: 0 | AH193: 0 | AI193: 0 | AJ193: 0 | AK193: 113703000 | AL193: 81 | AM193: MEDIANA
C194: Natural | D194: 52 | E194: NARIÑO | F194: 52001 | G194: PASTO | H194: 5511 | I194: ALOJAMIENTO Y SERVICIOS DE COMIDA | K194: Aprobado con subsidio | P194: 50466000 | Q194: 28 | R194: PEQUEÑA | V194: 0 | W194: 0 | X194: Jurídica | Y194: 5 | Z194: ANTIOQUIA | AA194: 5360 | AB194: ITAGUI | AC194: 1410 | AD194: INDUSTRIAS MANUFACTURERAS | AE194: 0 | AF194: Aprobado con subsidio | AG194: 0 | AH194: 0 | AI194: 0 | AJ194: 0 | AK194: 118298000 | AL194: 97 | AM194: MEDIANA
C195: Natural | D195: 52 | E195: NARIÑO | F195: 52001 | G195: PASTO | H195: 6820 | I195: ACTIVIDADES INMOBILIARIAS | K195: Aprobado con subsidio | P195: 20355000 | Q195: 6 | R195: MICRO | V195: 0 | W195: 0 | X195: Jurídica | Y195: 5 | Z195: ANTIOQUIA | AA195: 5360 | AB195: ITAGUI | AC195: 4731 | AD195: COMERCIO AL POR MAYOR Y AL POR MENOR; REPARACIÓN DE VEHÍCULOS AUTOMOTORES Y MOTOCICLETAS | AE195: 0 | AF195: Aprobado con subsidio | AG195: 0 | AH195: 0 | AI195: 0 | AJ195: 0 | AK195: 93508000 | AL195: 30 | AM195: PEQUEÑA
C196: Natural | D196: 54 | E196: NORTE DE SANTANDER | F196: 54498 | G196: OCAÑA | H196: 4530 | I196: COMERCIO AL POR MAYOR Y AL POR MENOR; REPARACIÓN DE VEHÍCULOS AUTOMOTORES Y MOTOCICLETAS | K196: Aprobado con subsidio | P196: 4212000 | Q196: 5 | R196: MICRO | V196: 0 | W196: 0 | X196: Jurídica | Y196: 5 | Z196: ANTIOQUIA | AA196: 5631 | AB196: SABANETA | AC196: 5511 | AD196: ALOJAMIENTO Y SERVICIOS DE COMIDA | AE196: 0 | AF196: Aprobado con subsidio | AG196: 0 | AH196: 0 | AI196: 0 | AJ196: 0 | AK196: 15311000 | AL196: 33 | AM196: PEQUEÑA
C197: Natural | D197: 81 | E197: ARAUCA | F197: 81736 | G197: SARAVENA | H197: 4731 | I197: COMERCIO AL POR MAYOR Y AL POR MENOR; REPARACIÓN DE VEHÍCULOS AUTOMOTORES Y MOTOCICLETAS | K197: Aprobado con subsidio | P197: 25846000 | Q197: 9 | R197: MICRO | V197: 0 | W197: 0 | X197: Jurídica | Y197: 5 | Z197: ANTIOQUIA | AA197: 5237 | AB197: DON MATÍAS | AC197: 1410 | AD197: INDUSTRIAS MANUFACTURERAS | AE197: 0 | AF197: Aprobado con subsidio | AG197: 0 | AH197: 0 | AI197: 0 | AJ197: 0 | AK197: 7371000 | AL197: 13 | AM197: PEQUEÑA
C198: Natural | D198: 73 | E198: TOLIMA | F198: 73001 | G198: IBAGUÉ | H198: 6202 | I198: INFORMACIÓN Y COMUNICACIONES | K198: Rechazado a nivel aportante | P198: 0 | Q198: 3 | R198: MICRO | V198: 0 | W198: 0 | X198: Natural | Y198: 5 | Z198: ANTIOQUIA | AA198: 5001 | AB198: MEDELLÍN | AC198: 4771 | AD198: COMERCIO AL POR MAYOR Y AL POR MENOR; REPARACIÓN DE VEHÍCULOS AUTOMOTORES Y MOTOCICLETAS | AE198: 0 | AF198: Aprobado con subsidio | AG198: 0 | AH198: 0 | AI198: 0 | AJ198: 0 | AK198: 11853000 | AL198: 3 | AM198: MICRO
C199: Natural | D199: 11 | E199: BOGOTÁ, D.C. | F199: 11001 | G199: BOGOTÁ, D.C. | H199: 2930 | I199: INDUSTRIAS MANUFACTURERAS | K199: Aprobado con subsidio | P199: 2457000 | Q199: 8 | R199: MICRO | V199: 0 | W199: 0 | X199: Jurídica | Y199: 5 | Z199: ANTIOQUIA | AA199: 5001 | AB199: MEDELLÍN | AC199: 144 | AD199: AGRICULTURA, GANADERÍA, CAZA, SILVICULTURA Y PESCA | AE199: 0 | AF199: Aprobado con subsidio | AG199: 0 | AH199: 0 | AI199: 0 | AJ199: 0 | AK199: 15486000 | AL199: 12 | AM199: PEQUEÑA
C200: Natural | D200: 73 | E200: TOLIMA | F200: 73001 | G200: IBAGUÉ | H200: 4774 | I200: COMERCIO AL POR MAYOR Y AL POR MENOR; REPARACIÓN DE VEHÍCULOS AUTOMOTORES Y MOTOCICLETAS | K200: Aprobado con subsidio | P200: 12249000 | Q200: 3 | R200: MICRO | V200: 0 | W200: 0 | X200: Natural | Y200: 5 | Z200: ANTIOQUIA | AA200: 5001 | AB200: MEDELLÍN | AC200: 9311 | AD200: ACTIVIDADES ARTÍSTICAS, DE ENTRETENIMIENTO Y RECREACIÓN | AE200: 0 | AF200: Rechazado a nivel aportante | AG200: 0 | AH200: 0 | AI200: 0 | AJ200: 0 | AK200: 0 | AL200: 0 | AM200: $null$
... 2050 more rows

Sheet Base (hidden)
A1: LLAVE (TIPO ID - DOCUMENTO) | B1: CIUDAD - DIVIPOLA - R | C1: Ciudad | D1: TOTAL COTIZANTES CON CONCEPTO DE CONFORMIDAD TOTAL A GIRAR | E1: TOTAL COTIZANTES CON CONCEPTO DE NO CONFORMIDAD | F1: TIPO DE PERSONA | G1: Departamento DIVIPOLA (P) | H1: NOMBRE DEPTO DIVIOLA | I1: ESTADO_TOTAL A GIRAR | J1: Numero total empleados | K1: Tamaño del Empleador | L1: STRCODPAR_CIIU_EMPRESA | M1: ACTIVIDAD ECONOMICA | N1: SEXO_F_ | O1: SEXO_M_ | P1: SEXO_ND_ | U1: LLAVE (TIPO ID - DOCUMENTO) | V1: CIUDAD - DIVIPOLA - R | W1: Ciudad | X1: TOTAL COTIZANTES CON CONCEPTO DE CONFORMIDAD TOTAL A GIRAR | Y1: TOTAL COTIZANTES CON CONCEPTO DE NO CONFORMIDAD | Z1: TIPO DE PERSONA | AA1: Departamento DIVIPOLA (P) | AB1: NOMBRE DEPTO DIVIOLA | AC1: ESTADO_TOTAL A GIRAR | AD1: Numero total empleados | AE1: Tamaño del Empleador | AF1: STRCODPAR_CIIU_EMPRESA | AG1: ACTIVIDAD ECONOMICA | AH1: SEXO_F_ | AI1: SEXO_M_ | AJ1: SEXO_ND_ | AO1: Empleadores | AP1: % | AQ1: Empleados | AR1: % | AS1: Recursos | AT1: Mpio
A2: CC-21068926 | B2: 11001 | C2: BOGOTÁ, D.C. | D2: 0 | E2: 0 | F2: Natural | G2: 11 | H2: BOGOTÁ, D.C. | I2: Rechazado a nivel aportante | J2: 4 | K2: MICRO | L2: 8621 | M2: ACTIVIDADES DE ATENCIÓN DE LA SALUD HUMANA Y DE ASISTENCIA SOCIAL | N2: 0 | O2: 0 | P2: 0 | R2: =+_xlfn.UNIQUE(M2:M399999) -> ACTIVIDADES DE ATENCIÓN DE LA SALUD HUMANA Y DE ASISTENCIA SOCIAL | U2: =+_xlfn._xlws.FILTER($A$2:$P$399999,$H$2:$H$399999=Visor!$M$7,"") -> CC-22116760 | V2: 5360 | W2: ITAGUI | X2: 6 | Y2: 5 | Z2: Natural | AA2: 5 | AB2: ANTIOQUIA | AC2: Aprobado con subsidio | AD2: 6 | AE2: MICRO | AF2: 1020 | AG2: INDUSTRIAS MANUFACTURERAS | AH2: 0 | AI2: 6 | AJ2: 0 | AN2: =CONCATENATE(AO2,COUNTIF($AO$2:AO2,AO2)) -> 17041 | AO2: =+COUNTIFS($W$2:$W$399999,AT2,$AC$2:$AC$399999,"Aprobado con subsidio")*1 -> 1704 | AP2: =+AO2/SUM($AO$2:$AO$129) -> 0.05967640261 | AQ2: =+SUMIFS($X$2:$X$399999,$W$2:$W$399999,AT2,$AC$2:$AC$399999,"Aprobado con subsidio") -> 56189 | AR2: =+AQ2/SUM($AQ$2:$AQ$129) -> 0.07011932602 | AS2: =+(SUMIFS(Montos!$Y$2:$Y$396864,Montos!$R$2:$R$396864,Base!AT2)/1000000) -> 78511.666 | AT2: =_xlfn.UNIQUE('$Base'!$AB$2:$AB$400000) -> ITAGUI
A3: CC-21176127 | B3: 50006 | C3: ACACÍAS | D3: 14 | E3: 1 | F3: Natural | G3: 50 | H3: META | I3: Aprobado con subsidio | J3: 15 | K3: PEQUEÑA | L3: 8530 | M3: EDUCACIÓN | N3: 11 | O3: 3 | P3: 0 | R3: EDUCACIÓN | U3: CC-25234302 | V3: 5001 | W3: MEDELLÍN | X3: 2 | Y3: 0 | Z3: Natural | AA3: 5 | AB3: ANTIOQUIA | AC3: Aprobado con subsidio | AD3: 3 | AE3: MICRO | AF3: 7990 | AG3: ACTIVIDADES DE SERVICIOS ADMINISTRATIVOS Y DE APOYO | AH3: 0 | AI3: 2 | AJ3: 0 | AN3: =CONCATENATE(AO3,COUNTIF($AO$2:AO3,AO3)) -> 182251 | AO3: 18225 | AP3: 0.6382643412 | AQ3: 518573 | AR3: =+AQ3/SUM($AQ$2:$AQ$129) -> 0.6471371488 | AS3: =+(SUMIFS(Montos!$Y$2:$Y$396864,Montos!$R$2:$R$396864,Base!AT3)/1000000) -> 829828.591 | AT3: MEDELLÍN
A4: CC-22116760 | B4: 5360 | C4: ITAGUI | D4: 6 | E4: 5 | F4: Natural | G4: 5 | H4: ANTIOQUIA | I4: Aprobado con subsidio | J4: 6 | K4: MICRO | L4: 1020 | M4: INDUSTRIAS MANUFACTURERAS | N4: 0 | O4: 6 | P4: 0 | R4: INDUSTRIAS MANUFACTURERAS | U4: CC-32477712 | V4: 5001 | W4: MEDELLÍN | X4: 28 | Y4: 3 | Z4: Natural | AA4: 5 | AB4: ANTIOQUIA | AC4: Aprobado con subsidio | AD4: 27 | AE4: PEQUEÑA | AF4: 4775 | AG4: COMERCIO AL POR MAYOR Y AL POR MENOR; REPARACIÓN DE VEHÍCULOS AUTOMOTORES Y MOTOCICLETAS | AH4: 1 | AI4: 27 | AJ4: 0 | AN4: =CONCATENATE(AO4,COUNTIF($AO$2:AO4,AO4)) -> 7721 | AO4: 772 | AP4: 0.02703649226 | AQ4: 28816 | AR4: 0.03596003664 | AS4: =+(SUMIFS(Montos!$Y$2:$Y$396864,Montos!$R$2:$R$396864,Base!AT4)/1000000) -> 42388.367 | AT4: SABANETA
A5: CC-22673716 | B5: 8001 | C5: BARRANQUILLA | D5: 19 | E5: 0 | F5: Natural | G5: 8 | H5: ATLÁNTICO | I5: Aprobado con subsidio | J5: 19 | K5: PEQUEÑA | L5: 4719 | M5: COMERCIO AL POR MAYOR Y AL POR MENOR; REPARACIÓN DE VEHÍCULOS AUTOMOTORES Y MOTOCICLETAS | N5: 12 | O5: 7 | P5: 0 | R5: COMERCIO AL POR MAYOR Y AL POR MENOR; REPARACIÓN DE VEHÍCULOS AUTOMOTORES Y MOTOCICLETAS | U5: CC-32501707 | V5: 5631 | W5: SABANETA | X5: 4 | Y5: 1 | Z5: Natural | AA5: 5 | AB5: ANTIOQUIA | AC5: Aprobado con subsidio | AD5: 5 | AE5: MICRO | AF5: 5612 | AG5: ALOJAMIENTO Y SERVICIOS DE COMIDA | AH5: 4 | AI5: 0 | AJ5: 0 | AN5: =CONCATENATE(AO5,COUNTIF($AO$2:AO5,AO5)) -> 141 | AO5: 14 | AP5: 0.0004902990824 | AQ5: 239 | AR5: 0.0002982526637 | AS5: =+(SUMIFS(Montos!$Y$2:$Y$396864,Montos!$R$2:$R$396864,Base!AT5)/1000000) -> 256.489 | AT5: AMALFI
A6: CC-23246471 | B6: 88001 | C6: SAN ANDRÉS | D6: 18 | E6: 9 | F6: Natural | G6: 88 | H6: ARCHIPIÉLAGO DE SAN ANDRÉS, PROVIDENCIA Y SANTA CATALINA | I6: Aprobado con subsidio | J6: 40 | K6: PEQUEÑA | L6: 5511 | M6: ALOJAMIENTO Y SERVICIOS DE COMIDA | N6: 13 | O6: 5 | P6: 0 | R6: ALOJAMIENTO Y SERVICIOS DE COMIDA | U6: CC-34565015 | V6: 5001 | W6: MEDELLÍN | X6: 4 | Y6: 1 | Z6: Natural | AA6: 5 | AB6: ANTIOQUIA | AC6: Aprobado con subsidio | AD6: 7 | AE6: MICRO | AF6: 5619 | AG6: ALOJAMIENTO Y SERVICIOS DE COMIDA | AH6: 2 | AI6: 2 | AJ6: 0 | AN6: =CONCATENATE(AO6,COUNTIF($AO$2:AO6,AO6)) -> 4141 | AO6: 414 | AP6: 0.0144988443 | AQ6: 7713 | AR6: 0.009625199979 | AS6: =+(SUMIFS(Montos!$Y$2:$Y$396864,Montos!$R$2:$R$396864,Base!AT6)/1000000) -> 13513.897 | AT6: APARTADÓ
A7: CC-23779128 | B7: 11001 | C7: BOGOTÁ, D.C. | D7: 4 | E7: 0 | F7: Natural | G7: 11 | H7: BOGOTÁ, D.C. | I7: Aprobado con subsidio | J7: 4 | K7: MICRO | L7: 5611 | M7: ALOJAMIENTO Y SERVICIOS DE COMIDA | N7: 0 | O7: 4 | P7: 0 | R7: ACTIVIDADES DE SERVICIOS ADMINISTRATIVOS Y DE APOYO | U7: CC-42939578 | V7: 5031 | W7: AMALFI | X7: 60 | Y7: 12 | Z7: Natural | AA7: 5 | AB7: ANTIOQUIA | AC7: Aprobado con subsidio | AD7: 69 | AE7: MEDIANA | AF7: 6621 | AG7: ACTIVIDADES FINANCIERAS Y DE SEGUROS | AH7: 29 | AI7: 31 | AJ7: 0 | AN7: =CONCATENATE(AO7,COUNTIF($AO$2:AO7,AO7)) -> 541 | AO7: 54 | AP7: 0.001891153604 | AQ7: 656 | AR7: 0.0008186349263 | AS7: =+(SUMIFS(Montos!$Y$2:$Y$396864,Montos!$R$2:$R$396864,Base!AT7)/1000000) -> 1225.749 | AT7: ANDES
A8: CC-24226774 | B8: 15759 | C8: SOGAMOSO | D8: 0 | E8: 0 | F8: Natural | G8: 15 | H8: BOYACÁ | I8: Rechazado a nivel aportante | J8: 3 | K8: MICRO | L8: 1811 | M8: INDUSTRIAS MANUFACTURERAS | N8: 0 | O8: 0 | P8: 0 | R8: ACTIVIDADES FINANCIERAS Y DE SEGUROS | U8: CC-43141747 | V8: 5001 | W8: MEDELLÍN | X8: 25 | Y8: 6 | Z8: Natural | AA8: 5 | AB8: ANTIOQUIA | AC8: Aprobado con subsidio | AD8: 17 | AE8: PEQUEÑA | AF8: 4761 | AG8: COMERCIO AL POR MAYOR Y AL POR MENOR; REPARACIÓN DE VEHÍCULOS AUTOMOTORES Y MOTOCICLETAS | AH8: 12 | AI8: 13 | AJ8: 0 | AN8: =CONCATENATE(AO8,COUNTIF($AO$2:AO8,AO8)) -> 3111 | AO8: 311 | AP8: 0.0108916439 | AQ8: 5419 | AR8: 0.006762473575 | AS8: =+(SUMIFS(Montos!$Y$2:$Y$396864,Montos!$R$2:$R$396864,Base!AT8)/1000000) -> 8659.184 | AT8: LA CEJA
A9: CC-24478927 | B9: 63401 | C9: LA TEBAIDA | D9: 10 | E9: 1 | F9: Natural | G9: 63 | H9: QUINDÍO | I9: Aprobado con subsidio | J9: 8 | K9: MICRO | L9: 4731 | M9: COMERCIO AL POR MAYOR Y AL POR MENOR; REPARACIÓN DE VEHÍCULOS AUTOMOTORES Y MOTOCICLETAS | N9: 4 | O9: 6 | P9: 0 | R9: AGRICULTURA, GANADERÍA, CAZA, SILVICULTURA Y PESCA | U9: CC-41171107 | V9: 5001 | W9: MEDELLÍN | X9: 3 | Y9: 0 | Z9: Natural | AA9: 5 | AB9: ANTIOQUIA | AC9: Aprobado con subsidio | AD9: 3 | AE9: MICRO | AF9: 3250 | AG9: INDUSTRIAS MANUFACTURERAS | AH9: 2 | AI9: 1 | AJ9: 0 | AN9: =CONCATENATE(AO9,COUNTIF($AO$2:AO9,AO9)) -> 10031 | AO9: 1003 | AP9: 0.03512642712 | AQ9: 25053 | AR9: 0.03126411708 | AS9: =+(SUMIFS(Montos!$Y$2:$Y$396864,Montos!$R$2:$R$396864,Base!AT9)/1000000) -> 38153.05 | AT9: RIONEGRO
A10: CC-24603109 | B10: 68081 | C10: BARRANCABERMEJA | D10: 5 | E10: 0 | F10: Natural | G10: 68 | H10: SANTANDER | I10: Aprobado con subsidio | J10: 5 | K10: MICRO | L10: 5613 | M10: ALOJAMIENTO Y SERVICIOS DE COMIDA | N10: 3 | O10: 2 | P10: 0 | R10: ADMINISTRACIÓN PÚBLICA Y DEFENSA; PLANES DE SEGURIDAD SOCIAL DE AFILIACIÓN OBLIGATORIA | U10: CC-43561957 | V10: 5045 | W10: APARTADÓ | X10: 4 | Y10: 2 | Z10: Natural | AA10: 5 | AB10: ANTIOQUIA | AC10: Aprobado con subsidio | AD10: 4 | AE10: MICRO | AF10: 3290 | AG10: INDUSTRIAS MANUFACTURERAS | AH10: 4 | AI10: 0 | AJ10: 0 | AN10: =CONCATENATE(AO10,COUNTIF($AO$2:AO10,AO10)) -> 15221 | AO10: 1522 | AP10: 0.05330251453 | AQ10: 52829 | AR10: 0.06592631786 | AS10: =+(SUMIFS(Montos!$Y$2:$Y$396864,Montos!$R$2:$R$396864,Base!AT10)/1000000) -> 93163.2 | AT10: ENVIGADO
A11: CC-25234302 | B11: 5001 | C11: MEDELLÍN | D11: 2 | E11: 0 | F11: Natural | G11: 5 | H11: ANTIOQUIA | I11: Aprobado con subsidio | J11: 3 | K11: MICRO | L11: 7990 | M11: ACTIVIDADES DE SERVICIOS ADMINISTRATIVOS Y DE APOYO | N11: 0 | O11: 2 | P11: 0 | R11: ACTIVIDADES PROFESIONALES, CIENTÍFICAS Y TÉCNICAS | U11: CC-43725902 | V11: 5034 | W11: ANDES | X11: 6 | Y11: 0 | Z11: Natural | AA11: 5 | AB11: ANTIOQUIA | AC11: Aprobado con subsidio | AD11: 7 | AE11: MICRO | AF11: 5511 | AG11: ALOJAMIENTO Y SERVICIOS DE COMIDA | AH11: 3 | AI11: 3 | AJ11: 0 | AN11: =CONCATENATE(AO11,COUNTIF($AO$2:AO11,AO11)) -> 4711 | AO11: 471 | AP11: 0.01649506199 | AQ11: 20039 | AR11: 0.02500705074 | AS11: =+(SUMIFS(Montos!$Y$2:$Y$396864,Montos!$R$2:$R$396864,Base!AT11)/1000000) -> 28487.137 | AT11: LA ESTRELLA
A12: CC-25234901 | B12: 17873 | C12: VILLAMARÍA | D12: 4 | E12: 0 | F12: Natural | G12: 17 | H12: CALDAS | I12: Aprobado con subsidio | J12: 4 | K12: MICRO | L12: 4732 | M12: COMERCIO AL POR MAYOR Y AL POR MENOR; REPARACIÓN DE VEHÍCULOS AUTOMOTORES Y MOTOCICLETAS | N12: 0 | O12: 4 | P12: 0 | R12: CONSTRUCCIÓN | U12: CC-13364825 | V12: 5001 | W12: MEDELLÍN | X12: 11 | Y12: 5 | Z12: Natural | AA12: 5 | AB12: ANTIOQUIA | AC12: Aprobado con subsidio | AD12: 15 | AE12: PEQUEÑA | AF12: 5511 | AG12: ALOJAMIENTO Y SERVICIOS DE COMIDA | AH12: 8 | AI12: 3 | AJ12: 0 | AN12: =CONCATENATE(AO12,COUNTIF($AO$2:AO12,AO12)) -> 901 | AO12: 90 | AP12: 0.003151922673 | AQ12: 1175 | AR12: 0.001466304937 | AS12: =+(SUMIFS(Montos!$Y$2:$Y$396864,Montos!$R$2:$R$396864,Base!AT12)/1000000) -> 1809.054 | AT12: PUERTO BERRÍO
A13: CC-27142281 | B13: 52001 | C13: PASTO | D13: 3 | E13: 3 | F13: Natural | G13: 52 | H13: NARIÑO | I13: Aprobado con subsidio | J13: 4 | K13: MICRO | L13: 5511 | M13: ALOJAMIENTO Y SERVICIOS DE COMIDA | N13: 2 | O13: 1 | P13: 0 | R13: OTRAS ACTIVIDADES DE SERVICIOS | U13: CC-1144057436 | V13: 5001 | W13: MEDELLÍN | X13: 7 | Y13: 1 | Z13: Natural | AA13: 5 | AB13: ANTIOQUIA | AC13: Aprobado con subsidio | AD13: 6 | AE13: MICRO | AF13: 4773 | AG13: COMERCIO AL POR MAYOR Y AL POR MENOR; REPARACIÓN DE VEHÍCULOS AUTOMOTORES Y MOTOCICLETAS | AH13: 7 | AI13: 0 | AJ13: 0 | AN13: =CONCATENATE(AO13,COUNTIF($AO$2:AO13,AO13)) -> 631 | AO13: 63 | AP13: 0.002206345871 | AQ13: 742 | AR13: 0.0009259559684 | AS13: =+(SUMIFS(Montos!$Y$2:$Y$396864,Montos!$R$2:$R$396864,Base!AT13)/1000000) -> 1418.58 | AT13: SANTAFÉ DE ANTIOQUIA
A14: CC-20926890 | B14: 11001 | C14: BOGOTÁ, D.C. | D14: 3 | E14: 0 | F14: Natural | G14: 11 | H14: BOGOTÁ, D.C. | I14: Aprobado con subsidio | J14: 3 | K14: MICRO | L14: 2599 | M14: INDUSTRIAS MANUFACTURERAS | N14: 0 | O14: 3 | P14: 0 | R14: TRANSPORTE Y ALMACENAMIENTO | U14: CC-1036337058 | V14: 5001 | W14: MEDELLÍN | X14: 16 | Y14: 0 | Z14: Natural | AA14: 5 | AB14: ANTIOQUIA | AC14: Aprobado con subsidio | AD14: 12 | AE14: PEQUEÑA | AF14: 5611 | AG14: ALOJAMIENTO Y SERVICIOS DE COMIDA | AH14: 7 | AI14: 9 | AJ14: 0 | AN14: =CONCATENATE(AO14,COUNTIF($AO$2:AO14,AO14)) -> 11 | AO14: 1 | AP14: 3.502136303e-05 | AQ14: 95 | AR14: 0.000118552314 | AS14: =+(SUMIFS(Montos!$Y$2:$Y$396864,Montos!$R$2:$R$396864,Base!AT14)/1000000) -> 30.563 | AT14: ABRIAQUÍ
A15: CC-2825840 | B15: 47001 | C15: SANTA MARTA | D15: 0 | E15: 0 | F15: Natural | G15: 47 | H15: MAGDALENA | I15: Rechazado a nivel aportante | J15: 8 | K15: MICRO | L15: 1610 | M15: INDUSTRIAS MANUFACTURERAS | N15: 0 | O15: 0 | P15: 0 | R15: EXPLOTACIÓN DE MINAS Y CANTERAS | U15: CC-1017175734 | V15: 5001 | W15: MEDELLÍN | X15: 6 | Y15: 0 | Z15: Natural | AA15: 5 | AB15: ANTIOQUIA | AC15: Aprobado con subsidio | AD15: 4 | AE15: MICRO | AF15: 4520 | AG15: COMERCIO AL POR MAYOR Y AL POR MENOR; REPARACIÓN DE VEHÍCULOS AUTOMOTORES Y MOTOCICLETAS | AH15: 1 | AI15: 5 | AJ15: 0 | AN15: =CONCATENATE(AO15,COUNTIF($AO$2:AO15,AO15)) -> 8221 | AO15: 822 | AP15: 0.02878756041 | AQ15: 20865 | AR15: 0.02603783192 | AS15: =+(SUMIFS(Montos!$Y$2:$Y$396864,Montos!$R$2:$R$396864,Base!AT15)/1000000) -> 39500.614 | AT15: BELLO
A16: CC-2873653 | B16: 11001 | C16: BOGOTÁ, D.C. | D16: 4 | E16: 0 | F16: Natural | G16: 11 | H16: BOGOTÁ, D.C. | I16: Aprobado con subsidio | J16: 4 | K16: MICRO | L16: 4752 | M16: COMERCIO AL POR MAYOR Y AL POR MENOR; REPARACIÓN DE VEHÍCULOS AUTOMOTORES Y MOTOCICLETAS | N16: 0 | O16: 4 | P16: 0 | R16: ACTIVIDADES INMOBILIARIAS | U16: CC-1036657654 | V16: 5360 | W16: ITAGUI | X16: 0 | Y16: 0 | Z16: Natural | AA16: 5 | AB16: ANTIOQUIA | AC16: Rechazado a nivel aportante | AD16: 0 | AE16: $null$ | AF16: 5619 | AG16: ALOJAMIENTO Y SERVICIOS DE COMIDA | AH16: 0 | AI16: 0 | AJ16: 0 | AN16: =CONCATENATE(AO16,COUNTIF($AO$2:AO16,AO16)) -> 1071 | AO16: 107 | AP16: 0.003747285844 | AQ16: 1971 | AR16: 0.002459648536 | AS16: =+(SUMIFS(Montos!$Y$2:$Y$396864,Montos!$R$2:$R$396864,Base!AT16)/1000000) -> 2246.922 | AT16: EL SANTUARIO
A17: CC-29037476 | B17: 76001 | C17: CALI | D17: 7 | E17: 0 | F17: Natural | G17: 76 | H17: VALLE DEL CAUCA | I17: Aprobado con subsidio | J17: 7 | K17: MICRO | L17: 4775 | M17: COMERCIO AL POR MAYOR Y AL POR MENOR; REPARACIÓN DE VEHÍCULOS AUTOMOTORES Y MOTOCICLETAS | N17: 3 | O17: 4 | P17: 0 | R17: INFORMACIÓN Y COMUNICACIONES | U17: CC-1037584344 | V17: 5001 | W17: MEDELLÍN | X17: 7 | Y17: 0 | Z17: Natural | AA17: 5 | AB17: ANTIOQUIA | AC17: Aprobado con subsidio | AD17: 8 | AE17: MICRO | AF17: 5611 | AG17: ALOJAMIENTO Y SERVICIOS DE COMIDA | AH17: 5 | AI17: 2 | AJ17: 0 | AN17: =CONCATENATE(AO17,COUNTIF($AO$2:AO17,AO17)) -> 1841 | AO17: 184 | AP17: 0.006443930798 | AQ17: 4755 | AR17: 0.005933855296 | AS17: =+(SUMIFS(Montos!$Y$2:$Y$396864,Montos!$R$2:$R$396864,Base!AT17)/1000000) -> 6600.281 | AT17: MARINILLA
A18: CC-30239295 | B18: 17001 | C18: MANIZALES | D18: 7 | E18: 1 | F18: Natural | G18: 17 | H18: CALDAS | I18: Aprobado con subsidio | J18: 6 | K18: MICRO | L18: 1081 | M18: INDUSTRIAS MANUFACTURERAS | N18: 6 | O18: 1 | P18: 0 | R18: ACTIVIDADES ARTÍSTICAS, DE ENTRETENIMIENTO Y RECREACIÓN | U18: CC-1039450686 | V18: 5001 | W18: MEDELLÍN | X18: 6 | Y18: 5 | Z18: Natural | AA18: 5 | AB18: ANTIOQUIA | AC18: Aprobado con subsidio | AD18: 5 | AE18: MICRO | AF18: 5619 | AG18: ALOJAMIENTO Y SERVICIOS DE COMIDA | AH18: 6 | AI18: 0 | AJ18: 0 | AN18: =CONCATENATE(AO18,COUNTIF($AO$2:AO18,AO18)) -> 2041 | AO18: 204 | AP18: 0.007144358058 | AQ18: 4081 | AR18: 0.005092757826 | AS18: =+(SUMIFS(Montos!$Y$2:$Y$396864,Montos!$R$2:$R$396864,Base!AT18)/1000000) -> 7180.095 | AT18: EL CARMEN DE VIBORAL
A19: CC-30338768 | B19: 66001 | C19: PEREIRA | D19: 0 | E19: 0 | F19: Natural | G19: 66 | H19: RISARALDA | I19: Rechazado a nivel aportante | J19: 4 | K19: MICRO | L19: 8622 | M19: ACTIVIDADES DE ATENCIÓN DE LA SALUD HUMANA Y DE ASISTENCIA SOCIAL | N19: 0 | O19: 0 | P19: 0 | R19: DISTRIBUCIÓN DE AGUA; EVACUACIÓN Y TRATAMIENTO DE AGUAS RESIDUALES, GESTIÓN DE DESECHOS Y ACTIVIDADES DE SANEAMIENTO AMBIENTAL | U19: CC-15333941 | V19: 5001 | W19: MEDELLÍN | X19: 8 | Y19: 1 | Z19: Natural | AA19: 5 | AB19: ANTIOQUIA | AC19: Aprobado con subsidio | AD19: 8 | AE19: MICRO | AF19: 8523 | AG19: EDUCACIÓN | AH19: 6 | AI19: 2 | AJ19: 0 | AN19: =CONCATENATE(AO19,COUNTIF($AO$2:AO19,AO19)) -> 441 | AO19: 44 | AP19: 0.001540939973 | AQ19: 689 | AR19: 0.0008598162564 | AS19: =+(SUMIFS(Montos!$Y$2:$Y$396864,Montos!$R$2:$R$396864,Base!AT19)/1000000) -> 1157.73 | AT19: CIUDAD BOLÍVAR
A20: CC-30359138 | B20: 17380 | C20: LA DORADA | D20: 5 | E20: 0 | F20: Natural | G20: 17 | H20: CALDAS | I20: Aprobado con subsidio | J20: 4 | K20: MICRO | L20: 6621 | M20: ACTIVIDADES FINANCIERAS Y DE SEGUROS | N20: 5 | O20: 0 | P20: 0 | R20: SUMINISTRO DE ELECTRICIDAD, GAS, VAPOR Y AIRE ACONDICIONADO | U20: CC-153831693 | V20: 5376 | W20: LA CEJA | X20: 0 | Y20: 0 | Z20: Natural | AA20: 5 | AB20: ANTIOQUIA | AC20: Rechazado a nivel aportante | AD20: 0 | AE20: $null$ | AF20: 161 | AG20: AGRICULTURA, GANADERÍA, CAZA, SILVICULTURA Y PESCA | AH20: 0 | AI20: 0 | AJ20: 0 | AN20: =CONCATENATE(AO20,COUNTIF($AO$2:AO20,AO20)) -> 1011 | AO20: 101 | AP20: 0.003537157666 | AQ20: 1654 | AR20: 0.002064058183 | AS20: =+(SUMIFS(Montos!$Y$2:$Y$396864,Montos!$R$2:$R$396864,Base!AT20)/1000000) -> 2929.119 | AT20: DON MATÍAS
A21: CC-30516946 | B21: 18001 | C21: FLORENCIA | D21: 4 | E21: 0 | F21: Natural | G21: 18 | H21: CAQUETÁ | I21: Aprobado con subsidio | J21: 4 | K21: MICRO | L21: 4775 | M21: COMERCIO AL POR MAYOR Y AL POR MENOR; REPARACIÓN DE VEHÍCULOS AUTOMOTORES Y MOTOCICLETAS | N21: 2 | O21: 2 | P21: 0 | R21: OTRAS | U21: CC-15438154 | V21: 5615 | W21: RIONEGRO | X21: 3 | Y21: 0 | Z21: Natural | AA21: 5 | AB21: ANTIOQUIA | AC21: Aprobado con subsidio | AD21: 3 | AE21: MICRO | AF21: 1820 | AG21: INDUSTRIAS MANUFACTURERAS | AH21: 0 | AI21: 3 | AJ21: 0 | AN21: =CONCATENATE(AO21,COUNTIF($AO$2:AO21,AO21)) -> 401 | AO21: 40 | AP21: 0.001400854521 | AQ21: 527 | AR21: 0.000657653363 | AS21: =+(SUMIFS(Montos!$Y$2:$Y$396864,Montos!$R$2:$R$396864,Base!AT21)/1000000) -> 973.638 | AT21: CAREPA
A22: NIT-31131476 | B22: 76520 | C22: PALMIRA | D22: 31 | E22: 6 | F22: Jurídica | G22: 76 | H22: VALLE DEL CAUCA | I22: Aprobado con subsidio | J22: 29 | K22: PEQUEÑA | L22: 5530 | M22: ALOJAMIENTO Y SERVICIOS DE COMIDA | N22: 26 | O22: 5 | P22: 0 | R22: ACTIVIDADES DE ORGANIZACIONES Y ENTIDADES EXTRATERRITORIALES | U22: CC-42761405 | V22: 5001 | W22: MEDELLÍN | X22: 3 | Y22: 0 | Z22: Natural | AA22: 5 | AB22: ANTIOQUIA | AC22: Aprobado con subsidio | AD22: 3 | AE22: MICRO | AF22: 4771 | AG22: COMERCIO AL POR MAYOR Y AL POR MENOR; REPARACIÓN DE VEHÍCULOS AUTOMOTORES Y MOTOCICLETAS | AH22: 3 | AI22: 0 | AJ22: 0 | AN22: =CONCATENATE(AO22,COUNTIF($AO$2:AO22,AO22)) -> 2561 | AO22: 256 | AP22: 0.008965468936 | AQ22: 4774 | AR22: 0.005957565759 | AS22: =+(SUMIFS(Montos!$Y$2:$Y$396864,Montos!$R$2:$R$396864,Base!AT22)/1000000) -> 7116.933 | AT22: CALDAS
A23: CC-31167472 | B23: 76520 | C23: PALMIRA | D23: 0 | E23: 0 | F23: Natural | G23: 76 | H23: VALLE DEL CAUCA | I23: Rechazado a nivel aportante | J23: 2 | K23: MICRO | L23: 5511 | M23: ALOJAMIENTO Y SERVICIOS DE COMIDA | N23: 0 | O23: 0 | P23: 0 | R23: ACTIVIDADES DE LOS HOGARES INDIVIDUALES EN CALIDAD DE EMPLEADORES; ACTIVIDADES NO DIFERENCIADAS DE LOS HOGARES INDIVIDUALES COMO PRODUCTORES DE BIENES Y SERVICIOS PARA USO PROPIO | U23: CC-70435651 | V23: 5001 | W23: MEDELLÍN | X23: 4 | Y23: 1 | Z23: Natural | AA23: 5 | AB23: ANTIOQUIA | AC23: Aprobado con subsidio | AD23: 4 | AE23: MICRO | AF23: 4771 | AG23: COMERCIO AL POR MAYOR Y AL POR MENOR; REPARACIÓN DE VEHÍCULOS AUTOMOTORES Y MOTOCICLETAS | AH23: 1 | AI23: 3 | AJ23: 0 | AN23: =CONCATENATE(AO23,COUNTIF($AO$2:AO23,AO23)) -> 61 | AO23: 6 | AP23: 0.0002101281782 | AQ23: 62 | AR23: 7.737098388e-05 | AS23: =+(SUMIFS(Montos!$Y$2:$Y$396864,Montos!$R$2:$R$396864,Base!AT23)/1000000) -> 121.431 | AT23: ITUANGO
A24: CC-31577108 | B24: 76001 | C24: CALI | D24: 1 | E24: 1 | F24: Natural | G24: 76 | H24: VALLE DEL CAUCA | I24: Aprobado con subsidio | J24: 3 | K24: MICRO | L24: 1410 | M24: INDUSTRIAS MANUFACTURERAS | N24: 1 | O24: 0 | P24: 0 | R24: 0 | U24: CC-43839357 | V24: 5001 | W24: MEDELLÍN | X24: 3 | Y24: 0 | Z24: Natural | AA24: 5 | AB24: ANTIOQUIA | AC24: Aprobado con subsidio | AD24: 3 | AE24: MICRO | AF24: 4771 | AG24: COMERCIO AL POR MAYOR Y AL POR MENOR; REPARACIÓN DE VEHÍCULOS AUTOMOTORES Y MOTOCICLETAS | AH24: 2 | AI24: 1 | AJ24: 0 | AN24: =CONCATENATE(AO24,COUNTIF($AO$2:AO24,AO24)) -> 31 | AO24: 3 | AP24: 0.0001050640891 | AQ24: 20 | AR24: 2.49583819e-05 | AS24: =+(SUMIFS(Montos!$Y$2:$Y$396864,Montos!$R$2:$R$396864,Base!AT24)/1000000) -> 139.013 | AT24: ARMENIA
A25: CC-31833628 | B25: 76001 | C25: CALI | D25: 16 | E25: 0 | F25: Natural | G25: 76 | H25: VALLE DEL CAUCA | I25: Aprobado con subsidio | J25: 17 | K25: PEQUEÑA | L25: 4541 | M25: COMERCIO AL POR MAYOR Y AL POR MENOR; REPARACIÓN DE VEHÍCULOS AUTOMOTORES Y MOTOCICLETAS | N25: 4 | O25: 12 | P25: 0 | U25: CC-21509407 | V25: 5001 | W25: MEDELLÍN | X25: 4 | Y25: 0 | Z25: Natural | AA25: 5 | AB25: ANTIOQUIA | AC25: Aprobado con subsidio | AD25: 4 | AE25: MICRO | AF25: 4771 | AG25: COMERCIO AL POR MAYOR Y AL POR MENOR; REPARACIÓN DE VEHÍCULOS AUTOMOTORES Y MOTOCICLETAS | AH25: 3 | AI25: 1 | AJ25: 0 | AN25: =CONCATENATE(AO25,COUNTIF($AO$2:AO25,AO25)) -> 181 | AO25: 18 | AP25: 0.0006303845346 | AQ25: 144 | AR25: 0.0001797003497 | AS25: =+(SUMIFS(Montos!$Y$2:$Y$396864,Montos!$R$2:$R$396864,Base!AT25)/1000000) -> 283.139 | AT25: SAN RAFAEL
A26: CC-31954277 | B26: 76001 | C26: CALI | D26: 11 | E26: 0 | F26: Natural | G26: 76 | H26: VALLE DEL CAUCA | I26: Aprobado con subsidio | J26: 9 | K26: MICRO | L26: 4762 | M26: COMERCIO AL POR MAYOR Y AL POR MENOR; REPARACIÓN DE VEHÍCULOS AUTOMOTORES Y MOTOCICLETAS | N26: 6 | O26: 5 | P26: 0 | U26: CC-3412585 | V26: 5001 | W26: MEDELLÍN | X26: 7 | Y26: 0 | Z26: Natural | AA26: 5 | AB26: ANTIOQUIA | AC26: Aprobado con subsidio | AD26: 6 | AE26: MICRO | AF26: 4771 | AG26: COMERCIO AL POR MAYOR Y AL POR MENOR; REPARACIÓN DE VEHÍCULOS AUTOMOTORES Y MOTOCICLETAS | AH26: 4 | AI26: 3 | AJ26: 0 | AN26: =CONCATENATE(AO26,COUNTIF($AO$2:AO26,AO26)) -> 1831 | AO26: 183 | AP26: 0.006408909435 | AQ26: 6143 | AR26: 0.007665967 | AS26: =+(SUMIFS(Montos!$Y$2:$Y$396864,Montos!$R$2:$R$396864,Base!AT26)/1000000) -> 9822.495 | AT26: GUARNE
A27: CC-3232237 | B27: 11001 | C27: BOGOTÁ, D.C. | D27: 5 | E27: 0 | F27: Natural | G27: 11 | H27: BOGOTÁ, D.C. | I27: Aprobado con subsidio | J27: 9 | K27: MICRO | L27: 1410 | M27: INDUSTRIAS MANUFACTURERAS | N27: 5 | O27: 0 | P27: 0 | U27: NIT-901149487 | V27: 5001 | W27: MEDELLÍN | X27: 9 | Y27: 1 | Z27: Jurídica | AA27: 5 | AB27: ANTIOQUIA | AC27: Aprobado con subsidio | AD27: 10 | AE27: MICRO | AF27: 5611 | AG27: ALOJAMIENTO Y SERVICIOS DE COMIDA | AH27: 6 | AI27: 3 | AJ27: 0 | AN27: =CONCATENATE(AO27,COUNTIF($AO$2:AO27,AO27)) -> 1171 | AO27: 117 | AP27: 0.004097499475 | AQ27: 5795 | AR27: 0.007231691155 | AS27: =+(SUMIFS(Montos!$Y$2:$Y$396864,Montos!$R$2:$R$396864,Base!AT27)/1000000) -> 7126.943 | AT27: GIRARDOTA
A28: CC-32477712 | B28: 5001 | C28: MEDELLÍN | D28: 28 | E28: 3 | F28: Natural | G28: 5 | H28: ANTIOQUIA | I28: Aprobado con subsidio | J28: 27 | K28: PEQUEÑA | L28: 4775 | M28: COMERCIO AL POR MAYOR Y AL POR MENOR; REPARACIÓN DE VEHÍCULOS AUTOMOTORES Y MOTOCICLETAS | N28: 1 | O28: 27 | P28: 0 | U28: NIT-901088585 | V28: 5266 | W28: ENVIGADO | X28: 12 | Y28: 0 | Z28: Jurídica | AA28: 5 | AB28: ANTIOQUIA | AC28: Aprobado con subsidio | AD28: 12 | AE28: PEQUEÑA | AF28: 4773 | AG28: COMERCIO AL POR MAYOR Y AL POR MENOR; REPARACIÓN DE VEHÍCULOS AUTOMOTORES Y MOTOCICLETAS | AH28: 9 | AI28: 3 | AJ28: 0 | AN28: =CONCATENATE(AO28,COUNTIF($AO$2:AO28,AO28)) -> 21 | AO28: 2 | AP28: 7.004272606e-05 | AQ28: 40 | AR28: 4.99167638e-05 | AS28: =+(SUMIFS(Montos!$Y$2:$Y$396864,Montos!$R$2:$R$396864,Base!AT28)/1000000) -> 79.651 | AT28: URAMITA
A29: CC-32501707 | B29: 5631 | C29: SABANETA | D29: 4 | E29: 1 | F29: Natural | G29: 5 | H29: ANTIOQUIA | I29: Aprobado con subsidio | J29: 5 | K29: MICRO | L29: 5612 | M29: ALOJAMIENTO Y SERVICIOS DE COMIDA | N29: 4 | O29: 0 | P29: 0 | U29: NIT-901094825 | V29: 5380 | W29: LA ESTRELLA | X29: 10 | Y29: 0 | Z29: Jurídica | AA29: 5 | AB29: ANTIOQUIA | AC29: Aprobado con subsidio | AD29: 8 | AE29: MICRO | AF29: 5210 | AG29: TRANSPORTE Y ALMACENAMIENTO | AH29: 4 | AI29: 6 | AJ29: 0 | AN29: =CONCATENATE(AO29,COUNTIF($AO$2:AO29,AO29)) -> 22 | AO29: 2 | AP29: 7.004272606e-05 | AQ29: 12 | AR29: 1.497502914e-05 | AS29: =+(SUMIFS(Montos!$Y$2:$Y$396864,Montos!$R$2:$R$396864,Base!AT29)/1000000) -> 20.219 | AT29: CAROLINA
A30: CC-3264249 | B30: 11001 | C30: BOGOTÁ, D.C. | D30: 5 | E30: 0 | F30: Natural | G30: 11 | H30: BOGOTÁ, D.C. | I30: Aprobado con subsidio | J30: 5 | K30: MICRO | L30: 5611 | M30: ALOJAMIENTO Y SERVICIOS DE COMIDA | N30: 3 | O30: 2 | P30: 0 | U30: NIT-901166159 | V30: 5001 | W30: MEDELLÍN | X30: 23 | Y30: 0 | Z30: Jurídica | AA30: 5 | AB30: ANTIOQUIA | AC30: Aprobado con subsidio | AD30: 18 | AE30: PEQUEÑA | AF30: 9200 | AG30: ACTIVIDADES ARTÍSTICAS, DE ENTRETENIMIENTO Y RECREACIÓN | AH30: 8 | AI30: 15 | AJ30: 0 | AN30: =CONCATENATE(AO30,COUNTIF($AO$2:AO30,AO30)) -> 81 | AO30: 8 | AP30: 0.0002801709043 | AQ30: 123 | AR30: 0.0001534940487 | AS30: =+(SUMIFS(Montos!$Y$2:$Y$396864,Montos!$R$2:$R$396864,Base!AT30)/1000000) -> 214.515 | AT30: YONDÓ
A31: CC-32826857 | B31: 8001 | C31: BARRANQUILLA | D31: 7 | E31: 0 | F31: Natural | G31: 8 | H31: ATLÁNTICO | I31: Aprobado con subsidio | J31: 6 | K31: MICRO | L31: 4732 | M31: COMERCIO AL POR MAYOR Y AL POR MENOR; REPARACIÓN DE VEHÍCULOS AUTOMOTORES Y MOTOCICLETAS | N31: 3 | O31: 4 | P31: 0 | U31: CC-43093835 | V31: 5001 | W31: MEDELLÍN | X31: 8 | Y31: 1 | Z31: Natural | AA31: 5 | AB31: ANTIOQUIA | AC31: Aprobado con subsidio | AD31: 10 | AE31: MICRO | AF31: 3314 | AG31: INDUSTRIAS MANUFACTURERAS | AH31: 0 | AI31: 8 | AJ31: 0 | AN31: =CONCATENATE(AO31,COUNTIF($AO$2:AO31,AO31)) -> 1291 | AO31: 129 | AP31: 0.004517755831 | AQ31: 2071 | AR31: 0.002584440446 | AS31: =+(SUMIFS(Montos!$Y$2:$Y$396864,Montos!$R$2:$R$396864,Base!AT31)/1000000) -> 3210.317 | AT31: CAUCASIA
A32: CC-34565015 | B32: 5001 | C32: MEDELLÍN | D32: 4 | E32: 1 | F32: Natural | G32: 5 | H32: ANTIOQUIA | I32: Aprobado con subsidio | J32: 7 | K32: MICRO | L32: 5619 | M32: ALOJAMIENTO Y SERVICIOS DE COMIDA | N32: 2 | O32: 2 | P32: 0 | U32: NIT-890909419 | V32: 5579 | W32: PUERTO BERRÍO | X32: 7 | Y32: 1 | Z32: Jurídica | AA32: 5 | AB32: ANTIOQUIA | AC32: Aprobado con subsidio | AD32: 9 | AE32: MICRO | AF32: 4620 | AG32: COMERCIO AL POR MAYOR Y AL POR MENOR; REPARACIÓN DE VEHÍCULOS AUTOMOTORES Y MOTOCICLETAS | AH32: 6 | AI32: 1 | AJ32: 0 | AN32: =CONCATENATE(AO32,COUNTIF($AO$2:AO32,AO32)) -> 221 | AO32: 22 | AP32: 0.0007704699867 | AQ32: 225 | AR32: 0.0002807817964 | AS32: =+(SUMIFS(Montos!$Y$2:$Y$396864,Montos!$R$2:$R$396864,Base!AT32)/1000000) -> 462.061 | AT32: COCORNÁ
A33: CC-29056197 | B33: 76001 | C33: CALI | D33: 3 | E33: 0 | F33: Natural | G33: 76 | H33: VALLE DEL CAUCA | I33: Aprobado con subsidio | J33: 3 | K33: MICRO | L33: 1410 | M33: INDUSTRIAS MANUFACTURERAS | N33: 2 | O33: 1 | P33: 0 | U33: NIT-900941249 | V33: 5042 | W33: SANTAFÉ DE ANTIOQUIA | X33: 14 | Y33: 2 | Z33: Jurídica | AA33: 5 | AB33: ANTIOQUIA | AC33: Aprobado con subsidio | AD33: 16 | AE33: PEQUEÑA | AF33: 5611 | AG33: ALOJAMIENTO Y SERVICIOS DE COMIDA | AH33: 13 | AI33: 1 | AJ33: 0 | AN33: =CONCATENATE(AO33,COUNTIF($AO$2:AO33,AO33)) -> 451 | AO33: 45 | AP33: 0.001575961336 | AQ33: 529 | AR33: 0.0006601492012 | AS33: =+(SUMIFS(Montos!$Y$2:$Y$396864,Montos!$R$2:$R$396864,Base!AT33)/1000000) -> 765.692 | AT33: LA UNIÓN
A34: CC-34603509 | B34: 19698 | C34: SANTANDER DE QUILICHAO | D34: 5 | E34: 1 | F34: Natural | G34: 19 | H34: CAUCA | I34: Aprobado con subsidio | J34: 7 | K34: MICRO | L34: 4773 | M34: COMERCIO AL POR MAYOR Y AL POR MENOR; REPARACIÓN DE VEHÍCULOS AUTOMOTORES Y MOTOCICLETAS | N34: 5 | O34: 0 | P34: 0 | U34: NIT-901022100 | V34: 5001 | W34: MEDELLÍN | X34: 2 | Y34: 0 | Z34: Jurídica | AA34: 5 | AB34: ANTIOQUIA | AC34: Aprobado con subsidio | AD34: 3 | AE34: MICRO | AF34: 4530 | AG34: COMERCIO AL POR MAYOR Y AL POR MENOR; REPARACIÓN DE VEHÍCULOS AUTOMOTORES Y MOTOCICLETAS | AH34: 1 | AI34: 1 | AJ34: 0 | AN34: =CONCATENATE(AO34,COUNTIF($AO$2:AO34,AO34)) -> 941 | AO34: =+COUNTIFS($W$2:$W$399999,AT34,$AC$2:$AC$399999,"Aprobado con subsidio")*1 -> 94 | AP34: =+AO34/SUM($AO$2:$AO$129) -> 0.003292008125 | AQ34: =+SUMIFS($X$2:$X$399999,$W$2:$W$399999,AT34,$AC$2:$AC$399999,"Aprobado con subsidio") -> 1108 | AR34: 0.001382694357 | AS34: =+(SUMIFS(Montos!$Y$2:$Y$396864,Montos!$R$2:$R$396864,Base!AT34)/1000000) -> 2101.185 | AT34: TURBO
A35: CC-36086251 | B35: 41001 | C35: NEIVA | D35: 18 | E35: 1 | F35: Natural | G35: 41 | H35: HUILA | I35: Aprobado con subsidio | J35: 20 | K35: PEQUEÑA | L35: 8530 | M35: EDUCACIÓN | N35: 16 | O35: 2 | P35: 0 | U35: NIT-900070090 | V35: 5001 | W35: MEDELLÍN | X35: 6 | Y35: 1 | Z35: Jurídica | AA35: 5 | AB35: ANTIOQUIA | AC35: Aprobado con subsidio | AD35: 6 | AE35: MICRO | AF35: 4530 | AG35: COMERCIO AL POR MAYOR Y AL POR MENOR; REPARACIÓN DE VEHÍCULOS AUTOMOTORES Y MOTOCICLETAS | AH35: 3 | AI35: 3 | AJ35: 0 | AN35: =CONCATENATE(AO35,COUNTIF($AO$2:AO35,AO35)) -> 101 | AO35: 10 | AP35: 0.0003502136303 | AQ35: 56 | AR35: 6.988346931e-05 | AS35: =+(SUMIFS(Montos!$Y$2:$Y$396864,Montos!$R$2:$R$396864,Base!AT35)/1000000) -> 88.284 | AT35: FRONTINO
A36: CC-36288616 | B36: 41551 | C36: PITALITO | D36: 3 | E36: 2 | F36: Natural | G36: 41 | H36: HUILA | I36: Aprobado con subsidio | J36: 5 | K36: MICRO | L36: 4752 | M36: COMERCIO AL POR MAYOR Y AL POR MENOR; REPARACIÓN DE VEHÍCULOS AUTOMOTORES Y MOTOCICLETAS | N36: 0 | O36: 3 | P36: 0 | U36: NIT-900042919 | V36: 5001 | W36: MEDELLÍN | X36: 47 | Y36: 12 | Z36: Jurídica | AA36: 5 | AB36: ANTIOQUIA | AC36: Aprobado con subsidio | AD36: 44 | AE36: PEQUEÑA | AF36: 4390 | AG36: CONSTRUCCIÓN | AH36: 10 | AI36: 37 | AJ36: 0 | AN36: =CONCATENATE(AO36,COUNTIF($AO$2:AO36,AO36)) -> 41 | AO36: 4 | AP36: 0.0001400854521 | AQ36: 54 | AR36: 6.738763113e-05 | AS36: =+(SUMIFS(Montos!$Y$2:$Y$396864,Montos!$R$2:$R$396864,Base!AT36)/1000000) -> 343.262 | AT36: TARSO
A37: CC-36294696 | B37: 76001 | C37: CALI | D37: 3 | E37: 0 | F37: Natural | G37: 76 | H37: VALLE DEL CAUCA | I37: Aprobado con subsidio | J37: 3 | K37: MICRO | L37: 4752 | M37: COMERCIO AL POR MAYOR Y AL POR MENOR; REPARACIÓN DE VEHÍCULOS AUTOMOTORES Y MOTOCICLETAS | N37: 1 | O37: 2 | P37: 0 | U37: NIT-810006693 | V37: 5004 | W37: ABRIAQUÍ | X37: 95 | Y37: 164 | Z37: Jurídica | AA37: 5 | AB37: ANTIOQUIA | AC37: Aprobado con subsidio | AD37: 132 | AE37: MEDIANA | AF37: 5511 | AG37: ALOJAMIENTO Y SERVICIOS DE COMIDA | AH37: 41 | AI37: 52 | AJ37: 2 | AN37: =CONCATENATE(AO37,COUNTIF($AO$2:AO37,AO37)) -> 2581 | AO37: 258 | AP37: 0.009035511662 | AQ37: 7848 | AR37: 0.009793669057 | AS37: =+(SUMIFS(Montos!$Y$2:$Y$396864,Montos!$R$2:$R$396864,Base!AT37)/1000000) -> 9864.955 | AT37: COPACABANA
A38: CC-36487196 | B38: 20001 | C38: VALLEDUPAR | D38: 0 | E38: 0 | F38: Natural | G38: 20 | H38: CESAR | I38: Rechazado a nivel aportante | J38: 5 | K38: MICRO | L38: 141 | M38: AGRICULTURA, GANADERÍA, CAZA, SILVICULTURA Y PESCA | N38: 0 | O38: 0 | P38: 0 | U38: NIT-901004257 | V38: 5001 | W38: MEDELLÍN | X38: 22 | Y38: 1 | Z38: Jurídica | AA38: 5 | AB38: ANTIOQUIA | AC38: Aprobado con subsidio | AD38: 24 | AE38: PEQUEÑA | AF38: 9200 | AG38: ACTIVIDADES ARTÍSTICAS, DE ENTRETENIMIENTO Y RECREACIÓN | AH38: 8 | AI38: 14 | AJ38: 0 | AN38: =CONCATENATE(AO38,COUNTIF($AO$2:AO38,AO38)) -> 161 | AO38: 16 | AP38: 0.0005603418085 | AQ38: 96 | AR38: 0.0001198002331 | AS38: =+(SUMIFS(Montos!$Y$2:$Y$396864,Montos!$R$2:$R$396864,Base!AT38)/1000000) -> 183.05 | AT38: SAN PEDRO DE URABA
A39: CC-36561370 | B39: 8001 | C39: BARRANQUILLA | D39: 9 | E39: 3 | F39: Natural | G39: 8 | H39: ATLÁNTICO | I39: Aprobado con subsidio | J39: 9 | K39: MICRO | L39: 8512 | M39: EDUCACIÓN | N39: 9 | O39: 0 | P39: 0 | U39: CC-32431462 | V39: 5001 | W39: MEDELLÍN | X39: 25 | Y39: 1 | Z39: Natural | AA39: 5 | AB39: ANTIOQUIA | AC39: Aprobado con subsidio | AD39: 26 | AE39: PEQUEÑA | AF39: 8551 | AG39: EDUCACIÓN | AH39: 22 | AI39: 3 | AJ39: 0 | AN39: =CONCATENATE(AO39,COUNTIF($AO$2:AO39,AO39)) -> 171 | AO39: 17 | AP39: 0.0005953631715 | AQ39: 353 | AR39: 0.0004405154405 | AS39: =+(SUMIFS(Montos!$Y$2:$Y$396864,Montos!$R$2:$R$396864,Base!AT39)/1000000) -> 795.216 | AT39: SAN VICENTE
A40: CC-37083962 | B40: 52001 | C40: PASTO | D40: 12 | E40: 0 | F40: Natural | G40: 52 | H40: NARIÑO | I40: Aprobado con subsidio | J40: 10 | K40: MICRO | L40: 1081 | M40: INDUSTRIAS MANUFACTURERAS | N40: 6 | O40: 6 | P40: 0 | U40: NIT-900423199 | V40: 5001 | W40: MEDELLÍN | X40: 12 | Y40: 1 | Z40: Jurídica | AA40: 5 | AB40: ANTIOQUIA | AC40: Aprobado con subsidio | AD40: 8 | AE40: MICRO | AF40: 2100 | AG40: INDUSTRIAS MANUFACTURERAS | AH40: 7 | AI40: 5 | AJ40: 0 | AN40: =CONCATENATE(AO40,COUNTIF($AO$2:AO40,AO40)) -> 521 | AO40: 52 | AP40: 0.001821110878 | AQ40: 674 | AR40: 0.00084109747 | AS40: =+(SUMIFS(Montos!$Y$2:$Y$396864,Montos!$R$2:$R$396864,Base!AT40)/1000000) -> 1135.633 | AT40: SANTA ROSA DE OSOS
A41: CC-37840545 | B41: 68307 | C41: GIRÓN | D41: 9 | E41: 1 | F41: Natural | G41: 68 | H41: SANTANDER | I41: Aprobado con subsidio | J41: 10 | K41: MICRO | L41: 8512 | M41: EDUCACIÓN | N41: 8 | O41: 1 | P41: 0 | U41: NIT-900535876 | V41: 5088 | W41: BELLO | X41: 20 | Y41: 4 | Z41: Jurídica | AA41: 5 | AB41: ANTIOQUIA | AC41: Aprobado con subsidio | AD41: 20 | AE41: PEQUEÑA | AF41: 4775 | AG41: COMERCIO AL POR MAYOR Y AL POR MENOR; REPARACIÓN DE VEHÍCULOS AUTOMOTORES Y MOTOCICLETAS | AH41: 11 | AI41: 9 | AJ41: 0 | AN41: =CONCATENATE(AO41,COUNTIF($AO$2:AO41,AO41)) -> 172 | AO41: 17 | AP41: 0.0005953631715 | AQ41: 217 | AR41: 0.0002707984436 | AS41: =+(SUMIFS(Montos!$Y$2:$Y$396864,Montos!$R$2:$R$396864,Base!AT41)/1000000) -> 336.947 | AT41: LA PINTADA
A42: CC-39657540 | B42: 11001 | C42: BOGOTÁ, D.C. | D42: 17 | E42: 1 | F42: Natural | G42: 11 | H42: BOGOTÁ, D.C. | I42: Aprobado con subsidio | J42: 18 | K42: PEQUEÑA | L42: 8512 | M42: EDUCACIÓN | N42: 15 | O42: 2 | P42: 0 | U42: NIT-900022709 | V42: 5001 | W42: MEDELLÍN | X42: 18 | Y42: 1 | Z42: Jurídica | AA42: 5 | AB42: ANTIOQUIA | AC42: Aprobado con subsidio | AD42: 16 | AE42: PEQUEÑA | AF42: 4530 | AG42: COMERCIO AL POR MAYOR Y AL POR MENOR; REPARACIÓN DE VEHÍCULOS AUTOMOTORES Y MOTOCICLETAS | AH42: 4 | AI42: 14 | AJ42: 0 | AN42: =CONCATENATE(AO42,COUNTIF($AO$2:AO42,AO42)) -> 1131 | AO42: 113 | AP42: 0.003957414023 | AQ42: 2030 | AR42: 0.002533275763 | AS42: =+(SUMIFS(Montos!$Y$2:$Y$396864,Montos!$R$2:$R$396864,Base!AT42)/1000000) -> 3238.74 | AT42: RETIRO
A43: CC-39748747 | B43: 19001 | C43: POPAYÁN | D43: 9 | E43: 0 | F43: Natural | G43: 19 | H43: CAUCA | I43: Aprobado con subsidio | J43: 9 | K43: MICRO | L43: 4530 | M43: COMERCIO AL POR MAYOR Y AL POR MENOR; REPARACIÓN DE VEHÍCULOS AUTOMOTORES Y MOTOCICLETAS | N43: 1 | O43: 8 | P43: 0 | U43: NIT-900843619 | V43: 5001 | W43: MEDELLÍN | X43: 11 | Y43: 5 | Z43: Jurídica | AA43: 5 | AB43: ANTIOQUIA | AC43: Aprobado con subsidio | AD43: 10 | AE43: MICRO | AF43: 2512 | AG43: INDUSTRIAS MANUFACTURERAS | AH43: 2 | AI43: 9 | AJ43: 0 | AN43: =CONCATENATE(AO43,COUNTIF($AO$2:AO43,AO43)) -> 381 | AO43: 38 | AP43: 0.001330811795 | AQ43: 560 | AR43: 0.0006988346931 | AS43: =+(SUMIFS(Montos!$Y$2:$Y$396864,Montos!$R$2:$R$396864,Base!AT43)/1000000) -> 832.193 | AT43: YARUMAL
A44: CC-39762644 | B44: 25473 | C44: MOSQUERA | D44: 5 | E44: 0 | F44: Natural | G44: 25 | H44: CUNDINAMARCA | I44: Aprobado con subsidio | J44: 5 | K44: MICRO | L44: 8413 | M44: ADMINISTRACIÓN PÚBLICA Y DEFENSA; PLANES DE SEGURIDAD SOCIAL DE AFILIACIÓN OBLIGATORIA | N44: 5 | O44: 0 | P44: 0 | U44: NIT-811032833 | V44: 5088 | W44: BELLO | X44: 25 | Y44: 6 | Z44: Jurídica | AA44: 5 | AB44: ANTIOQUIA | AC44: Aprobado con subsidio | AD44: 33 | AE44: PEQUEÑA | AF44: 3290 | AG44: INDUSTRIAS MANUFACTURERAS | AH44: 12 | AI44: 13 | AJ44: 0 | AN44: =CONCATENATE(AO44,COUNTIF($AO$2:AO44,AO44)) -> 51 | AO44: 5 | AP44: 0.0001751068152 | AQ44: 60 | AR44: 7.487514569e-05 | AS44: =+(SUMIFS(Montos!$Y$2:$Y$396864,Montos!$R$2:$R$396864,Base!AT44)/1000000) -> 64.943 | AT44: CAÑASGORDAS
A45: CC-39797469 | B45: 11001 | C45: BOGOTÁ, D.C. | D45: 0 | E45: 0 | F45: Natural | G45: 11 | H45: BOGOTÁ, D.C. | I45: Rechazado a nivel aportante | J45: 10 | K45: MICRO | L45: 4755 | M45: COMERCIO AL POR MAYOR Y AL POR MENOR; REPARACIÓN DE VEHÍCULOS AUTOMOTORES Y MOTOCICLETAS | N45: 0 | O45: 0 | P45: 0 | U45: NIT-900338602 | V45: 5001 | W45: MEDELLÍN | X45: 30 | Y45: 1 | Z45: Jurídica | AA45: 5 | AB45: ANTIOQUIA | AC45: Aprobado con subsidio | AD45: 27 | AE45: PEQUEÑA | AF45: 2599 | AG45: INDUSTRIAS MANUFACTURERAS | AH45: 5 | AI45: 25 | AJ45: 0 | AN45: =CONCATENATE(AO45,COUNTIF($AO$2:AO45,AO45)) -> 281 | AO45: 28 | AP45: 0.0009805981649 | AQ45: 242 | AR45: 0.000301996421 | AS45: =+(SUMIFS(Montos!$Y$2:$Y$396864,Montos!$R$2:$R$396864,Base!AT45)/1000000) -> 558.621 | AT45: JARDÍN
A46: CC-40018435 | B46: 15001 | C46: TUNJA | D46: 0 | E46: 0 | F46: Natural | G46: 15 | H46: BOYACÁ | I46: Rechazado a nivel aportante | J46: 3 | K46: MICRO | L46: 4719 | M46: COMERCIO AL POR MAYOR Y AL POR MENOR; REPARACIÓN DE VEHÍCULOS AUTOMOTORES Y MOTOCICLETAS | N46: 0 | O46: 0 | P46: 0 | U46: NIT-900516153 | V46: 5266 | W46: ENVIGADO | X46: 27 | Y46: 1 | Z46: Jurídica | AA46: 5 | AB46: ANTIOQUIA | AC46: Aprobado con subsidio | AD46: 25 | AE46: PEQUEÑA | AF46: 4731 | AG46: COMERCIO AL POR MAYOR Y AL POR MENOR; REPARACIÓN DE VEHÍCULOS AUTOMOTORES Y MOTOCICLETAS | AH46: 10 | AI46: 17 | AJ46: 0 | AN46: =CONCATENATE(AO46,COUNTIF($AO$2:AO46,AO46)) -> 162 | AO46: 16 | AP46: 0.0005603418085 | AQ46: 103 | AR46: 0.0001285356668 | AS46: =+(SUMIFS(Montos!$Y$2:$Y$396864,Montos!$R$2:$R$396864,Base!AT46)/1000000) -> 239.173 | AT46: SANTA BÁRBARA
A47: CC-40341190 | B47: 11001 | C47: BOGOTÁ, D.C. | D47: 4 | E47: 1 | F47: Natural | G47: 11 | H47: BOGOTÁ, D.C. | I47: Aprobado con subsidio | J47: 9 | K47: MICRO | L47: 5619 | M47: ALOJAMIENTO Y SERVICIOS DE COMIDA | N47: 3 | O47: 1 | P47: 0 | U47: NIT-890984813 | V47: 5001 | W47: MEDELLÍN | X47: 47 | Y47: 0 | Z47: Jurídica | AA47: 5 | AB47: ANTIOQUIA | AC47: Aprobado con subsidio | AD47: 44 | AE47: PEQUEÑA | AF47: 8542 | AG47: EDUCACIÓN | AH47: 27 | AI47: 20 | AJ47: 0 | AN47: =CONCATENATE(AO47,COUNTIF($AO$2:AO47,AO47)) -> 32 | AO47: 3 | AP47: 0.0001050640891 | AQ47: 34 | AR47: 4.242924923e-05 | AS47: =+(SUMIFS(Montos!$Y$2:$Y$396864,Montos!$R$2:$R$396864,Base!AT47)/1000000) -> 28.825 | AT47: TOLEDO
A48: CC-40373918 | B48: 95001 | C48: SAN JOSÉ DEL GUAVIARE | D48: 55 | E48: 8 | F48: Natural | G48: 95 | H48: GUAVIARE | I48: Aprobado con subsidio | J48: 61 | K48: MEDIANA | L48: 4541 | M48: COMERCIO AL POR MAYOR Y AL POR MENOR; REPARACIÓN DE VEHÍCULOS AUTOMOTORES Y MOTOCICLETAS | N48: 35 | O48: 20 | P48: 0 | U48: NIT-900730323 | V48: 5266 | W48: ENVIGADO | X48: 14 | Y48: 7 | Z48: Jurídica | AA48: 5 | AB48: ANTIOQUIA | AC48: Aprobado con subsidio | AD48: 10 | AE48: MICRO | AF48: 2511 | AG48: INDUSTRIAS MANUFACTURERAS | AH48: 0 | AI48: 14 | AJ48: 0 | AN48: =CONCATENATE(AO48,COUNTIF($AO$2:AO48,AO48)) -> 52 | AO48: 5 | AP48: 0.0001751068152 | AQ48: 37 | AR48: 4.617300651e-05 | AS48: =+(SUMIFS(Montos!$Y$2:$Y$396864,Montos!$R$2:$R$396864,Base!AT48)/1000000) -> 43.441 | AT48: PUEBLORRICO
A49: CC-35533530 | B49: 25269 | C49: FACATATIVÁ | D49: 5 | E49: 0 | F49: Natural | G49: 25 | H49: CUNDINAMARCA | I49: Aprobado con subsidio | J49: 5 | K49: MICRO | L49: 7020 | M49: ACTIVIDADES PROFESIONALES, CIENTÍFICAS Y TÉCNICAS | N49: 5 | O49: 0 | P49: 0 | U49: NIT-811018771 | V49: 5001 | W49: MEDELLÍN | X49: 1049 | Y49: 423 | Z49: Jurídica | AA49: 5 | AB49: ANTIOQUIA | AC49: Aprobado con subsidio | AD49: 1014 | AE49: MUY GRANDE | AF49: 4771 | AG49: COMERCIO AL POR MAYOR Y AL POR MENOR; REPARACIÓN DE VEHÍCULOS AUTOMOTORES Y MOTOCICLETAS | AH49: 746 | AI49: 303 | AJ49: 0 | AN49: =CONCATENATE(AO49,COUNTIF($AO$2:AO49,AO49)) -> 661 | AO49: 66 | AP49: 0.00231140996 | AQ49: 1345 | AR49: 0.001678451183 | AS49: =+(SUMIFS(Montos!$Y$2:$Y$396864,Montos!$R$2:$R$396864,Base!AT49)/1000000) -> 2305.301 | AT49: BARBOSA
A50: CC-40399607 | B50: 50001 | C50: VILLAVICENCIO | D50: 5 | E50: 0 | F50: Natural | G50: 50 | H50: META | I50: Aprobado con subsidio | J50: 6 | K50: MICRO | L50: 8511 | M50: EDUCACIÓN | N50: 5 | O50: 0 | P50: 0 | U50: NIT-900560103 | V50: 5001 | W50: MEDELLÍN | X50: 74 | Y50: 12 | Z50: Jurídica | AA50: 5 | AB50: ANTIOQUIA | AC50: Aprobado con subsidio | AD50: 65 | AE50: MEDIANA | AF50: 9200 | AG50: ACTIVIDADES ARTÍSTICAS, DE ENTRETENIMIENTO Y RECREACIÓN | AH50: 36 | AI50: 38 | AJ50: 0 | AN50: =CONCATENATE(AO50,COUNTIF($AO$2:AO50,AO50)) -> 691 | AO50: 69 | AP50: 0.002416474049 | AQ50: 1911 | AR50: 0.00238477339 | AS50: =+(SUMIFS(Montos!$Y$2:$Y$396864,Montos!$R$2:$R$396864,Base!AT50)/1000000) -> 2921.344 | AT50: AMAGÁ
A51: CC-40778836 | B51: 11001 | C51: BOGOTÁ, D.C. | D51: 8 | E51: 2 | F51: Natural | G51: 11 | H51: BOGOTÁ, D.C. | I51: Aprobado con subsidio | J51: 7 | K51: MICRO | L51: 8621 | M51: ACTIVIDADES DE ATENCIÓN DE LA SALUD HUMANA Y DE ASISTENCIA SOCIAL | N51: 7 | O51: 1 | P51: 0 | U51: NIT-900346662 | V51: 5001 | W51: MEDELLÍN | X51: 197 | Y51: 143 | Z51: Jurídica | AA51: 5 | AB51: ANTIOQUIA | AC51: Aprobado con subsidio | AD51: 518 | AE51: MUY GRANDE | AF51: 7820 | AG51: ACTIVIDADES DE SERVICIOS ADMINISTRATIVOS Y DE APOYO | AH51: 104 | AI51: 93 | AJ51: 0 | AN51: =CONCATENATE(AO51,COUNTIF($AO$2:AO51,AO51)) -> 301 | AO51: 30 | AP51: 0.001050640891 | AQ51: 423 | AR51: 0.0005278697771 | AS51: =+(SUMIFS(Montos!$Y$2:$Y$396864,Montos!$R$2:$R$396864,Base!AT51)/1000000) -> 672.481 | AT51: PUERTO TRIUNFO
A52: CC-40983952 | B52: 13001 | C52: CARTAGENA | D52: 5 | E52: 2 | F52: Natural | G52: 13 | H52: BOLÍVAR | I52: Aprobado con subsidio | J52: 6 | K52: MICRO | L52: 4762 | M52: COMERCIO AL POR MAYOR Y AL POR MENOR; REPARACIÓN DE VEHÍCULOS AUTOMOTORES Y MOTOCICLETAS | N52: 2 | O52: 3 | P52: 0 | U52: NIT-900349155 | V52: 5001 | W52: MEDELLÍN | X52: 12 | Y52: 0 | Z52: Jurídica | AA52: 5 | AB52: ANTIOQUIA | AC52: Aprobado con subsidio | AD52: 12 | AE52: PEQUEÑA | AF52: 4530 | AG52: COMERCIO AL POR MAYOR Y AL POR MENOR; REPARACIÓN DE VEHÍCULOS AUTOMOTORES Y MOTOCICLETAS | AH52: 4 | AI52: 8 | AJ52: 0 | AN52: =CONCATENATE(AO52,COUNTIF($AO$2:AO52,AO52)) -> 191 | AO52: 19 | AP52: 0.0006654058976 | AQ52: 1010 | AR52: 0.001260398286 | AS52: =+(SUMIFS(Montos!$Y$2:$Y$396864,Montos!$R$2:$R$396864,Base!AT52)/1000000) -> 772.424 | AT52: SEGOVIA
A53: CC-41423685 | B53: 11001 | C53: BOGOTÁ, D.C. | D53: 3 | E53: 0 | F53: Natural | G53: 11 | H53: BOGOTÁ, D.C. | I53: Aprobado con subsidio | J53: 3 | K53: MICRO | L53: 4754 | M53: COMERCIO AL POR MAYOR Y AL POR MENOR; REPARACIÓN DE VEHÍCULOS AUTOMOTORES Y MOTOCICLETAS | N53: 1 | O53: 2 | P53: 0 | U53: NIT-900361575 | V53: 5001 | W53: MEDELLÍN | X53: 1 | Y53: 0 | Z53: Jurídica | AA53: 5 | AB53: ANTIOQUIA | AC53: Aprobado con subsidio | AD53: 1 | AE53: MICRO | AF53: 8621 | AG53: ACTIVIDADES DE ATENCIÓN DE LA SALUD HUMANA Y DE ASISTENCIA SOCIAL | AH53: 1 | AI53: 0 | AJ53: 0 | AN53: =CONCATENATE(AO53,COUNTIF($AO$2:AO53,AO53)) -> 173 | AO53: 17 | AP53: 0.0005953631715 | AQ53: 325 | AR53: 0.0004055737058 | AS53: =+(SUMIFS(Montos!$Y$2:$Y$396864,Montos!$R$2:$R$396864,Base!AT53)/1000000) -> 799.146 | AT53: SALGAR
A54: CC-41458000 | B54: 15407 | C54: VILLA DE LEYVA | D54: 11 | E54: 0 | F54: Natural | G54: 15 | H54: BOYACÁ | I54: Aprobado con subsidio | J54: 13 | K54: PEQUEÑA | L54: 5511 | M54: ALOJAMIENTO Y SERVICIOS DE COMIDA | N54: 7 | O54: 4 | P54: 0 | U54: NIT-900450104 | V54: 5001 | W54: MEDELLÍN | X54: 1 | Y54: 0 | Z54: Jurídica | AA54: 5 | AB54: ANTIOQUIA | AC54: Aprobado con subsidio | AD54: 1 | AE54: MICRO | AF54: 9200 | AG54: ACTIVIDADES ARTÍSTICAS, DE ENTRETENIMIENTO Y RECREACIÓN | AH54: 1 | AI54: 0 | AJ54: 0 | AN54: =CONCATENATE(AO54,COUNTIF($AO$2:AO54,AO54)) -> 681 | AO54: 68 | AP54: 0.002381452686 | AQ54: 798 | AR54: 0.0009958394377 | AS54: =+(SUMIFS(Montos!$Y$2:$Y$396864,Montos!$R$2:$R$396864,Base!AT54)/1000000) -> 1491.673 | AT54: CHIGORODÓ
A55: CC-41573200 | B55: 11001 | C55: BOGOTÁ, D.C. | D55: 9 | E55: 0 | F55: Natural | G55: 11 | H55: BOGOTÁ, D.C. | I55: Aprobado con subsidio | J55: 9 | K55: MICRO | L55: 8513 | M55: EDUCACIÓN | N55: 9 | O55: 0 | P55: 0 | U55: NIT-900461621 | V55: 5631 | W55: SABANETA | X55: 25 | Y55: 4 | Z55: Jurídica | AA55: 5 | AB55: ANTIOQUIA | AC55: Aprobado con subsidio | AD55: 16 | AE55: PEQUEÑA | AF55: 2511 | AG55: INDUSTRIAS MANUFACTURERAS | AH55: 1 | AI55: 24 | AJ55: 0 | AN55: =CONCATENATE(AO55,COUNTIF($AO$2:AO55,AO55)) -> 211 | AO55: 21 | AP55: 0.0007354486237 | AQ55: 298 | AR55: 0.0003718798903 | AS55: =+(SUMIFS(Montos!$Y$2:$Y$396864,Montos!$R$2:$R$396864,Base!AT55)/1000000) -> 577.7 | AT55: JERICÓ
A56: NIT-416733477 | B56: 11001 | C56: BOGOTÁ, D.C. | D56: 0 | E56: 0 | F56: Jurídica | G56: 11 | H56: BOGOTÁ, D.C. | I56: Rechazado a nivel aportante | J56: 0 | K56: $null$ | L56: 5611 | M56: ALOJAMIENTO Y SERVICIOS DE COMIDA | N56: 0 | O56: 0 | P56: 0 | U56: NIT-900465536 | V56: 5001 | W56: MEDELLÍN | X56: 39 | Y56: 4 | Z56: Jurídica | AA56: 5 | AB56: ANTIOQUIA | AC56: Aprobado con subsidio | AD56: 41 | AE56: PEQUEÑA | AF56: 6201 | AG56: INFORMACIÓN Y COMUNICACIONES | AH56: 9 | AI56: 30 | AJ56: 0 | AN56: =CONCATENATE(AO56,COUNTIF($AO$2:AO56,AO56)) -> 222 | AO56: 22 | AP56: 0.0007704699867 | AQ56: 247 | AR56: 0.0003082360164 | AS56: =+(SUMIFS(Montos!$Y$2:$Y$396864,Montos!$R$2:$R$396864,Base!AT56)/1000000) -> 575.577 | AT56: TÁMESIS
A57: CC-41695731 | B57: 25286 | C57: FUNZA | D57: 16 | E57: 4 | F57: Natural | G57: 25 | H57: CUNDINAMARCA | I57: Aprobado con subsidio | J57: 15 | K57: PEQUEÑA | L57: 8513 | M57: EDUCACIÓN | N57: 13 | O57: 3 | P57: 0 | U57: NIT-900483711 | V57: 5001 | W57: MEDELLÍN | X57: 118 | Y57: 0 | Z57: Jurídica | AA57: 5 | AB57: ANTIOQUIA | AC57: Aprobado con subsidio | AD57: 129 | AE57: MEDIANA | AF57: 7110 | AG57: ACTIVIDADES PROFESIONALES, CIENTÍFICAS Y TÉCNICAS | AH57: 58 | AI57: 60 | AJ57: 0 | AN57: =CONCATENATE(AO57,COUNTIF($AO$2:AO57,AO57)) -> 511 | AO57: 51 | AP57: 0.001786089515 | AQ57: 597 | AR57: 0.0007450076997 | AS57: =+(SUMIFS(Montos!$Y$2:$Y$396864,Montos!$R$2:$R$396864,Base!AT57)/1000000) -> 967.196 | AT57: SAN PEDRO DE LOS MILAGROS
A58: CC-41698241 | B58: 50001 | C58: VILLAVICENCIO | D58: 12 | E58: 1 | F58: Natural | G58: 50 | H58: META | I58: Aprobado con subsidio | J58: 15 | K58: PEQUEÑA | L58: 4731 | M58: COMERCIO AL POR MAYOR Y AL POR MENOR; REPARACIÓN DE VEHÍCULOS AUTOMOTORES Y MOTOCICLETAS | N58: 9 | O58: 3 | P58: 0 | U58: NIT-900488793 | V58: 5360 | W58: ITAGUI | X58: 30 | Y58: 5 | Z58: Jurídica | AA58: 5 | AB58: ANTIOQUIA | AC58: Aprobado con subsidio | AD58: 36 | AE58: PEQUEÑA | AF58: 4923 | AG58: TRANSPORTE Y ALMACENAMIENTO | AH58: 16 | AI58: 14 | AJ58: 0 | AN58: =CONCATENATE(AO58,COUNTIF($AO$2:AO58,AO58)) -> 82 | AO58: 8 | AP58: 0.0002801709043 | AQ58: 1036 | AR58: 0.001292844182 | AS58: =+(SUMIFS(Montos!$Y$2:$Y$396864,Montos!$R$2:$R$396864,Base!AT58)/1000000) -> 407.696 | AT58: TARAZÁ
A59: CC-41894919 | B59: 63001 | C59: ARMENIA | D59: 5 | E59: 1 | F59: Natural | G59: 63 | H59: QUINDÍO | I59: Aprobado con subsidio | J59: 5 | K59: MICRO | L59: 5611 | M59: ALOJAMIENTO Y SERVICIOS DE COMIDA | N59: 2 | O59: 3 | P59: 0 | U59: NIT-900491757 | V59: 5001 | W59: MEDELLÍN | X59: 33 | Y59: 2 | Z59: Jurídica | AA59: 5 | AB59: ANTIOQUIA | AC59: Aprobado con subsidio | AD59: 37 | AE59: PEQUEÑA | AF59: 9200 | AG59: ACTIVIDADES ARTÍSTICAS, DE ENTRETENIMIENTO Y RECREACIÓN | AH59: 20 | AI59: 13 | AJ59: 0 | AN59: =CONCATENATE(AO59,COUNTIF($AO$2:AO59,AO59)) -> 42 | AO59: 4 | AP59: 0.0001400854521 | AQ59: 50 | AR59: 6.239595475e-05 | AS59: =+(SUMIFS(Montos!$Y$2:$Y$396864,Montos!$R$2:$R$396864,Base!AT59)/1000000) -> 127.689 | AT59: NARIÑO
A60: CC-4211190 | B60: 15759 | C60: SOGAMOSO | D60: 13 | E60: 0 | F60: Natural | G60: 15 | H60: BOYACÁ | I60: Aprobado con subsidio | J60: 13 | K60: PEQUEÑA | L60: 2395 | M60: INDUSTRIAS MANUFACTURERAS | N60: 1 | O60: 12 | P60: 0 | U60: NIT-900497017 | V60: 5001 | W60: MEDELLÍN | X60: 24 | Y60: 2 | Z60: Jurídica | AA60: 5 | AB60: ANTIOQUIA | AC60: Aprobado con subsidio | AD60: 23 | AE60: PEQUEÑA | AF60: 4659 | AG60: COMERCIO AL POR MAYOR Y AL POR MENOR; REPARACIÓN DE VEHÍCULOS AUTOMOTORES Y MOTOCICLETAS | AH60: 13 | AI60: 11 | AJ60: 0 | AN60: =CONCATENATE(AO60,COUNTIF($AO$2:AO60,AO60)) -> 53 | AO60: 5 | AP60: 0.0001751068152 | AQ60: 64 | AR60: 7.986682207e-05 | AS60: =+(SUMIFS(Montos!$Y$2:$Y$396864,Montos!$R$2:$R$396864,Base!AT60)/1000000) -> 164.255 | AT60: ANORÍ
A61: CC-42120730 | B61: 66001 | C61: PEREIRA | D61: 5 | E61: 0 | F61: Natural | G61: 66 | H61: RISARALDA | I61: Aprobado con subsidio | J61: 7 | K61: MICRO | L61: 8530 | M61: EDUCACIÓN | N61: 5 | O61: 0 | P61: 0 | U61: NIT-900499520 | V61: 5001 | W61: MEDELLÍN | X61: 51 | Y61: 10 | Z61: Jurídica | AA61: 5 | AB61: ANTIOQUIA | AC61: Aprobado con subsidio | AD61: 67 | AE61: MEDIANA | AF61: 9200 | AG61: ACTIVIDADES ARTÍSTICAS, DE ENTRETENIMIENTO Y RECREACIÓN | AH61: 41 | AI61: 10 | AJ61: 0 | AN61: =CONCATENATE(AO61,COUNTIF($AO$2:AO61,AO61)) -> 223 | AO61: 22 | AP61: 0.0007704699867 | AQ61: 284 | AR61: 0.000354409023 | AS61: =+(SUMIFS(Montos!$Y$2:$Y$396864,Montos!$R$2:$R$396864,Base!AT61)/1000000) -> 357.137 | AT61: FREDONIA
A62: CC-4279737 | B62: 11001 | C62: BOGOTÁ, D.C. | D62: 10 | E62: 8 | F62: Natural | G62: 11 | H62: BOGOTÁ, D.C. | I62: Aprobado con subsidio | J62: 10 | K62: MICRO | L62: 4290 | M62: CONSTRUCCIÓN | N62: 0 | O62: 10 | P62: 0 | U62: NIT-900381799 | V62: 5001 | W62: MEDELLÍN | X62: 42 | Y62: 1 | Z62: Jurídica | AA62: 5 | AB62: ANTIOQUIA | AC62: Aprobado con subsidio | AD62: 45 | AE62: PEQUEÑA | AF62: 2610 | AG62: INDUSTRIAS MANUFACTURERAS | AH62: 26 | AI62: 16 | AJ62: 0 | AN62: =CONCATENATE(AO62,COUNTIF($AO$2:AO62,AO62)) -> 212 | AO62: 21 | AP62: 0.0007354486237 | AQ62: 414 | AR62: 0.0005166385053 | AS62: =+(SUMIFS(Montos!$Y$2:$Y$396864,Montos!$R$2:$R$396864,Base!AT62)/1000000) -> 420.131 | AT62: ENTRERRIOS
A63: CC-42939578 | B63: 5031 | C63: AMALFI | D63: 60 | E63: 12 | F63: Natural | G63: 5 | H63: ANTIOQUIA | I63: Aprobado con subsidio | J63: 69 | K63: MEDIANA | L63: 6621 | M63: ACTIVIDADES FINANCIERAS Y DE SEGUROS | N63: 29 | O63: 31 | P63: 0 | U63: NIT-900384730 | V63: 5001 | W63: MEDELLÍN | X63: 11 | Y63: 0 | Z63: Jurídica | AA63: 5 | AB63: ANTIOQUIA | AC63: Aprobado con subsidio | AD63: 11 | AE63: PEQUEÑA | AF63: 4631 | AG63: COMERCIO AL POR MAYOR Y AL POR MENOR; REPARACIÓN DE VEHÍCULOS AUTOMOTORES Y MOTOCICLETAS | AH63: 3 | AI63: 8 | AJ63: 0 | AN63: =CONCATENATE(AO63,COUNTIF($AO$2:AO63,AO63)) -> 102 | AO63: 10 | AP63: 0.0003502136303 | AQ63: 116 | AR63: 0.000144758615 | AS63: =+(SUMIFS(Montos!$Y$2:$Y$396864,Montos!$R$2:$R$396864,Base!AT63)/1000000) -> 190.018 | AT63: MACEO
A64: CC-43141747 | B64: 5001 | C64: MEDELLÍN | D64: 25 | E64: 6 | F64: Natural | G64: 5 | H64: ANTIOQUIA | I64: Aprobado con subsidio | J64: 17 | K64: PEQUEÑA | L64: 4761 | M64: COMERCIO AL POR MAYOR Y AL POR MENOR; REPARACIÓN DE VEHÍCULOS AUTOMOTORES Y MOTOCICLETAS | N64: 12 | O64: 13 | P64: 0 | U64: NIT-900394581 | V64: 5001 | W64: MEDELLÍN | X64: 19 | Y64: 2 | Z64: Jurídica | AA64: 5 | AB64: ANTIOQUIA | AC64: Aprobado con subsidio | AD64: 21 | AE64: PEQUEÑA | AF64: 6202 | AG64: INFORMACIÓN Y COMUNICACIONES | AH64: 6 | AI64: 13 | AJ64: 0 | AN64: =CONCATENATE(AO64,COUNTIF($AO$2:AO64,AO64)) -> 182 | AO64: 18 | AP64: 0.0006303845346 | AQ64: 457 | AR64: 0.0005702990264 | AS64: =+(SUMIFS(Montos!$Y$2:$Y$396864,Montos!$R$2:$R$396864,Base!AT64)/1000000) -> 1014.759 | AT64: ANGELÓPOLIS
A65: CC-4342855 | B65: 17042 | C65: ANSERMA | D65: 0 | E65: 0 | F65: Natural | G65: 17 | H65: CALDAS | I65: Rechazado a nivel aportante | J65: 3 | K65: MICRO | L65: 5511 | M65: ALOJAMIENTO Y SERVICIOS DE COMIDA | N65: 0 | O65: 0 | P65: 0 | U65: NIT-900396040 | V65: 5697 | W65: EL SANTUARIO | X65: 13 | Y65: 2 | Z65: Jurídica | AA65: 5 | AB65: ANTIOQUIA | AC65: Aprobado con subsidio | AD65: 11 | AE65: PEQUEÑA | AF65: 4661 | AG65: COMERCIO AL POR MAYOR Y AL POR MENOR; REPARACIÓN DE VEHÍCULOS AUTOMOTORES Y MOTOCICLETAS | AH65: 3 | AI65: 10 | AJ65: 0 | AN65: =CONCATENATE(AO65,COUNTIF($AO$2:AO65,AO65)) -> 201 | AO65: 20 | AP65: 0.0007004272606 | AQ65: 137 | AR65: 0.000170964916 | AS65: =+(SUMIFS(Montos!$Y$2:$Y$396864,Montos!$R$2:$R$396864,Base!AT65)/1000000) -> 243.761 | AT65: VENECIA
A66: CC-41171107 | B66: 5001 | C66: MEDELLÍN | D66: 3 | E66: 0 | F66: Natural | G66: 5 | H66: ANTIOQUIA | I66: Aprobado con subsidio | J66: 3 | K66: MICRO | L66: 3250 | M66: INDUSTRIAS MANUFACTURERAS | N66: 2 | O66: 1 | P66: 0 | U66: NIT-900415643 | V66: 5380 | W66: LA ESTRELLA | X66: 2 | Y66: 0 | Z66: Jurídica | AA66: 5 | AB66: ANTIOQUIA | AC66: Aprobado con subsidio | AD66: 2 | AE66: MICRO | AF66: 4921 | AG66: TRANSPORTE Y ALMACENAMIENTO | AH66: 0 | AI66: 2 | AJ66: 0 | AN66: =CONCATENATE(AO66,COUNTIF($AO$2:AO66,AO66)) -> 54 | AO66: =+COUNTIFS($W$2:$W$399999,AT66,$AC$2:$AC$399999,"Aprobado con subsidio")*1 -> 5 | AP66: =+AO66/SUM($AO$2:$AO$129) -> 0.0001751068152 | AQ66: =+SUMIFS($X$2:$X$399999,$W$2:$W$399999,AT66,$AC$2:$AC$399999,"Aprobado con subsidio") -> 156 | AR66: 0.0001946753788 | AS66: =+(SUMIFS(Montos!$Y$2:$Y$396864,Montos!$R$2:$R$396864,Base!AT66)/1000000) -> 123.487 | AT66: SABANALARGA
A67: CC-43561957 | B67: 5045 | C67: APARTADÓ | D67: 4 | E67: 2 | F67: Natural | G67: 5 | H67: ANTIOQUIA | I67: Aprobado con subsidio | J67: 4 | K67: MICRO | L67: 3290 | M67: INDUSTRIAS MANUFACTURERAS | N67: 4 | O67: 0 | P67: 0 | U67: NIT-900272777 | V67: 5360 | W67: ITAGUI | X67: 83 | Y67: 9 | Z67: Jurídica | AA67: 5 | AB67: ANTIOQUIA | AC67: Aprobado con subsidio | AD67: 82 | AE67: MEDIANA | AF67: 5224 | AG67: TRANSPORTE Y ALMACENAMIENTO | AH67: 2 | AI67: 81 | AJ67: 0 | AN67: =CONCATENATE(AO67,COUNTIF($AO$2:AO67,AO67)) -> 382 | AO67: 38 | AP67: 0.001330811795 | AQ67: 593 | AR67: =+AQ67/SUM($AQ$2:$AQ$129) -> 0.0007400160233 | AS67: =+(SUMIFS(Montos!$Y$2:$Y$396864,Montos!$R$2:$R$396864,Base!AT67)/1000000) -> 1061.49 | AT67: PEÑOL
A68: CC-43584788 | B68: 25758 | C68: SOPÓ | D68: 10 | E68: 1 | F68: Natural | G68: 25 | H68: CUNDINAMARCA | I68: Aprobado con subsidio | J68: 11 | K68: PEQUEÑA | L68: 8512 | M68: EDUCACIÓN | N68: 10 | O68: 0 | P68: 0 | U68: NIT-900281860 | V68: 5001 | W68: MEDELLÍN | X68: 16 | Y68: 1 | Z68: Jurídica | AA68: 5 | AB68: ANTIOQUIA | AC68: Aprobado con subsidio | AD68: 17 | AE68: PEQUEÑA | AF68: 4541 | AG68: COMERCIO AL POR MAYOR Y AL POR MENOR; REPARACIÓN DE VEHÍCULOS AUTOMOTORES Y MOTOCICLETAS | AH68: 5 | AI68: 11 | AJ68: 0 | AN68: =CONCATENATE(AO68,COUNTIF($AO$2:AO68,AO68)) -> 142 | AO68: 14 | AP68: 0.0004902990824 | AQ68: 131 | AR68: 0.0001634774014 | AS68: =+(SUMIFS(Montos!$Y$2:$Y$396864,Montos!$R$2:$R$396864,Base!AT68)/1000000) -> 230.717 | AT68: GRANADA
A69: CC-43725902 | B69: 5034 | C69: ANDES | D69: 6 | E69: 0 | F69: Natural | G69: 5 | H69: ANTIOQUIA | I69: Aprobado con subsidio | J69: 7 | K69: MICRO | L69: 5511 | M69: ALOJAMIENTO Y SERVICIOS DE COMIDA | N69: 3 | O69: 3 | P69: 0 | U69: NIT-900296540 | V69: 5001 | W69: MEDELLÍN | X69: 1 | Y69: 0 | Z69: Jurídica | AA69: 5 | AB69: ANTIOQUIA | AC69: Aprobado con subsidio | AD69: 1 | AE69: MICRO | AF69: 7010 | AG69: ACTIVIDADES PROFESIONALES, CIENTÍFICAS Y TÉCNICAS | AH69: 0 | AI69: 1 | AJ69: 0 | AN69: =CONCATENATE(AO69,COUNTIF($AO$2:AO69,AO69)) -> 91 | AO69: 9 | AP69: 0.0003151922673 | AQ69: 58 | AR69: 7.23793075e-05 | AS69: =+(SUMIFS(Montos!$Y$2:$Y$396864,Montos!$R$2:$R$396864,Base!AT69)/1000000) -> 90.917 | AT69: MUTATÁ
A70: CC-4391470 | B70: 66088 | C70: BELÉN DE UMBRÍA | D70: 5 | E70: 0 | F70: Natural | G70: 66 | H70: RISARALDA | I70: Aprobado con subsidio | J70: 5 | K70: MICRO | L70: 4731 | M70: COMERCIO AL POR MAYOR Y AL POR MENOR; REPARACIÓN DE VEHÍCULOS AUTOMOTORES Y MOTOCICLETAS | N70: 1 | O70: 4 | P70: 0 | U70: NIT-900307090 | V70: 5001 | W70: MEDELLÍN | X70: 10 | Y70: 2 | Z70: Jurídica | AA70: 5 | AB70: ANTIOQUIA | AC70: Aprobado con subsidio | AD70: 11 | AE70: PEQUEÑA | AF70: 5530 | AG70: ALOJAMIENTO Y SERVICIOS DE COMIDA | AH70: 10 | AI70: 0 | AJ70: 0 | AN70: =CONCATENATE(AO70,COUNTIF($AO$2:AO70,AO70)) -> 23 | AO70: 2 | AP70: 7.004272606e-05 | AQ70: 17 | AR70: 2.121462461e-05 | AS70: =+(SUMIFS(Montos!$Y$2:$Y$396864,Montos!$R$2:$R$396864,Base!AT70)/1000000) -> 25.454 | AT70: OLAYA
A71: CC-4485411 | B71: 17001 | C71: MANIZALES | D71: 8 | E71: 0 | F71: Natural | G71: 17 | H71: CALDAS | I71: Aprobado con subsidio | J71: 7 | K71: MICRO | L71: 4530 | M71: COMERCIO AL POR MAYOR Y AL POR MENOR; REPARACIÓN DE VEHÍCULOS AUTOMOTORES Y MOTOCICLETAS | N71: 2 | O71: 6 | P71: 0 | U71: NIT-900315057 | V71: 5001 | W71: MEDELLÍN | X71: 12 | Y71: 1 | Z71: Jurídica | AA71: 5 | AB71: ANTIOQUIA | AC71: Aprobado con subsidio | AD71: 13 | AE71: PEQUEÑA | AF71: 4390 | AG71: CONSTRUCCIÓN | AH71: 6 | AI71: 6 | AJ71: 0 | AN71: =CONCATENATE(AO71,COUNTIF($AO$2:AO71,AO71)) -> 43 | AO71: 4 | AP71: 0.0001400854521 | AQ71: 85 | AR71: 0.0001060731231 | AS71: =+(SUMIFS(Montos!$Y$2:$Y$396864,Montos!$R$2:$R$396864,Base!AT71)/1000000) -> 92.564 | AT71: TITIRIBÍ
A72: CC-45498111 | B72: 13001 | C72: CARTAGENA | D72: 6 | E72: 0 | F72: Natural | G72: 13 | H72: BOLÍVAR | I72: Aprobado con subsidio | J72: 5 | K72: MICRO | L72: 4775 | M72: COMERCIO AL POR MAYOR Y AL POR MENOR; REPARACIÓN DE VEHÍCULOS AUTOMOTORES Y MOTOCICLETAS | N72: 0 | O72: 6 | P72: 0 | U72: NIT-811031665 | V72: 5001 | W72: MEDELLÍN | X72: 26 | Y72: 3 | Z72: Jurídica | AA72: 5 | AB72: ANTIOQUIA | AC72: Aprobado con subsidio | AD72: 47 | AE72: PEQUEÑA | AF72: 4921 | AG72: TRANSPORTE Y ALMACENAMIENTO | AH72: 0 | AI72: 26 | AJ72: 0 | AN72: =CONCATENATE(AO72,COUNTIF($AO$2:AO72,AO72)) -> 174 | AO72: 17 | AP72: 0.0005953631715 | AQ72: 210 | AR72: 0.0002620630099 | AS72: =+(SUMIFS(Montos!$Y$2:$Y$396864,Montos!$R$2:$R$396864,Base!AT72)/1000000) -> 325.481 | AT72: SAN ROQUE
A73: CC-49740060 | B73: 20001 | C73: VALLEDUPAR | D73: 0 | E73: 0 | F73: Natural | G73: 20 | H73: CESAR | I73: Rechazado a nivel aportante | J73: 3 | K73: MICRO | L73: 8521 | M73: EDUCACIÓN | N73: 0 | O73: 0 | P73: 0 | U73: NIT-901303579 | V73: 5440 | W73: MARINILLA | X73: 17 | Y73: 0 | Z73: Jurídica | AA73: 5 | AB73: ANTIOQUIA | AC73: Aprobado con subsidio | AD73: 18 | AE73: PEQUEÑA | AF73: 1081 | AG73: INDUSTRIAS MANUFACTURERAS | AH73: 11 | AI73: 6 | AJ73: 0 | AN73: =CONCATENATE(AO73,COUNTIF($AO$2:AO73,AO73)) -> 351 | AO73: 35 | AP73: 0.001225747706 | AQ73: 557 | AR73: 0.0006950909359 | AS73: =+(SUMIFS(Montos!$Y$2:$Y$396864,Montos!$R$2:$R$396864,Base!AT73)/1000000) -> 905.105 | AT73: SONSON
A74: CC-51584371 | B74: 11001 | C74: BOGOTÁ, D.C. | D74: 16 | E74: 3 | F74: Natural | G74: 11 | H74: BOGOTÁ, D.C. | I74: Aprobado con subsidio | J74: 16 | K74: PEQUEÑA | L74: 8512 | M74: EDUCACIÓN | N74: 14 | O74: 2 | P74: 0 | U74: NIT-901103569 | V74: 5360 | W74: ITAGUI | X74: 3 | Y74: 1 | Z74: Jurídica | AA74: 5 | AB74: ANTIOQUIA | AC74: Aprobado con subsidio | AD74: 3 | AE74: MICRO | AF74: 4330 | AG74: CONSTRUCCIÓN | AH74: 0 | AI74: 3 | AJ74: 0 | AN74: =CONCATENATE(AO74,COUNTIF($AO$2:AO74,AO74)) -> 231 | AO74: 23 | AP74: 0.0008054913497 | AQ74: 232 | AR74: 0.00028951723 | AS74: =+(SUMIFS(Montos!$Y$2:$Y$396864,Montos!$R$2:$R$396864,Base!AT74)/1000000) -> 679.55 | AT74: SAN JERÓNIMO
A75: CC-51694782 | B75: 11001 | C75: BOGOTÁ, D.C. | D75: 4 | E75: 0 | F75: Natural | G75: 11 | H75: BOGOTÁ, D.C. | I75: Aprobado con subsidio | J75: 4 | K75: MICRO | L75: 9609 | M75: OTRAS ACTIVIDADES DE SERVICIOS | N75: 2 | O75: 2 | P75: 0 | U75: NIT-805009314 | V75: 5001 | W75: MEDELLÍN | X75: 8 | Y75: 0 | Z75: Jurídica | AA75: 5 | AB75: ANTIOQUIA | AC75: Aprobado con subsidio | AD75: 8 | AE75: MICRO | AF75: 6202 | AG75: INFORMACIÓN Y COMUNICACIONES | AH75: 2 | AI75: 6 | AJ75: 0 | AN75: =CONCATENATE(AO75,COUNTIF($AO$2:AO75,AO75)) -> 251 | AO75: 25 | AP75: 0.0008755340758 | AQ75: 182 | AR75: 0.0002271212753 | AS75: =+(SUMIFS(Montos!$Y$2:$Y$396864,Montos!$R$2:$R$396864,Base!AT75)/1000000) -> 339.955 | AT75: GUATAPE
A76: CC-51703079 | B76: 11001 | C76: BOGOTÁ, D.C. | D76: 2 | E76: 3 | F76: Natural | G76: 11 | H76: BOGOTÁ, D.C. | I76: Aprobado con subsidio | J76: 4 | K76: MICRO | L76: 4751 | M76: COMERCIO AL POR MAYOR Y AL POR MENOR; REPARACIÓN DE VEHÍCULOS AUTOMOTORES Y MOTOCICLETAS | N76: 1 | O76: 1 | P76: 0 | U76: NIT-800237463 | V76: 5615 | W76: RIONEGRO | X76: 77 | Y76: 7 | Z76: Jurídica | AA76: 5 | AB76: ANTIOQUIA | AC76: Aprobado con subsidio | AD76: 71 | AE76: MEDIANA | AF76: 1610 | AG76: INDUSTRIAS MANUFACTURERAS | AH76: 18 | AI76: 59 | AJ76: 0 | AN76: =CONCATENATE(AO76,COUNTIF($AO$2:AO76,AO76)) -> 24 | AO76: 2 | AP76: 7.004272606e-05 | AQ76: 35 | AR76: 4.367716832e-05 | AS76: =+(SUMIFS(Montos!$Y$2:$Y$396864,Montos!$R$2:$R$396864,Base!AT76)/1000000) -> 79.154 | AT76: ARGELIA
A77: CC-51709466 | B77: 41396 | C77: LA PLATA | D77: 4 | E77: 0 | F77: Natural | G77: 41 | H77: HUILA | I77: Aprobado con subsidio | J77: 4 | K77: MICRO | L77: 4530 | M77: COMERCIO AL POR MAYOR Y AL POR MENOR; REPARACIÓN DE VEHÍCULOS AUTOMOTORES Y MOTOCICLETAS | N77: 1 | O77: 3 | P77: 0 | U77: CC-9911946 | V77: 5001 | W77: MEDELLÍN | X77: 11 | Y77: 1 | Z77: Natural | AA77: 5 | AB77: ANTIOQUIA | AC77: Aprobado con subsidio | AD77: 11 | AE77: PEQUEÑA | AF77: 6614 | AG77: ACTIVIDADES FINANCIERAS Y DE SEGUROS | AH77: 3 | AI77: 8 | AJ77: 0 | AN77: =CONCATENATE(AO77,COUNTIF($AO$2:AO77,AO77)) -> 44 | AO77: 4 | AP77: 0.0001400854521 | AQ77: 13 | AR77: 1.622294823e-05 | AS77: =+(SUMIFS(Montos!$Y$2:$Y$396864,Montos!$R$2:$R$396864,Base!AT77)/1000000) -> 20.889 | AT77: BELMIRA
A78: CC-51726997 | B78: 11001 | C78: BOGOTÁ, D.C. | D78: 4 | E78: 0 | F78: Natural | G78: 11 | H78: BOGOTÁ, D.C. | I78: Aprobado con subsidio | J78: 6 | K78: MICRO | L78: 5612 | M78: ALOJAMIENTO Y SERVICIOS DE COMIDA | N78: 2 | O78: 2 | P78: 0 | U78: NIT-890905680 | V78: 5001 | W78: MEDELLÍN | X78: 665 | Y78: 11 | Z78: Jurídica | AA78: 5 | AB78: ANTIOQUIA | AC78: Aprobado con subsidio | AD78: 609 | AE78: MUY GRANDE | AF78: 4921 | AG78: TRANSPORTE Y ALMACENAMIENTO | AH78: 56 | AI78: 609 | AJ78: 0 | AN78: =CONCATENATE(AO78,COUNTIF($AO$2:AO78,AO78)) -> 131 | AO78: 13 | AP78: 0.0004552777194 | AQ78: 167 | AR78: 0.0002084024888 | AS78: =+(SUMIFS(Montos!$Y$2:$Y$396864,Montos!$R$2:$R$396864,Base!AT78)/1000000) -> 159.391 | AT78: SOPETRÁN
A79: CC-51941997 | B79: 11001 | C79: BOGOTÁ, D.C. | D79: 7 | E79: 2 | F79: Natural | G79: 11 | H79: BOGOTÁ, D.C. | I79: Aprobado con subsidio | J79: 7 | K79: MICRO | L79: 1811 | M79: INDUSTRIAS MANUFACTURERAS | N79: 0 | O79: 7 | P79: 0 | U79: NIT-900025279 | V79: 5360 | W79: ITAGUI | X79: 18 | Y79: 1 | Z79: Jurídica | AA79: 5 | AB79: ANTIOQUIA | AC79: Aprobado con subsidio | AD79: 19 | AE79: PEQUEÑA | AF79: 4663 | AG79: COMERCIO AL POR MAYOR Y AL POR MENOR; REPARACIÓN DE VEHÍCULOS AUTOMOTORES Y MOTOCICLETAS | AH79: 13 | AI79: 5 | AJ79: 0 | AN79: =CONCATENATE(AO79,COUNTIF($AO$2:AO79,AO79)) -> 213 | AO79: 21 | AP79: 0.0007354486237 | AQ79: 240 | AR79: 0.0002995005828 | AS79: =+(SUMIFS(Montos!$Y$2:$Y$396864,Montos!$R$2:$R$396864,Base!AT79)/1000000) -> 394.657 | AT79: ABEJORRAL
A80: CC-52012932 | B80: 11001 | C80: BOGOTÁ, D.C. | D80: 0 | E80: 0 | F80: Natural | G80: 11 | H80: BOGOTÁ, D.C. | I80: Rechazado a nivel aportante | J80: 6 | K80: MICRO | L80: 5611 | M80: ALOJAMIENTO Y SERVICIOS DE COMIDA | N80: 0 | O80: 0 | P80: 0 | U80: CC-43064384 | V80: 5360 | W80: ITAGUI | X80: 4 | Y80: 0 | Z80: Natural | AA80: 5 | AB80: ANTIOQUIA | AC80: Aprobado con subsidio | AD80: 4 | AE80: MICRO | AF80: 5221 | AG80: TRANSPORTE Y ALMACENAMIENTO | AH80: 2 | AI80: 2 | AJ80: 0 | AN80: =CONCATENATE(AO80,COUNTIF($AO$2:AO80,AO80)) -> 71 | AO80: 7 | AP80: 0.0002451495412 | AQ80: 105 | AR80: 0.000131031505 | AS80: =+(SUMIFS(Montos!$Y$2:$Y$396864,Montos!$R$2:$R$396864,Base!AT80)/1000000) -> 148.501 | AT80: VEGACHÍ
A81: CC-52071875 | B81: 68077 | C81: BARBOSA | D81: 5 | E81: 0 | F81: Natural | G81: 68 | H81: SANTANDER | I81: Aprobado con subsidio | J81: 5 | K81: MICRO | L81: 4520 | M81: COMERCIO AL POR MAYOR Y AL POR MENOR; REPARACIÓN DE VEHÍCULOS AUTOMOTORES Y MOTOCICLETAS | N81: 1 | O81: 4 | P81: 0 | U81: CC-70559057 | V81: 5360 | W81: ITAGUI | X81: 8 | Y81: 0 | Z81: Natural | AA81: 5 | AB81: ANTIOQUIA | AC81: Aprobado con subsidio | AD81: 9 | AE81: MICRO | AF81: 4631 | AG81: COMERCIO AL POR MAYOR Y AL POR MENOR; REPARACIÓN DE VEHÍCULOS AUTOMOTORES Y MOTOCICLETAS | AH81: 2 | AI81: 6 | AJ81: 0 | AN81: =CONCATENATE(AO81,COUNTIF($AO$2:AO81,AO81)) -> 55 | AO81: 5 | AP81: 0.0001751068152 | AQ81: 26 | AR81: 3.244589647e-05 | AS81: =+(SUMIFS(Montos!$Y$2:$Y$396864,Montos!$R$2:$R$396864,Base!AT81)/1000000) -> 16.936 | AT81: CISNEROS
A82: CC-52210926 | B82: 11001 | C82: BOGOTÁ, D.C. | D82: 0 | E82: 0 | F82: Natural | G82: 11 | H82: BOGOTÁ, D.C. | I82: Rechazado a nivel aportante | J82: 3 | K82: MICRO | L82: 1420 | M82: INDUSTRIAS MANUFACTURERAS | N82: 0 | O82: 0 | P82: 0 | U82: NIT-800050356 | V82: 5440 | W82: MARINILLA | X82: 276 | Y82: 6 | Z82: Jurídica | AA82: 5 | AB82: ANTIOQUIA | AC82: Aprobado con subsidio | AD82: 254 | AE82: GRANDE | AF82: 4921 | AG82: TRANSPORTE Y ALMACENAMIENTO | AH82: 11 | AI82: 264 | AJ82: 1 | AN82: =CONCATENATE(AO82,COUNTIF($AO$2:AO82,AO82)) -> 183 | AO82: 18 | AP82: 0.0006303845346 | AQ82: 343 | AR82: 0.0004280362496 | AS82: =+(SUMIFS(Montos!$Y$2:$Y$396864,Montos!$R$2:$R$396864,Base!AT82)/1000000) -> 498.847 | AT82: REMEDIOS
A83: CC-52266750 | B83: 52001 | C83: PASTO | D83: 2 | E83: 3 | F83: Natural | G83: 52 | H83: NARIÑO | I83: Aprobado con subsidio | J83: 5 | K83: MICRO | L83: 5611 | M83: ALOJAMIENTO Y SERVICIOS DE COMIDA | N83: 2 | O83: 0 | P83: 0 | U83: NIT-900024397 | V83: 5001 | W83: MEDELLÍN | X83: 18 | Y83: 1 | Z83: Jurídica | AA83: 5 | AB83: ANTIOQUIA | AC83: Aprobado con subsidio | AD83: 18 | AE83: PEQUEÑA | AF83: 1410 | AG83: INDUSTRIAS MANUFACTURERAS | AH83: 12 | AI83: 6 | AJ83: 0 | AN83: =CONCATENATE(AO83,COUNTIF($AO$2:AO83,AO83)) -> 62 | AO83: 6 | AP83: 0.0002101281782 | AQ83: 178 | AR83: 0.0002221295989 | AS83: =+(SUMIFS(Montos!$Y$2:$Y$396864,Montos!$R$2:$R$396864,Base!AT83)/1000000) -> 269.861 | AT83: GÓMEZ PLATA
A84: CC-52703226 | B84: 11001 | C84: BOGOTÁ, D.C. | D84: 4 | E84: 1 | F84: Natural | G84: 11 | H84: BOGOTÁ, D.C. | I84: Aprobado con subsidio | J84: 4 | K84: MICRO | L84: 4390 | M84: CONSTRUCCIÓN | N84: 0 | O84: 4 | P84: 0 | U84: NIT-901023980 | V84: 5615 | W84: RIONEGRO | X84: 18 | Y84: 7 | Z84: Jurídica | AA84: 5 | AB84: ANTIOQUIA | AC84: Aprobado con subsidio | AD84: 18 | AE84: PEQUEÑA | AF84: 5619 | AG84: ALOJAMIENTO Y SERVICIOS DE COMIDA | AH84: 11 | AI84: 7 | AJ84: 0 | AN84: =CONCATENATE(AO84,COUNTIF($AO$2:AO84,AO84)) -> 192 | AO84: 19 | AP84: 0.0006654058976 | AQ84: 226 | AR84: 0.0002820297154 | AS84: =+(SUMIFS(Montos!$Y$2:$Y$396864,Montos!$R$2:$R$396864,Base!AT84)/1000000) -> 408.825 | AT84: NECOCLÍ
A85: CC-52731468 | B85: 11001 | C85: BOGOTÁ, D.C. | D85: 0 | E85: 0 | F85: Natural | G85: 11 | H85: BOGOTÁ, D.C. | I85: Rechazado a nivel aportante | J85: 2 | K85: MICRO | L85: 7110 | M85: ACTIVIDADES PROFESIONALES, CIENTÍFICAS Y TÉCNICAS | N85: 0 | O85: 0 | P85: 0 | U85: CC-1037570736 | V85: 5001 | W85: MEDELLÍN | X85: 13 | Y85: 0 | Z85: Natural | AA85: 5 | AB85: ANTIOQUIA | AC85: Aprobado con subsidio | AD85: 13 | AE85: PEQUEÑA | AF85: 4690 | AG85: COMERCIO AL POR MAYOR Y AL POR MENOR; REPARACIÓN DE VEHÍCULOS AUTOMOTORES Y MOTOCICLETAS | AH85: 5 | AI85: 8 | AJ85: 0 | AN85: =CONCATENATE(AO85,COUNTIF($AO$2:AO85,AO85)) -> 25 | AO85: 2 | AP85: 7.004272606e-05 | AQ85: 26 | AR85: 3.244589647e-05 | AS85: =+(SUMIFS(Montos!$Y$2:$Y$396864,Montos!$R$2:$R$396864,Base!AT85)/1000000) -> 43.905 | AT85: CONCEPCIÓN
A86: CC-16660876 | B86: 76001 | C86: CALI | D86: 4 | E86: 0 | F86: Natural | G86: 76 | H86: VALLE DEL CAUCA | I86: Aprobado con subsidio | J86: 4 | K86: MICRO | L86: 3312 | M86: INDUSTRIAS MANUFACTURERAS | N86: 2 | O86: 2 | P86: 0 | U86: NIT-860001697 | V86: 5001 | W86: MEDELLÍN | X86: 1877 | Y86: 29 | Z86: Jurídica | AA86: 5 | AB86: ANTIOQUIA | AC86: Aprobado con subsidio | AD86: 1930 | AE86: MUY GRANDE | AF86: 1104 | AG86: INDUSTRIAS MANUFACTURERAS | AH86: 393 | AI86: 1484 | AJ86: 0 | AN86: =CONCATENATE(AO86,COUNTIF($AO$2:AO86,AO86)) -> 33 | AO86: 3 | AP86: 0.0001050640891 | AQ86: 28 | AR86: 3.494173466e-05 | AS86: =+(SUMIFS(Montos!$Y$2:$Y$396864,Montos!$R$2:$R$396864,Base!AT86)/1000000) -> 72.757 | AT86: SAN FRANCISCO
A87: CC-16598056 | B87: 73001 | C87: IBAGUÉ | D87: 12 | E87: 0 | F87: Natural | G87: 73 | H87: TOLIMA | I87: Aprobado con subsidio | J87: 10 | K87: MICRO | L87: 5611 | M87: ALOJAMIENTO Y SERVICIOS DE COMIDA | N87: 8 | O87: 4 | P87: 0 | U87: NIT-900194898 | V87: 5001 | W87: MEDELLÍN | X87: 110 | Y87: 4 | Z87: Jurídica | AA87: 5 | AB87: ANTIOQUIA | AC87: Aprobado con subsidio | AD87: 107 | AE87: MEDIANA | AF87: 1521 | AG87: INDUSTRIAS MANUFACTURERAS | AH87: 55 | AI87: 55 | AJ87: 0 | AN87: =CONCATENATE(AO87,COUNTIF($AO$2:AO87,AO87)) -> 103 | AO87: 10 | AP87: 0.0003502136303 | AQ87: 224 | AR87: 0.0002795338773 | AS87: =+(SUMIFS(Montos!$Y$2:$Y$396864,Montos!$R$2:$R$396864,Base!AT87)/1000000) -> 344.072 | AT87: SAN LUIS
A88: CC-16507172 | B88: 76109 | C88: BUENAVENTURA | D88: 0 | E88: 0 | F88: Natural | G88: 76 | H88: VALLE DEL CAUCA | I88: Rechazado a nivel aportante | J88: 3 | K88: MICRO | L88: 4789 | M88: COMERCIO AL POR MAYOR Y AL POR MENOR; REPARACIÓN DE VEHÍCULOS AUTOMOTORES Y MOTOCICLETAS | N88: 0 | O88: 0 | P88: 0 | U88: NIT-811002052 | V88: 5380 | W88: LA ESTRELLA | X88: 60 | Y88: 5 | Z88: Jurídica | AA88: 5 | AB88: ANTIOQUIA | AC88: Aprobado con subsidio | AD88: 62 | AE88: MEDIANA | AF88: 4659 | AG88: COMERCIO AL POR MAYOR Y AL POR MENOR; REPARACIÓN DE VEHÍCULOS AUTOMOTORES Y MOTOCICLETAS | AH88: 17 | AI88: 43 | AJ88: 0 | AN88: =CONCATENATE(AO88,COUNTIF($AO$2:AO88,AO88)) -> 56 | AO88: 5 | AP88: 0.0001751068152 | AQ88: 219 | AR88: 0.0002732942818 | AS88: =+(SUMIFS(Montos!$Y$2:$Y$396864,Montos!$R$2:$R$396864,Base!AT88)/1000000) -> 414.994 | AT88: YOLOMBÓ
A89: CC-16459902 | B89: 76001 | C89: CALI | D89: 4 | E89: 2 | F89: Natural | G89: 76 | H89: VALLE DEL CAUCA | I89: Aprobado con subsidio | J89: 7 | K89: MICRO | L89: 4719 | M89: COMERCIO AL POR MAYOR Y AL POR MENOR; REPARACIÓN DE VEHÍCULOS AUTOMOTORES Y MOTOCICLETAS | N89: 2 | O89: 2 | P89: 0 | U89: CC-71111818 | V89: 5148 | W89: EL CARMEN DE VIBORAL | X89: 24 | Y89: 2 | Z89: Natural | AA89: 5 | AB89: ANTIOQUIA | AC89: Aprobado con subsidio | AD89: 24 | AE89: PEQUEÑA | AF89: 4759 | AG89: COMERCIO AL POR MAYOR Y AL POR MENOR; REPARACIÓN DE VEHÍCULOS AUTOMOTORES Y MOTOCICLETAS | AH89: 12 | AI89: 12 | AJ89: 0 | AN89: =CONCATENATE(AO89,COUNTIF($AO$2:AO89,AO89)) -> 26 | AO89: 2 | AP89: 7.004272606e-05 | AQ89: 28 | AR89: 3.494173466e-05 | AS89: =+(SUMIFS(Montos!$Y$2:$Y$396864,Montos!$R$2:$R$396864,Base!AT89)/1000000) -> 31.943 | AT89: SAN ANDRÉS DE CUERQUÍA
A90: CC-16364962 | B90: 76834 | C90: TULUÁ | D90: 6 | E90: 0 | F90: Natural | G90: 76 | H90: VALLE DEL CAUCA | I90: Aprobado con subsidio | J90: 5 | K90: MICRO | L90: 5320 | M90: TRANSPORTE Y ALMACENAMIENTO | N90: 0 | O90: 6 | P90: 0 | U90: NIT-800102065 | V90: 5001 | W90: MEDELLÍN | X90: 11 | Y90: 0 | Z90: Jurídica | AA90: 5 | AB90: ANTIOQUIA | AC90: Aprobado con subsidio | AD90: 12 | AE90: PEQUEÑA | AF90: 4664 | AG90: COMERCIO AL POR MAYOR Y AL POR MENOR; REPARACIÓN DE VEHÍCULOS AUTOMOTORES Y MOTOCICLETAS | AH90: 7 | AI90: 4 | AJ90: 0 | AN90: =CONCATENATE(AO90,COUNTIF($AO$2:AO90,AO90)) -> 184 | AO90: 18 | AP90: 0.0006303845346 | AQ90: 140 | AR90: 0.0001747086733 | AS90: =+(SUMIFS(Montos!$Y$2:$Y$396864,Montos!$R$2:$R$396864,Base!AT90)/1000000) -> 256.864 | AT90: EL BAGRE
A91: CC-16362857 | B91: 76834 | C91: TULUÁ | D91: 3 | E91: 0 | F91: Natural | G91: 76 | H91: VALLE DEL CAUCA | I91: Aprobado con subsidio | J91: 4 | K91: MICRO | L91: 5611 | M91: ALOJAMIENTO Y SERVICIOS DE COMIDA | N91: 1 | O91: 2 | P91: 0 | U91: NIT-900082107 | V91: 5615 | W91: RIONEGRO | X91: 196 | Y91: 4 | Z91: Jurídica | AA91: 5 | AB91: ANTIOQUIA | AC91: Aprobado con subsidio | AD91: 193 | AE91: MEDIANA | AF91: 4111 | AG91: CONSTRUCCIÓN | AH91: 119 | AI91: 77 | AJ91: 0 | AN91: =CONCATENATE(AO91,COUNTIF($AO$2:AO91,AO91)) -> 45 | AO91: 4 | AP91: 0.0001400854521 | AQ91: 38 | AR91: 4.742092561e-05 | AS91: =+(SUMIFS(Montos!$Y$2:$Y$396864,Montos!$R$2:$R$396864,Base!AT91)/1000000) -> 68.06 | AT91: HELICONIA
A92: CC-16340646 | B92: 76834 | C92: TULUÁ | D92: 8 | E92: 2 | F92: Natural | G92: 76 | H92: VALLE DEL CAUCA | I92: Aprobado con subsidio | J92: 12 | K92: PEQUEÑA | L92: 4773 | M92: COMERCIO AL POR MAYOR Y AL POR MENOR; REPARACIÓN DE VEHÍCULOS AUTOMOTORES Y MOTOCICLETAS | N92: 0 | O92: 8 | P92: 0 | U92: NIT-901260258 | V92: 5001 | W92: MEDELLÍN | X92: 12 | Y92: 0 | Z92: Jurídica | AA92: 5 | AB92: ANTIOQUIA | AC92: Aprobado con subsidio | AD92: 20 | AE92: PEQUEÑA | AF92: 4111 | AG92: CONSTRUCCIÓN | AH92: 1 | AI92: 11 | AJ92: 0 | AN92: =CONCATENATE(AO92,COUNTIF($AO$2:AO92,AO92)) -> 72 | AO92: 7 | AP92: 0.0002451495412 | AQ92: 36 | AR92: 4.492508742e-05 | AS92: =+(SUMIFS(Montos!$Y$2:$Y$396864,Montos!$R$2:$R$396864,Base!AT92)/1000000) -> 65.427 | AT92: SAN CARLOS
A93: CC-15241943 | B93: 88564 | C93: PROVIDENCIA | D93: 9 | E93: 9 | F93: Natural | G93: 88 | H93: ARCHIPIÉLAGO DE SAN ANDRÉS, PROVIDENCIA Y SANTA CATALINA | I93: Aprobado con subsidio | J93: 12 | K93: PEQUEÑA | L93: 5511 | M93: ALOJAMIENTO Y SERVICIOS DE COMIDA | N93: 8 | O93: 1 | P93: 0 | U93: NIT-811034230 | V93: 5001 | W93: MEDELLÍN | X93: 30 | Y93: 0 | Z93: Jurídica | AA93: 5 | AB93: ANTIOQUIA | AC93: Aprobado con subsidio | AD93: 33 | AE93: PEQUEÑA | AF93: 4662 | AG93: COMERCIO AL POR MAYOR Y AL POR MENOR; REPARACIÓN DE VEHÍCULOS AUTOMOTORES Y MOTOCICLETAS | AH93: 10 | AI93: 20 | AJ93: 0 | AN93: =CONCATENATE(AO93,COUNTIF($AO$2:AO93,AO93)) -> 73 | AO93: 7 | AP93: 0.0002451495412 | AQ93: 158 | AR93: 0.000197171217 | AS93: =+(SUMIFS(Montos!$Y$2:$Y$396864,Montos!$R$2:$R$396864,Base!AT93)/1000000) -> 227.506 | AT93: BURITICÁ
A94: CC-14966773 | B94: 76001 | C94: CALI | D94: 0 | E94: 0 | F94: Natural | G94: 76 | H94: VALLE DEL CAUCA | I94: Rechazado a nivel aportante | J94: 0 | K94: $null$ | L94: 8230 | M94: ACTIVIDADES DE SERVICIOS ADMINISTRATIVOS Y DE APOYO | N94: 0 | O94: 0 | P94: 0 | U94: NIT-900382464 | V94: 5360 | W94: ITAGUI | X94: 10 | Y94: 0 | Z94: Jurídica | AA94: 5 | AB94: ANTIOQUIA | AC94: Aprobado con subsidio | AD94: 9 | AE94: MICRO | AF94: 4530 | AG94: COMERCIO AL POR MAYOR Y AL POR MENOR; REPARACIÓN DE VEHÍCULOS AUTOMOTORES Y MOTOCICLETAS | AH94: 2 | AI94: 8 | AJ94: 0 | AN94: =CONCATENATE(AO94,COUNTIF($AO$2:AO94,AO94)) -> 63 | AO94: 6 | AP94: 0.0002101281782 | AQ94: 25 | AR94: 3.119797737e-05 | AS94: =+(SUMIFS(Montos!$Y$2:$Y$396864,Montos!$R$2:$R$396864,Base!AT94)/1000000) -> 38.637 | AT94: HISPANIA
A95: CC-14465429 | B95: 76001 | C95: CALI | D95: 3 | E95: 1 | F95: Natural | G95: 76 | H95: VALLE DEL CAUCA | I95: Aprobado con subsidio | J95: 5 | K95: MICRO | L95: 4649 | M95: COMERCIO AL POR MAYOR Y AL POR MENOR; REPARACIÓN DE VEHÍCULOS AUTOMOTORES Y MOTOCICLETAS | N95: 0 | O95: 3 | P95: 0 | U95: NIT-800075244 | V95: 5001 | W95: MEDELLÍN | X95: 9 | Y95: 1 | Z95: Jurídica | AA95: 5 | AB95: ANTIOQUIA | AC95: Aprobado con subsidio | AD95: 9 | AE95: MICRO | AF95: 8559 | AG95: EDUCACIÓN | AH95: 9 | AI95: 0 | AJ95: 0 | AN95: =CONCATENATE(AO95,COUNTIF($AO$2:AO95,AO95)) -> 34 | AO95: 3 | AP95: 0.0001050640891 | AQ95: 24 | AR95: 2.995005828e-05 | AS95: =+(SUMIFS(Montos!$Y$2:$Y$396864,Montos!$R$2:$R$396864,Base!AT95)/1000000) -> 143.335 | AT95: CÁCERES
A96: CC-14105833 | B96: 41298 | C96: GARZÓN | D96: 5 | E96: 0 | F96: Natural | G96: 41 | H96: HUILA | I96: Aprobado con subsidio | J96: 5 | K96: MICRO | L96: 4541 | M96: COMERCIO AL POR MAYOR Y AL POR MENOR; REPARACIÓN DE VEHÍCULOS AUTOMOTORES Y MOTOCICLETAS | N96: 2 | O96: 3 | P96: 0 | U96: NIT-901226715 | V96: 5001 | W96: MEDELLÍN | X96: 0 | Y96: 0 | Z96: Jurídica | AA96: 5 | AB96: ANTIOQUIA | AC96: Rechazado a nivel aportante | AD96: 2 | AE96: MICRO | AF96: 4741 | AG96: COMERCIO AL POR MAYOR Y AL POR MENOR; REPARACIÓN DE VEHÍCULOS AUTOMOTORES Y MOTOCICLETAS | AH96: 0 | AI96: 0 | AJ96: 0 | AN96: =CONCATENATE(AO96,COUNTIF($AO$2:AO96,AO96)) -> 64 | AO96: 6 | AP96: 0.0002101281782 | AQ96: 41 | AR96: 5.116468289e-05 | AS96: =+(SUMIFS(Montos!$Y$2:$Y$396864,Montos!$R$2:$R$396864,Base!AT96)/1000000) -> 47.924 | AT96: ZARAGOZA
A97: CC-13956636 | B97: 76520 | C97: PALMIRA | D97: 2 | E97: 2 | F97: Natural | G97: 76 | H97: VALLE DEL CAUCA | I97: Aprobado con subsidio | J97: 3 | K97: MICRO | L97: 5210 | M97: TRANSPORTE Y ALMACENAMIENTO | N97: 0 | O97: 2 | P97: 0 | U97: NIT-900940097 | V97: 5001 | W97: MEDELLÍN | X97: 41 | Y97: 7 | Z97: Jurídica | AA97: 5 | AB97: ANTIOQUIA | AC97: Aprobado con subsidio | AD97: 40 | AE97: PEQUEÑA | AF97: 1410 | AG97: INDUSTRIAS MANUFACTURERAS | AH97: 39 | AI97: 2 | AJ97: 0 | AN97: =CONCATENATE(AO97,COUNTIF($AO$2:AO97,AO97)) -> 104 | AO97: 10 | AP97: 0.0003502136303 | AQ97: 146 | AR97: 0.0001821961879 | AS97: =+(SUMIFS(Montos!$Y$2:$Y$396864,Montos!$R$2:$R$396864,Base!AT97)/1000000) -> 330.648 | AT97: BETULIA
A98: CC-13817805 | B98: 68081 | C98: BARRANCABERMEJA | D98: 8 | E98: 0 | F98: Natural | G98: 68 | H98: SANTANDER | I98: Aprobado con subsidio | J98: 8 | K98: MICRO | L98: 3312 | M98: INDUSTRIAS MANUFACTURERAS | N98: 2 | O98: 6 | P98: 0 | U98: NIT-900628918 | V98: 5001 | W98: MEDELLÍN | X98: 33 | Y98: 1 | Z98: Jurídica | AA98: 5 | AB98: ANTIOQUIA | AC98: Aprobado con subsidio | AD98: 35 | AE98: PEQUEÑA | AF98: 8621 | AG98: ACTIVIDADES DE ATENCIÓN DE LA SALUD HUMANA Y DE ASISTENCIA SOCIAL | AH98: 25 | AI98: 8 | AJ98: 0 | AN98: =CONCATENATE(AO98,COUNTIF($AO$2:AO98,AO98)) -> 74 | AO98: =+COUNTIFS($W$2:$W$399999,AT98,$AC$2:$AC$399999,"Aprobado con subsidio")*1 -> 7 | AP98: =+AO98/SUM($AO$2:$AO$129) -> 0.0002451495412 | AQ98: =+SUMIFS($X$2:$X$399999,$W$2:$W$399999,AT98,$AC$2:$AC$399999,"Aprobado con subsidio") -> 54 | AR98: 6.738763113e-05 | AS98: =+(SUMIFS(Montos!$Y$2:$Y$396864,Montos!$R$2:$R$396864,Base!AT98)/1000000) -> 68.786 | AT98: SANTO DOMINGO
A99: CC-13812749 | B99: 15537 | C99: PAZ DE RÍO | D99: 17 | E99: 0 | F99: Natural | G99: 15 | H99: BOYACÁ | I99: Aprobado con subsidio | J99: 15 | K99: PEQUEÑA | L99: 510 | M99: EXPLOTACIÓN DE MINAS Y CANTERAS | N99: 2 | O99: 15 | P99: 0 | U99: NIT-900941772 | V99: 5360 | W99: ITAGUI | X99: 7 | Y99: 1 | Z99: Jurídica | AA99: 5 | AB99: ANTIOQUIA | AC99: Aprobado con subsidio | AD99: 5 | AE99: MICRO | AF99: 4631 | AG99: COMERCIO AL POR MAYOR Y AL POR MENOR; REPARACIÓN DE VEHÍCULOS AUTOMOTORES Y MOTOCICLETAS | AH99: 2 | AI99: 5 | AJ99: 0 | AN99: =CONCATENATE(AO99,COUNTIF($AO$2:AO99,AO99)) -> 65 | AO99: 6 | AP99: 0.0002101281782 | AQ99: 73 | AR99: 9.109809393e-05 | AS99: =+(SUMIFS(Montos!$Y$2:$Y$396864,Montos!$R$2:$R$396864,Base!AT99)/1000000) -> 100.602 | AT99: GIRALDO
A100: CC-13806210 | B100: 68547 | C100: PIEDECUESTA | D100: 3 | E100: 1 | F100: Natural | G100: 68 | H100: SANTANDER | I100: Aprobado con subsidio | J100: 3 | K100: MICRO | L100: 4762 | M100: COMERCIO AL POR MAYOR Y AL POR MENOR; REPARACIÓN DE VEHÍCULOS AUTOMOTORES Y MOTOCICLETAS | N100: 2 | O100: 1 | P100: 0 | U100: CC-43569572 | V100: 5001 | W100: MEDELLÍN | X100: 7 | Y100: 1 | Z100: Natural | AA100: 5 | AB100: ANTIOQUIA | AC100: Aprobado con subsidio | AD100: 5 | AE100: MICRO | AF100: 1811 | AG100: INDUSTRIAS MANUFACTURERAS | AH100: 2 | AI100: 5 | AJ100: 0 | AN100: =CONCATENATE(AO100,COUNTIF($AO$2:AO100,AO100)) -> 111 | AO100: 11 | AP100: 0.0003852349933 | AQ100: 88 | AR100: 0.0001098168804 | AS100: =+(SUMIFS(Montos!$Y$2:$Y$396864,Montos!$R$2:$R$396864,Base!AT100)/1000000) -> 150.399 | AT100: CONCORDIA
A101: CC-13804343 | B101: 68547 | C101: PIEDECUESTA | D101: 5 | E101: 1 | F101: Natural | G101: 68 | H101: SANTANDER | I101: Aprobado con subsidio | J101: 6 | K101: MICRO | L101: 7500 | M101: ACTIVIDADES PROFESIONALES, CIENTÍFICAS Y TÉCNICAS | N101: 2 | O101: 3 | P101: 0 | U101: NIT-900926285 | V101: 5631 | W101: SABANETA | X101: 25 | Y101: 5 | Z101: Jurídica | AA101: 5 | AB101: ANTIOQUIA | AC101: Aprobado con subsidio | AD101: 25 | AE101: PEQUEÑA | AF101: 3312 | AG101: INDUSTRIAS MANUFACTURERAS | AH101: 2 | AI101: 23 | AJ101: 0 | AN101: =CONCATENATE(AO101,COUNTIF($AO$2:AO101,AO101)) -> 27 | AO101: 2 | AP101: 7.004272606e-05 | AQ101: 16 | AR101: 1.996670552e-05 | AS101: =+(SUMIFS(Montos!$Y$2:$Y$396864,Montos!$R$2:$R$396864,Base!AT101)/1000000) -> 58.594 | AT101: MURINDÓ
A102: CC-16708230 | B102: 76001 | C102: CALI | D102: 9 | E102: 0 | F102: Natural | G102: 76 | H102: VALLE DEL CAUCA | I102: Aprobado con subsidio | J102: 9 | K102: MICRO | L102: 4771 | M102: COMERCIO AL POR MAYOR Y AL POR MENOR; REPARACIÓN DE VEHÍCULOS AUTOMOTORES Y MOTOCICLETAS | N102: 5 | O102: 4 | P102: 0 | U102: CC-43032262 | V102: 5001 | W102: MEDELLÍN | X102: 0 | Y102: 0 | Z102: Natural | AA102: 5 | AB102: ANTIOQUIA | AC102: Rechazado a nivel aportante | AD102: 5 | AE102: MICRO | AF102: 123 | AG102: AGRICULTURA, GANADERÍA, CAZA, SILVICULTURA Y PESCA | AH102: 0 | AI102: 0 | AJ102: 0 | AN102: =CONCATENATE(AO102,COUNTIF($AO$2:AO102,AO102)) -> 46 | AO102: 4 | AP102: 0.0001400854521 | AQ102: 16 | AR102: 1.996670552e-05 | AS102: =+(SUMIFS(Montos!$Y$2:$Y$396864,Montos!$R$2:$R$396864,Base!AT102)/1000000) -> 41.199 | AT102: LIBORINA
A103: CC-13615356 | B103: 11001 | C103: BOGOTÁ, D.C. | D103: 0 | E103: 0 | F103: Natural | G103: 11 | H103: BOGOTÁ, D.C. | I103: Rechazado a nivel aportante | J103: 4 | K103: MICRO | L103: 4773 | M103: COMERCIO AL POR MAYOR Y AL POR MENOR; REPARACIÓN DE VEHÍCULOS AUTOMOTORES Y MOTOCICLETAS | N103: 0 | O103: 0 | P103: 0 | U103: NIT-800147194 | V103: 5001 | W103: MEDELLÍN | X103: 28 | Y103: 3 | Z103: Jurídica | AA103: 5 | AB103: ANTIOQUIA | AC103: Aprobado con subsidio | AD103: 50 | AE103: PEQUEÑA | AF103: 7112 | AG103: ACTIVIDADES PROFESIONALES, CIENTÍFICAS Y TÉCNICAS | AH103: 9 | AI103: 19 | AJ103: 0 | AN103: =CONCATENATE(AO103,COUNTIF($AO$2:AO103,AO103)) -> 132 | AO103: 13 | AP103: 0.0004552777194 | AQ103: 107 | AR103: 0.0001335273432 | AS103: =+(SUMIFS(Montos!$Y$2:$Y$396864,Montos!$R$2:$R$396864,Base!AT103)/1000000) -> 154.426 | AT103: PUERTO NARE
A104: CC-13504008 | B104: 54001 | C104: CÚCUTA | D104: 3 | E104: 0 | F104: Natural | G104: 54 | H104: NORTE DE SANTANDER | I104: Aprobado con subsidio | J104: 3 | K104: MICRO | L104: 4732 | M104: COMERCIO AL POR MAYOR Y AL POR MENOR; REPARACIÓN DE VEHÍCULOS AUTOMOTORES Y MOTOCICLETAS | N104: 2 | O104: 1 | P104: 0 | U104: CC-70548078 | V104: 5001 | W104: MEDELLÍN | X104: 0 | Y104: 0 | Z104: Natural | AA104: 5 | AB104: ANTIOQUIA | AC104: Rechazado a nivel aportante | AD104: 5 | AE104: MICRO | AF104: 9001 | AG104: ACTIVIDADES ARTÍSTICAS, DE ENTRETENIMIENTO Y RECREACIÓN | AH104: 0 | AI104: 0 | AJ104: 0 | AN104: =CONCATENATE(AO104,COUNTIF($AO$2:AO104,AO104)) -> 57 | AO104: 5 | AP104: 0.0001751068152 | AQ104: 57 | AR104: 7.113138841e-05 | AS104: =+(SUMIFS(Montos!$Y$2:$Y$396864,Montos!$R$2:$R$396864,Base!AT104)/1000000) -> 122.74 | AT104: EBÉJICO
A105: NIT-891101158 | B105: 41298 | C105: GARZÓN | D105: 142 | E105: 10 | F105: Jurídica | G105: 41 | H105: HUILA | I105: Aprobado con subsidio | J105: 163 | K105: MEDIANA | L105: 4620 | M105: COMERCIO AL POR MAYOR Y AL POR MENOR; REPARACIÓN DE VEHÍCULOS AUTOMOTORES Y MOTOCICLETAS | N105: 53 | O105: 89 | P105: 0 | U105: CC-43030638 | V105: 5001 | W105: MEDELLÍN | X105: 0 | Y105: 0 | Z105: Natural | AA105: 5 | AB105: ANTIOQUIA | AC105: Rechazado a nivel aportante | AD105: 10 | AE105: MICRO | AF105: 6910 | AG105: ACTIVIDADES PROFESIONALES, CIENTÍFICAS Y TÉCNICAS | AH105: 0 | AI105: 0 | AJ105: 0 | AN105: =CONCATENATE(AO105,COUNTIF($AO$2:AO105,AO105)) -> 66 | AO105: 6 | AP105: 0.0002101281782 | AQ105: 59 | AR105: 7.36272266e-05 | AS105: =+(SUMIFS(Montos!$Y$2:$Y$396864,Montos!$R$2:$R$396864,Base!AT105)/1000000) -> 110.875 | AT105: DABEIBA
A106: CC-13364825 | B106: 5001 | C106: MEDELLÍN | D106: 11 | E106: 5 | F106: Natural | G106: 5 | H106: ANTIOQUIA | I106: Aprobado con subsidio | J106: 15 | K106: PEQUEÑA | L106: 5511 | M106: ALOJAMIENTO Y SERVICIOS DE COMIDA | N106: 8 | O106: 3 | P106: 0 | U106: NIT-901323517 | V106: 5001 | W106: MEDELLÍN | X106: 5 | Y106: 2 | Z106: Jurídica | AA106: 5 | AB106: ANTIOQUIA | AC106: Aprobado con subsidio | AD106: 2 | AE106: MICRO | AF106: 9602 | AG106: OTRAS ACTIVIDADES DE SERVICIOS | AH106: 5 | AI106: 0 | AJ106: 0 | AN106: =CONCATENATE(AO106,COUNTIF($AO$2:AO106,AO106)) -> 28 | AO106: 2 | AP106: 7.004272606e-05 | AQ106: 5 | AR106: 6.239595475e-06 | AS106: =+(SUMIFS(Montos!$Y$2:$Y$396864,Montos!$R$2:$R$396864,Base!AT106)/1000000) -> 16.829 | AT106: MONTEBELLO
A107: CC-13065038 | B107: 52001 | C107: PASTO | D107: 13 | E107: 0 | F107: Natural | G107: 52 | H107: NARIÑO | I107: Aprobado con subsidio | J107: 12 | K107: PEQUEÑA | L107: 5611 | M107: ALOJAMIENTO Y SERVICIOS DE COMIDA | N107: 9 | O107: 4 | P107: 0 | U107: NIT-900456885 | V107: 5001 | W107: MEDELLÍN | X107: 81 | Y107: 3 | Z107: Jurídica | AA107: 5 | AB107: ANTIOQUIA | AC107: Aprobado con subsidio | AD107: 69 | AE107: MEDIANA | AF107: 9312 | AG107: ACTIVIDADES ARTÍSTICAS, DE ENTRETENIMIENTO Y RECREACIÓN | AH107: 8 | AI107: 73 | AJ107: 0 | AN107: =CONCATENATE(AO107,COUNTIF($AO$2:AO107,AO107)) -> 58 | AO107: 5 | AP107: 0.0001751068152 | AQ107: 59 | AR107: 7.36272266e-05 | AS107: =+(SUMIFS(Montos!$Y$2:$Y$396864,Montos!$R$2:$R$396864,Base!AT107)/1000000) -> 85.259 | AT107: BETANIA
A108: CC-13012344 | B108: 11001 | C108: BOGOTÁ, D.C. | D108: 13 | E108: 2 | F108: Natural | G108: 11 | H108: BOGOTÁ, D.C. | I108: Aprobado con subsidio | J108: 13 | K108: PEQUEÑA | L108: 4330 | M108: CONSTRUCCIÓN | N108: 4 | O108: 9 | P108: 0 | U108: NIT-890915261 | V108: 5001 | W108: MEDELLÍN | X108: 78 | Y108: 4 | Z108: Jurídica | AA108: 5 | AB108: ANTIOQUIA | AC108: Aprobado con subsidio | AD108: 82 | AE108: MEDIANA | AF108: 2431 | AG108: INDUSTRIAS MANUFACTURERAS | AH108: 10 | AI108: 68 | AJ108: 0 | AN108: =CONCATENATE(AO108,COUNTIF($AO$2:AO108,AO108)) -> 67 | AO108: 6 | AP108: 0.0002101281782 | AQ108: 92 | AR108: 0.0001148085567 | AS108: =+(SUMIFS(Montos!$Y$2:$Y$396864,Montos!$R$2:$R$396864,Base!AT108)/1000000) -> 53.896 | AT108: ARBOLETES
A109: CC-12994583 | B109: 52001 | C109: PASTO | D109: 7 | E109: 1 | F109: Natural | G109: 52 | H109: NARIÑO | I109: Aprobado con subsidio | J109: 8 | K109: MICRO | L109: 4530 | M109: COMERCIO AL POR MAYOR Y AL POR MENOR; REPARACIÓN DE VEHÍCULOS AUTOMOTORES Y MOTOCICLETAS | N109: 5 | O109: 2 | P109: 0 | U109: NIT-900696363 | V109: 5001 | W109: MEDELLÍN | X109: 494 | Y109: 263 | Z109: Jurídica | AA109: 5 | AB109: ANTIOQUIA | AC109: Aprobado con subsidio | AD109: 440 | AE109: GRANDE | AF109: 7820 | AG109: ACTIVIDADES DE SERVICIOS ADMINISTRATIVOS Y DE APOYO | AH109: 133 | AI109: 361 | AJ109: 0 | AN109: =CONCATENATE(AO109,COUNTIF($AO$2:AO109,AO109)) -> 35 | AO109: 3 | AP109: 0.0001050640891 | AQ109: 102 | AR109: 0.0001272877477 | AS109: =+(SUMIFS(Montos!$Y$2:$Y$396864,Montos!$R$2:$R$396864,Base!AT109)/1000000) -> 266.667 | AT109: VALDIVIA
A110: CC-12614589 | B110: 20001 | C110: VALLEDUPAR | D110: 0 | E110: 0 | F110: Natural | G110: 20 | H110: CESAR | I110: Rechazado a nivel aportante | J110: 0 | K110: $null$ | L110: 5611 | M110: ALOJAMIENTO Y SERVICIOS DE COMIDA | N110: 0 | O110: 0 | P110: 0 | U110: NIT-890914091 | V110: 5001 | W110: MEDELLÍN | X110: 33 | Y110: 3 | Z110: Jurídica | AA110: 5 | AB110: ANTIOQUIA | AC110: Aprobado con subsidio | AD110: 32 | AE110: PEQUEÑA | AF110: 4921 | AG110: TRANSPORTE Y ALMACENAMIENTO | AH110: 8 | AI110: 25 | AJ110: 0 | AN110: =CONCATENATE(AO110,COUNTIF($AO$2:AO110,AO110)) -> 75 | AO110: 7 | AP110: 0.0002451495412 | AQ110: 104 | AR110: 0.0001297835859 | AS110: =+(SUMIFS(Montos!$Y$2:$Y$396864,Montos!$R$2:$R$396864,Base!AT110)/1000000) -> 140.479 | AT110: VALPARAÍSO
A111: CC-12196359 | B111: 41001 | C111: NEIVA | D111: 6 | E111: 1 | F111: Natural | G111: 41 | H111: HUILA | I111: Aprobado con subsidio | J111: 7 | K111: MICRO | L111: 4762 | M111: COMERCIO AL POR MAYOR Y AL POR MENOR; REPARACIÓN DE VEHÍCULOS AUTOMOTORES Y MOTOCICLETAS | N111: 2 | O111: 4 | P111: 0 | U111: NIT-811029132 | V111: 5001 | W111: MEDELLÍN | X111: 74 | Y111: 1 | Z111: Jurídica | AA111: 5 | AB111: ANTIOQUIA | AC111: Aprobado con subsidio | AD111: 77 | AE111: MEDIANA | AF111: 4669 | AG111: COMERCIO AL POR MAYOR Y AL POR MENOR; REPARACIÓN DE VEHÍCULOS AUTOMOTORES Y MOTOCICLETAS | AH111: 28 | AI111: 46 | AJ111: 0 | AN111: =CONCATENATE(AO111,COUNTIF($AO$2:AO111,AO111)) -> 185 | AO111: 18 | AP111: 0.0006303845346 | AQ111: 392 | AR111: 0.0004891842852 | AS111: =+(SUMIFS(Montos!$Y$2:$Y$396864,Montos!$R$2:$R$396864,Base!AT111)/1000000) -> 897.479 | AT111: URRAO
A112: CC-12189887 | B112: 95001 | C112: SAN JOSÉ DEL GUAVIARE | D112: ND | E112: ND | F112: Natural | G112: 95 | H112: GUAVIARE | I112: Aprobado con subsidio | J112: 7 | K112: MICRO | L112: 4923 | M112: TRANSPORTE Y ALMACENAMIENTO | N112: 0 | O112: 0 | P112: 0 | U112: NIT-811009291 | V112: 5101 | W112: CIUDAD BOLÍVAR | X112: 4 | Y112: 1 | Z112: Jurídica | AA112: 5 | AB112: ANTIOQUIA | AC112: Aprobado con subsidio | AD112: 3 | AE112: MICRO | AF112: 9499 | AG112: OTRAS ACTIVIDADES DE SERVICIOS | AH112: 3 | AI112: 1 | AJ112: 0 | AN112: =CONCATENATE(AO112,COUNTIF($AO$2:AO112,AO112)) -> 59 | AO112: 5 | AP112: 0.0001751068152 | AQ112: 78 | AR112: 9.73376894e-05 | AS112: =+(SUMIFS(Montos!$Y$2:$Y$396864,Montos!$R$2:$R$396864,Base!AT112)/1000000) -> 185.12 | AT112: YALÍ
A113: CC-12120370 | B113: 41001 | C113: NEIVA | D113: 15 | E113: 0 | F113: Natural | G113: 41 | H113: HUILA | I113: Aprobado con subsidio | J113: 17 | K113: PEQUEÑA | L113: 5530 | M113: ALOJAMIENTO Y SERVICIOS DE COMIDA | N113: 11 | O113: 4 | P113: 0 | U113: CC-1037544103 | V113: 5237 | W113: DON MATÍAS | X113: 31 | Y113: 2 | Z113: Natural | AA113: 5 | AB113: ANTIOQUIA | AC113: Aprobado con subsidio | AD113: 27 | AE113: PEQUEÑA | AF113: 1410 | AG113: INDUSTRIAS MANUFACTURERAS | AH113: 21 | AI113: 10 | AJ113: 0 | AN113: =CONCATENATE(AO113,COUNTIF($AO$2:AO113,AO113)) -> 12 | AO113: 1 | AP113: 3.502136303e-05 | AQ113: 10 | AR113: 1.247919095e-05 | AS113: =+(SUMIFS(Montos!$Y$2:$Y$396864,Montos!$R$2:$R$396864,Base!AT113)/1000000) -> 29.017 | AT113: VIGÍA DEL FUERTE
A114: CC-1193098315 | B114: 76111 | C114: GUADALAJARA DE BUGA | D114: 3 | E114: 0 | F114: Natural | G114: 76 | H114: VALLE DEL CAUCA | I114: Aprobado con subsidio | J114: 3 | K114: MICRO | L114: 4771 | M114: COMERCIO AL POR MAYOR Y AL POR MENOR; REPARACIÓN DE VEHÍCULOS AUTOMOTORES Y MOTOCICLETAS | N114: 2 | O114: 1 | P114: 0 | U114: NIT-900720301 | V114: 5001 | W114: MEDELLÍN | X114: 0 | Y114: 0 | Z114: Jurídica | AA114: 5 | AB114: ANTIOQUIA | AC114: Rechazado a nivel aportante | AD114: 0 | AE114: $null$ | AF114: 2511 | AG114: INDUSTRIAS MANUFACTURERAS | AH114: 0 | AI114: 0 | AJ114: 0 | AN114: =CONCATENATE(AO114,COUNTIF($AO$2:AO114,AO114)) -> 13 | AO114: 1 | AP114: 3.502136303e-05 | AQ114: 8 | AR114: 9.983352759e-06 | AS114: =+(SUMIFS(Montos!$Y$2:$Y$396864,Montos!$R$2:$R$396864,Base!AT114)/1000000) -> 13.27 | AT114: ALEJANDRÍA
A115: CC-1144155447 | B115: 76001 | C115: CALI | D115: 6 | E115: 1 | F115: Natural | G115: 76 | H115: VALLE DEL CAUCA | I115: Aprobado con subsidio | J115: 4 | K115: MICRO | L115: 1089 | M115: INDUSTRIAS MANUFACTURERAS | N115: 3 | O115: 3 | P115: 0 | U115: NIT-901038770 | V115: 5001 | W115: MEDELLÍN | X115: 6 | Y115: 0 | Z115: Jurídica | AA115: 5 | AB115: ANTIOQUIA | AC115: Aprobado con subsidio | AD115: 6 | AE115: MICRO | AF115: 8291 | AG115: ACTIVIDADES DE SERVICIOS ADMINISTRATIVOS Y DE APOYO | AH115: 6 | AI115: 0 | AJ115: 0 | AN115: =CONCATENATE(AO115,COUNTIF($AO$2:AO115,AO115)) -> 29 | AO115: 2 | AP115: 7.004272606e-05 | AQ115: 41 | AR115: 5.116468289e-05 | AS115: =+(SUMIFS(Montos!$Y$2:$Y$396864,Montos!$R$2:$R$396864,Base!AT115)/1000000) -> 76.686 | AT115: BRICEÑO
A116: CC-1144100431 | B116: 76001 | C116: CALI | D116: 0 | E116: 0 | F116: Natural | G116: 76 | H116: VALLE DEL CAUCA | I116: Rechazado a nivel aportante | J116: 2 | K116: MICRO | L116: 5621 | M116: ALOJAMIENTO Y SERVICIOS DE COMIDA | N116: 0 | O116: 0 | P116: 0 | U116: NIT-800004800 | V116: 5001 | W116: MEDELLÍN | X116: 290 | Y116: 12 | Z116: Jurídica | AA116: 5 | AB116: ANTIOQUIA | AC116: Aprobado con subsidio | AD116: 322 | AE116: GRANDE | AF116: 4530 | AG116: COMERCIO AL POR MAYOR Y AL POR MENOR; REPARACIÓN DE VEHÍCULOS AUTOMOTORES Y MOTOCICLETAS | AH116: 67 | AI116: 223 | AJ116: 0 | AN116: =CONCATENATE(AO116,COUNTIF($AO$2:AO116,AO116)) -> 36 | AO116: 3 | AP116: 0.0001050640891 | AQ116: 40 | AR116: 4.99167638e-05 | AS116: =+(SUMIFS(Montos!$Y$2:$Y$396864,Montos!$R$2:$R$396864,Base!AT116)/1000000) -> 91.293 | AT116: GUADALUPE
A117: CC-1144057436 | B117: 5001 | C117: MEDELLÍN | D117: 7 | E117: 1 | F117: Natural | G117: 5 | H117: ANTIOQUIA | I117: Aprobado con subsidio | J117: 6 | K117: MICRO | L117: 4773 | M117: COMERCIO AL POR MAYOR Y AL POR MENOR; REPARACIÓN DE VEHÍCULOS AUTOMOTORES Y MOTOCICLETAS | N117: 7 | O117: 0 | P117: 0 | U117: NIT-901067241 | V117: 5001 | W117: MEDELLÍN | X117: 6 | Y117: 0 | Z117: Jurídica | AA117: 5 | AB117: ANTIOQUIA | AC117: Aprobado con subsidio | AD117: 7 | AE117: MICRO | AF117: 1811 | AG117: INDUSTRIAS MANUFACTURERAS | AH117: 3 | AI117: 3 | AJ117: 0 | AN117: =CONCATENATE(AO117,COUNTIF($AO$2:AO117,AO117)) -> 14 | AO117: 1 | AP117: 3.502136303e-05 | AQ117: 6 | AR117: 7.487514569e-06 | AS117: =+(SUMIFS(Montos!$Y$2:$Y$396864,Montos!$R$2:$R$396864,Base!AT117)/1000000) -> 8.776 | AT117: SAN JUAN DE URABÁ
A118: CC-11299705 | B118: 50001 | C118: VILLAVICENCIO | D118: 26 | E118: 4 | F118: Natural | G118: 50 | H118: META | I118: Aprobado con subsidio | J118: 26 | K118: PEQUEÑA | L118: 2021 | M118: INDUSTRIAS MANUFACTURERAS | N118: 13 | O118: 13 | P118: 0 | U118: NIT-900571457 | V118: 5631 | W118: SABANETA | X118: 10 | Y118: 1 | Z118: Jurídica | AA118: 5 | AB118: ANTIOQUIA | AC118: Aprobado con subsidio | AD118: 11 | AE118: PEQUEÑA | AF118: 1089 | AG118: INDUSTRIAS MANUFACTURERAS | AH118: 6 | AI118: 4 | AJ118: 0 | AN118: =CONCATENATE(AO118,COUNTIF($AO$2:AO118,AO118)) -> 47 | AO118: 4 | AP118: 0.0001400854521 | AQ118: 55 | AR118: 6.863555022e-05 | AS118: =+(SUMIFS(Montos!$Y$2:$Y$396864,Montos!$R$2:$R$396864,Base!AT118)/1000000) -> 73.166 | AT118: CARAMANTA
A119: CC-1118289192 | B119: 76001 | C119: CALI | D119: 3 | E119: 1 | F119: Natural | G119: 76 | H119: VALLE DEL CAUCA | I119: Aprobado con subsidio | J119: 3 | K119: MICRO | L119: 4512 | M119: COMERCIO AL POR MAYOR Y AL POR MENOR; REPARACIÓN DE VEHÍCULOS AUTOMOTORES Y MOTOCICLETAS | N119: 0 | O119: 3 | P119: 0 | U119: NIT-900247838 | V119: 5001 | W119: MEDELLÍN | X119: 12 | Y119: 0 | Z119: Jurídica | AA119: 5 | AB119: ANTIOQUIA | AC119: Aprobado con subsidio | AD119: 10 | AE119: MICRO | AF119: 4663 | AG119: COMERCIO AL POR MAYOR Y AL POR MENOR; REPARACIÓN DE VEHÍCULOS AUTOMOTORES Y MOTOCICLETAS | AH119: 5 | AI119: 7 | AJ119: 0 | AN119: =CONCATENATE(AO119,COUNTIF($AO$2:AO119,AO119)) -> 210 | AO119: 2 | AP119: 7.004272606e-05 | AQ119: 25 | AR119: 3.119797737e-05 | AS119: =+(SUMIFS(Montos!$Y$2:$Y$396864,Montos!$R$2:$R$396864,Base!AT119)/1000000) -> 41.422 | AT119: SAN JOSÉ DE LA MONTAÑA
A120: CC-1117503840 | B120: 18001 | C120: FLORENCIA | D120: 0 | E120: 0 | F120: Natural | G120: 18 | H120: CAQUETÁ | I120: Rechazado a nivel aportante | J120: 25 | K120: PEQUEÑA | L120: 4210 | M120: CONSTRUCCIÓN | N120: 0 | O120: 0 | P120: 0 | U120: NIT-901113673 | V120: 5001 | W120: MEDELLÍN | X120: 13 | Y120: 2 | Z120: Jurídica | AA120: 5 | AB120: ANTIOQUIA | AC120: Aprobado con subsidio | AD120: 10 | AE120: MICRO | AF120: 2592 | AG120: INDUSTRIAS MANUFACTURERAS | AH120: 3 | AI120: 10 | AJ120: 0 | AN120: =CONCATENATE(AO120,COUNTIF($AO$2:AO120,AO120)) -> 211 | AO120: 2 | AP120: 7.004272606e-05 | AQ120: 52 | AR120: 6.489179294e-05 | AS120: =+(SUMIFS(Montos!$Y$2:$Y$396864,Montos!$R$2:$R$396864,Base!AT120)/1000000) -> 18.339 | AT120: ANGOSTURA
A121: CC-13471790 | B121: 54001 | C121: CÚCUTA | D121: 14 | E121: 2 | F121: Natural | G121: 54 | H121: NORTE DE SANTANDER | I121: Aprobado con subsidio | J121: 16 | K121: PEQUEÑA | L121: 4663 | M121: COMERCIO AL POR MAYOR Y AL POR MENOR; REPARACIÓN DE VEHÍCULOS AUTOMOTORES Y MOTOCICLETAS | N121: 4 | O121: 10 | P121: 0 | U121: NIT-800124292 | V121: 5360 | W121: ITAGUI | X121: 47 | Y121: 4 | Z121: Jurídica | AA121: 5 | AB121: ANTIOQUIA | AC121: Aprobado con subsidio | AD121: 57 | AE121: MEDIANA | AF121: 3230 | AG121: INDUSTRIAS MANUFACTURERAS | AH121: 7 | AI121: 39 | AJ121: 1 | AN121: =CONCATENATE(AO121,COUNTIF($AO$2:AO121,AO121)) -> 15 | AO121: 1 | AP121: 3.502136303e-05 | AQ121: 35 | AR121: 4.367716832e-05 | AS121: =+(SUMIFS(Montos!$Y$2:$Y$396864,Montos!$R$2:$R$396864,Base!AT121)/1000000) -> 73.942 | AT121: CAICEDO
A122: CC-1113675825 | B122: 76520 | C122: PALMIRA | D122: 4 | E122: 4 | F122: Natural | G122: 76 | H122: VALLE DEL CAUCA | I122: Aprobado con subsidio | J122: 10 | K122: MICRO | L122: 5619 | M122: ALOJAMIENTO Y SERVICIOS DE COMIDA | N122: 4 | O122: 0 | P122: 0 | U122: NIT-900140007 | V122: 5266 | W122: ENVIGADO | X122: 4 | Y122: 0 | Z122: Jurídica | AA122: 5 | AB122: ANTIOQUIA | AC122: Aprobado con subsidio | AD122: 6 | AE122: MICRO | AF122: 7020 | AG122: ACTIVIDADES PROFESIONALES, CIENTÍFICAS Y TÉCNICAS | AH122: 4 | AI122: 0 | AJ122: 0 | AN122: =CONCATENATE(AO122,COUNTIF($AO$2:AO122,AO122)) -> 16 | AO122: 1 | AP122: 3.502136303e-05 | AQ122: 12 | AR122: 1.497502914e-05 | AS122: =+(SUMIFS(Montos!$Y$2:$Y$396864,Montos!$R$2:$R$396864,Base!AT122)/1000000) -> 27.383 | AT122: CARACOLÍ
A123: CC-1113623479 | B123: 76001 | C123: CALI | D123: 9 | E123: 2 | F123: Natural | G123: 76 | H123: VALLE DEL CAUCA | I123: Aprobado con subsidio | J123: 11 | K123: PEQUEÑA | L123: 4711 | M123: COMERCIO AL POR MAYOR Y AL POR MENOR; REPARACIÓN DE VEHÍCULOS AUTOMOTORES Y MOTOCICLETAS | N123: 3 | O123: 6 | P123: 0 | U123: NIT-900987359 | V123: 5266 | W123: ENVIGADO | X123: 21 | Y123: 4 | Z123: Jurídica | AA123: 5 | AB123: ANTIOQUIA | AC123: Aprobado con subsidio | AD123: 30 | AE123: PEQUEÑA | AF123: 1040 | AG123: INDUSTRIAS MANUFACTURERAS | AH123: 17 | AI123: 4 | AJ123: 0 | AN123: =CONCATENATE(AO123,COUNTIF($AO$2:AO123,AO123)) -> 17 | AO123: 1 | AP123: 3.502136303e-05 | AQ123: 31 | AR123: 3.868549194e-05 | AS123: =+(SUMIFS(Montos!$Y$2:$Y$396864,Montos!$R$2:$R$396864,Base!AT123)/1000000) -> 39.538 | AT123: ANZA
A124: NIT-860032550 | B124: 11001 | C124: BOGOTÁ, D.C. | D124: 1177 | E124: 39 | F124: Jurídica | G124: 11 | H124: BOGOTÁ, D.C. | I124: Aprobado con subsidio | J124: 1249 | K124: MUY GRANDE | L124: 2392 | M124: INDUSTRIAS MANUFACTURERAS | N124: 300 | O124: 877 | P124: 0 | U124: NIT-901032147 | V124: 5001 | W124: MEDELLÍN | X124: 9 | Y124: 0 | Z124: Jurídica | AA124: 5 | AB124: ANTIOQUIA | AC124: Aprobado con subsidio | AD124: 10 | AE124: MICRO | AF124: 4530 | AG124: COMERCIO AL POR MAYOR Y AL POR MENOR; REPARACIÓN DE VEHÍCULOS AUTOMOTORES Y MOTOCICLETAS | AH124: 3 | AI124: 6 | AJ124: 0 | AN124: =CONCATENATE(AO124,COUNTIF($AO$2:AO124,AO124)) -> 18 | AO124: 1 | AP124: 3.502136303e-05 | AQ124: 28 | AR124: 3.494173466e-05 | AS124: =+(SUMIFS(Montos!$Y$2:$Y$396864,Montos!$R$2:$R$396864,Base!AT124)/1000000) -> 46.191 | AT124: CAMPAMENTO
A125: CC-1101682792 | B125: 47189 | C125: CIÉNAGA | D125: 3 | E125: 0 | F125: Natural | G125: 47 | H125: MAGDALENA | I125: Aprobado con subsidio | J125: 3 | K125: MICRO | L125: 1081 | M125: INDUSTRIAS MANUFACTURERAS | N125: 1 | O125: 2 | P125: 0 | U125: NIT-811028307 | V125: 5001 | W125: MEDELLÍN | X125: 24 | Y125: 5 | Z125: Jurídica | AA125: 5 | AB125: ANTIOQUIA | AC125: Aprobado con subsidio | AD125: 33 | AE125: PEQUEÑA | AF125: 4921 | AG125: TRANSPORTE Y ALMACENAMIENTO | AH125: 7 | AI125: 17 | AJ125: 0 | AN125: =CONCATENATE(AO125,COUNTIF($AO$2:AO125,AO125)) -> 01 | AO125: 0 | AP125: 0 | AQ125: 0 | AR125: 0 | AS125: =+(SUMIFS(Montos!$Y$2:$Y$396864,Montos!$R$2:$R$396864,Base!AT125)/1000000) -> 0 | AT125: 0
A126: CC-1101174035 | B126: 68077 | C126: BARBOSA | D126: 0 | E126: 0 | F126: Natural | G126: 68 | H126: SANTANDER | I126: Rechazado a nivel aportante | J126: 6 | K126: MICRO | L126: 8513 | M126: EDUCACIÓN | N126: 0 | O126: 0 | P126: 0 | U126: NIT-890980260 | V126: 5088 | W126: BELLO | X126: 6 | Y126: 0 | Z126: Jurídica | AA126: 5 | AB126: ANTIOQUIA | AC126: Aprobado con subsidio | AD126: 6 | AE126: MICRO | AF126: 9491 | AG126: OTRAS ACTIVIDADES DE SERVICIOS | AH126: 6 | AI126: 0 | AJ126: 0 | AN126: =CONCATENATE(AO126,COUNTIF($AO$2:AO126,AO126)) -> 02 | AO126: 0 | AP126: 0 | AQ126: 0 | AR126: 0 | AS126: =+(SUMIFS(Montos!$Y$2:$Y$396864,Montos!$R$2:$R$396864,Base!AT126)/1000000) -> 0
A127: CC-1098706205 | B127: 68001 | C127: BUCARAMANGA | D127: 19 | E127: 25 | F127: Natural | G127: 68 | H127: SANTANDER | I127: Aprobado con subsidio | J127: 47 | K127: PEQUEÑA | L127: 4663 | M127: COMERCIO AL POR MAYOR Y AL POR MENOR; REPARACIÓN DE VEHÍCULOS AUTOMOTORES Y MOTOCICLETAS | N127: 4 | O127: 15 | P127: 0 | U127: CC-32257949 | V127: 5001 | W127: MEDELLÍN | X127: 23 | Y127: 9 | Z127: Natural | AA127: 5 | AB127: ANTIOQUIA | AC127: Aprobado con subsidio | AD127: 20 | AE127: PEQUEÑA | AF127: 1051 | AG127: INDUSTRIAS MANUFACTURERAS | AH127: 12 | AI127: 11 | AJ127: 0 | AN127: =CONCATENATE(AO127,COUNTIF($AO$2:AO127,AO127)) -> 03 | AO127: 0 | AP127: 0 | AQ127: 0 | AR127: 0 | AS127: =+(SUMIFS(Montos!$Y$2:$Y$396864,Montos!$R$2:$R$396864,Base!AT127)/1000000) -> 0
A128: CC-1098260358 | B128: 68276 | C128: FLORIDABLANCA | D128: 8 | E128: 0 | F128: Natural | G128: 68 | H128: SANTANDER | I128: Aprobado con subsidio | J128: 8 | K128: MICRO | L128: 4663 | M128: COMERCIO AL POR MAYOR Y AL POR MENOR; REPARACIÓN DE VEHÍCULOS AUTOMOTORES Y MOTOCICLETAS | N128: 3 | O128: 5 | P128: 0 | U128: NIT-900541029 | V128: 5001 | W128: MEDELLÍN | X128: 13 | Y128: 4 | Z128: Jurídica | AA128: 5 | AB128: ANTIOQUIA | AC128: Aprobado con subsidio | AD128: 20 | AE128: PEQUEÑA | AF128: 1410 | AG128: INDUSTRIAS MANUFACTURERAS | AH128: 12 | AI128: 1 | AJ128: 0 | AN128: =CONCATENATE(AO128,COUNTIF($AO$2:AO128,AO128)) -> 04 | AO128: 0 | AP128: 0 | AQ128: 0 | AR128: 0 | AS128: =+(SUMIFS(Montos!$Y$2:$Y$396864,Montos!$R$2:$R$396864,Base!AT128)/1000000) -> 0
A129: CC-1095790890 | B129: 68276 | C129: FLORIDABLANCA | D129: 5 | E129: 0 | F129: Natural | G129: 68 | H129: SANTANDER | I129: Aprobado con subsidio | J129: 6 | K129: MICRO | L129: 4752 | M129: COMERCIO AL POR MAYOR Y AL POR MENOR; REPARACIÓN DE VEHÍCULOS AUTOMOTORES Y MOTOCICLETAS | N129: 2 | O129: 3 | P129: 0 | U129: CC-1110482489 | V129: 5045 | W129: APARTADÓ | X129: 17 | Y129: 6 | Z129: Natural | AA129: 5 | AB129: ANTIOQUIA | AC129: Aprobado con subsidio | AD129: 13 | AE129: PEQUEÑA | AF129: 4542 | AG129: COMERCIO AL POR MAYOR Y AL POR MENOR; REPARACIÓN DE VEHÍCULOS AUTOMOTORES Y MOTOCICLETAS | AH129: 13 | AI129: 4 | AJ129: 0 | AN129: =CONCATENATE(AO129,COUNTIF($AO$2:AO129,AO129)) -> 05 | AO129: 0 | AP129: 0 | AQ129: 0 | AR129: 0 | AS129: =+(SUMIFS(Montos!$Y$2:$Y$396864,Montos!$R$2:$R$396864,Base!AT129)/1000000) -> 0
A130: CC-1090503401 | B130: 54261 | C130: EL ZULIA | D130: 7 | E130: 4 | F130: Natural | G130: 54 | H130: NORTE DE SANTANDER | I130: Aprobado con subsidio | J130: 7 | K130: MICRO | L130: 5611 | M130: ALOJAMIENTO Y SERVICIOS DE COMIDA | N130: 5 | O130: 2 | P130: 0 | U130: NIT-900499757 | V130: 5001 | W130: MEDELLÍN | X130: 106 | Y130: 7 | Z130: Jurídica | AA130: 5 | AB130: ANTIOQUIA | AC130: Aprobado con subsidio | AD130: 122 | AE130: MEDIANA | AF130: 4690 | AG130: COMERCIO AL POR MAYOR Y AL POR MENOR; REPARACIÓN DE VEHÍCULOS AUTOMOTORES Y MOTOCICLETAS | AH130: 91 | AI130: 15 | AJ130: 0
A131: CC-1088244624 | B131: 66001 | C131: PEREIRA | D131: 10 | E131: 2 | F131: Natural | G131: 66 | H131: RISARALDA | I131: Aprobado con subsidio | J131: 9 | K131: MICRO | L131: 4759 | M131: COMERCIO AL POR MAYOR Y AL POR MENOR; REPARACIÓN DE VEHÍCULOS AUTOMOTORES Y MOTOCICLETAS | N131: 1 | O131: 9 | P131: 0 | U131: NIT-800196722 | V131: 5001 | W131: MEDELLÍN | X131: 21 | Y131: 5 | Z131: Jurídica | AA131: 5 | AB131: ANTIOQUIA | AC131: Aprobado con subsidio | AD131: 25 | AE131: PEQUEÑA | AF131: 8010 | AG131: ACTIVIDADES DE SERVICIOS ADMINISTRATIVOS Y DE APOYO | AH131: 4 | AI131: 17 | AJ131: 0
A132: CC-1085900620 | B132: 76001 | C132: CALI | D132: 3 | E132: 1 | F132: Natural | G132: 76 | H132: VALLE DEL CAUCA | I132: Aprobado con subsidio | J132: 4 | K132: MICRO | L132: 4789 | M132: COMERCIO AL POR MAYOR Y AL POR MENOR; REPARACIÓN DE VEHÍCULOS AUTOMOTORES Y MOTOCICLETAS | N132: 0 | O132: 3 | P132: 0 | U132: NIT-900310968 | V132: 5001 | W132: MEDELLÍN | X132: 23 | Y132: 0 | Z132: Jurídica | AA132: 5 | AB132: ANTIOQUIA | AC132: Aprobado con subsidio | AD132: 26 | AE132: PEQUEÑA | AF132: 4690 | AG132: COMERCIO AL POR MAYOR Y AL POR MENOR; REPARACIÓN DE VEHÍCULOS AUTOMOTORES Y MOTOCICLETAS | AH132: 15 | AI132: 8 | AJ132: 0
A133: CC-10558301 | B133: 19573 | C133: PUERTO TEJADA | D133: 4 | E133: 0 | F133: Natural | G133: 19 | H133: CAUCA | I133: Aprobado con subsidio | J133: 4 | K133: MICRO | L133: 4711 | M133: COMERCIO AL POR MAYOR Y AL POR MENOR; REPARACIÓN DE VEHÍCULOS AUTOMOTORES Y MOTOCICLETAS | N133: 2 | O133: 2 | P133: 0 | U133: NIT-900913832 | V133: 5001 | W133: MEDELLÍN | X133: 14 | Y133: 0 | Z133: Jurídica | AA133: 5 | AB133: ANTIOQUIA | AC133: Aprobado con subsidio | AD133: 16 | AE133: PEQUEÑA | AF133: 4731 | AG133: COMERCIO AL POR MAYOR Y AL POR MENOR; REPARACIÓN DE VEHÍCULOS AUTOMOTORES Y MOTOCICLETAS | AH133: 2 | AI133: 12 | AJ133: 0
A134: CC-1049626750 | B134: 15001 | C134: TUNJA | D134: 30 | E134: 1 | F134: Natural | G134: 15 | H134: BOYACÁ | I134: Aprobado con subsidio | J134: 39 | K134: PEQUEÑA | L134: 1081 | M134: INDUSTRIAS MANUFACTURERAS | N134: 21 | O134: 9 | P134: 0 | U134: NIT-901153419 | V134: 5001 | W134: MEDELLÍN | X134: 12 | Y134: 6 | Z134: Jurídica | AA134: 5 | AB134: ANTIOQUIA | AC134: Aprobado con subsidio | AD134: 26 | AE134: PEQUEÑA | AF134: 10 | AG134: OTRAS | AH134: 1 | AI134: 11 | AJ134: 0
A135: CC-1049609179 | B135: 15001 | C135: TUNJA | D135: 4 | E135: 0 | F135: Natural | G135: 15 | H135: BOYACÁ | I135: Aprobado con subsidio | J135: 3 | K135: MICRO | L135: 4711 | M135: COMERCIO AL POR MAYOR Y AL POR MENOR; REPARACIÓN DE VEHÍCULOS AUTOMOTORES Y MOTOCICLETAS | N135: 0 | O135: 4 | P135: 0 | U135: NIT-900960353 | V135: 5001 | W135: MEDELLÍN | X135: 3 | Y135: 0 | Z135: Jurídica | AA135: 5 | AB135: ANTIOQUIA | AC135: Aprobado con subsidio | AD135: 3 | AE135: MICRO | AF135: 7310 | AG135: ACTIVIDADES PROFESIONALES, CIENTÍFICAS Y TÉCNICAS | AH135: 0 | AI135: 3 | AJ135: 0
A136: CC-1037586532 | B136: 66001 | C136: PEREIRA | D136: 38 | E136: 0 | F136: Natural | G136: 66 | H136: RISARALDA | I136: Aprobado con subsidio | J136: 38 | K136: PEQUEÑA | L136: 5611 | M136: ALOJAMIENTO Y SERVICIOS DE COMIDA | N136: 20 | O136: 18 | P136: 0 | U136: NIT-900241305 | V136: 5001 | W136: MEDELLÍN | X136: 33 | Y136: 3 | Z136: Jurídica | AA136: 5 | AB136: ANTIOQUIA | AC136: Aprobado con subsidio | AD136: 31 | AE136: PEQUEÑA | AF136: 4290 | AG136: CONSTRUCCIÓN | AH136: 5 | AI136: 28 | AJ136: 0
A137: CC-1036337058 | B137: 5001 | C137: MEDELLÍN | D137: 16 | E137: 0 | F137: Natural | G137: 5 | H137: ANTIOQUIA | I137: Aprobado con subsidio | J137: 12 | K137: PEQUEÑA | L137: 5611 | M137: ALOJAMIENTO Y SERVICIOS DE COMIDA | N137: 7 | O137: 9 | P137: 0 | U137: NIT-900092695 | V137: 5001 | W137: MEDELLÍN | X137: 5 | Y137: 0 | Z137: Jurídica | AA137: 5 | AB137: ANTIOQUIA | AC137: Aprobado con subsidio | AD137: 6 | AE137: MICRO | AF137: 4290 | AG137: CONSTRUCCIÓN | AH137: 1 | AI137: 4 | AJ137: 0
A138: CC-10243948 | B138: 76001 | C138: CALI | D138: 6 | E138: 0 | F138: Natural | G138: 76 | H138: VALLE DEL CAUCA | I138: Aprobado con subsidio | J138: 6 | K138: MICRO | L138: 1399 | M138: INDUSTRIAS MANUFACTURERAS | N138: 4 | O138: 2 | P138: 0 | U138: NIT-900347847 | V138: 5001 | W138: MEDELLÍN | X138: 2 | Y138: 0 | Z138: Jurídica | AA138: 5 | AB138: ANTIOQUIA | AC138: Aprobado con subsidio | AD138: 2 | AE138: MICRO | AF138: 4774 | AG138: COMERCIO AL POR MAYOR Y AL POR MENOR; REPARACIÓN DE VEHÍCULOS AUTOMOTORES Y MOTOCICLETAS | AH138: 1 | AI138: 1 | AJ138: 0
A139: CC-1023898470 | B139: 15759 | C139: SOGAMOSO | D139: 10 | E139: 1 | F139: Natural | G139: 15 | H139: BOYACÁ | I139: Aprobado con subsidio | J139: 9 | K139: MICRO | L139: 1081 | M139: INDUSTRIAS MANUFACTURERAS | N139: 5 | O139: 5 | P139: 0 | U139: NIT-890932443 | V139: 5001 | W139: MEDELLÍN | X139: 7 | Y139: 0 | Z139: Jurídica | AA139: 5 | AB139: ANTIOQUIA | AC139: Aprobado con subsidio | AD139: 7 | AE139: MICRO | AF139: 6621 | AG139: ACTIVIDADES FINANCIERAS Y DE SEGUROS | AH139: 4 | AI139: 3 | AJ139: 0
A140: CC-1110505713 | B140: 73001 | C140: IBAGUÉ | D140: 0 | E140: 0 | F140: Natural | G140: 73 | H140: TOLIMA | I140: Rechazado a nivel aportante | J140: 0 | K140: $null$ | L140: 5611 | M140: ALOJAMIENTO Y SERVICIOS DE COMIDA | N140: 0 | O140: 0 | P140: 0 | U140: NIT-890936092 | V140: 5001 | W140: MEDELLÍN | X140: 4 | Y140: 0 | Z140: Jurídica | AA140: 5 | AB140: ANTIOQUIA | AC140: Aprobado con subsidio | AD140: 4 | AE140: MICRO | AF140: 4520 | AG140: COMERCIO AL POR MAYOR Y AL POR MENOR; REPARACIÓN DE VEHÍCULOS AUTOMOTORES Y MOTOCICLETAS | AH140: 2 | AI140: 2 | AJ140: 0
A141: CC-10237188 | B141: 66001 | C141: PEREIRA | D141: 0 | E141: 0 | F141: Natural | G141: 66 | H141: RISARALDA | I141: Rechazado a nivel aportante | J141: 12 | K141: PEQUEÑA | L141: 144 | M141: AGRICULTURA, GANADERÍA, CAZA, SILVICULTURA Y PESCA | N141: 0 | O141: 0 | P141: 0 | U141: NIT-900834122 | V141: 5360 | W141: ITAGUI | X141: 5 | Y141: 0 | Z141: Jurídica | AA141: 5 | AB141: ANTIOQUIA | AC141: Aprobado con subsidio | AD141: 5 | AE141: MICRO | AF141: 4641 | AG141: COMERCIO AL POR MAYOR Y AL POR MENOR; REPARACIÓN DE VEHÍCULOS AUTOMOTORES Y MOTOCICLETAS | AH141: 5 | AI141: 0 | AJ141: 0
A142: NIT-800248168 | B142: 25473 | C142: MOSQUERA | D142: 28 | E142: 0 | F142: Jurídica | G142: 25 | H142: CUNDINAMARCA | I142: Aprobado con subsidio | J142: 33 | K142: PEQUEÑA | L142: 4530 | M142: COMERCIO AL POR MAYOR Y AL POR MENOR; REPARACIÓN DE VEHÍCULOS AUTOMOTORES Y MOTOCICLETAS | N142: 10 | O142: 18 | P142: 0 | U142: NIT-900815888 | V142: 5088 | W142: BELLO | X142: 7 | Y142: 0 | Z142: Jurídica | AA142: 5 | AB142: ANTIOQUIA | AC142: Aprobado con subsidio | AD142: 7 | AE142: MICRO | AF142: 2229 | AG142: INDUSTRIAS MANUFACTURERAS | AH142: 3 | AI142: 4 | AJ142: 0
A143: CC-1019005418 | B143: 41551 | C143: PITALITO | D143: 0 | E143: 0 | F143: Natural | G143: 41 | H143: HUILA | I143: Rechazado a nivel aportante | J143: 3 | K143: MICRO | L143: 8692 | M143: ACTIVIDADES DE ATENCIÓN DE LA SALUD HUMANA Y DE ASISTENCIA SOCIAL | N143: 0 | O143: 0 | P143: 0 | U143: NIT-900188352 | V143: 5001 | W143: MEDELLÍN | X143: 7 | Y143: 30 | Z143: Jurídica | AA143: 5 | AB143: ANTIOQUIA | AC143: Aprobado con subsidio | AD143: 7 | AE143: MICRO | AF143: 8230 | AG143: ACTIVIDADES DE SERVICIOS ADMINISTRATIVOS Y DE APOYO | AH143: 4 | AI143: 3 | AJ143: 0
A144: CC-1018424994 | B144: 52001 | C144: PASTO | D144: 17 | E144: 0 | F144: Natural | G144: 52 | H144: NARIÑO | I144: Aprobado con subsidio | J144: 30 | K144: PEQUEÑA | L144: 5611 | M144: ALOJAMIENTO Y SERVICIOS DE COMIDA | N144: 9 | O144: 8 | P144: 0 | U144: NIT-900609136 | V144: 5001 | W144: MEDELLÍN | X144: 13 | Y144: 0 | Z144: Jurídica | AA144: 5 | AB144: ANTIOQUIA | AC144: Aprobado con subsidio | AD144: 12 | AE144: PEQUEÑA | AF144: 7020 | AG144: ACTIVIDADES PROFESIONALES, CIENTÍFICAS Y TÉCNICAS | AH144: 9 | AI144: 4 | AJ144: 0
A145: CC-10084891 | B145: 76147 | C145: CARTAGO | D145: 17 | E145: 1 | F145: Natural | G145: 76 | H145: VALLE DEL CAUCA | I145: Aprobado con subsidio | J145: 19 | K145: PEQUEÑA | L145: 4731 | M145: COMERCIO AL POR MAYOR Y AL POR MENOR; REPARACIÓN DE VEHÍCULOS AUTOMOTORES Y MOTOCICLETAS | N145: 2 | O145: 15 | P145: 0 | U145: NIT-900920878 | V145: 5001 | W145: MEDELLÍN | X145: 12 | Y145: 0 | Z145: Jurídica | AA145: 5 | AB145: ANTIOQUIA | AC145: Aprobado con subsidio | AD145: 13 | AE145: PEQUEÑA | AF145: 7110 | AG145: ACTIVIDADES PROFESIONALES, CIENTÍFICAS Y TÉCNICAS | AH145: 6 | AI145: 6 | AJ145: 0
A146: CC-10070935 | B146: 66170 | C146: DOSQUEBRADAS | D146: 7 | E146: 0 | F146: Natural | G146: 66 | H146: RISARALDA | I146: Aprobado con subsidio | J146: 8 | K146: MICRO | L146: 1709 | M146: INDUSTRIAS MANUFACTURERAS | N146: 2 | O146: 5 | P146: 0 | U146: NIT-900618755 | V146: 5001 | W146: MEDELLÍN | X146: 12 | Y146: 0 | Z146: Jurídica | AA146: 5 | AB146: ANTIOQUIA | AC146: Aprobado con subsidio | AD146: 12 | AE146: PEQUEÑA | AF146: 7010 | AG146: ACTIVIDADES PROFESIONALES, CIENTÍFICAS Y TÉCNICAS | AH146: 8 | AI146: 4 | AJ146: 0
A147: CC-52364047 | B147: 11001 | C147: BOGOTÁ, D.C. | D147: 19 | E147: 5 | F147: Natural | G147: 11 | H147: BOGOTÁ, D.C. | I147: Aprobado con subsidio | J147: 20 | K147: PEQUEÑA | L147: 5611 | M147: ALOJAMIENTO Y SERVICIOS DE COMIDA | N147: 13 | O147: 6 | P147: 0 | U147: NIT-900857186 | V147: 5360 | W147: ITAGUI | X147: 22 | Y147: 1 | Z147: Jurídica | AA147: 5 | AB147: ANTIOQUIA | AC147: Aprobado con subsidio | AD147: 20 | AE147: PEQUEÑA | AF147: 8621 | AG147: ACTIVIDADES DE ATENCIÓN DE LA SALUD HUMANA Y DE ASISTENCIA SOCIAL | AH147: 15 | AI147: 7 | AJ147: 0
A148: CC-76327097 | B148: 63001 | C148: ARMENIA | D148: 0 | E148: 0 | F148: Natural | G148: 63 | H148: QUINDÍO | I148: Rechazado a nivel aportante | J148: 27 | K148: PEQUEÑA | L148: 4330 | M148: CONSTRUCCIÓN | N148: 0 | O148: 0 | P148: 0 | U148: NIT-901274853 | V148: 5001 | W148: MEDELLÍN | X148: 3 | Y148: 2 | Z148: Jurídica | AA148: 5 | AB148: ANTIOQUIA | AC148: Aprobado con subsidio | AD148: 3 | AE148: MICRO | AF148: 5611 | AG148: ALOJAMIENTO Y SERVICIOS DE COMIDA | AH148: 2 | AI148: 1 | AJ148: 0
A149: CC-10022495 | B149: 66001 | C149: PEREIRA | D149: 54 | E149: 12 | F149: Natural | G149: 66 | H149: RISARALDA | I149: Aprobado con subsidio | J149: 45 | K149: PEQUEÑA | L149: 1081 | M149: INDUSTRIAS MANUFACTURERAS | N149: 43 | O149: 11 | P149: 0 | U149: NIT-900151027 | V149: 5631 | W149: SABANETA | X149: 5 | Y149: 0 | Z149: Jurídica | AA149: 5 | AB149: ANTIOQUIA | AC149: Aprobado con subsidio | AD149: 4 | AE149: MICRO | AF149: 7730 | AG149: ACTIVIDADES DE SERVICIOS ADMINISTRATIVOS Y DE APOYO | AH149: 2 | AI149: 3 | AJ149: 0
A150: CC-10059121 | B150: 66170 | C150: DOSQUEBRADAS | D150: 9 | E150: 3 | F150: Natural | G150: 66 | H150: RISARALDA | I150: Aprobado con subsidio | J150: 9 | K150: MICRO | L150: 5530 | M150: ALOJAMIENTO Y SERVICIOS DE COMIDA | N150: 7 | O150: 2 | P150: 0 | U150: CC-71214403 | V150: 5088 | W150: BELLO | X150: 4 | Y150: 0 | Z150: Natural | AA150: 5 | AB150: ANTIOQUIA | AC150: Aprobado con subsidio | AD150: 4 | AE150: MICRO | AF150: 1410 | AG150: INDUSTRIAS MANUFACTURERAS | AH150: 0 | AI150: 4 | AJ150: 0
A151: CC-10065880 | B151: 76001 | C151: CALI | D151: 3 | E151: 0 | F151: Natural | G151: 76 | H151: VALLE DEL CAUCA | I151: Aprobado con subsidio | J151: 3 | K151: MICRO | L151: 4754 | M151: COMERCIO AL POR MAYOR Y AL POR MENOR; REPARACIÓN DE VEHÍCULOS AUTOMOTORES Y MOTOCICLETAS | N151: 2 | O151: 1 | P151: 0 | U151: NIT-900181427 | V151: 5001 | W151: MEDELLÍN | X151: 25 | Y151: 0 | Z151: Jurídica | AA151: 5 | AB151: ANTIOQUIA | AC151: Aprobado con subsidio | AD151: 24 | AE151: PEQUEÑA | AF151: 4290 | AG151: CONSTRUCCIÓN | AH151: 10 | AI151: 15 | AJ151: 0
A152: CC-10122729 | B152: 66001 | C152: PEREIRA | D152: 6 | E152: 1 | F152: Natural | G152: 66 | H152: RISARALDA | I152: Aprobado con subsidio | J152: 5 | K152: MICRO | L152: 4530 | M152: COMERCIO AL POR MAYOR Y AL POR MENOR; REPARACIÓN DE VEHÍCULOS AUTOMOTORES Y MOTOCICLETAS | N152: 1 | O152: 5 | P152: 0 | U152: NIT-900833719 | V152: 5001 | W152: MEDELLÍN | X152: 10 | Y152: 1 | Z152: Jurídica | AA152: 5 | AB152: ANTIOQUIA | AC152: Aprobado con subsidio | AD152: 11 | AE152: PEQUEÑA | AF152: 6910 | AG152: ACTIVIDADES PROFESIONALES, CIENTÍFICAS Y TÉCNICAS | AH152: 4 | AI152: 6 | AJ152: 0
A153: CC-10128397 | B153: 66001 | C153: PEREIRA | D153: 3 | E153: 0 | F153: Natural | G153: 66 | H153: RISARALDA | I153: Aprobado con subsidio | J153: 3 | K153: MICRO | L153: 7730 | M153: ACTIVIDADES DE SERVICIOS ADMINISTRATIVOS Y DE APOYO | N153: 0 | O153: 3 | P153: 0 | U153: NIT-800134865 | V153: 5001 | W153: MEDELLÍN | X153: 7 | Y153: 0 | Z153: Jurídica | AA153: 5 | AB153: ANTIOQUIA | AC153: Aprobado con subsidio | AD153: 6 | AE153: MICRO | AF153: 4520 | AG153: COMERCIO AL POR MAYOR Y AL POR MENOR; REPARACIÓN DE VEHÍCULOS AUTOMOTORES Y MOTOCICLETAS | AH153: 2 | AI153: 5 | AJ153: 0
A154: CC-1017149313 | B154: 76834 | C154: TULUÁ | D154: 4 | E154: 1 | F154: Natural | G154: 76 | H154: VALLE DEL CAUCA | I154: Aprobado con subsidio | J154: 5 | K154: MICRO | L154: 5611 | M154: ALOJAMIENTO Y SERVICIOS DE COMIDA | N154: 3 | O154: 1 | P154: 0 | U154: NIT-900247943 | V154: 5001 | W154: MEDELLÍN | X154: 4 | Y154: 0 | Z154: Jurídica | AA154: 5 | AB154: ANTIOQUIA | AC154: Aprobado con subsidio | AD154: 4 | AE154: MICRO | AF154: 4771 | AG154: COMERCIO AL POR MAYOR Y AL POR MENOR; REPARACIÓN DE VEHÍCULOS AUTOMOTORES Y MOTOCICLETAS | AH154: 1 | AI154: 3 | AJ154: 0
A155: CC-1017175734 | B155: 5001 | C155: MEDELLÍN | D155: 6 | E155: 0 | F155: Natural | G155: 5 | H155: ANTIOQUIA | I155: Aprobado con subsidio | J155: 4 | K155: MICRO | L155: 4520 | M155: COMERCIO AL POR MAYOR Y AL POR MENOR; REPARACIÓN DE VEHÍCULOS AUTOMOTORES Y MOTOCICLETAS | N155: 1 | O155: 5 | P155: 0 | U155: NIT-900200786 | V155: 5360 | W155: ITAGUI | X155: 16 | Y155: 0 | Z155: Jurídica | AA155: 5 | AB155: ANTIOQUIA | AC155: Aprobado con subsidio | AD155: 16 | AE155: PEQUEÑA | AF155: 1523 | AG155: INDUSTRIAS MANUFACTURERAS | AH155: 3 | AI155: 13 | AJ155: 0
A156: CC-1018436189 | B156: 11001 | C156: BOGOTÁ, D.C. | D156: 4 | E156: 0 | F156: Natural | G156: 11 | H156: BOGOTÁ, D.C. | I156: Aprobado con subsidio | J156: 4 | K156: MICRO | L156: 1081 | M156: INDUSTRIAS MANUFACTURERAS | N156: 2 | O156: 2 | P156: 0 | U156: NIT-900560367 | V156: 5045 | W156: APARTADÓ | X156: 30 | Y156: 1 | Z156: Jurídica | AA156: 5 | AB156: ANTIOQUIA | AC156: Aprobado con subsidio | AD156: 32 | AE156: PEQUEÑA | AF156: 4741 | AG156: COMERCIO AL POR MAYOR Y AL POR MENOR; REPARACIÓN DE VEHÍCULOS AUTOMOTORES Y MOTOCICLETAS | AH156: 17 | AI156: 13 | AJ156: 0
A157: CC-1018500550 | B157: 11001 | C157: BOGOTÁ, D.C. | D157: 4 | E157: 0 | F157: Natural | G157: 11 | H157: BOGOTÁ, D.C. | I157: Aprobado con subsidio | J157: 4 | K157: MICRO | L157: 4772 | M157: COMERCIO AL POR MAYOR Y AL POR MENOR; REPARACIÓN DE VEHÍCULOS AUTOMOTORES Y MOTOCICLETAS | N157: 1 | O157: 3 | P157: 0 | U157: CC-1116788503 | V157: 5147 | W157: CAREPA | X157: 4 | Y157: 2 | Z157: Natural | AA157: 5 | AB157: ANTIOQUIA | AC157: Aprobado con subsidio | AD157: 4 | AE157: MICRO | AF157: 4724 | AG157: COMERCIO AL POR MAYOR Y AL POR MENOR; REPARACIÓN DE VEHÍCULOS AUTOMOTORES Y MOTOCICLETAS | AH157: 4 | AI157: 0 | AJ157: 0
A158: CC-10192979 | B158: 66400 | C158: LA VIRGINIA | D158: 0 | E158: 0 | F158: Natural | G158: 66 | H158: RISARALDA | I158: Rechazado a nivel aportante | J158: 5 | K158: MICRO | L158: 6910 | M158: ACTIVIDADES PROFESIONALES, CIENTÍFICAS Y TÉCNICAS | N158: 0 | O158: 0 | P158: 0 | U158: NIT-901213474 | V158: 5129 | W158: CALDAS | X158: 12 | Y158: 3 | Z158: Jurídica | AA158: 5 | AB158: ANTIOQUIA | AC158: Aprobado con subsidio | AD158: 11 | AE158: PEQUEÑA | AF158: 4659 | AG158: COMERCIO AL POR MAYOR Y AL POR MENOR; REPARACIÓN DE VEHÍCULOS AUTOMOTORES Y MOTOCICLETAS | AH158: 6 | AI158: 6 | AJ158: 0
A159: CC-10240890 | B159: 17001 | C159: MANIZALES | D159: 0 | E159: 0 | F159: Natural | G159: 17 | H159: CALDAS | I159: Rechazado a nivel aportante | J159: 26 | K159: PEQUEÑA | L159: 4112 | M159: CONSTRUCCIÓN | N159: 0 | O159: 0 | P159: 0 | U159: NIT-800027543 | V159: 5615 | W159: RIONEGRO | X159: 184 | Y159: 55 | Z159: Jurídica | AA159: 5 | AB159: ANTIOQUIA | AC159: Aprobado con subsidio | AD159: 258 | AE159: GRANDE | AF159: 125 | AG159: AGRICULTURA, GANADERÍA, CAZA, SILVICULTURA Y PESCA | AH159: 63 | AI159: 121 | AJ159: 0
A160: CC-10300617 | B160: 76001 | C160: CALI | D160: 34 | E160: 7 | F160: Natural | G160: 76 | H160: VALLE DEL CAUCA | I160: Aprobado con subsidio | J160: 28 | K160: PEQUEÑA | L160: 4773 | M160: COMERCIO AL POR MAYOR Y AL POR MENOR; REPARACIÓN DE VEHÍCULOS AUTOMOTORES Y MOTOCICLETAS | N160: 17 | O160: 17 | P160: 0 | U160: NIT-900931358 | V160: 5266 | W160: ENVIGADO | X160: 24 | Y160: 0 | Z160: Jurídica | AA160: 5 | AB160: ANTIOQUIA | AC160: Aprobado con subsidio | AD160: 23 | AE160: PEQUEÑA | AF160: 4330 | AG160: CONSTRUCCIÓN | AH160: 9 | AI160: 15 | AJ160: 0
A161: CC-1032356175 | B161: 11001 | C161: BOGOTÁ, D.C. | D161: 5 | E161: 0 | F161: Natural | G161: 11 | H161: BOGOTÁ, D.C. | I161: Aprobado con subsidio | J161: 5 | K161: MICRO | L161: 4530 | M161: COMERCIO AL POR MAYOR Y AL POR MENOR; REPARACIÓN DE VEHÍCULOS AUTOMOTORES Y MOTOCICLETAS | N161: 2 | O161: 3 | P161: 0 | U161: CC-21464377 | V161: 5034 | W161: ANDES | X161: 3 | Y161: 0 | Z161: Natural | AA161: 5 | AB161: ANTIOQUIA | AC161: Aprobado con subsidio | AD161: 3 | AE161: MICRO | AF161: 7420 | AG161: ACTIVIDADES PROFESIONALES, CIENTÍFICAS Y TÉCNICAS | AH161: 2 | AI161: 1 | AJ161: 0
A162: CC-1036657654 | B162: 5360 | C162: ITAGUI | D162: 0 | E162: 0 | F162: Natural | G162: 5 | H162: ANTIOQUIA | I162: Rechazado a nivel aportante | J162: 0 | K162: $null$ | L162: 5619 | M162: ALOJAMIENTO Y SERVICIOS DE COMIDA | N162: 0 | O162: 0 | P162: 0 | U162: CC-98547508 | V162: 5001 | W162: MEDELLÍN | X162: 4 | Y162: 0 | Z162: Natural | AA162: 5 | AB162: ANTIOQUIA | AC162: Aprobado con subsidio | AD162: 4 | AE162: MICRO | AF162: 5611 | AG162: ALOJAMIENTO Y SERVICIOS DE COMIDA | AH162: 3 | AI162: 1 | AJ162: 0
A163: CC-1037582327 | B163: 41001 | C163: NEIVA | D163: 3 | E163: 1 | F163: Natural | G163: 41 | H163: HUILA | I163: Aprobado con subsidio | J163: 3 | K163: MICRO | L163: 1081 | M163: INDUSTRIAS MANUFACTURERAS | N163: 1 | O163: 2 | P163: 0 | U163: NIT-890908404 | V163: 5001 | W163: MEDELLÍN | X163: 114 | Y163: 1 | Z163: Jurídica | AA163: 5 | AB163: ANTIOQUIA | AC163: Aprobado con subsidio | AD163: 120 | AE163: MEDIANA | AF163: 2392 | AG163: INDUSTRIAS MANUFACTURERAS | AH163: 2 | AI163: 112 | AJ163: 0
A164: CC-1037584344 | B164: 5001 | C164: MEDELLÍN | D164: 7 | E164: 0 | F164: Natural | G164: 5 | H164: ANTIOQUIA | I164: Aprobado con subsidio | J164: 8 | K164: MICRO | L164: 5611 | M164: ALOJAMIENTO Y SERVICIOS DE COMIDA | N164: 5 | O164: 2 | P164: 0 | U164: NIT-901045537 | V164: 5045 | W164: APARTADÓ | X164: 20 | Y164: 18 | Z164: Jurídica | AA164: 5 | AB164: ANTIOQUIA | AC164: Aprobado con subsidio | AD164: 22 | AE164: PEQUEÑA | AF164: 2030 | AG164: INDUSTRIAS MANUFACTURERAS | AH164: 2 | AI164: 18 | AJ164: 0
A165: CC-1039450686 | B165: 5001 | C165: MEDELLÍN | D165: 6 | E165: 5 | F165: Natural | G165: 5 | H165: ANTIOQUIA | I165: Aprobado con subsidio | J165: 5 | K165: MICRO | L165: 5619 | M165: ALOJAMIENTO Y SERVICIOS DE COMIDA | N165: 6 | O165: 0 | P165: 0 | U165: NIT-900014434 | V165: 5001 | W165: MEDELLÍN | X165: 20 | Y165: 1 | Z165: Jurídica | AA165: 5 | AB165: ANTIOQUIA | AC165: Aprobado con subsidio | AD165: 19 | AE165: PEQUEÑA | AF165: 4652 | AG165: COMERCIO AL POR MAYOR Y AL POR MENOR; REPARACIÓN DE VEHÍCULOS AUTOMOTORES Y MOTOCICLETAS | AH165: 7 | AI165: 13 | AJ165: 0
A166: CC-1049630538 | B166: 15001 | C166: TUNJA | D166: 6 | E166: 0 | F166: Natural | G166: 15 | H166: BOYACÁ | I166: Aprobado con subsidio | J166: 8 | K166: MICRO | L166: 5611 | M166: ALOJAMIENTO Y SERVICIOS DE COMIDA | N166: 1 | O166: 5 | P166: 0 | U166: NIT-900689415 | V166: 5001 | W166: MEDELLÍN | X166: 33 | Y166: 9 | Z166: Jurídica | AA166: 5 | AB166: ANTIOQUIA | AC166: Aprobado con subsidio | AD166: 44 | AE166: PEQUEÑA | AF166: 4312 | AG166: CONSTRUCCIÓN | AH166: 4 | AI166: 28 | AJ166: 1
A167: CC-10547579 | B167: 19001 | C167: POPAYÁN | D167: 4 | E167: 0 | F167: Natural | G167: 19 | H167: CAUCA | I167: Aprobado con subsidio | J167: 4 | K167: MICRO | L167: 4754 | M167: COMERCIO AL POR MAYOR Y AL POR MENOR; REPARACIÓN DE VEHÍCULOS AUTOMOTORES Y MOTOCICLETAS | N167: 0 | O167: 4 | P167: 0 | U167: NIT-900242553 | V167: 5631 | W167: SABANETA | X167: 108 | Y167: 2 | Z167: Jurídica | AA167: 5 | AB167: ANTIOQUIA | AC167: Aprobado con subsidio | AD167: 118 | AE167: MEDIANA | AF167: 144 | AG167: AGRICULTURA, GANADERÍA, CAZA, SILVICULTURA Y PESCA | AH167: 22 | AI167: 86 | AJ167: 0
A168: CC-1061725698 | B168: 19001 | C168: POPAYÁN | D168: 2 | E168: 1 | F168: Natural | G168: 19 | H168: CAUCA | I168: Aprobado con subsidio | J168: 4 | K168: MICRO | L168: 5611 | M168: ALOJAMIENTO Y SERVICIOS DE COMIDA | N168: 2 | O168: 0 | P168: 0 | U168: NIT-900842463 | V168: 5001 | W168: MEDELLÍN | X168: 47 | Y168: 0 | Z168: Jurídica | AA168: 5 | AB168: ANTIOQUIA | AC168: Aprobado con subsidio | AD168: 61 | AE168: MEDIANA | AF168: 1410 | AG168: INDUSTRIAS MANUFACTURERAS | AH168: 40 | AI168: 7 | AJ168: 0
A169: CC-1074184682 | B169: 11001 | C169: BOGOTÁ, D.C. | D169: 0 | E169: 0 | F169: Natural | G169: 11 | H169: BOGOTÁ, D.C. | I169: Rechazado a nivel aportante | J169: 0 | K169: $null$ | L169: 8552 | M169: EDUCACIÓN | N169: 0 | O169: 0 | P169: 0 | U169: NIT-900521948 | V169: 5361 | W169: ITUANGO | X169: 28 | Y169: 0 | Z169: Jurídica | AA169: 5 | AB169: ANTIOQUIA | AC169: Aprobado con subsidio | AD169: 29 | AE169: PEQUEÑA | AF169: 6810 | AG169: ACTIVIDADES INMOBILIARIAS | AH169: 9 | AI169: 19 | AJ169: 0
A170: CC-1082927512 | B170: 47001 | C170: SANTA MARTA | D170: 3 | E170: 0 | F170: Natural | G170: 47 | H170: MAGDALENA | I170: Aprobado con subsidio | J170: 3 | K170: MICRO | L170: 4773 | M170: COMERCIO AL POR MAYOR Y AL POR MENOR; REPARACIÓN DE VEHÍCULOS AUTOMOTORES Y MOTOCICLETAS | N170: 3 | O170: 0 | P170: 0 | U170: NIT-900236437 | V170: 5059 | W170: ARMENIA | X170: 4 | Y170: 1 | Z170: Jurídica | AA170: 5 | AB170: ANTIOQUIA | AC170: Aprobado con subsidio | AD170: 4 | AE170: MICRO | AF170: 144 | AG170: AGRICULTURA, GANADERÍA, CAZA, SILVICULTURA Y PESCA | AH170: 1 | AI170: 3 | AJ170: 0
A171: CC-1082927984 | B171: 47001 | C171: SANTA MARTA | D171: 8 | E171: 0 | F171: Natural | G171: 47 | H171: MAGDALENA | I171: Aprobado con subsidio | J171: 7 | K171: MICRO | L171: 5611 | M171: ALOJAMIENTO Y SERVICIOS DE COMIDA | N171: 5 | O171: 3 | P171: 0 | U171: NIT-811045399 | V171: 5001 | W171: MEDELLÍN | X171: 16 | Y171: 1 | Z171: Jurídica | AA171: 5 | AB171: ANTIOQUIA | AC171: Aprobado con subsidio | AD171: 16 | AE171: PEQUEÑA | AF171: 9499 | AG171: OTRAS ACTIVIDADES DE SERVICIOS | AH171: 6 | AI171: 10 | AJ171: 0
A172: CC-1087194552 | B172: 66001 | C172: PEREIRA | D172: 0 | E172: 0 | F172: Natural | G172: 66 | H172: RISARALDA | I172: Rechazado a nivel aportante | J172: 0 | K172: $null$ | L172: 5612 | M172: ALOJAMIENTO Y SERVICIOS DE COMIDA | N172: 0 | O172: 0 | P172: 0 | U172: NIT-900574473 | V172: 5001 | W172: MEDELLÍN | X172: 55 | Y172: 11 | Z172: Jurídica | AA172: 5 | AB172: ANTIOQUIA | AC172: Aprobado con subsidio | AD172: 50 | AE172: PEQUEÑA | AF172: 6201 | AG172: INFORMACIÓN Y COMUNICACIONES | AH172: 15 | AI172: 40 | AJ172: 0
A173: CC-1088264163 | B173: 66170 | C173: DOSQUEBRADAS | D173: 0 | E173: 0 | F173: Natural | G173: 66 | H173: RISARALDA | I173: Rechazado a nivel aportante | J173: 7 | K173: MICRO | L173: 5611 | M173: ALOJAMIENTO Y SERVICIOS DE COMIDA | N173: 0 | O173: 0 | P173: 0 | U173: CC-43745514 | V173: 5001 | W173: MEDELLÍN | X173: 8 | Y173: 1 | Z173: Natural | AA173: 5 | AB173: ANTIOQUIA | AC173: Aprobado con subsidio | AD173: 12 | AE173: PEQUEÑA | AF173: 8730 | AG173: ACTIVIDADES DE ATENCIÓN DE LA SALUD HUMANA Y DE ASISTENCIA SOCIAL | AH173: 7 | AI173: 1 | AJ173: 0
A174: CC-1088326802 | B174: 66001 | C174: PEREIRA | D174: 0 | E174: 0 | F174: Natural | G174: 66 | H174: RISARALDA | I174: Rechazado a nivel aportante | J174: 4 | K174: MICRO | L174: 5611 | M174: ALOJAMIENTO Y SERVICIOS DE COMIDA | N174: 0 | O174: 0 | P174: 0 | U174: CC-98520780 | V174: 5001 | W174: MEDELLÍN | X174: 3 | Y174: 0 | Z174: Natural | AA174: 5 | AB174: ANTIOQUIA | AC174: Aprobado con subsidio | AD174: 4 | AE174: MICRO | AF174: 4520 | AG174: COMERCIO AL POR MAYOR Y AL POR MENOR; REPARACIÓN DE VEHÍCULOS AUTOMOTORES Y MOTOCICLETAS | AH174: 1 | AI174: 2 | AJ174: 0
A175: CC-1090394338 | B175: 54001 | C175: CÚCUTA | D175: 5 | E175: 6 | F175: Natural | G175: 54 | H175: NORTE DE SANTANDER | I175: Aprobado con subsidio | J175: 5 | K175: MICRO | L175: 4719 | M175: COMERCIO AL POR MAYOR Y AL POR MENOR; REPARACIÓN DE VEHÍCULOS AUTOMOTORES Y MOTOCICLETAS | N175: 1 | O175: 4 | P175: 0 | U175: NIT-811023263 | V175: 5360 | W175: ITAGUI | X175: 39 | Y175: 15 | Z175: Jurídica | AA175: 5 | AB175: ANTIOQUIA | AC175: Aprobado con subsidio | AD175: 68 | AE175: MEDIANA | AF175: 8129 | AG175: ACTIVIDADES DE SERVICIOS ADMINISTRATIVOS Y DE APOYO | AH175: 6 | AI175: 33 | AJ175: 0
A176: CC-1090429858 | B176: 54001 | C176: CÚCUTA | D176: 41 | E176: 0 | F176: Natural | G176: 54 | H176: NORTE DE SANTANDER | I176: Aprobado con subsidio | J176: 41 | K176: PEQUEÑA | L176: 1081 | M176: INDUSTRIAS MANUFACTURERAS | N176: 24 | O176: 17 | P176: 0 | U176: NIT-901093283 | V176: 5360 | W176: ITAGUI | X176: 1 | Y176: 0 | Z176: Jurídica | AA176: 5 | AB176: ANTIOQUIA | AC176: Aprobado con subsidio | AD176: 1 | AE176: MICRO | AF176: 4610 | AG176: COMERCIO AL POR MAYOR Y AL POR MENOR; REPARACIÓN DE VEHÍCULOS AUTOMOTORES Y MOTOCICLETAS | AH176: 0 | AI176: 1 | AJ176: 0
A177: CC-1093215274 | B177: 66682 | C177: SANTA ROSA DE CABAL | D177: 5 | E177: 2 | F177: Natural | G177: 66 | H177: RISARALDA | I177: Aprobado con subsidio | J177: 9 | K177: MICRO | L177: 5613 | M177: ALOJAMIENTO Y SERVICIOS DE COMIDA | N177: 4 | O177: 1 | P177: 0 | U177: NIT-900903517 | V177: 5001 | W177: MEDELLÍN | X177: 35 | Y177: 4 | Z177: Jurídica | AA177: 5 | AB177: ANTIOQUIA | AC177: Aprobado con subsidio | AD177: 24 | AE177: PEQUEÑA | AF177: 4111 | AG177: CONSTRUCCIÓN | AH177: 10 | AI177: 25 | AJ177: 0
A178: CC-1094976689 | B178: 63001 | C178: ARMENIA | D178: ND | E178: ND | F178: Natural | G178: 63 | H178: QUINDÍO | I178: Aprobado con subsidio | J178: 0 | K178: MICRO | L178: 4771 | M178: COMERCIO AL POR MAYOR Y AL POR MENOR; REPARACIÓN DE VEHÍCULOS AUTOMOTORES Y MOTOCICLETAS | N178: 0 | O178: 0 | P178: 0 | U178: NIT-901035873 | V178: 5129 | W178: CALDAS | X178: 12 | Y178: 1 | Z178: Jurídica | AA178: 5 | AB178: ANTIOQUIA | AC178: Aprobado con subsidio | AD178: 12 | AE178: PEQUEÑA | AF178: 1311 | AG178: INDUSTRIAS MANUFACTURERAS | AH178: 0 | AI178: 12 | AJ178: 0
A179: CC-1098665431 | B179: 68001 | C179: BUCARAMANGA | D179: 0 | E179: 0 | F179: Natural | G179: 68 | H179: SANTANDER | I179: Rechazado a nivel aportante | J179: 0 | K179: $null$ | L179: 4643 | M179: COMERCIO AL POR MAYOR Y AL POR MENOR; REPARACIÓN DE VEHÍCULOS AUTOMOTORES Y MOTOCICLETAS | N179: 0 | O179: 0 | P179: 0 | U179: NIT-901010974 | V179: 5631 | W179: SABANETA | X179: 37 | Y179: 5 | Z179: Jurídica | AA179: 5 | AB179: ANTIOQUIA | AC179: Aprobado con subsidio | AD179: 42 | AE179: PEQUEÑA | AF179: 1089 | AG179: INDUSTRIAS MANUFACTURERAS | AH179: 14 | AI179: 23 | AJ179: 0
A180: CC-1100971826 | B180: 68549 | C180: PINCHOTE | D180: 0 | E180: 0 | F180: Natural | G180: 68 | H180: SANTANDER | I180: Rechazado a nivel aportante | J180: 6 | K180: MICRO | L180: 5511 | M180: ALOJAMIENTO Y SERVICIOS DE COMIDA | N180: 0 | O180: 0 | P180: 0 | U180: CC-71001011 | V180: 5667 | W180: SAN RAFAEL | X180: 13 | Y180: 0 | Z180: Natural | AA180: 5 | AB180: ANTIOQUIA | AC180: Aprobado con subsidio | AD180: 12 | AE180: PEQUEÑA | AF180: 4923 | AG180: TRANSPORTE Y ALMACENAMIENTO | AH180: 1 | AI180: 12 | AJ180: 0
A181: CC-1107035739 | B181: 63001 | C181: ARMENIA | D181: 12 | E181: 1 | F181: Natural | G181: 63 | H181: QUINDÍO | I181: Aprobado con subsidio | J181: 15 | K181: PEQUEÑA | L181: 1081 | M181: INDUSTRIAS MANUFACTURERAS | N181: 7 | O181: 5 | P181: 0 | U181: NIT-800210381 | V181: 5360 | W181: ITAGUI | X181: 15 | Y181: 1 | Z181: Jurídica | AA181: 5 | AB181: ANTIOQUIA | AC181: Aprobado con subsidio | AD181: 16 | AE181: PEQUEÑA | AF181: 4752 | AG181: COMERCIO AL POR MAYOR Y AL POR MENOR; REPARACIÓN DE VEHÍCULOS AUTOMOTORES Y MOTOCICLETAS | AH181: 4 | AI181: 11 | AJ181: 0
A182: CC-1110513975 | B182: 73001 | C182: IBAGUÉ | D182: 61 | E182: 5 | F182: Natural | G182: 73 | H182: TOLIMA | I182: Aprobado con subsidio | J182: 53 | K182: MEDIANA | L182: 4723 | M182: COMERCIO AL POR MAYOR Y AL POR MENOR; REPARACIÓN DE VEHÍCULOS AUTOMOTORES Y MOTOCICLETAS | N182: 34 | O182: 27 | P182: 0 | U182: NIT-900861198 | V182: 5001 | W182: MEDELLÍN | X182: 16 | Y182: 0 | Z182: Jurídica | AA182: 5 | AB182: ANTIOQUIA | AC182: Aprobado con subsidio | AD182: 14 | AE182: PEQUEÑA | AF182: 4290 | AG182: CONSTRUCCIÓN | AH182: 2 | AI182: 14 | AJ182: 0
A183: CC-1114401580 | B183: 76364 | C183: JAMUNDÍ | D183: 6 | E183: 2 | F183: Natural | G183: 76 | H183: VALLE DEL CAUCA | I183: Aprobado con subsidio | J183: 6 | K183: MICRO | L183: 4771 | M183: COMERCIO AL POR MAYOR Y AL POR MENOR; REPARACIÓN DE VEHÍCULOS AUTOMOTORES Y MOTOCICLETAS | N183: 5 | O183: 1 | P183: 0 | U183: NIT-900247447 | V183: 5001 | W183: MEDELLÍN | X183: 9 | Y183: 0 | Z183: Jurídica | AA183: 5 | AB183: ANTIOQUIA | AC183: Aprobado con subsidio | AD183: 11 | AE183: PEQUEÑA | AF183: 8691 | AG183: ACTIVIDADES DE ATENCIÓN DE LA SALUD HUMANA Y DE ASISTENCIA SOCIAL | AH183: 4 | AI183: 5 | AJ183: 0
A184: CC-1121826883 | B184: 50001 | C184: VILLAVICENCIO | D184: 5 | E184: 0 | F184: Natural | G184: 50 | H184: META | I184: Aprobado con subsidio | J184: 5 | K184: MICRO | L184: 5611 | M184: ALOJAMIENTO Y SERVICIOS DE COMIDA | N184: 5 | O184: 0 | P184: 0 | U184: CC-42874259 | V184: 5001 | W184: MEDELLÍN | X184: 6 | Y184: 0 | Z184: Natural | AA184: 5 | AB184: ANTIOQUIA | AC184: Aprobado con subsidio | AD184: 6 | AE184: MICRO | AF184: 4719 | AG184: COMERCIO AL POR MAYOR Y AL POR MENOR; REPARACIÓN DE VEHÍCULOS AUTOMOTORES Y MOTOCICLETAS | AH184: 5 | AI184: 1 | AJ184: 0
A185: CC-1130665240 | B185: 76001 | C185: CALI | D185: 2 | E185: 1 | F185: Natural | G185: 76 | H185: VALLE DEL CAUCA | I185: Aprobado con subsidio | J185: 3 | K185: MICRO | L185: 113 | M185: AGRICULTURA, GANADERÍA, CAZA, SILVICULTURA Y PESCA | N185: 1 | O185: 1 | P185: 0 | U185: NIT-900929482 | V185: 5001 | W185: MEDELLÍN | X185: 4 | Y185: 1 | Z185: Jurídica | AA185: 5 | AB185: ANTIOQUIA | AC185: Aprobado con subsidio | AD185: 4 | AE185: MICRO | AF185: 6920 | AG185: ACTIVIDADES PROFESIONALES, CIENTÍFICAS Y TÉCNICAS | AH185: 4 | AI185: 0 | AJ185: 0
A186: CC-1143852211 | B186: 76001 | C186: CALI | D186: 4 | E186: 1 | F186: Natural | G186: 76 | H186: VALLE DEL CAUCA | I186: Aprobado con subsidio | J186: 5 | K186: MICRO | L186: 5611 | M186: ALOJAMIENTO Y SERVICIOS DE COMIDA | N186: 3 | O186: 1 | P186: 0 | U186: NIT-900701876 | V186: 5001 | W186: MEDELLÍN | X186: 8 | Y186: 1 | Z186: Jurídica | AA186: 5 | AB186: ANTIOQUIA | AC186: Aprobado con subsidio | AD186: 7 | AE186: MICRO | AF186: 4761 | AG186: COMERCIO AL POR MAYOR Y AL POR MENOR; REPARACIÓN DE VEHÍCULOS AUTOMOTORES Y MOTOCICLETAS | AH186: 2 | AI186: 6 | AJ186: 0
A187: CC-1144044128 | B187: 66001 | C187: PEREIRA | D187: 3 | E187: 1 | F187: Natural | G187: 66 | H187: RISARALDA | I187: Aprobado con subsidio | J187: 3 | K187: MICRO | L187: 5221 | M187: TRANSPORTE Y ALMACENAMIENTO | N187: 2 | O187: 1 | P187: 0 | U187: NIT-901027754 | V187: 5001 | W187: MEDELLÍN | X187: 41 | Y187: 10 | Z187: Jurídica | AA187: 5 | AB187: ANTIOQUIA | AC187: Aprobado con subsidio | AD187: 33 | AE187: PEQUEÑA | AF187: 5611 | AG187: ALOJAMIENTO Y SERVICIOS DE COMIDA | AH187: 21 | AI187: 20 | AJ187: 0
A188: CC-1193067146 | B188: 63001 | C188: ARMENIA | D188: 9 | E188: 2 | F188: Natural | G188: 63 | H188: QUINDÍO | I188: Aprobado con subsidio | J188: 5 | K188: MICRO | L188: 1084 | M188: INDUSTRIAS MANUFACTURERAS | N188: 7 | O188: 2 | P188: 0 | U188: NIT-900408596 | V188: 5001 | W188: MEDELLÍN | X188: 1 | Y188: 4 | Z188: Jurídica | AA188: 5 | AB188: ANTIOQUIA | AC188: Aprobado con subsidio | AD188: 4 | AE188: MICRO | AF188: 5911 | AG188: INFORMACIÓN Y COMUNICACIONES | AH188: 0 | AI188: 1 | AJ188: 0
A189: CC-12124796 | B189: 41001 | C189: NEIVA | D189: 6 | E189: 0 | F189: Natural | G189: 41 | H189: HUILA | I189: Aprobado con subsidio | J189: 6 | K189: MICRO | L189: 4754 | M189: COMERCIO AL POR MAYOR Y AL POR MENOR; REPARACIÓN DE VEHÍCULOS AUTOMOTORES Y MOTOCICLETAS | N189: 3 | O189: 3 | P189: 0 | U189: NIT-900159519 | V189: 5615 | W189: RIONEGRO | X189: 27 | Y189: 0 | Z189: Jurídica | AA189: 5 | AB189: ANTIOQUIA | AC189: Aprobado con subsidio | AD189: 29 | AE189: PEQUEÑA | AF189: 4761 | AG189: COMERCIO AL POR MAYOR Y AL POR MENOR; REPARACIÓN DE VEHÍCULOS AUTOMOTORES Y MOTOCICLETAS | AH189: 16 | AI189: 11 | AJ189: 0
A190: CC-12135508 | B190: 41001 | C190: NEIVA | D190: 11 | E190: 0 | F190: Natural | G190: 41 | H190: HUILA | I190: Aprobado con subsidio | J190: 12 | K190: PEQUEÑA | L190: 4752 | M190: COMERCIO AL POR MAYOR Y AL POR MENOR; REPARACIÓN DE VEHÍCULOS AUTOMOTORES Y MOTOCICLETAS | N190: 1 | O190: 10 | P190: 0 | U190: CC-70827128 | V190: 5001 | W190: MEDELLÍN | X190: 58 | Y190: 39 | Z190: Natural | AA190: 5 | AB190: ANTIOQUIA | AC190: Aprobado con subsidio | AD190: 45 | AE190: PEQUEÑA | AF190: 4690 | AG190: COMERCIO AL POR MAYOR Y AL POR MENOR; REPARACIÓN DE VEHÍCULOS AUTOMOTORES Y MOTOCICLETAS | AH190: 25 | AI190: 33 | AJ190: 0
A191: CC-12279584 | B191: 41396 | C191: LA PLATA | D191: 3 | E191: 0 | F191: Natural | G191: 41 | H191: HUILA | I191: Aprobado con subsidio | J191: 3 | K191: MICRO | L191: 4759 | M191: COMERCIO AL POR MAYOR Y AL POR MENOR; REPARACIÓN DE VEHÍCULOS AUTOMOTORES Y MOTOCICLETAS | N191: 1 | O191: 2 | P191: 0 | U191: NIT-811044082 | V191: 5001 | W191: MEDELLÍN | X191: 22 | Y191: 0 | Z191: Jurídica | AA191: 5 | AB191: ANTIOQUIA | AC191: Aprobado con subsidio | AD191: 24 | AE191: PEQUEÑA | AF191: 4641 | AG191: COMERCIO AL POR MAYOR Y AL POR MENOR; REPARACIÓN DE VEHÍCULOS AUTOMOTORES Y MOTOCICLETAS | AH191: 12 | AI191: 10 | AJ191: 0
A192: CC-12532588 | B192: 11001 | C192: BOGOTÁ, D.C. | D192: 5 | E192: 2 | F192: Natural | G192: 11 | H192: BOGOTÁ, D.C. | I192: Aprobado con subsidio | J192: 6 | K192: MICRO | L192: 8621 | M192: ACTIVIDADES DE ATENCIÓN DE LA SALUD HUMANA Y DE ASISTENCIA SOCIAL | N192: 5 | O192: 0 | P192: 0 | U192: NIT-901251368 | V192: 5318 | W192: GUARNE | X192: 17 | Y192: 1 | Z192: Jurídica | AA192: 5 | AB192: ANTIOQUIA | AC192: Aprobado con subsidio | AD192: 14 | AE192: PEQUEÑA | AF192: 1410 | AG192: INDUSTRIAS MANUFACTURERAS | AH192: 16 | AI192: 1 | AJ192: 0
A193: CC-12830013 | B193: 52001 | C193: PASTO | D193: 5 | E193: 0 | F193: Natural | G193: 52 | H193: NARIÑO | I193: Aprobado con subsidio | J193: 4 | K193: MICRO | L193: 1610 | M193: INDUSTRIAS MANUFACTURERAS | N193: 2 | O193: 3 | P193: 0 | U193: NIT-900844458 | V193: 5001 | W193: MEDELLÍN | X193: 72 | Y193: 1 | Z193: Jurídica | AA193: 5 | AB193: ANTIOQUIA | AC193: Aprobado con subsidio | AD193: 81 | AE193: MEDIANA | AF193: 1410 | AG193: INDUSTRIAS MANUFACTURERAS | AH193: 53 | AI193: 19 | AJ193: 0
A194: CC-12978490 | B194: 52001 | C194: PASTO | D194: 27 | E194: 1 | F194: Natural | G194: 52 | H194: NARIÑO | I194: Aprobado con subsidio | J194: 28 | K194: PEQUEÑA | L194: 5511 | M194: ALOJAMIENTO Y SERVICIOS DE COMIDA | N194: 13 | O194: 14 | P194: 0 | U194: NIT-900909853 | V194: 5360 | W194: ITAGUI | X194: 89 | Y194: 3 | Z194: Jurídica | AA194: 5 | AB194: ANTIOQUIA | AC194: Aprobado con subsidio | AD194: 97 | AE194: MEDIANA | AF194: 1410 | AG194: INDUSTRIAS MANUFACTURERAS | AH194: 55 | AI194: 34 | AJ194: 0
A195: CC-12997273 | B195: 52001 | C195: PASTO | D195: 6 | E195: 0 | F195: Natural | G195: 52 | H195: NARIÑO | I195: Aprobado con subsidio | J195: 6 | K195: MICRO | L195: 6820 | M195: ACTIVIDADES INMOBILIARIAS | N195: 3 | O195: 3 | P195: 0 | U195: NIT-900470526 | V195: 5360 | W195: ITAGUI | X195: 31 | Y195: 2 | Z195: Jurídica | AA195: 5 | AB195: ANTIOQUIA | AC195: Aprobado con subsidio | AD195: 30 | AE195: PEQUEÑA | AF195: 4731 | AG195: COMERCIO AL POR MAYOR Y AL POR MENOR; REPARACIÓN DE VEHÍCULOS AUTOMOTORES Y MOTOCICLETAS | AH195: 10 | AI195: 21 | AJ195: 0
A196: CC-13177722 | B196: 54498 | C196: OCAÑA | D196: 4 | E196: 0 | F196: Natural | G196: 54 | H196: NORTE DE SANTANDER | I196: Aprobado con subsidio | J196: 5 | K196: MICRO | L196: 4530 | M196: COMERCIO AL POR MAYOR Y AL POR MENOR; REPARACIÓN DE VEHÍCULOS AUTOMOTORES Y MOTOCICLETAS | N196: 1 | O196: 3 | P196: 0 | U196: NIT-900415008 | V196: 5631 | W196: SABANETA | X196: 14 | Y196: 8 | Z196: Jurídica | AA196: 5 | AB196: ANTIOQUIA | AC196: Aprobado con subsidio | AD196: 33 | AE196: PEQUEÑA | AF196: 5511 | AG196: ALOJAMIENTO Y SERVICIOS DE COMIDA | AH196: 8 | AI196: 6 | AJ196: 0
A197: CC-13820158 | B197: 81736 | C197: SARAVENA | D197: 9 | E197: 0 | F197: Natural | G197: 81 | H197: ARAUCA | I197: Aprobado con subsidio | J197: 9 | K197: MICRO | L197: 4731 | M197: COMERCIO AL POR MAYOR Y AL POR MENOR; REPARACIÓN DE VEHÍCULOS AUTOMOTORES Y MOTOCICLETAS | N197: 1 | O197: 8 | P197: 0 | U197: NIT-901247924 | V197: 5237 | W197: DON MATÍAS | X197: 11 | Y197: 1 | Z197: Jurídica | AA197: 5 | AB197: ANTIOQUIA | AC197: Aprobado con subsidio | AD197: 13 | AE197: PEQUEÑA | AF197: 1410 | AG197: INDUSTRIAS MANUFACTURERAS | AH197: 8 | AI197: 3 | AJ197: 0
A198: CC-14139440 | B198: 73001 | C198: IBAGUÉ | D198: 0 | E198: 0 | F198: Natural | G198: 73 | H198: TOLIMA | I198: Rechazado a nivel aportante | J198: 3 | K198: MICRO | L198: 6202 | M198: INFORMACIÓN Y COMUNICACIONES | N198: 0 | O198: 0 | P198: 0 | U198: CC-1017231672 | V198: 5001 | W198: MEDELLÍN | X198: 3 | Y198: 0 | Z198: Natural | AA198: 5 | AB198: ANTIOQUIA | AC198: Aprobado con subsidio | AD198: 3 | AE198: MICRO | AF198: 4771 | AG198: COMERCIO AL POR MAYOR Y AL POR MENOR; REPARACIÓN DE VEHÍCULOS AUTOMOTORES Y MOTOCICLETAS | AH198: 3 | AI198: 0 | AJ198: 0
A199: CC-14203950 | B199: 11001 | C199: BOGOTÁ, D.C. | D199: 7 | E199: 0 | F199: Natural | G199: 11 | H199: BOGOTÁ, D.C. | I199: Aprobado con subsidio | J199: 8 | K199: MICRO | L199: 2930 | M199: INDUSTRIAS MANUFACTURERAS | N199: 1 | O199: 6 | P199: 0 | U199: NIT-900231957 | V199: 5001 | W199: MEDELLÍN | X199: 12 | Y199: 0 | Z199: Jurídica | AA199: 5 | AB199: ANTIOQUIA | AC199: Aprobado con subsidio | AD199: 12 | AE199: PEQUEÑA | AF199: 144 | AG199: AGRICULTURA, GANADERÍA, CAZA, SILVICULTURA Y PESCA | AH199: 3 | AI199: 9 | AJ199: 0
A200: CC-14208296 | B200: 73001 | C200: IBAGUÉ | D200: 3 | E200: 0 | F200: Natural | G200: 73 | H200: TOLIMA | I200: Aprobado con subsidio | J200: 3 | K200: MICRO | L200: 4774 | M200: COMERCIO AL POR MAYOR Y AL POR MENOR; REPARACIÓN DE VEHÍCULOS AUTOMOTORES Y MOTOCICLETAS | N200: 3 | O200: 0 | P200: 0 | U200: CC-43155218 | V200: 5001 | W200: MEDELLÍN | X200: 0 | Y200: 0 | Z200: Natural | AA200: 5 | AB200: ANTIOQUIA | AC200: Rechazado a nivel aportante | AD200: 0 | AE200: $null$ | AF200: 9311 | AG200: ACTIVIDADES ARTÍSTICAS, DE ENTRETENIMIENTO Y RECREACIÓN | AH200: 0 | AI200: 0 | AJ200: 0
... 2050 more rows

Sheet Montos (hidden)
A1: Ciclo | B1: DIVIPOLA1 | C1: MpioNOM | D1: Depto | E1: DeptoNOM | F1: NOM_AECONOMICA1 | G1: SECTOR_ECONOMICO1 | H1: TIPO_PERSONA1 | I1: SIZE1 | J1: Suma de RECURSOS1 | P1: Ciclo | Q1: DIVIPOLA1 | R1: MpioNOM | S1: Depto | T1: DeptoNOM | U1: NOM_AECONOMICA1 | V1: SECTOR_ECONOMICO1 | W1: TIPO_PERSONA1 | X1: SIZE1 | Y1: Suma de RECURSOS1 | AC1: DeptoNOM | AD1: META | AG1: DeptoNOM | AH1: META
A2: 2 | B2: 5001 | C2: MEDELLÍN | D2: 5 | E2: ANTIOQUIA | F2: ACTIVIDADES ARTÍSTICAS, DE ENTRETENIMIENTO Y RECREACIÓN | G2: 9002 | H2: Jurídica | I2: MICRO | J2: 702000 | P2: =+_xlfn._xlws.FILTER($A$2:$J$396860,E2:$E$396860=Visor!$M$7,"") -> 2 | Q2: 5001 | R2: MEDELLÍN | S2: 5 | T2: ANTIOQUIA | U2: ACTIVIDADES ARTÍSTICAS, DE ENTRETENIMIENTO Y RECREACIÓN | V2: 9002 | W2: Jurídica | X2: MICRO | Y2: 702000 | AG2: MpioNOM | AH2: VILLAVICENCIO
A3: 2 | B3: 5001 | C3: MEDELLÍN | D3: 5 | E3: ANTIOQUIA | F3: ACTIVIDADES ARTÍSTICAS, DE ENTRETENIMIENTO Y RECREACIÓN | G3: 9002 | H3: Jurídica | I3: PEQUEÑA | J3: 9126000 | P3: 2 | Q3: 5001 | R3: MEDELLÍN | S3: 5 | T3: ANTIOQUIA | U3: ACTIVIDADES ARTÍSTICAS, DE ENTRETENIMIENTO Y RECREACIÓN | V3: 9002 | W3: Jurídica | X3: PEQUEÑA | Y3: 9126000 | AC3: Etiquetas de fila | AD3: Suma de Suma de RECURSOS1 | AE3: Suma de Suma de RECURSOS1_2
A4: 2 | B4: 5001 | C4: MEDELLÍN | D4: 5 | E4: ANTIOQUIA | F4: ACTIVIDADES ARTÍSTICAS, DE ENTRETENIMIENTO Y RECREACIÓN | G4: 9003 | H4: Jurídica | I4: MICRO | J4: 351000 | P4: 2 | Q4: 5001 | R4: MEDELLÍN | S4: 5 | T4: ANTIOQUIA | U4: ACTIVIDADES ARTÍSTICAS, DE ENTRETENIMIENTO Y RECREACIÓN | V4: 9003 | W4: Jurídica | X4: MICRO | Y4: 351000 | AC4: ACTIVIDADES ARTÍSTICAS, DE ENTRETENIMIENTO Y RECREACIÓN | AD4: 1034907000 | AE4: 0.0183614159 | AG4: Etiquetas de fila | AH4: Suma de Suma de RECURSOS1 | AI4: Suma de Suma de RECURSOS1_2
A5: 2 | B5: 5001 | C5: MEDELLÍN | D5: 5 | E5: ANTIOQUIA | F5: ACTIVIDADES ARTÍSTICAS, DE ENTRETENIMIENTO Y RECREACIÓN | G5: 9004 | H5: Jurídica | I5: MICRO | J5: 22464000 | P5: 2 | Q5: 5001 | R5: MEDELLÍN | S5: 5 | T5: ANTIOQUIA | U5: ACTIVIDADES ARTÍSTICAS, DE ENTRETENIMIENTO Y RECREACIÓN | V5: 9004 | W5: Jurídica | X5: MICRO | Y5: 22464000 | AC5: ACTIVIDADES DE ATENCIÓN DE LA SALUD HUMANA Y DE ASISTENCIA SOCIAL | AD5: 5530371000 | AE5: 0.0981203548 | AG5: ACTIVIDADES ARTÍSTICAS, DE ENTRETENIMIENTO Y RECREACIÓN | AH5: 993923000 | AI5: 0.02131175662
A6: 2 | B6: 5001 | C6: MEDELLÍN | D6: 5 | E6: ANTIOQUIA | F6: ACTIVIDADES ARTÍSTICAS, DE ENTRETENIMIENTO Y RECREACIÓN | G6: 9004 | H6: Jurídica | I6: PEQUEÑA | J6: 3861000 | P6: 2 | Q6: 5001 | R6: MEDELLÍN | S6: 5 | T6: ANTIOQUIA | U6: ACTIVIDADES ARTÍSTICAS, DE ENTRETENIMIENTO Y RECREACIÓN | V6: 9004 | W6: Jurídica | X6: PEQUEÑA | Y6: 3861000 | AC6: ACTIVIDADES DE SERVICIOS ADMINISTRATIVOS Y DE APOYO | AD6: 9990424000 | AE6: 0.1772510285 | AG6: ACTIVIDADES DE ATENCIÓN DE LA SALUD HUMANA Y DE ASISTENCIA SOCIAL | AH6: 5262221000 | AI6: 0.1128328585
A7: 2 | B7: 5001 | C7: MEDELLÍN | D7: 5 | E7: ANTIOQUIA | F7: ACTIVIDADES ARTÍSTICAS, DE ENTRETENIMIENTO Y RECREACIÓN | G7: 9005 | H7: Jurídica | I7: GRANDE | J7: 48438000 | P7: 2 | Q7: 5001 | R7: MEDELLÍN | S7: 5 | T7: ANTIOQUIA | U7: ACTIVIDADES ARTÍSTICAS, DE ENTRETENIMIENTO Y RECREACIÓN | V7: 9005 | W7: Jurídica | X7: GRANDE | Y7: 48438000 | AC7: ACTIVIDADES FINANCIERAS Y DE SEGUROS | AD7: 601724000 | AE7: 0.01067584297 | AG7: ACTIVIDADES DE SERVICIOS ADMINISTRATIVOS Y DE APOYO | AH7: 9448062000 | AI7: 0.2025859124
A8: 2 | B8: 5001 | C8: MEDELLÍN | D8: 5 | E8: ANTIOQUIA | F8: ACTIVIDADES ARTÍSTICAS, DE ENTRETENIMIENTO Y RECREACIÓN | G8: 9005 | H8: Jurídica | I8: MICRO | J8: 2106000 | P8: 2 | Q8: 5001 | R8: MEDELLÍN | S8: 5 | T8: ANTIOQUIA | U8: ACTIVIDADES ARTÍSTICAS, DE ENTRETENIMIENTO Y RECREACIÓN | V8: 9005 | W8: Jurídica | X8: MICRO | Y8: 2106000 | AC8: ACTIVIDADES INMOBILIARIAS | AD8: 282527000 | AE8: 0.005012620217 | AG8: ACTIVIDADES FINANCIERAS Y DE SEGUROS | AH8: 586462000 | AI8: 0.0125749534
A9: 2 | B9: 5001 | C9: MEDELLÍN | D9: 5 | E9: ANTIOQUIA | F9: ACTIVIDADES ARTÍSTICAS, DE ENTRETENIMIENTO Y RECREACIÓN | G9: 9006 | H9: Jurídica | I9: MICRO | J9: 17199000 | P9: 2 | Q9: 5001 | R9: MEDELLÍN | S9: 5 | T9: ANTIOQUIA | U9: ACTIVIDADES ARTÍSTICAS, DE ENTRETENIMIENTO Y RECREACIÓN | V9: 9006 | W9: Jurídica | X9: MICRO | Y9: 17199000 | AC9: ACTIVIDADES PROFESIONALES, CIENTÍFICAS Y TÉCNICAS | AD9: 1550199000 | AE9: 0.02750377432 | AG9: ACTIVIDADES INMOBILIARIAS | AH9: 213971000 | AI9: 0.004587979024
A10: 2 | B10: 5001 | C10: MEDELLÍN | D10: 5 | E10: ANTIOQUIA | F10: ACTIVIDADES ARTÍSTICAS, DE ENTRETENIMIENTO Y RECREACIÓN | G10: 9006 | H10: Jurídica | I10: PEQUEÑA | J10: 12987000 | P10: 2 | Q10: 5001 | R10: MEDELLÍN | S10: 5 | T10: ANTIOQUIA | U10: ACTIVIDADES ARTÍSTICAS, DE ENTRETENIMIENTO Y RECREACIÓN | V10: 9006 | W10: Jurídica | X10: PEQUEÑA | Y10: 12987000 | AC10: ADMINISTRACIÓN PÚBLICA Y DEFENSA; PLANES DE SEGURIDAD SOCIAL DE AFILIACIÓN OBLIGATORIA | AD10: 434604000 | AE10: 0.007710784444 | AG10: ACTIVIDADES PROFESIONALES, CIENTÍFICAS Y TÉCNICAS | AH10: 1393778000 | AI10: 0.02988547152
A11: 2 | B11: 5001 | C11: MEDELLÍN | D11: 5 | E11: ANTIOQUIA | F11: ACTIVIDADES ARTÍSTICAS, DE ENTRETENIMIENTO Y RECREACIÓN | G11: 9007 | H11: Jurídica | I11: MEDIANA | J11: 19305000 | P11: 2 | Q11: 5001 | R11: MEDELLÍN | S11: 5 | T11: ANTIOQUIA | U11: ACTIVIDADES ARTÍSTICAS, DE ENTRETENIMIENTO Y RECREACIÓN | V11: 9007 | W11: Jurídica | X11: MEDIANA | Y11: 19305000 | AC11: AGRICULTURA, GANADERÍA, CAZA, SILVICULTURA Y PESCA | AD11: 2267926000 | AE11: 0.04023775327 | AG11: ADMINISTRACIÓN PÚBLICA Y DEFENSA; PLANES DE SEGURIDAD SOCIAL DE AFILIACIÓN OBLIGATORIA | AH11: 101437000 | AI11: 0.002175018242
A12: 2 | B12: 5001 | C12: MEDELLÍN | D12: 5 | E12: ANTIOQUIA | F12: ACTIVIDADES ARTÍSTICAS, DE ENTRETENIMIENTO Y RECREACIÓN | G12: 9007 | H12: Jurídica | I12: MICRO | J12: 17550000 | P12: 2 | Q12: 5001 | R12: MEDELLÍN | S12: 5 | T12: ANTIOQUIA | U12: ACTIVIDADES ARTÍSTICAS, DE ENTRETENIMIENTO Y RECREACIÓN | V12: 9007 | W12: Jurídica | X12: MICRO | Y12: 17550000 | AC12: ALOJAMIENTO Y SERVICIOS DE COMIDA | AD12: 2510646000 | AE12: 0.044544114 | AG12: AGRICULTURA, GANADERÍA, CAZA, SILVICULTURA Y PESCA | AH12: 1241925000 | AI12: 0.02662943039
A13: 2 | B13: 5001 | C13: MEDELLÍN | D13: 5 | E13: ANTIOQUIA | F13: ACTIVIDADES ARTÍSTICAS, DE ENTRETENIMIENTO Y RECREACIÓN | G13: 9007 | H13: Jurídica | I13: PEQUEÑA | J13: 31941000 | P13: 2 | Q13: 5001 | R13: MEDELLÍN | S13: 5 | T13: ANTIOQUIA | U13: ACTIVIDADES ARTÍSTICAS, DE ENTRETENIMIENTO Y RECREACIÓN | V13: 9007 | W13: Jurídica | X13: PEQUEÑA | Y13: 31941000 | AC13: COMERCIO AL POR MAYOR Y AL POR MENOR; REPARACIÓN DE VEHÍCULOS AUTOMOTORES Y MOTOCICLETAS | AD13: 9763086000 | AE13: 0.1732175766 | AG13: ALOJAMIENTO Y SERVICIOS DE COMIDA | AH13: 1902988000 | AI13: 0.04080398291
A14: 2 | B14: 5001 | C14: MEDELLÍN | D14: 5 | E14: ANTIOQUIA | F14: ACTIVIDADES ARTÍSTICAS, DE ENTRETENIMIENTO Y RECREACIÓN | G14: 9007 | H14: Natural | I14: MICRO | J14: 1755000 | P14: 2 | Q14: 5001 | R14: MEDELLÍN | S14: 5 | T14: ANTIOQUIA | U14: ACTIVIDADES ARTÍSTICAS, DE ENTRETENIMIENTO Y RECREACIÓN | V14: 9007 | W14: Natural | X14: MICRO | Y14: 1755000 | AC14: CONSTRUCCIÓN | AD14: 4627826000 | AE14: 0.08210731777 | AG14: COMERCIO AL POR MAYOR Y AL POR MENOR; REPARACIÓN DE VEHÍCULOS AUTOMOTORES Y MOTOCICLETAS | AH14: 7857303000 | AI14: 0.1684767625
A15: 2 | B15: 5001 | C15: MEDELLÍN | D15: 5 | E15: ANTIOQUIA | F15: ACTIVIDADES ARTÍSTICAS, DE ENTRETENIMIENTO Y RECREACIÓN | G15: 9008 | H15: Jurídica | I15: MICRO | J15: 9477000 | P15: 2 | Q15: 5001 | R15: MEDELLÍN | S15: 5 | T15: ANTIOQUIA | U15: ACTIVIDADES ARTÍSTICAS, DE ENTRETENIMIENTO Y RECREACIÓN | V15: 9008 | W15: Jurídica | X15: MICRO | Y15: 9477000 | AC15: DISTRIBUCIÓN DE AGUA; EVACUACIÓN Y TRATAMIENTO DE AGUAS RESIDUALES, GESTIÓN DE DESECHOS Y ACTIVIDADES DE SANEAMIENTO AMBIENTAL | AD15: 851688000 | AE15: 0.01511072742 | AG15: CONSTRUCCIÓN | AH15: 3651332000 | AI15: 0.07829207988
A16: 2 | B16: 5001 | C16: MEDELLÍN | D16: 5 | E16: ANTIOQUIA | F16: ACTIVIDADES ARTÍSTICAS, DE ENTRETENIMIENTO Y RECREACIÓN | G16: 9008 | H16: Jurídica | I16: PEQUEÑA | J16: 4212000 | P16: 2 | Q16: 5001 | R16: MEDELLÍN | S16: 5 | T16: ANTIOQUIA | U16: ACTIVIDADES ARTÍSTICAS, DE ENTRETENIMIENTO Y RECREACIÓN | V16: 9008 | W16: Jurídica | X16: PEQUEÑA | Y16: 4212000 | AC16: EDUCACIÓN | AD16: 3265265000 | AE16: 0.05793263423 | AG16: DISTRIBUCIÓN DE AGUA; EVACUACIÓN Y TRATAMIENTO DE AGUAS RESIDUALES, GESTIÓN DE DESECHOS Y ACTIVIDADES DE SANEAMIENTO AMBIENTAL | AH16: 827123000 | AI16: 0.01773522101
A17: 2 | B17: 5001 | C17: MEDELLÍN | D17: 5 | E17: ANTIOQUIA | F17: ACTIVIDADES ARTÍSTICAS, DE ENTRETENIMIENTO Y RECREACIÓN | G17: 9101 | H17: Jurídica | I17: MICRO | J17: 2106000 | P17: 2 | Q17: 5001 | R17: MEDELLÍN | S17: 5 | T17: ANTIOQUIA | U17: ACTIVIDADES ARTÍSTICAS, DE ENTRETENIMIENTO Y RECREACIÓN | V17: 9101 | W17: Jurídica | X17: MICRO | Y17: 2106000 | AC17: EXPLOTACIÓN DE MINAS Y CANTERAS | AD17: 231515000 | AE17: 0.004107560585 | AG17: EDUCACIÓN | AH17: 2771547000 | AI17: 0.05942767711
A18: 2 | B18: 5001 | C18: MEDELLÍN | D18: 5 | E18: ANTIOQUIA | F18: ACTIVIDADES ARTÍSTICAS, DE ENTRETENIMIENTO Y RECREACIÓN | G18: 9101 | H18: Jurídica | I18: PEQUEÑA | J18: 5616000 | P18: 2 | Q18: 5001 | R18: MEDELLÍN | S18: 5 | T18: ANTIOQUIA | U18: ACTIVIDADES ARTÍSTICAS, DE ENTRETENIMIENTO Y RECREACIÓN | V18: 9101 | W18: Jurídica | X18: PEQUEÑA | Y18: 5616000 | AC18: INDUSTRIAS MANUFACTURERAS | AD18: 3604890000 | AE18: 0.06395829246 | AG18: EXPLOTACIÓN DE MINAS Y CANTERAS | AH18: 192466000 | AI18: 0.004126867523
A19: 2 | B19: 5001 | C19: MEDELLÍN | D19: 5 | E19: ANTIOQUIA | F19: ACTIVIDADES ARTÍSTICAS, DE ENTRETENIMIENTO Y RECREACIÓN | G19: 9102 | H19: Jurídica | I19: GRANDE | J19: 99684000 | P19: 2 | Q19: 5001 | R19: MEDELLÍN | S19: 5 | T19: ANTIOQUIA | U19: ACTIVIDADES ARTÍSTICAS, DE ENTRETENIMIENTO Y RECREACIÓN | V19: 9102 | W19: Jurídica | X19: GRANDE | Y19: 99684000 | AC19: INFORMACIÓN Y COMUNICACIONES | AD19: 214168000 | AE19: 0.003799788504 | AG19: INDUSTRIAS MANUFACTURERAS | AH19: 2714779000 | AI19: 0.05821045425
A20: 2 | B20: 5001 | C20: MEDELLÍN | D20: 5 | E20: ANTIOQUIA | F20: ACTIVIDADES ARTÍSTICAS, DE ENTRETENIMIENTO Y RECREACIÓN | G20: 9102 | H20: Jurídica | I20: MEDIANA | J20: 25623000 | P20: 2 | Q20: 5001 | R20: MEDELLÍN | S20: 5 | T20: ANTIOQUIA | U20: ACTIVIDADES ARTÍSTICAS, DE ENTRETENIMIENTO Y RECREACIÓN | V20: 9102 | W20: Jurídica | X20: MEDIANA | Y20: 25623000 | AC20: OTRAS ACTIVIDADES DE SERVICIOS | AD20: 2884552000 | AE20: 0.0511779889 | AG20: INFORMACIÓN Y COMUNICACIONES | AH20: 181764000 | AI20: 0.003897394597
A21: 2 | B21: 5001 | C21: MEDELLÍN | D21: 5 | E21: ANTIOQUIA | F21: ACTIVIDADES ARTÍSTICAS, DE ENTRETENIMIENTO Y RECREACIÓN | G21: 9102 | H21: Jurídica | I21: MICRO | J21: 1755000 | P21: 2 | Q21: 5001 | R21: MEDELLÍN | S21: 5 | T21: ANTIOQUIA | U21: ACTIVIDADES ARTÍSTICAS, DE ENTRETENIMIENTO Y RECREACIÓN | V21: 9102 | W21: Jurídica | X21: MICRO | Y21: 1755000 | AC21: SUMINISTRO DE ELECTRICIDAD, GAS, VAPOR Y AIRE ACONDICIONADO | AD21: 228692000 | AE21: 0.004057474658 | AG21: OTRAS ACTIVIDADES DE SERVICIOS | AH21: 2286499000 | AI21: 0.04902724878
A22: 2 | B22: 5001 | C22: MEDELLÍN | D22: 5 | E22: ANTIOQUIA | F22: ACTIVIDADES ARTÍSTICAS, DE ENTRETENIMIENTO Y RECREACIÓN | G22: 9102 | H22: Jurídica | I22: PEQUEÑA | J22: 7020000 | P22: 2 | Q22: 5001 | R22: MEDELLÍN | S22: 5 | T22: ANTIOQUIA | U22: ACTIVIDADES ARTÍSTICAS, DE ENTRETENIMIENTO Y RECREACIÓN | V22: 9102 | W22: Jurídica | X22: PEQUEÑA | Y22: 7020000 | AC22: TRANSPORTE Y ALMACENAMIENTO | AD22: 6488127000 | AE22: 0.1151129505 | AG22: SUMINISTRO DE ELECTRICIDAD, GAS, VAPOR Y AIRE ACONDICIONADO | AH22: 76194000 | AI22: 0.001633756321
A23: 2 | B23: 5001 | C23: MEDELLÍN | D23: 5 | E23: ANTIOQUIA | F23: ACTIVIDADES ARTÍSTICAS, DE ENTRETENIMIENTO Y RECREACIÓN | G23: 9103 | H23: Jurídica | I23: GRANDE | J23: 169533000 | P23: 2 | Q23: 5001 | R23: MEDELLÍN | S23: 5 | T23: ANTIOQUIA | U23: ACTIVIDADES ARTÍSTICAS, DE ENTRETENIMIENTO Y RECREACIÓN | V23: 9103 | W23: Jurídica | X23: GRANDE | Y23: 169533000 | AC23: Total general | AD23: 56363137000 | AE23: 1 | AG23: TRANSPORTE Y ALMACENAMIENTO | AH23: 4933536000 | AI23: 0.105785175
A24: 2 | B24: 5001 | C24: MEDELLÍN | D24: 5 | E24: ANTIOQUIA | F24: ACTIVIDADES ARTÍSTICAS, DE ENTRETENIMIENTO Y RECREACIÓN | G24: 9200 | H24: Jurídica | I24: MEDIANA | J24: 102843000 | P24: 2 | Q24: 5001 | R24: MEDELLÍN | S24: 5 | T24: ANTIOQUIA | U24: ACTIVIDADES ARTÍSTICAS, DE ENTRETENIMIENTO Y RECREACIÓN | V24: 9200 | W24: Jurídica | X24: MEDIANA | Y24: 102843000 | AG24: Total general | AH24: 46637310000 | AI24: 1
A25: 2 | B25: 5001 | C25: MEDELLÍN | D25: 5 | E25: ANTIOQUIA | F25: ACTIVIDADES ARTÍSTICAS, DE ENTRETENIMIENTO Y RECREACIÓN | G25: 9200 | H25: Jurídica | I25: MICRO | J25: 13689000 | P25: 2 | Q25: 5001 | R25: MEDELLÍN | S25: 5 | T25: ANTIOQUIA | U25: ACTIVIDADES ARTÍSTICAS, DE ENTRETENIMIENTO Y RECREACIÓN | V25: 9200 | W25: Jurídica | X25: MICRO | Y25: 13689000
A26: 2 | B26: 5001 | C26: MEDELLÍN | D26: 5 | E26: ANTIOQUIA | F26: ACTIVIDADES ARTÍSTICAS, DE ENTRETENIMIENTO Y RECREACIÓN | G26: 9200 | H26: Jurídica | I26: MUY GRANDE | J26: 1692873000 | P26: 2 | Q26: 5001 | R26: MEDELLÍN | S26: 5 | T26: ANTIOQUIA | U26: ACTIVIDADES ARTÍSTICAS, DE ENTRETENIMIENTO Y RECREACIÓN | V26: 9200 | W26: Jurídica | X26: MUY GRANDE | Y26: 1692873000
A27: 2 | B27: 5001 | C27: MEDELLÍN | D27: 5 | E27: ANTIOQUIA | F27: ACTIVIDADES ARTÍSTICAS, DE ENTRETENIMIENTO Y RECREACIÓN | G27: 9200 | H27: Jurídica | I27: PEQUEÑA | J27: 115479000 | P27: 2 | Q27: 5001 | R27: MEDELLÍN | S27: 5 | T27: ANTIOQUIA | U27: ACTIVIDADES ARTÍSTICAS, DE ENTRETENIMIENTO Y RECREACIÓN | V27: 9200 | W27: Jurídica | X27: PEQUEÑA | Y27: 115479000
A28: 2 | B28: 5001 | C28: MEDELLÍN | D28: 5 | E28: ANTIOQUIA | F28: ACTIVIDADES ARTÍSTICAS, DE ENTRETENIMIENTO Y RECREACIÓN | G28: 9200 | H28: Natural | I28: MICRO | J28: 8775000 | P28: 2 | Q28: 5001 | R28: MEDELLÍN | S28: 5 | T28: ANTIOQUIA | U28: ACTIVIDADES ARTÍSTICAS, DE ENTRETENIMIENTO Y RECREACIÓN | V28: 9200 | W28: Natural | X28: MICRO | Y28: 8775000
A29: 2 | B29: 5001 | C29: MEDELLÍN | D29: 5 | E29: ANTIOQUIA | F29: ACTIVIDADES ARTÍSTICAS, DE ENTRETENIMIENTO Y RECREACIÓN | G29: 9311 | H29: Jurídica | I29: MICRO | J29: 5616000 | P29: 2 | Q29: 5001 | R29: MEDELLÍN | S29: 5 | T29: ANTIOQUIA | U29: ACTIVIDADES ARTÍSTICAS, DE ENTRETENIMIENTO Y RECREACIÓN | V29: 9311 | W29: Jurídica | X29: MICRO | Y29: 5616000
A30: 2 | B30: 5001 | C30: MEDELLÍN | D30: 5 | E30: ANTIOQUIA | F30: ACTIVIDADES ARTÍSTICAS, DE ENTRETENIMIENTO Y RECREACIÓN | G30: 9311 | H30: Jurídica | I30: MUY GRANDE | J30: 46683000 | P30: 2 | Q30: 5001 | R30: MEDELLÍN | S30: 5 | T30: ANTIOQUIA | U30: ACTIVIDADES ARTÍSTICAS, DE ENTRETENIMIENTO Y RECREACIÓN | V30: 9311 | W30: Jurídica | X30: MUY GRANDE | Y30: 46683000
A31: 2 | B31: 5001 | C31: MEDELLÍN | D31: 5 | E31: ANTIOQUIA | F31: ACTIVIDADES ARTÍSTICAS, DE ENTRETENIMIENTO Y RECREACIÓN | G31: 9311 | H31: Jurídica | I31: PEQUEÑA | J31: 7722000 | P31: 2 | Q31: 5001 | R31: MEDELLÍN | S31: 5 | T31: ANTIOQUIA | U31: ACTIVIDADES ARTÍSTICAS, DE ENTRETENIMIENTO Y RECREACIÓN | V31: 9311 | W31: Jurídica | X31: PEQUEÑA | Y31: 7722000
A32: 2 | B32: 5001 | C32: MEDELLÍN | D32: 5 | E32: ANTIOQUIA | F32: ACTIVIDADES ARTÍSTICAS, DE ENTRETENIMIENTO Y RECREACIÓN | G32: 9312 | H32: Jurídica | I32: GRANDE | J32: 193752000 | P32: 2 | Q32: 5001 | R32: MEDELLÍN | S32: 5 | T32: ANTIOQUIA | U32: ACTIVIDADES ARTÍSTICAS, DE ENTRETENIMIENTO Y RECREACIÓN | V32: 9312 | W32: Jurídica | X32: GRANDE | Y32: 193752000
A33: 2 | B33: 5001 | C33: MEDELLÍN | D33: 5 | E33: ANTIOQUIA | F33: ACTIVIDADES ARTÍSTICAS, DE ENTRETENIMIENTO Y RECREACIÓN | G33: 9312 | H33: Jurídica | I33: MEDIANA | J33: 75114000 | P33: 2 | Q33: 5001 | R33: MEDELLÍN | S33: 5 | T33: ANTIOQUIA | U33: ACTIVIDADES ARTÍSTICAS, DE ENTRETENIMIENTO Y RECREACIÓN | V33: 9312 | W33: Jurídica | X33: MEDIANA | Y33: 75114000
A34: 2 | B34: 5001 | C34: MEDELLÍN | D34: 5 | E34: ANTIOQUIA | F34: ACTIVIDADES ARTÍSTICAS, DE ENTRETENIMIENTO Y RECREACIÓN | G34: 9312 | H34: Jurídica | I34: MICRO | J34: 14391000 | P34: 2 | Q34: 5001 | R34: MEDELLÍN | S34: 5 | T34: ANTIOQUIA | U34: ACTIVIDADES ARTÍSTICAS, DE ENTRETENIMIENTO Y RECREACIÓN | V34: 9312 | W34: Jurídica | X34: MICRO | Y34: 14391000
A35: 2 | B35: 5001 | C35: MEDELLÍN | D35: 5 | E35: ANTIOQUIA | F35: ACTIVIDADES ARTÍSTICAS, DE ENTRETENIMIENTO Y RECREACIÓN | G35: 9312 | H35: Jurídica | I35: PEQUEÑA | J35: 5265000 | P35: 2 | Q35: 5001 | R35: MEDELLÍN | S35: 5 | T35: ANTIOQUIA | U35: ACTIVIDADES ARTÍSTICAS, DE ENTRETENIMIENTO Y RECREACIÓN | V35: 9312 | W35: Jurídica | X35: PEQUEÑA | Y35: 5265000
A36: 2 | B36: 5001 | C36: MEDELLÍN | D36: 5 | E36: ANTIOQUIA | F36: ACTIVIDADES ARTÍSTICAS, DE ENTRETENIMIENTO Y RECREACIÓN | G36: 9319 | H36: Jurídica | I36: MICRO | J36: 10881000 | P36: 2 | Q36: 5001 | R36: MEDELLÍN | S36: 5 | T36: ANTIOQUIA | U36: ACTIVIDADES ARTÍSTICAS, DE ENTRETENIMIENTO Y RECREACIÓN | V36: 9319 | W36: Jurídica | X36: MICRO | Y36: 10881000
A37: 2 | B37: 5001 | C37: MEDELLÍN | D37: 5 | E37: ANTIOQUIA | F37: ACTIVIDADES ARTÍSTICAS, DE ENTRETENIMIENTO Y RECREACIÓN | G37: 9319 | H37: Jurídica | I37: PEQUEÑA | J37: 20709000 | P37: 2 | Q37: 5001 | R37: MEDELLÍN | S37: 5 | T37: ANTIOQUIA | U37: ACTIVIDADES ARTÍSTICAS, DE ENTRETENIMIENTO Y RECREACIÓN | V37: 9319 | W37: Jurídica | X37: PEQUEÑA | Y37: 20709000
A38: 2 | B38: 5001 | C38: MEDELLÍN | D38: 5 | E38: ANTIOQUIA | F38: ACTIVIDADES ARTÍSTICAS, DE ENTRETENIMIENTO Y RECREACIÓN | G38: 9321 | H38: Jurídica | I38: MEDIANA | J38: 27729000 | P38: 2 | Q38: 5001 | R38: MEDELLÍN | S38: 5 | T38: ANTIOQUIA | U38: ACTIVIDADES ARTÍSTICAS, DE ENTRETENIMIENTO Y RECREACIÓN | V38: 9321 | W38: Jurídica | X38: MEDIANA | Y38: 27729000
A39: 2 | B39: 5001 | C39: MEDELLÍN | D39: 5 | E39: ANTIOQUIA | F39: ACTIVIDADES ARTÍSTICAS, DE ENTRETENIMIENTO Y RECREACIÓN | G39: 9321 | H39: Jurídica | I39: PEQUEÑA | J39: 16146000 | P39: 2 | Q39: 5001 | R39: MEDELLÍN | S39: 5 | T39: ANTIOQUIA | U39: ACTIVIDADES ARTÍSTICAS, DE ENTRETENIMIENTO Y RECREACIÓN | V39: 9321 | W39: Jurídica | X39: PEQUEÑA | Y39: 16146000
A40: 2 | B40: 5001 | C40: MEDELLÍN | D40: 5 | E40: ANTIOQUIA | F40: ACTIVIDADES ARTÍSTICAS, DE ENTRETENIMIENTO Y RECREACIÓN | G40: 9329 | H40: Jurídica | I40: GRANDE | J40: 117936000 | P40: 2 | Q40: 5001 | R40: MEDELLÍN | S40: 5 | T40: ANTIOQUIA | U40: ACTIVIDADES ARTÍSTICAS, DE ENTRETENIMIENTO Y RECREACIÓN | V40: 9329 | W40: Jurídica | X40: GRANDE | Y40: 117936000
A41: 2 | B41: 5001 | C41: MEDELLÍN | D41: 5 | E41: ANTIOQUIA | F41: ACTIVIDADES ARTÍSTICAS, DE ENTRETENIMIENTO Y RECREACIÓN | G41: 9329 | H41: Jurídica | I41: MICRO | J41: 16497000 | P41: 2 | Q41: 5001 | R41: MEDELLÍN | S41: 5 | T41: ANTIOQUIA | U41: ACTIVIDADES ARTÍSTICAS, DE ENTRETENIMIENTO Y RECREACIÓN | V41: 9329 | W41: Jurídica | X41: MICRO | Y41: 16497000
A42: 2 | B42: 5001 | C42: MEDELLÍN | D42: 5 | E42: ANTIOQUIA | F42: ACTIVIDADES ARTÍSTICAS, DE ENTRETENIMIENTO Y RECREACIÓN | G42: 9329 | H42: Jurídica | I42: PEQUEÑA | J42: 24921000 | P42: 2 | Q42: 5001 | R42: MEDELLÍN | S42: 5 | T42: ANTIOQUIA | U42: ACTIVIDADES ARTÍSTICAS, DE ENTRETENIMIENTO Y RECREACIÓN | V42: 9329 | W42: Jurídica | X42: PEQUEÑA | Y42: 24921000
A43: 2 | B43: 5001 | C43: MEDELLÍN | D43: 5 | E43: ANTIOQUIA | F43: ACTIVIDADES ARTÍSTICAS, DE ENTRETENIMIENTO Y RECREACIÓN | G43: 9329 | H43: Natural | I43: MICRO | J43: 2106000 | P43: 2 | Q43: 5001 | R43: MEDELLÍN | S43: 5 | T43: ANTIOQUIA | U43: ACTIVIDADES ARTÍSTICAS, DE ENTRETENIMIENTO Y RECREACIÓN | V43: 9329 | W43: Natural | X43: MICRO | Y43: 2106000
A44: 2 | B44: 5001 | C44: MEDELLÍN | D44: 5 | E44: ANTIOQUIA | F44: ACTIVIDADES ARTÍSTICAS, DE ENTRETENIMIENTO Y RECREACIÓN | G44: 9329 | H44: Natural | I44: PEQUEÑA | J44: 9477000 | P44: 2 | Q44: 5001 | R44: MEDELLÍN | S44: 5 | T44: ANTIOQUIA | U44: ACTIVIDADES ARTÍSTICAS, DE ENTRETENIMIENTO Y RECREACIÓN | V44: 9329 | W44: Natural | X44: PEQUEÑA | Y44: 9477000
A45: 2 | B45: 5001 | C45: MEDELLÍN | D45: 5 | E45: ANTIOQUIA | F45: ACTIVIDADES DE ATENCIÓN DE LA SALUD HUMANA Y DE ASISTENCIA SOCIAL | G45: 8610 | H45: Jurídica | I45: GRANDE | J45: 119691000 | P45: 2 | Q45: 5001 | R45: MEDELLÍN | S45: 5 | T45: ANTIOQUIA | U45: ACTIVIDADES DE ATENCIÓN DE LA SALUD HUMANA Y DE ASISTENCIA SOCIAL | V45: 8610 | W45: Jurídica | X45: GRANDE | Y45: 119691000
A46: 2 | B46: 5001 | C46: MEDELLÍN | D46: 5 | E46: ANTIOQUIA | F46: ACTIVIDADES DE ATENCIÓN DE LA SALUD HUMANA Y DE ASISTENCIA SOCIAL | G46: 8610 | H46: Jurídica | I46: MEDIANA | J46: 295542000 | P46: 2 | Q46: 5001 | R46: MEDELLÍN | S46: 5 | T46: ANTIOQUIA | U46: ACTIVIDADES DE ATENCIÓN DE LA SALUD HUMANA Y DE ASISTENCIA SOCIAL | V46: 8610 | W46: Jurídica | X46: MEDIANA | Y46: 295542000
A47: 2 | B47: 5001 | C47: MEDELLÍN | D47: 5 | E47: ANTIOQUIA | F47: ACTIVIDADES DE ATENCIÓN DE LA SALUD HUMANA Y DE ASISTENCIA SOCIAL | G47: 8610 | H47: Jurídica | I47: MICRO | J47: 19656000 | P47: 2 | Q47: 5001 | R47: MEDELLÍN | S47: 5 | T47: ANTIOQUIA | U47: ACTIVIDADES DE ATENCIÓN DE LA SALUD HUMANA Y DE ASISTENCIA SOCIAL | V47: 8610 | W47: Jurídica | X47: MICRO | Y47: 19656000
A48: 2 | B48: 5001 | C48: MEDELLÍN | D48: 5 | E48: ANTIOQUIA | F48: ACTIVIDADES DE ATENCIÓN DE LA SALUD HUMANA Y DE ASISTENCIA SOCIAL | G48: 8610 | H48: Jurídica | I48: MUY GRANDE | J48: 3212703000 | P48: 2 | Q48: 5001 | R48: MEDELLÍN | S48: 5 | T48: ANTIOQUIA | U48: ACTIVIDADES DE ATENCIÓN DE LA SALUD HUMANA Y DE ASISTENCIA SOCIAL | V48: 8610 | W48: Jurídica | X48: MUY GRANDE | Y48: 3212703000
A49: 2 | B49: 5001 | C49: MEDELLÍN | D49: 5 | E49: ANTIOQUIA | F49: ACTIVIDADES DE ATENCIÓN DE LA SALUD HUMANA Y DE ASISTENCIA SOCIAL | G49: 8610 | H49: Jurídica | I49: PEQUEÑA | J49: 30186000 | P49: 2 | Q49: 5001 | R49: MEDELLÍN | S49: 5 | T49: ANTIOQUIA | U49: ACTIVIDADES DE ATENCIÓN DE LA SALUD HUMANA Y DE ASISTENCIA SOCIAL | V49: 8610 | W49: Jurídica | X49: PEQUEÑA | Y49: 30186000
A50: 2 | B50: 5001 | C50: MEDELLÍN | D50: 5 | E50: ANTIOQUIA | F50: ACTIVIDADES DE ATENCIÓN DE LA SALUD HUMANA Y DE ASISTENCIA SOCIAL | G50: 8610 | H50: Natural | I50: MICRO | J50: 1404000 | P50: 2 | Q50: 5001 | R50: MEDELLÍN | S50: 5 | T50: ANTIOQUIA | U50: ACTIVIDADES DE ATENCIÓN DE LA SALUD HUMANA Y DE ASISTENCIA SOCIAL | V50: 8610 | W50: Natural | X50: MICRO | Y50: 1404000
A51: 2 | B51: 5001 | C51: MEDELLÍN | D51: 5 | E51: ANTIOQUIA | F51: ACTIVIDADES DE ATENCIÓN DE LA SALUD HUMANA Y DE ASISTENCIA SOCIAL | G51: 8621 | H51: Jurídica | I51: GRANDE | J51: 343980000 | P51: 2 | Q51: 5001 | R51: MEDELLÍN | S51: 5 | T51: ANTIOQUIA | U51: ACTIVIDADES DE ATENCIÓN DE LA SALUD HUMANA Y DE ASISTENCIA SOCIAL | V51: 8621 | W51: Jurídica | X51: GRANDE | Y51: 343980000
A52: 2 | B52: 5001 | C52: MEDELLÍN | D52: 5 | E52: ANTIOQUIA | F52: ACTIVIDADES DE ATENCIÓN DE LA SALUD HUMANA Y DE ASISTENCIA SOCIAL | G52: 8621 | H52: Jurídica | I52: MEDIANA | J52: 356967000 | P52: 2 | Q52: 5001 | R52: MEDELLÍN | S52: 5 | T52: ANTIOQUIA | U52: ACTIVIDADES DE ATENCIÓN DE LA SALUD HUMANA Y DE ASISTENCIA SOCIAL | V52: 8621 | W52: Jurídica | X52: MEDIANA | Y52: 356967000
A53: 2 | B53: 5001 | C53: MEDELLÍN | D53: 5 | E53: ANTIOQUIA | F53: ACTIVIDADES DE ATENCIÓN DE LA SALUD HUMANA Y DE ASISTENCIA SOCIAL | G53: 8621 | H53: Jurídica | I53: MICRO | J53: 157950000 | P53: 2 | Q53: 5001 | R53: MEDELLÍN | S53: 5 | T53: ANTIOQUIA | U53: ACTIVIDADES DE ATENCIÓN DE LA SALUD HUMANA Y DE ASISTENCIA SOCIAL | V53: 8621 | W53: Jurídica | X53: MICRO | Y53: 157950000
A54: 2 | B54: 5001 | C54: MEDELLÍN | D54: 5 | E54: ANTIOQUIA | F54: ACTIVIDADES DE ATENCIÓN DE LA SALUD HUMANA Y DE ASISTENCIA SOCIAL | G54: 8621 | H54: Jurídica | I54: MUY GRANDE | J54: 743067000 | P54: 2 | Q54: 5001 | R54: MEDELLÍN | S54: 5 | T54: ANTIOQUIA | U54: ACTIVIDADES DE ATENCIÓN DE LA SALUD HUMANA Y DE ASISTENCIA SOCIAL | V54: 8621 | W54: Jurídica | X54: MUY GRANDE | Y54: 743067000
A55: 2 | B55: 5001 | C55: MEDELLÍN | D55: 5 | E55: ANTIOQUIA | F55: ACTIVIDADES DE ATENCIÓN DE LA SALUD HUMANA Y DE ASISTENCIA SOCIAL | G55: 8621 | H55: Jurídica | I55: PEQUEÑA | J55: 309582000 | P55: 2 | Q55: 5001 | R55: MEDELLÍN | S55: 5 | T55: ANTIOQUIA | U55: ACTIVIDADES DE ATENCIÓN DE LA SALUD HUMANA Y DE ASISTENCIA SOCIAL | V55: 8621 | W55: Jurídica | X55: PEQUEÑA | Y55: 309582000
A56: 2 | B56: 5001 | C56: MEDELLÍN | D56: 5 | E56: ANTIOQUIA | F56: ACTIVIDADES DE ATENCIÓN DE LA SALUD HUMANA Y DE ASISTENCIA SOCIAL | G56: 8621 | H56: Natural | I56: MICRO | J56: 9828000 | P56: 2 | Q56: 5001 | R56: MEDELLÍN | S56: 5 | T56: ANTIOQUIA | U56: ACTIVIDADES DE ATENCIÓN DE LA SALUD HUMANA Y DE ASISTENCIA SOCIAL | V56: 8621 | W56: Natural | X56: MICRO | Y56: 9828000
A57: 2 | B57: 5001 | C57: MEDELLÍN | D57: 5 | E57: ANTIOQUIA | F57: ACTIVIDADES DE ATENCIÓN DE LA SALUD HUMANA Y DE ASISTENCIA SOCIAL | G57: 8622 | H57: Jurídica | I57: MEDIANA | J57: 82134000 | P57: 2 | Q57: 5001 | R57: MEDELLÍN | S57: 5 | T57: ANTIOQUIA | U57: ACTIVIDADES DE ATENCIÓN DE LA SALUD HUMANA Y DE ASISTENCIA SOCIAL | V57: 8622 | W57: Jurídica | X57: MEDIANA | Y57: 82134000
A58: 2 | B58: 5001 | C58: MEDELLÍN | D58: 5 | E58: ANTIOQUIA | F58: ACTIVIDADES DE ATENCIÓN DE LA SALUD HUMANA Y DE ASISTENCIA SOCIAL | G58: 8622 | H58: Jurídica | I58: MICRO | J58: 100035000 | P58: 2 | Q58: 5001 | R58: MEDELLÍN | S58: 5 | T58: ANTIOQUIA | U58: ACTIVIDADES DE ATENCIÓN DE LA SALUD HUMANA Y DE ASISTENCIA SOCIAL | V58: 8622 | W58: Jurídica | X58: MICRO | Y58: 100035000
A59: 2 | B59: 5001 | C59: MEDELLÍN | D59: 5 | E59: ANTIOQUIA | F59: ACTIVIDADES DE ATENCIÓN DE LA SALUD HUMANA Y DE ASISTENCIA SOCIAL | G59: 8622 | H59: Jurídica | I59: PEQUEÑA | J59: 106353000 | P59: 2 | Q59: 5001 | R59: MEDELLÍN | S59: 5 | T59: ANTIOQUIA | U59: ACTIVIDADES DE ATENCIÓN DE LA SALUD HUMANA Y DE ASISTENCIA SOCIAL | V59: 8622 | W59: Jurídica | X59: PEQUEÑA | Y59: 106353000
A60: 2 | B60: 5001 | C60: MEDELLÍN | D60: 5 | E60: ANTIOQUIA | F60: ACTIVIDADES DE ATENCIÓN DE LA SALUD HUMANA Y DE ASISTENCIA SOCIAL | G60: 8622 | H60: Natural | I60: MICRO | J60: 23166000 | P60: 2 | Q60: 5001 | R60: MEDELLÍN | S60: 5 | T60: ANTIOQUIA | U60: ACTIVIDADES DE ATENCIÓN DE LA SALUD HUMANA Y DE ASISTENCIA SOCIAL | V60: 8622 | W60: Natural | X60: MICRO | Y60: 23166000
A61: 2 | B61: 5001 | C61: MEDELLÍN | D61: 5 | E61: ANTIOQUIA | F61: ACTIVIDADES DE ATENCIÓN DE LA SALUD HUMANA Y DE ASISTENCIA SOCIAL | G61: 8691 | H61: Jurídica | I61: GRANDE | J61: 106353000 | P61: 2 | Q61: 5001 | R61: MEDELLÍN | S61: 5 | T61: ANTIOQUIA | U61: ACTIVIDADES DE ATENCIÓN DE LA SALUD HUMANA Y DE ASISTENCIA SOCIAL | V61: 8691 | W61: Jurídica | X61: GRANDE | Y61: 106353000
A62: 2 | B62: 5001 | C62: MEDELLÍN | D62: 5 | E62: ANTIOQUIA | F62: ACTIVIDADES DE ATENCIÓN DE LA SALUD HUMANA Y DE ASISTENCIA SOCIAL | G62: 8691 | H62: Jurídica | I62: MEDIANA | J62: 285012000 | P62: 2 | Q62: 5001 | R62: MEDELLÍN | S62: 5 | T62: ANTIOQUIA | U62: ACTIVIDADES DE ATENCIÓN DE LA SALUD HUMANA Y DE ASISTENCIA SOCIAL | V62: 8691 | W62: Jurídica | X62: MEDIANA | Y62: 285012000
A63: 2 | B63: 5001 | C63: MEDELLÍN | D63: 5 | E63: ANTIOQUIA | F63: ACTIVIDADES DE ATENCIÓN DE LA SALUD HUMANA Y DE ASISTENCIA SOCIAL | G63: 8691 | H63: Jurídica | I63: MICRO | J63: 60021000 | P63: 2 | Q63: 5001 | R63: MEDELLÍN | S63: 5 | T63: ANTIOQUIA | U63: ACTIVIDADES DE ATENCIÓN DE LA SALUD HUMANA Y DE ASISTENCIA SOCIAL | V63: 8691 | W63: Jurídica | X63: MICRO | Y63: 60021000
A64: 2 | B64: 5001 | C64: MEDELLÍN | D64: 5 | E64: ANTIOQUIA | F64: ACTIVIDADES DE ATENCIÓN DE LA SALUD HUMANA Y DE ASISTENCIA SOCIAL | G64: 8691 | H64: Jurídica | I64: PEQUEÑA | J64: 182871000 | P64: 2 | Q64: 5001 | R64: MEDELLÍN | S64: 5 | T64: ANTIOQUIA | U64: ACTIVIDADES DE ATENCIÓN DE LA SALUD HUMANA Y DE ASISTENCIA SOCIAL | V64: 8691 | W64: Jurídica | X64: PEQUEÑA | Y64: 182871000
A65: 2 | B65: 5001 | C65: MEDELLÍN | D65: 5 | E65: ANTIOQUIA | F65: ACTIVIDADES DE ATENCIÓN DE LA SALUD HUMANA Y DE ASISTENCIA SOCIAL | G65: 8691 | H65: Natural | I65: MICRO | J65: 1755000 | P65: 2 | Q65: 5001 | R65: MEDELLÍN | S65: 5 | T65: ANTIOQUIA | U65: ACTIVIDADES DE ATENCIÓN DE LA SALUD HUMANA Y DE ASISTENCIA SOCIAL | V65: 8691 | W65: Natural | X65: MICRO | Y65: 1755000
A66: 2 | B66: 5001 | C66: MEDELLÍN | D66: 5 | E66: ANTIOQUIA | F66: ACTIVIDADES DE ATENCIÓN DE LA SALUD HUMANA Y DE ASISTENCIA SOCIAL | G66: 8691 | H66: Natural | I66: PEQUEÑA | J66: 4914000 | P66: 2 | Q66: 5001 | R66: MEDELLÍN | S66: 5 | T66: ANTIOQUIA | U66: ACTIVIDADES DE ATENCIÓN DE LA SALUD HUMANA Y DE ASISTENCIA SOCIAL | V66: 8691 | W66: Natural | X66: PEQUEÑA | Y66: 4914000
A67: 2 | B67: 5001 | C67: MEDELLÍN | D67: 5 | E67: ANTIOQUIA | F67: ACTIVIDADES DE ATENCIÓN DE LA SALUD HUMANA Y DE ASISTENCIA SOCIAL | G67: 8692 | H67: Jurídica | I67: MEDIANA | J67: 38259000 | P67: 2 | Q67: 5001 | R67: MEDELLÍN | S67: 5 | T67: ANTIOQUIA | U67: ACTIVIDADES DE ATENCIÓN DE LA SALUD HUMANA Y DE ASISTENCIA SOCIAL | V67: 8692 | W67: Jurídica | X67: MEDIANA | Y67: 38259000
A68: 2 | B68: 5001 | C68: MEDELLÍN | D68: 5 | E68: ANTIOQUIA | F68: ACTIVIDADES DE ATENCIÓN DE LA SALUD HUMANA Y DE ASISTENCIA SOCIAL | G68: 8692 | H68: Jurídica | I68: MICRO | J68: 43875000 | P68: 2 | Q68: 5001 | R68: MEDELLÍN | S68: 5 | T68: ANTIOQUIA | U68: ACTIVIDADES DE ATENCIÓN DE LA SALUD HUMANA Y DE ASISTENCIA SOCIAL | V68: 8692 | W68: Jurídica | X68: MICRO | Y68: 43875000
A69: 2 | B69: 5001 | C69: MEDELLÍN | D69: 5 | E69: ANTIOQUIA | F69: ACTIVIDADES DE ATENCIÓN DE LA SALUD HUMANA Y DE ASISTENCIA SOCIAL | G69: 8692 | H69: Jurídica | I69: PEQUEÑA | J69: 51948000 | P69: 2 | Q69: 5001 | R69: MEDELLÍN | S69: 5 | T69: ANTIOQUIA | U69: ACTIVIDADES DE ATENCIÓN DE LA SALUD HUMANA Y DE ASISTENCIA SOCIAL | V69: 8692 | W69: Jurídica | X69: PEQUEÑA | Y69: 51948000
A70: 2 | B70: 5001 | C70: MEDELLÍN | D70: 5 | E70: ANTIOQUIA | F70: ACTIVIDADES DE ATENCIÓN DE LA SALUD HUMANA Y DE ASISTENCIA SOCIAL | G70: 8692 | H70: Natural | I70: MICRO | J70: 1053000 | P70: 2 | Q70: 5001 | R70: MEDELLÍN | S70: 5 | T70: ANTIOQUIA | U70: ACTIVIDADES DE ATENCIÓN DE LA SALUD HUMANA Y DE ASISTENCIA SOCIAL | V70: 8692 | W70: Natural | X70: MICRO | Y70: 1053000
A71: 2 | B71: 5001 | C71: MEDELLÍN | D71: 5 | E71: ANTIOQUIA | F71: ACTIVIDADES DE ATENCIÓN DE LA SALUD HUMANA Y DE ASISTENCIA SOCIAL | G71: 8699 | H71: Jurídica | I71: MEDIANA | J71: 203229000 | P71: 2 | Q71: 5001 | R71: MEDELLÍN | S71: 5 | T71: ANTIOQUIA | U71: ACTIVIDADES DE ATENCIÓN DE LA SALUD HUMANA Y DE ASISTENCIA SOCIAL | V71: 8699 | W71: Jurídica | X71: MEDIANA | Y71: 203229000
A72: 2 | B72: 5001 | C72: MEDELLÍN | D72: 5 | E72: ANTIOQUIA | F72: ACTIVIDADES DE ATENCIÓN DE LA SALUD HUMANA Y DE ASISTENCIA SOCIAL | G72: 8699 | H72: Jurídica | I72: MICRO | J72: 58266000 | P72: 2 | Q72: 5001 | R72: MEDELLÍN | S72: 5 | T72: ANTIOQUIA | U72: ACTIVIDADES DE ATENCIÓN DE LA SALUD HUMANA Y DE ASISTENCIA SOCIAL | V72: 8699 | W72: Jurídica | X72: MICRO | Y72: 58266000
A73: 2 | B73: 5001 | C73: MEDELLÍN | D73: 5 | E73: ANTIOQUIA | F73: ACTIVIDADES DE ATENCIÓN DE LA SALUD HUMANA Y DE ASISTENCIA SOCIAL | G73: 8699 | H73: Jurídica | I73: PEQUEÑA | J73: 104598000 | P73: 2 | Q73: 5001 | R73: MEDELLÍN | S73: 5 | T73: ANTIOQUIA | U73: ACTIVIDADES DE ATENCIÓN DE LA SALUD HUMANA Y DE ASISTENCIA SOCIAL | V73: 8699 | W73: Jurídica | X73: PEQUEÑA | Y73: 104598000
A74: 2 | B74: 5001 | C74: MEDELLÍN | D74: 5 | E74: ANTIOQUIA | F74: ACTIVIDADES DE ATENCIÓN DE LA SALUD HUMANA Y DE ASISTENCIA SOCIAL | G74: 8699 | H74: Natural | I74: MICRO | J74: 7371000 | P74: 2 | Q74: 5001 | R74: MEDELLÍN | S74: 5 | T74: ANTIOQUIA | U74: ACTIVIDADES DE ATENCIÓN DE LA SALUD HUMANA Y DE ASISTENCIA SOCIAL | V74: 8699 | W74: Natural | X74: MICRO | Y74: 7371000
A75: 2 | B75: 5001 | C75: MEDELLÍN | D75: 5 | E75: ANTIOQUIA | F75: ACTIVIDADES DE ATENCIÓN DE LA SALUD HUMANA Y DE ASISTENCIA SOCIAL | G75: 8699 | H75: Natural | I75: PEQUEÑA | J75: 4563000 | P75: 2 | Q75: 5001 | R75: MEDELLÍN | S75: 5 | T75: ANTIOQUIA | U75: ACTIVIDADES DE ATENCIÓN DE LA SALUD HUMANA Y DE ASISTENCIA SOCIAL | V75: 8699 | W75: Natural | X75: PEQUEÑA | Y75: 4563000
A76: 2 | B76: 5001 | C76: MEDELLÍN | D76: 5 | E76: ANTIOQUIA | F76: ACTIVIDADES DE ATENCIÓN DE LA SALUD HUMANA Y DE ASISTENCIA SOCIAL | G76: 8710 | H76: Jurídica | I76: MICRO | J76: 702000 | P76: 2 | Q76: 5001 | R76: MEDELLÍN | S76: 5 | T76: ANTIOQUIA | U76: ACTIVIDADES DE ATENCIÓN DE LA SALUD HUMANA Y DE ASISTENCIA SOCIAL | V76: 8710 | W76: Jurídica | X76: MICRO | Y76: 702000
A77: 2 | B77: 5001 | C77: MEDELLÍN | D77: 5 | E77: ANTIOQUIA | F77: ACTIVIDADES DE ATENCIÓN DE LA SALUD HUMANA Y DE ASISTENCIA SOCIAL | G77: 8710 | H77: Jurídica | I77: PEQUEÑA | J77: 22464000 | P77: 2 | Q77: 5001 | R77: MEDELLÍN | S77: 5 | T77: ANTIOQUIA | U77: ACTIVIDADES DE ATENCIÓN DE LA SALUD HUMANA Y DE ASISTENCIA SOCIAL | V77: 8710 | W77: Jurídica | X77: PEQUEÑA | Y77: 22464000
A78: 2 | B78: 5001 | C78: MEDELLÍN | D78: 5 | E78: ANTIOQUIA | F78: ACTIVIDADES DE ATENCIÓN DE LA SALUD HUMANA Y DE ASISTENCIA SOCIAL | G78: 8720 | H78: Jurídica | I78: MICRO | J78: 2106000 | P78: 2 | Q78: 5001 | R78: MEDELLÍN | S78: 5 | T78: ANTIOQUIA | U78: ACTIVIDADES DE ATENCIÓN DE LA SALUD HUMANA Y DE ASISTENCIA SOCIAL | V78: 8720 | W78: Jurídica | X78: MICRO | Y78: 2106000
A79: 2 | B79: 5001 | C79: MEDELLÍN | D79: 5 | E79: ANTIOQUIA | F79: ACTIVIDADES DE ATENCIÓN DE LA SALUD HUMANA Y DE ASISTENCIA SOCIAL | G79: 8720 | H79: Jurídica | I79: PEQUEÑA | J79: 5967000 | P79: 2 | Q79: 5001 | R79: MEDELLÍN | S79: 5 | T79: ANTIOQUIA | U79: ACTIVIDADES DE ATENCIÓN DE LA SALUD HUMANA Y DE ASISTENCIA SOCIAL | V79: 8720 | W79: Jurídica | X79: PEQUEÑA | Y79: 5967000
A80: 2 | B80: 5001 | C80: MEDELLÍN | D80: 5 | E80: ANTIOQUIA | F80: ACTIVIDADES DE ATENCIÓN DE LA SALUD HUMANA Y DE ASISTENCIA SOCIAL | G80: 8730 | H80: Jurídica | I80: MEDIANA | J80: 100737000 | P80: 2 | Q80: 5001 | R80: MEDELLÍN | S80: 5 | T80: ANTIOQUIA | U80: ACTIVIDADES DE ATENCIÓN DE LA SALUD HUMANA Y DE ASISTENCIA SOCIAL | V80: 8730 | W80: Jurídica | X80: MEDIANA | Y80: 100737000
